Workbook

Sheet TB nyugdíj
B3: Társadalombiztosítási nyugdíj várható összege
B4: A várható öregségi nyugdíj kalkulációja a nettó helyettesítési ráta jelenlegi értékén, valamint azon a feltételezésen alapul, hogy az inaktívak aránya 20 éve alatt, egyenletesen a duplájára nő. A jelenlegi értékre vonatkozó információ az OECD 2013-évre, az átlagos keresőkre vonatkozó adatát (http://www.oecd-ilibrary.org/content/table/pens_rate-table-en) veszi alapul.
B6: A sötétkék cellákat kötelező kitölteni, ezek a számolás inputjai. | E6: A szürke cellákban lévő dolgok csak paraméterek a számoláshoz, nem mutatjuk meg őket az ügyfélnek.
B7: A zöld cellák a számítások eredményét tartalmazzák.
B10: KALKULÁCIÓ | E10: PARAMÉTEREK
B11: Jelenlegi életkor: | C11: 43 | E11: Nyugdíjig hátralévő évek | F11: Helyettesítési ráta
B12: A nyugdíj alapját képező nettó jövedelem (/hó): | C12: 200000
B13: Nyugdíjjogosultságot nem képező egyéb bevétel (/hó): | C13: 50000
B14: TELJES JÖVEDELEM (/hó): | C14: =+C12+C13 -> 250000
B16: Várható életkor nyugdíjbamenetelkor: | C16: 65 | E16: 0 | F16: 1.06
B17: Becsült helyettesítési ráta: | C17: =+VLOOKUP(C16-C11,$E$16:$F$36,2,TRUE) -> 0.5 | E17: 1 | F17: =+$F$16-E17/$E$36*($F$16-$F$36) -> 1.032
B18: A nyugdíj becsült összege (/hó): | C18: =+C12*C17 -> 100000 | E18: 2 | F18: 1.004
B19: A kieső jövedelem (/hó): | C19: =+MAX(C14-C18,0) -> 150000 | E19: 3 | F19: 0.976
B20: Szükséges megtakarítás UNION-Nyugdíj Program segítségével (Ft): | C20: =+C19/F38*1000000 -> 16311439.76 | E20: 4 | F20: 0.948
E21: 5 | F21: 0.92
E22: 6 | F22: 0.892
E23: 7 | F23: 0.864
E24: 8 | F24: 0.836
E25: 9 | F25: 0.808
E26: 10 | F26: 0.78
E27: 11 | F27: 0.752
E28: 12 | F28: 0.724
E29: 13 | F29: 0.696
E30: 14 | F30: 0.668
E31: 15 | F31: 0.64
E32: 16 | F32: 0.612
E33: 17 | F33: 0.584
E34: 18 | F34: 0.556
E35: 19 | F35: 0.528
E36: 20 | F36: 0.5
E38: 1 MFt tőkéből vehető havi járadék (Ft): | F38: 9196

Sheet UNION_Nyugdíj
A1: UNION-Nyugdíj Program II. Megtakarítás Kalkulátor | D1: Biztosítási év | E1: Díjfizetés | F1: Kumulált díjfizetés | G1: Folyamatos díjakból létrejött megtakarítás záró értéke | H1: Bónusz számla záró értéke | I1: Kumlált adójóváírás | J1: Adójóváírás számla záró értéke | K1: Eseti díjakból létrejött megtakarítás záró értéke | L1: Teljes megtakarítás záró értéke ADÓJÓVÁÍRÁS NÉLKÜL | M1: Teljes megtakarítás záró értéke ADÓJÓVÁÍRÁSSAL | N1: Teljes megtakarítás záró értéke ADÓJÓVÁÍRÁSSAL és ESETI díjakkal | O1: VV érték %-ban a folyamatosí díjakból létrejött megtakarításra | P1: Visszavásárlási érték év végén - ADÓJÓVÁÍRÁS NÉLKÜL | Q1: Visszavásárlási érték év végén - ADÓJÓVÁÍRÁSSAL | R1: Visszavásárlási érték év végén - ADÓJÓVÁÍRÁSSAL - ESETI díjakkal | T1: Folyamatos díjakból létrejött megtakarítás záró értéke (kezdeti egységek) | U1: Folyamatos díjakból létrejött megtakarítás záró értéke (felhalmozási egységek) | W1: Hónap | X1: Év | Y1: Díjfizetés | Z1: Funding Factor | AA1: Kezdeti egységek nyitó értéke | AB1: Díj a kezdeti egységekbe | AC1: Kezdeti költség levonás | AD1: Kezdeti egységekre eső alapkezelési költség levonás | AE1: Temp1 _K | AF1: Felhalmozási egységek nyitó értéke | AG1: Díj a felhalmozási egységekbe | AH1: Felhalmozási egységekre eső alapkezelési költség levonás | AI1: Temp1_F | AJ1: Kezdeti egységekre eső adminisztrációs költség levonás | AK1: Felhalmozási egységekre eső adminisztrációs költség levonás | AL1: Temp2_K | AM1: Temp2_F | AN1: Haláleseti kockázatnak kitett összeg | AO1: Haláleseti kockázati díj | AP1: Rokkantsági kockázati díj | AQ1: Kezdeti egységeket terhelő kockázati díj | AR1: Felhalmozási egységeket terhelő kockázati díj | AS1: Temp3_K | AT1: Kezdeti egységek hozama | AU1: Kezdeti egységek záró értéke | AV1: Temp3_F | AW1: Felhalmozási egységek hozama | AX1: Felhalmozási egységek záró értéke | AY1: Bónusz számla nyitó érték | AZ1: Bónusz alapkezelési ktg | BA1: Bónusz számla hozama | BB1: Bónusz számla jóváírás | BC1: Bónusz számla záró értéke | BD1: Adójóváírás számla nyitó értéke | BE1: Adójóváírás | BF1: Adójóváírás szla hozama | BG1: Adójóváírás szla záró értéke | BH1: 1. Eseti díj befizetése | BI1: 1. Eseti számla nyitó érték | BJ1: 1. Eseti díj egyszeri befektetési költésg | BK1: 1. Eseti alapkezelési ktg | BL1: 1. Eseti számla hozama | BM1: 1. Eseti számla záró értéke | BN1: 2. Eseti díj befizetése | BO1: 2. Eseti számla nyitó érték | BP1: 2. Eseti díj egyszeri befektetési költésg | BQ1: 2. Eseti alapkezelési ktg | BR1: 2. Eseti számla hozama | BS1: 2. Eseti számla záró értéke | BT1: 3. Eseti díj befizetése | BU1: 3. Eseti számla nyitó érték | BV1: 3. Eseti díj egyszeri befektetési költésg | BW1: 3. Eseti alapkezelési ktg | BX1: 3. Eseti számla hozama | BY1: 3. Eseti számla záró értéke | BZ1: 4. Eseti díj befizetése | CA1: 4. Eseti számla nyitó érték | CB1: 4. Eseti díj egyszeri befektetési költésg | CC1: 4. Eseti alapkezelési ktg | CD1: 4. Eseti számla hozama | CE1: 4. Eseti számla záró értéke | CF1: 5. Eseti díj befizetése | CG1: 5. Eseti számla nyitó érték | CH1: 5. Eseti díj egyszeri befektetési költésg | CI1: 5. Eseti alapkezelési ktg | CJ1: 5. Eseti számla hozama | CK1: 5. Eseti számla záró értéke | CL1: Eseti számla záró értéke | CN1: Születési év | CO1: Betöltött életkor nyugdíjbamenetelkor | CP1: Plusz nap nyugdíjbamentelkor | CR1: Díjsáv felső határa | CS1: Alapkezelési ktg | CU1: Életkor | CV1: Alkalmazott qx | CZ1: vv % (eltelt év / tartam) | DA1: 5 | DB1: 6 | DC1: 7 | DD1: 8 | DE1: 9 | DF1: 10 | DQ1: 0.06996
A2: Biztosított születési dátuma: | B2: 1971-10-25 | D2: 1 | E2: =+Prem -> 400000 | F2: =+SUM($E$2:E2) -> 400000 | G2: =+IF(D2<=Term1, +INDEX($W$2:$BG$601,$D2*12,25)+INDEX($W$2:$BG$601,$D2*12,28), 0) +IF(AND(D2=Term1+1,Term2>0), +INDEX($W$2:$BG$601,$D2*12+Term2-12,25)+INDEX($W$2:$BG$601,$D2*12+Term2-12,28), 0) -> 379088.2923 | H2: =+IF(D2<=Term1, +INDEX($W$2:$BG$601,$D2*12,33), 0) +IF(AND(D2=Term1+1,Term2>0), +INDEX($W$2:$BG$601,$D2*12+Term2-12,33), 0) -> 0 | I2: =+IF(D2<=Term1, +SUM(INDEX($W$2:$BG$601,1,35):INDEX($W$2:$BG$601,$D2*12,35)), 0) +IF(AND(D2=Term1+1,Term2>0), +SUM(INDEX($W$2:$BG$601,1,35):INDEX($W$2:$BG$601,$D2*12+Term2-12,35), 0)) -> 0 | J2: =+IF(D2<=Term1, +INDEX($W$2:$BG$601,$D2*12,37), 0) +IF(AND(D2=Term1+1,Term2>0), +INDEX($W$2:$BG$601,$D2*12+Term2-12,37), 0) -> 0 | K2: =+IF($D2<=Term1, +INDEX($W$2:$CL$601,$D2*12,68), 0)+IF(AND($D2=Term1+1,Term2>0), +INDEX($W$2:$CL$601,$D2*12+Term2-12,68), 0) -> 100477.6967 | L2: =+G2+H2 -> 379088.2923 | M2: =+$G2+$H2+$J2 -> 379088.2923 | N2: =+$G2+$H2+$J2+$K2 -> 479565.989 | O2: =IF($B$29=1,IF(D2<3,90%,100%),INDEX($DA$2:$DF$11,MIN(D2,10),FEL_period-4)) -> 0 | P2: =MAX( +O2*T2+U2 +H2, 0) -> 0 | Q2: =MAX( +O2*$T2+$U2+$H2+($J2-$I2*120%), 0) -> 0 | R2: =MAX( +O2*$T2+$U2+$H2+($J2-$I2*120%)+$K2, 0) -> 100477.6967 | T2: =+IF(D2<=Term1, +INDEX($W$2:$BG$601,$D2*12,25), 0) +IF(AND(D2=Term1+1,Term2>0), +INDEX($W$2:$BG$601,$D2*12+Term2-12,25), 0) -> 379088.2923 | U2: =+IF(D2<=Term1, +INDEX($W$2:$BG$601,$D2*12,28), 0) +IF(AND(D2=Term1+1,Term2>0), +INDEX($W$2:$BG$601,$D2*12+Term2-12,28), 0) -> 0 | W2: 1 | X2: =+ROUNDDOWN((W2-1)/12,0)+1 -> 1 | Y2: =IF(W2<=Term1*12+Term2, IF(MOD((W2-1),(12/PremFreq))=0,Prem/PremFreq,0), 0) -> 400000 | Z2: =IF($B$29=1,1,FundingFactor(W2,FEL_period,Entage,1,kktg+aktg,10)) -> 0.4154597303 | AA2: =+MOD((W2-1)/(12/PremFreq),PremFreq) -> 0 | AB2: =+IF(W2<=FEL_build*12,Y2,0) -> 400000 | AC2: =IF($B$29=1,0,IF(X2<=FEL_period,(AA2+AB2)*kktg/12,0)) -> 2332 | AD2: =+(AA2+AB2)*aktg/12 -> 600 | AE2: =+AA2+AB2-AC2-AD2 -> 397068 | AF2: 0 | AG2: =+Y2-AB2 -> 0 | AH2: =+(AF2+AG2)*aktg/12 -> 0 | AI2: =+AF2+AG2-AH2 -> 0 | AJ2: =+fixktg-AK2 -> 600 | AK2: =+IF(share_mode=1,AI2/(AI2+AE2),MIN(AI2/fixktg,1))*fixktg -> 0 | AL2: =+AE2-AJ2 -> 396468 | AM2: =+AI2-AK2 -> 0 | AN2: =MAX((hal_bo-AL2*Z2-AM2),0) -> 35283.51164 | AO2: =+AN2*VLOOKUP(Entage+X2-1,$CU$2:$CV$102,2,FALSE)/12*(1+$DQ$10) -> 58.80585273 | AP2: =+rokk_bo*rokk_dij/12 -> 160 | AQ2: =+(AO2+AP2)-AR2 -> 218.8058527 | AR2: =+IF(share_mode2=1,AM2/(AM2+AL2),MIN(AM2/(AO2+AP2),1))*AO2 +IF(share_mode3=1,AM2/(AM2+AL2),MIN(AM2/(AO2+AP2),1))*AP2 -> 0 | AS2: =+AL2-AQ2 -> 396249.1941 | AT2: =+AS2*hozam/12 -> 1981.245971 | AU2: =+AS2+AT2 -> 398230.4401 | AV2: =+AM2-AR2 -> 0 | AW2: =+AV2*hozam/12 -> 0 | AX2: =+AV2+AW2 -> 0 | AY2: 0 | AZ2: =+(AY2)*eaktg/12 -> 0 | BA2: =+(AY2-AZ2)*hozam2/12 -> 0 | BB2: =+IF(W2=120,Prem,0) +IF(W2=180,Prem*0.5,0) +IF(W2=240,Prem*0.5,0) -> 0 | BC2: =+AY2-AZ2+BA2+BB2 -> 0 | BD2: 0 | BE2: =MIN(IF(AND(W2>12,MOD(W2,12)=7),1,0)*Prem*20%,130000) -> 0 | BF2: =+(BD2+BE2)*hozam2/12 -> 0 | BG2: =+BD2+BE2+BF2 -> 0 | BH2: =IF($W2=$DC$19,$DD$19,0) -> 0 | BI2: =BH2 -> 0 | BJ2: =BH2*$DQ$14 -> 0 | BK2: =+(BI2-BJ2)*eaktg/12 -> 0 | BL2: =+(BI2-BK2)*hozam/12 -> 0 | BM2: =BI2-BJ2-BK2+BL2 -> 0 | BN2: =IF($W2=$DC$20,$DD$20,0) -> 0 | BO2: =BN2 -> 0 | BP2: =BN2*$DQ$14 -> 0 | BQ2: =+(BO2-BP2)*eaktg/12 -> 0 | BR2: =+(BO2-BQ2)*hozam/12 -> 0 | BS2: =BO2-BP2-BQ2+BR2 -> 0 | BT2: =IF($W2=$DC$21,$DD$21,0) -> 0 | BU2: =BT2 -> 0 | BV2: =BT2*$DQ$14 -> 0 | BW2: =+(BU2-BV2)*eaktg/12 -> 0 | BX2: =+(BU2-BW2)*hozam/12 -> 0 | BY2: =BU2-BV2-BW2+BX2 -> 0 | BZ2: =IF($W2=$DC$22,$DD$22,0) -> 0 | CA2: =BZ2 -> 0 | CB2: =BZ2*$DQ$14 -> 0 | CC2: =+(CA2-CB2)*eaktg/12 -> 0 | CD2: =+(CA2-CC2)*hozam/12 -> 0 | CE2: =CA2-CB2-CC2+CD2 -> 0 | CF2: =IF($W2=$DC$23,$DD$23,0) -> 0 | CG2: =CF2 -> 0 | CH2: =CF2*$DQ$14 -> 0 | CI2: =+(CG2-CH2)*eaktg/12 -> 0 | CJ2: =+(CG2-CI2)*hozam/12 -> 0 | CK2: =CG2-CH2-CI2+CJ2 -> 0 | CL2: =BM2+BS2+BY2+CE2+CK2 -> 0 | CN2: 1953 | CO2: 63 | CP2: 0 | CR2: 0 | CS2: 0.0198 | CU2: 0 | CV2: 0.02 | CW2: 0.009998 | CZ2: 1 | DA2: 0 | DB2: 0 | DC2: 0 | DD2: 0 | DE2: 0 | DF2: 0
A3: Technikai kezdet dátuma: | B3: =+DATE(YEAR(TODAY()),MONTH(TODAY()),1) -> 2015-02-01 | D3: 2 | E3: 400000 | F3: =+SUM($E$2:E3) -> 800000 | G3: 748200.8533 | H3: 0 | I3: =+IF(D3<=Term1, +SUM(INDEX($W$2:$BG$601,1,35):INDEX($W$2:$BG$601,$D3*12,35)), 0) +IF(AND(D3=Term1+1,Term2>0), +SUM(INDEX($W$2:$BG$601,1,35):INDEX($W$2:$BG$601,$D3*12+Term2-12,35), 0)) -> 80000 | J3: 81207.52505 | K3: 104155.2408 | L3: =+G3+H3 -> 748200.8533 | M3: =+$G3+$H3+$J3 -> 829408.3784 | N3: =+$G3+$H3+$J3+$K3 -> 933563.6191 | O3: 0.2 | P3: =MAX( +O3*T3+U3 +H3, 0) -> 149640.1707 | Q3: =MAX( +O3*$T3+$U3+$H3+($J3-$I3*120%), 0) -> 134847.6957 | R3: =MAX( +O3*$T3+$U3+$H3+($J3-$I3*120%)+$K3, 0) -> 239002.9365 | T3: 748200.8533 | U3: 0 | W3: 2 | X3: =+ROUNDDOWN((W3-1)/12,0)+1 -> 1 | Y3: =+IF(MOD((W3-1),(12/PremFreq))=0,Prem/PremFreq,0) -> 0 | Z3: =IF($B$29=1,1,FundingFactor(W3,FEL_period,Entage,1,kktg+aktg,10)) -> 0.418507689 | AA3: =+AU2 -> 398230.4401 | AB3: 0 | AC3: 2321.683466 | AD3: 597.3456602 | AE3: =+AA3+AB3-AC3-AD3 -> 395311.411 | AF3: =+AX2 -> 0 | AG3: =+Y3-AB3 -> 0 | AH3: 0 | AI3: =+AF3+AG3-AH3 -> 0 | AJ3: 600 | AK3: 0 | AL3: =+AE3-AJ3 -> 394711.411 | AM3: =+AI3-AK3 -> 0 | AN3: 34810.23957 | AO3: 58.01706594 | AP3: 160 | AQ3: =+(AO3+AP3)-AR3 -> 218.0170659 | AR3: 0 | AS3: =+AL3-AQ3 -> 394493.3939 | AT3: 1972.46697 | AU3: =+AS3+AT3 -> 396465.8609 | AV3: =+AM3-AR3 -> 0 | AW3: 0 | AX3: =+AV3+AW3 -> 0 | AY3: =+BC2 -> 0 | AZ3: 0 | BA3: 0 | BB3: 0 | BC3: 0 | BD3: =+BG2 -> 0 | BE3: 0 | BF3: 0 | BG3: =+BD3+BE3+BF3 -> 0 | BH3: =IF($W3=$DC$19,$DD$19,0) -> 0 | BI3: =BH3+BM2 -> 0 | BJ3: =BH3*$DQ$14 -> 0 | BK3: 0 | BL3: 0 | BM3: =BI3-BJ3-BK3+BL3 -> 0 | BN3: =IF($W3=$DC$20,$DD$20,0) -> 0 | BO3: =BN3+BS2 -> 0 | BP3: =BN3*$DQ$14 -> 0 | BQ3: 0 | BR3: 0 | BS3: =BO3-BP3-BQ3+BR3 -> 0 | BT3: =IF($W3=$DC$21,$DD$21,0) -> 0 | BU3: =BT3+BY2 -> 0 | BV3: =BT3*$DQ$14 -> 0 | BW3: 0 | BX3: 0 | BY3: =BU3-BV3-BW3+BX3 -> 0 | BZ3: =IF($W3=$DC$22,$DD$22,0) -> 0 | CA3: =BZ3+CE2 -> 0 | CB3: =BZ3*$DQ$14 -> 0 | CC3: 0 | CD3: 0 | CE3: =CA3-CB3-CC3+CD3 -> 0 | CF3: =IF($W3=$DC$23,$DD$23,0) -> 0 | CG3: =CF3+CK2 -> 0 | CH3: =CF3*$DQ$14 -> 0 | CI3: 0 | CJ3: 0 | CK3: =CG3-CH3-CI3+CJ3 -> 0 | CL3: =BM3+BS3+BY3+CE3+CK3 -> 0 | CN3: 1954 | CO3: 63 | CP3: 183 | CR3: 350000 | CS3: 0.018 | CU3: 1 | CV3: 0.02 | CW3: 0.0007517322297 | CZ3: 2 | DA3: 0.35 | DB3: 0.3 | DC3: 0.25 | DD3: 0.25 | DE3: 0.2 | DF3: 0.2 | DJ3: 0 | DL3: éves | DM3: 1 | DP3: Kezdeti költség levonásának időtartama: | DQ3: =+MIN(Term1,10) -> 10
A4: Díjfizetési gyakoriság (1,2,4,12): | B4: éves | C4: =+VLOOKUP(B4,$DL$3:$DM$6,2,FALSE) -> 1 | D4: 3 | E4: 400000 | F4: =+SUM($E$2:E4) -> 1200000 | G4: 1106966.07 | H4: 0 | I4: =+IF(D4<=Term1, +SUM(INDEX($W$2:$BG$601,1,35):INDEX($W$2:$BG$601,$D4*12,35)), 0) +IF(AND(D4=Term1+1,Term2>0), +SUM(INDEX($W$2:$BG$601,1,35):INDEX($W$2:$BG$601,$D4*12+Term2-12,35), 0)) -> 160000 | J4: 164885.0547 | K4: 107967.3851 | L4: 1106966.07 | M4: 1271851.125 | N4: 1379818.51 | O4: 0.45 | P4: 498134.7314 | Q4: 471019.7861 | R4: 578987.1712 | T4: 1106966.07 | U4: 0 | W4: 3 | X4: 1 | Y4: 0 | Z4: =IF($B$29=1,1,FundingFactor(W4,FEL_period,Entage,1,kktg+aktg,10)) -> 0.4215556477 | AA4: =+AU3 -> 396465.8609 | AB4: 0 | AC4: 2311.395969 | AD4: 594.6987913 | AE4: =+AA4+AB4-AC4-AD4 -> 393559.7661 | AF4: =+AX3 -> 0 | AG4: =+Y4-AB4 -> 0 | AH4: 0 | AI4: =+AF4+AG4-AH4 -> 0 | AJ4: 600 | AK4: 0 | AL4: =+AE4-AJ4 -> 392959.7661 | AM4: =+AI4-AK4 -> 0 | AN4: 34345.59128 | AO4: 57.24265213 | AP4: 160 | AQ4: =+(AO4+AP4)-AR4 -> 217.2426521 | AR4: 0 | AS4: =+AL4-AQ4 -> 392742.5235 | AT4: 1963.712617 | AU4: =+AS4+AT4 -> 394706.2361 | AV4: =+AM4-AR4 -> 0 | AW4: 0 | AX4: =+AV4+AW4 -> 0 | AY4: =+BC3 -> 0 | AZ4: 0 | BA4: 0 | BB4: 0 | BC4: 0 | BD4: =+BG3 -> 0 | BE4: 0 | BF4: 0 | BG4: 0 | BH4: 100000 | BI4: =BH4+BM3 -> 100000 | BJ4: 2500 | BK4: 194.025 | BL4: 499.029875 | BM4: 97805.00487 | BN4: 0 | BO4: =BN4+BS3 -> 0 | BP4: 0 | BQ4: 0 | BR4: 0 | BS4: 0 | BT4: 0 | BU4: =BT4+BY3 -> 0 | BV4: 0 | BW4: 0 | BX4: 0 | BY4: 0 | BZ4: 0 | CA4: =BZ4+CE3 -> 0 | CB4: 0 | CC4: 0 | CD4: 0 | CE4: 0 | CF4: 0 | CG4: =CF4+CK3 -> 0 | CH4: 0 | CI4: 0 | CJ4: 0 | CK4: 0 | CL4: 97805.00487 | CN4: 1955 | CO4: 64 | CP4: 0 | CR4: 500000 | CS4: 0.015 | CU4: 2 | CV4: 0.02 | CW4: 0.0004509484532 | CZ4: 3 | DA4: 0.75 | DB4: 0.65 | DC4: 0.6 | DD4: 0.55 | DE4: 0.45 | DF4: 0.45 | DJ4: 0.06 | DL4: féléves | DM4: 2 | DP4: Kezdeti egységek képzésének időtartama (év): | DQ4: 3
A5: Éves díj: | B5: 400000 | C5: =+(Prem>=DJ13) -> TRUE | D5: 4 | E5: 400000 | F5: =+SUM($E$2:E5) -> 1600000 | G5: 1483851.36 | H5: 0 | I5: =+IF(D5<=Term1, +SUM(INDEX($W$2:$BG$601,1,35):INDEX($W$2:$BG$601,$D5*12,35)), 0) +IF(AND(D5=Term1+1,Term2>0), +SUM(INDEX($W$2:$BG$601,1,35):INDEX($W$2:$BG$601,$D5*12+Term2-12,35), 0)) -> 240000 | J5: 251107.7164 | K5: 111919.0562 | L5: 1483851.36 | M5: 1734959.077 | N5: 1846878.133 | O5: 0.5 | P5: =MAX( +O5*T5+U5 +H5, 0) -> 948482.1126 | Q5: 911589.8291 | R5: 1023508.885 | T5: 1070738.495 | U5: 413112.865 | W5: 4 | X5: 1 | Y5: 0 | Z5: =IF($B$29=1,1,FundingFactor(W5,FEL_period,Entage,1,kktg+aktg,10)) -> 0.4246036064 | AA5: 394706.2361 | AB5: 0 | AC5: 2301.137356 | AD5: 592.0593542 | AE5: 391813.0394 | AF5: 0 | AG5: 0 | AH5: 0 | AI5: 0 | AJ5: 600 | AK5: 0 | AL5: 391213.0394 | AM5: 0 | AN5: 33889.53262 | AO5: 56.48255437 | AP5: 160 | AQ5: =+(AO5+AP5)-AR5 -> 216.4825544 | AR5: 0 | AS5: 390996.5568 | AT5: 1954.982784 | AU5: 392951.5396 | AV5: 0 | AW5: 0 | AX5: 0 | AY5: 0 | AZ5: 0 | BA5: 0 | BB5: 0 | BC5: 0 | BD5: 0 | BE5: 0 | BF5: 0 | BG5: 0 | BH5: 0 | BI5: 97805.00487 | BJ5: 0 | BK5: 194.6319597 | BL5: 488.0518646 | BM5: 98098.42478 | BN5: 0 | BO5: 0 | BP5: 0 | BQ5: 0 | BR5: 0 | BS5: 0 | BT5: 0 | BU5: 0 | BV5: 0 | BW5: 0 | BX5: 0 | BY5: 0 | BZ5: 0 | CA5: 0 | CB5: 0 | CC5: 0 | CD5: 0 | CE5: 0 | CF5: 0 | CG5: 0 | CH5: 0 | CI5: 0 | CJ5: 0 | CK5: 0 | CL5: 98098.42478 | CN5: 1956 | CO5: 64 | CP5: 183 | CU5: 3 | CV5: 0.02 | CW5: 0.000307329157 | CZ5: 4 | DA5: 0.85 | DB5: 0.75 | DC5: 0.7 | DD5: 0.6 | DE5: 0.55 | DF5: 0.5 | DJ5: 0.07 | DL5: negyedéves | DM5: 4 | DP5: Kezdeti költség: | DQ5: =+VLOOKUP(Term1,$DP$19:$DQ$29,2,TRUE) -> 0.06996
A6: Folyamatos és eseti díjakon elért hozam: | B6: 0.06 | D6: 5 | E6: 400000 | F6: =+SUM($E$2:E6) -> 2000000 | G6: 1879363.037 | H6: 0 | I6: =+IF(D6<=Term1, +SUM(INDEX($W$2:$BG$601,1,35):INDEX($W$2:$BG$601,$D6*12,35)), 0) +IF(AND(D6=Term1+1,Term2>0), +SUM(INDEX($W$2:$BG$601,1,35):INDEX($W$2:$BG$601,$D6*12+Term2-12,35), 0)) -> 320000 | J6: 339952.923 | K6: 116015.3609 | L6: 1879363.037 | M6: 2219315.96 | N6: 2335331.321 | O6: 0.57 | P6: =MAX( +O6*T6+U6 +H6, 0) -> 1433569.964 | Q6: 1389522.887 | R6: 1505538.248 | T6: 1036728.076 | U6: 842634.9604 | W6: 5 | X6: 1 | Y6: 0 | Z6: =IF($B$29=1,1,FundingFactor(W6,FEL_period,Entage,1,kktg+aktg,10)) -> 0.427651565 | AA6: 392951.5396 | AB6: 0 | AC6: 2290.907476 | AD6: 589.4273094 | AE6: 390071.2048 | AF6: 0 | AG6: 0 | AH6: 0 | AI6: 0 | AJ6: 600 | AK6: 0 | AL6: 389471.2048 | AM6: 0 | AN6: 33442.02972 | AO6: 55.7367162 | AP6: 160 | AQ6: 215.7367162 | AR6: 0 | AS6: 389255.4681 | AT6: 1946.277341 | AU6: 391201.7455 | AV6: 0 | AW6: 0 | AX6: 0 | AY6: 0 | AZ6: 0 | BA6: 0 | BB6: 0 | BC6: 0 | BD6: 0 | BE6: 0 | BF6: 0 | BG6: 0 | BH6: 0 | BI6: 98098.42478 | BJ6: 0 | BK6: 195.2158653 | BL6: 489.5160446 | BM6: 98392.72496 | BN6: 0 | BO6: 0 | BP6: 0 | BQ6: 0 | BR6: 0 | BS6: 0 | BT6: 0 | BU6: 0 | BV6: 0 | BW6: 0 | BX6: 0 | BY6: 0 | BZ6: 0 | CA6: 0 | CB6: 0 | CC6: 0 | CD6: 0 | CE6: 0 | CF6: 0 | CG6: 0 | CH6: 0 | CI6: 0 | CJ6: 0 | CK6: 0 | CL6: 98392.72496 | CN6: 1957 | CO6: 65 | CP6: 0 | CU6: 4 | CV6: 0.02 | CW6: 0.0002894630693 | CZ6: 5 | DA6: 1 | DB6: 0.85 | DC6: 0.75 | DD6: 0.7 | DE6: 0.65 | DF6: 0.57 | DJ6: 0.08 | DL6: havi | DM6: 12 | DP6: Alapkezelési költség: | DQ6: =+VLOOKUP(Prem,$CR$2:$CS$4,2,TRUE) -> 0.018
A7: Bónuszon és adójóváíráson elért hozam: | B7: 0.03 | D7: 6 | E7: 400000 | F7: =+SUM($E$2:E7) -> 2400000 | G7: 2294152.638 | H7: 0 | I7: =+IF(D7<=Term1, +SUM(INDEX($W$2:$BG$601,1,35):INDEX($W$2:$BG$601,$D7*12,35)), 0) +IF(AND(D7=Term1+1,Term2>0), +SUM(INDEX($W$2:$BG$601,1,35):INDEX($W$2:$BG$601,$D7*12+Term2-12,35), 0)) -> 400000 | J7: 431500.4415 | K7: 120261.5927 | L7: 2294152.638 | M7: 2725653.08 | N7: 2845914.672 | O7: 0.64 | P7: 1932538.73 | Q7: 1884039.171 | R7: 2004300.764 | T7: 1004483.078 | U7: 1289669.56 | W7: 6 | X7: 1 | Y7: 0 | Z7: =IF($B$29=1,1,FundingFactor(W7,FEL_period,Entage,1,kktg+aktg,10)) -> 0.4306995237 | AA7: 391201.7455 | AB7: 0 | AC7: 2280.706176 | AD7: 586.8026182 | AE7: 388334.2367 | AF7: 0 | AG7: 0 | AH7: 0 | AI7: 0 | AJ7: 600 | AK7: 0 | AL7: 387734.2367 | AM7: 0 | AN7: 33003.04894 | AO7: 55.00508157 | AP7: 160 | AQ7: 215.0050816 | AR7: 0 | AS7: 387519.2316 | AT7: 1937.596158 | AU7: 389456.8277 | AV7: 0 | AW7: 0 | AX7: 0 | AY7: 0 | AZ7: 0 | BA7: 0 | BB7: 0 | BC7: 0 | BD7: 0 | BE7: 0 | BF7: 0 | BG7: 0 | BH7: 0 | BI7: 98392.72496 | BJ7: 0 | BK7: 195.8015227 | BL7: 490.9846172 | BM7: 98687.90805 | BN7: 0 | BO7: 0 | BP7: 0 | BQ7: 0 | BR7: 0 | BS7: 0 | BT7: 0 | BU7: 0 | BV7: 0 | BW7: 0 | BX7: 0 | BY7: 0 | BZ7: 0 | CA7: 0 | CB7: 0 | CC7: 0 | CD7: 0 | CE7: 0 | CF7: 0 | CG7: 0 | CH7: 0 | CI7: 0 | CJ7: 0 | CK7: 0 | CL7: 98687.90805 | CU7: 5 | CV7: 0.02 | CW7: 0.0002307390803 | CZ7: 6 | DA7: 1 | DB7: 1 | DC7: 0.85 | DD7: 0.8 | DE7: 0.7 | DF7: 0.64 | DJ7: 0.09 | DP7: Fix admin költség: | DQ7: 600
D8: 7 | E8: 400000 | F8: =+SUM($E$2:E8) -> 2800000 | G8: 2728926.375 | H8: 0 | I8: =+IF(D8<=Term1, +SUM(INDEX($W$2:$BG$601,1,35):INDEX($W$2:$BG$601,$D8*12,35)), 0) +IF(AND(D8=Term1+1,Term2>0), +SUM(INDEX($W$2:$BG$601,1,35):INDEX($W$2:$BG$601,$D8*12+Term2-12,35), 0)) -> 480000 | J8: 525832.4654 | K8: 124663.2392 | L8: 2728926.375 | M8: 3254758.84 | N8: 3379422.079 | O8: 0.7 | P8: 2436809.193 | Q8: 2386641.658 | R8: 2511304.897 | T8: 973723.9389 | U8: 1755202.436 | W8: 7 | X8: 1 | Y8: 0 | Z8: =IF($B$29=1,1,FundingFactor(W8,FEL_period,Entage,1,kktg+aktg,10)) -> 0.4337474824 | AA8: 389456.8277 | AB8: 0 | AC8: 2270.533306 | AD8: 584.1852416 | AE8: 386602.1092 | AF8: 0 | AG8: 0 | AH8: 0 | AI8: 0 | AJ8: 600 | AK8: 0 | AL8: 386002.1092 | AM8: 0 | AN8: 32572.55694 | AO8: 54.2875949 | AP8: 160 | AQ8: 214.2875949 | AR8: 0 | AS8: =+AL8-AQ8 -> 385787.8216 | AT8: 1928.939108 | AU8: 387716.7607 | AV8: 0 | AW8: 0 | AX8: 0 | AY8: 0 | AZ8: 0 | BA8: 0 | BB8: 0 | BC8: 0 | BD8: 0 | BE8: 0 | BF8: 0 | BG8: 0 | BH8: 0 | BI8: 98687.90805 | BJ8: 0 | BK8: 196.388937 | BL8: 492.4575956 | BM8: 98983.97671 | BN8: 0 | BO8: 0 | BP8: 0 | BQ8: 0 | BR8: 0 | BS8: 0 | BT8: 0 | BU8: 0 | BV8: 0 | BW8: 0 | BX8: 0 | BY8: 0 | BZ8: 0 | CA8: 0 | CB8: 0 | CC8: 0 | CD8: 0 | CE8: 0 | CF8: 0 | CG8: 0 | CH8: 0 | CI8: 0 | CJ8: 0 | CK8: 0 | CL8: 98983.97671 | CU8: 6 | CV8: 0.02 | CW8: 0.0001923092603 | CZ8: 7 | DA8: 1 | DB8: 1 | DC8: 1 | DD8: 0.9 | DE8: 0.8 | DF8: 0.7 | DJ8: 0.1 | DP8: Eseti alapkezelési költség: | DQ8: =0.199%*12 -> 0.02388
A9: Életkor a technikai kezdetkor: | B9: =+ROUND((Dtb-Dob)/365,0) -> 43 | D9: 8 | E9: 400000 | F9: =+SUM($E$2:E9) -> 3200000 | G9: 3184437.72 | H9: 0 | I9: =+IF(D9<=Term1, +SUM(INDEX($W$2:$BG$601,1,35):INDEX($W$2:$BG$601,$D9*12,35)), 0) +IF(AND(D9=Term1+1,Term2>0), +SUM(INDEX($W$2:$BG$601,1,35):INDEX($W$2:$BG$601,$D9*12+Term2-12,35), 0)) -> 560000 | J9: 623033.688 | K9: 129225.9886 | L9: 3184437.72 | M9: 3807471.408 | N9: 3936697.397 | O9: 0.78 | P9: 2976700.057 | Q9: 2927733.745 | R9: 3056959.733 | T9: 944262.1082 | U9: 2240175.612 | W9: 8 | X9: 1 | Y9: 0 | Z9: =IF($B$29=1,1,FundingFactor(W9,FEL_period,Entage,1,kktg+aktg,10)) -> 0.4367954411 | AA9: 387716.7607 | AB9: 0 | AC9: 2260.388715 | AD9: 581.5751411 | AE9: 384874.7969 | AF9: 0 | AG9: 0 | AH9: 0 | AI9: 0 | AJ9: 600 | AK9: 0 | AL9: 384274.7969 | AM9: 0 | AN9: 32150.52062 | AO9: 53.58420103 | AP9: 160 | AQ9: 213.584201 | AR9: 0 | AS9: 384061.2126 | AT9: 1920.306063 | AU9: 385981.5187 | AV9: 0 | AW9: 0 | AX9: 0 | AY9: 0 | AZ9: 0 | BA9: 0 | BB9: 0 | BC9: 0 | BD9: 0 | BE9: 0 | BF9: 0 | BG9: 0 | BH9: 0 | BI9: 98983.97671 | BJ9: 0 | BK9: 196.9781137 | BL9: 493.934993 | BM9: 99280.93359 | BN9: 0 | BO9: 0 | BP9: 0 | BQ9: 0 | BR9: 0 | BS9: 0 | BT9: 0 | BU9: 0 | BV9: 0 | BW9: 0 | BX9: 0 | BY9: 0 | BZ9: 0 | CA9: 0 | CB9: 0 | CC9: 0 | CD9: 0 | CE9: 0 | CF9: 0 | CG9: 0 | CH9: 0 | CI9: 0 | CJ9: 0 | CK9: 0 | CL9: 99280.93359 | CU9: 7 | CV9: 0.02 | CW9: 0.0001984632624 | CZ9: 8 | DA9: 1 | DB9: 1 | DC9: 1 | DD9: 1 | DE9: 0.9 | DF9: 0.78 | DJ9: 0.11 | DP9: Rokkantság éves díjtétele: | DQ9: 0.0048
A10: Öregségi nyugdíjkorhatár / lejárat: | B10: =+DATE( YEAR(Dob)+IF(YEAR(Dob)<1953,63,IF(YEAR(Dob)>1957,65,VLOOKUP(YEAR(Dob),$CN$2:$CP$6,2,TRUE))), MONTH(Dob), DAY(Dob)+IF(YEAR(Dob)<1953,0,IF(YEAR(Dob)>1957,0,VLOOKUP(YEAR(Dob),$CN$2:$CP$6,3,TRUE))) ) -> 2036-10-25 | D10: 9 | E10: 400000 | F10: =+SUM($E$2:E10) -> 3600000 | G10: 3661484.137 | H10: 0 | I10: =+IF(D10<=Term1, +SUM(INDEX($W$2:$BG$601,1,35):INDEX($W$2:$BG$601,$D10*12,35)), 0) +IF(AND(D10=Term1+1,Term2>0), +SUM(INDEX($W$2:$BG$601,1,35):INDEX($W$2:$BG$601,$D10*12+Term2-12,35), 0)) -> 640000 | J10: 723191.3789 | K10: 133955.7374 | L10: 3661484.137 | M10: 4384675.516 | N10: 4518631.254 | O10: 0.9 | P10: 3569887.947 | Q10: 3525079.326 | R10: 3659035.063 | T10: 915961.9039 | U10: 2745522.233 | W10: 9 | X10: 1 | Y10: 0 | Z10: =IF($B$29=1,1,FundingFactor(W10,FEL_period,Entage,1,kktg+aktg,10)) -> 0.4398433997 | AA10: 385981.5187 | AB10: 0 | AC10: 2250.272254 | AD10: 578.9722781 | AE10: 383152.2742 | AF10: 0 | AG10: 0 | AH10: 0 | AI10: 0 | AJ10: 600 | AK10: 0 | AL10: 382552.2742 | AM10: 0 | AN10: 31736.90714 | AO10: 52.89484524 | AP10: 160 | AQ10: 212.8948452 | AR10: 0 | AS10: 382339.3793 | AT10: 1911.696897 | AU10: 384251.0762 | AV10: 0 | AW10: 0 | AX10: 0 | AY10: 0 | AZ10: 0 | BA10: 0 | BB10: 0 | BC10: 0 | BD10: 0 | BE10: 0 | BF10: 0 | BG10: 0 | BH10: 0 | BI10: 99280.93359 | BJ10: 0 | BK10: 197.5690578 | BL10: 495.4168227 | BM10: 99578.78136 | BN10: 0 | BO10: 0 | BP10: 0 | BQ10: 0 | BR10: 0 | BS10: 0 | BT10: 0 | BU10: 0 | BV10: 0 | BW10: 0 | BX10: 0 | BY10: 0 | BZ10: 0 | CA10: 0 | CB10: 0 | CC10: 0 | CD10: 0 | CE10: 0 | CF10: 0 | CG10: 0 | CH10: 0 | CI10: 0 | CJ10: 0 | CK10: 0 | CL10: 99578.78136 | CU10: 8 | CV10: 0.02 | CW10: 0.0001823319795 | CZ10: 9 | DA10: 1 | DB10: 1 | DC10: 1 | DD10: 1 | DE10: 1 | DF10: 0.9 | DJ10: 0.12 | DP10: Halál biztonsági pótlék: | DQ10: 0
A11: Tartam 1 (egész év): | B11: =IF(Matage-(DATE(YEAR(Matage),1,1)-1)>=Dtb-(DATE(YEAR(Dtb),1,1)-1), YEAR(Matage)-YEAR(Dtb), YEAR(Matage)-YEAR(Dtb)-1) -> 21 | D11: 10 | E11: 400000 | F11: =+SUM($E$2:E11) -> 4000000 | G11: 4160905.808 | H11: 400000 | I11: =+IF(D11<=Term1, +SUM(INDEX($W$2:$BG$601,1,35):INDEX($W$2:$BG$601,$D11*12,35)), 0) +IF(AND(D11=Term1+1,Term2>0), +SUM(INDEX($W$2:$BG$601,1,35):INDEX($W$2:$BG$601,$D11*12+Term2-12,35), 0)) -> 720000 | J11: 826395.4617 | K11: 138858.5978 | L11: 4560905.808 | M11: 5387301.27 | N11: 5526159.868 | O11: 1 | P11: 4560905.808 | Q11: 4523301.27 | R11: 4662159.868 | T11: 888720.6101 | U11: 3272185.198 | W11: 10 | X11: 1 | Y11: 0 | Z11: =IF($B$29=1,1,FundingFactor(W11,FEL_period,Entage,1,kktg+aktg,10)) -> 0.4428913584 | AA11: 384251.0762 | AB11: 0 | AC11: 2240.183774 | AD11: 576.3766143 | AE11: 381434.5158 | AF11: 0 | AG11: 0 | AH11: 0 | AI11: 0 | AJ11: 600 | AK11: 0 | AL11: 380834.5158 | AM11: 0 | AN11: 31331.68394 | AO11: 52.21947324 | AP11: 160 | AQ11: 212.2194732 | AR11: 0 | AS11: 380622.2964 | AT11: 1903.111482 | AU11: 382525.4079 | AV11: 0 | AW11: 0 | AX11: 0 | AY11: 0 | AZ11: 0 | BA11: 0 | BB11: 0 | BC11: 0 | BD11: 0 | BE11: 0 | BF11: 0 | BG11: 0 | BH11: 0 | BI11: 99578.78136 | BJ11: 0 | BK11: 198.1617749 | BL11: 496.9030979 | BM11: 99877.52268 | BN11: 0 | BO11: 0 | BP11: 0 | BQ11: 0 | BR11: 0 | BS11: 0 | BT11: 0 | BU11: 0 | BV11: 0 | BW11: 0 | BX11: 0 | BY11: 0 | BZ11: 0 | CA11: 0 | CB11: 0 | CC11: 0 | CD11: 0 | CE11: 0 | CF11: 0 | CG11: 0 | CH11: 0 | CI11: 0 | CJ11: 0 | CK11: 0 | CL11: 99877.52268 | CU11: 9 | CV11: 0.02 | CW11: 0.0001742809451 | CZ11: 10 | DA11: 1 | DB11: 1 | DC11: 1 | DD11: 1 | DE11: 1 | DF11: 1 | DP11: Admin ktg felosztás (1 - arányos, 2 - felhalmozási) | DQ11: 1
A12: Tartam 2 (Tartam 1 plusz egész hónap): | B12: =+IF(MONTH(Matage)-MONTH(Dtb)>=0,MONTH(Matage)-MONTH(Dtb),MONTH(Matage)-MONTH(Dtb)+12) -> 8 | D12: 11 | E12: 400000 | F12: =+SUM($E$2:E12) -> 4400000 | G12: 4746424.433 | H12: 402430.8647 | I12: =+IF(D12<=Term1, +SUM(INDEX($W$2:$BG$601,1,35):INDEX($W$2:$BG$601,$D12*12,35)), 0) +IF(AND(D12=Term1+1,Term2>0), +SUM(INDEX($W$2:$BG$601,1,35):INDEX($W$2:$BG$601,$D12*12+Term2-12,35), 0)) -> 800000 | J12: 932738.5955 | K12: 143940.9059 | L12: 5148855.298 | M12: 6081593.894 | N12: 6225534.799 | O12: 1 | P12: 5148855.298 | Q12: 5121593.894 | R12: 5265534.799 | T12: 925253.0866 | U12: 3821171.347 | W12: 11 | X12: 1 | Y12: 0 | Z12: =IF($B$29=1,1,FundingFactor(W12,FEL_period,Entage,1,kktg+aktg,10)) -> 0.4459393171 | AA12: 382525.4079 | AB12: 0 | AC12: 2230.123128 | AD12: 573.7881118 | AE12: 379721.4966 | AF12: 0 | AG12: 0 | AH12: 0 | AI12: 0 | AJ12: 600 | AK12: 0 | AL12: 379121.4966 | AM12: 0 | AN12: 30934.8187 | AO12: 51.55803117 | AP12: 160 | AQ12: 211.5580312 | AR12: 0 | AS12: 378909.9386 | AT12: 1894.549693 | AU12: 380804.4883 | AV12: 0 | AW12: 0 | AX12: 0 | AY12: 0 | AZ12: 0 | BA12: 0 | BB12: 0 | BC12: 0 | BD12: 0 | BE12: 0 | BF12: 0 | BG12: 0 | BH12: 0 | BI12: 99877.52268 | BJ12: 0 | BK12: 198.7562701 | BL12: 498.393832 | BM12: 100177.1602 | BN12: 0 | BO12: 0 | BP12: 0 | BQ12: 0 | BR12: 0 | BS12: 0 | BT12: 0 | BU12: 0 | BV12: 0 | BW12: 0 | BX12: 0 | BY12: 0 | BZ12: 0 | CA12: 0 | CB12: 0 | CC12: 0 | CD12: 0 | CE12: 0 | CF12: 0 | CG12: 0 | CH12: 0 | CI12: 0 | CJ12: 0 | CK12: 0 | CL12: 100177.1602 | CU12: 10 | CV12: 0.02 | CW12: 0.0001601027437 | DP12: Halál kock díj felosztás (1 - arányos, 2 - felhalmozási) | DQ12: 2
A13: Tartam 3 (Tartam 2 plusz egész nap): | B13: =+Matage-Dtb-(DATE(YEAR(Dtb)+Term1,MONTH(Dtb)+Term2,DAY(Dtb))-DATE(YEAR(Dtb),MONTH(Dtb),DAY(Dtb))) -> 24 | D13: 12 | E13: 400000 | F13: =+SUM($E$2:E13) -> 4800000 | G13: 5356959.04 | H13: 404876.5021 | I13: =+IF(D13<=Term1, +SUM(INDEX($W$2:$BG$601,1,35):INDEX($W$2:$BG$601,$D13*12,35)), 0) +IF(AND(D13=Term1+1,Term2>0), +SUM(INDEX($W$2:$BG$601,1,35):INDEX($W$2:$BG$601,$D13*12+Term2-12,35), 0)) -> 880000 | J13: 1042316.258 | K13: 149209.2294 | L13: 5761835.542 | M13: 6804151.8 | N13: 6953361.029 | O13: 1 | P13: 5761835.542 | Q13: 5748151.8 | R13: 5897361.029 | T13: 963457.6139 | U13: 4393501.426 | W13: 12 | X13: 1 | Y13: 0 | Z13: =IF($B$29=1,1,FundingFactor(W13,FEL_period,Entage,1,kktg+aktg,10)) -> 0.4489872758 | AA13: 380804.4883 | AB13: 0 | AC13: 2220.090167 | AD13: 571.2067324 | AE13: 378013.1914 | AF13: 0 | AG13: 0 | AH13: 0 | AI13: 0 | AJ13: 600 | AK13: 0 | AL13: 377413.1914 | AM13: 0 | AN13: 30546.27936 | AO13: 50.9104656 | AP13: 160 | AQ13: 210.9104656 | AR13: 0 | AS13: 377202.2809 | AT13: 1886.011405 | AU13: 379088.2923 | AV13: 0 | AW13: 0 | AX13: 0 | AY13: 0 | AZ13: 0 | BA13: 0 | BB13: 0 | BC13: 0 | BD13: 0 | BE13: 0 | BF13: 0 | BG13: 0 | BH13: 0 | BI13: 100177.1602 | BJ13: 0 | BK13: 199.3525489 | BL13: 499.8890385 | BM13: 100477.6967 | BN13: 0 | BO13: 0 | BP13: 0 | BQ13: 0 | BR13: 0 | BS13: 0 | BT13: 0 | BU13: 0 | BV13: 0 | BW13: 0 | BX13: 0 | BY13: 0 | BZ13: 0 | CA13: 0 | CB13: 0 | CC13: 0 | CD13: 0 | CE13: 0 | CF13: 0 | CG13: 0 | CH13: 0 | CI13: 0 | CJ13: 0 | CK13: 0 | CL13: 100477.6967 | CU13: 11 | CV13: 0.02 | CW13: 0.0001418302625 | DJ13: =+IF(Term1<20,84000,60000) -> 60000 | DP13: Rokk. kock díj felosztás (1 - arányos, 2 - felhalmozási) | DQ13: 2
A14: Haláleseti BÖ: | B14: 200000 | D14: 13 | E14: 400000 | F14: =+SUM($E$2:E14) -> 5200000 | G14: 5993578.423 | H14: 407337.0021 | I14: =+IF(D14<=Term1, +SUM(INDEX($W$2:$BG$601,1,35):INDEX($W$2:$BG$601,$D14*12,35)), 0) +IF(AND(D14=Term1+1,Term2>0), +SUM(INDEX($W$2:$BG$601,1,35):INDEX($W$2:$BG$601,$D14*12+Term2-12,35), 0)) -> 960000 | J14: 1155226.829 | K14: 154670.3768 | L14: 6400915.425 | M14: 7556142.254 | N14: 7710812.631 | O14: 1 | P14: 6400915.425 | Q14: 6404142.254 | R14: 6558812.631 | T14: 1003386.141 | U14: 4990192.282 | W14: 13 | X14: 2 | Y14: 400000 | Z14: =IF($B$29=1,1,FundingFactor(W14,FEL_period,Entage,1,kktg+aktg,10)) -> 0.4520352345 | AA14: 379088.2923 | AB14: 400000 | AC14: 4542.084744 | AD14: 1168.632438 | AE14: 773377.5751 | AF14: 0 | AG14: 0 | AH14: 0 | AI14: 0 | AJ14: 600 | AK14: 0 | AL14: 772777.5751 | AM14: 0 | AN14: 0 | AO14: 0 | AP14: 160 | AQ14: 160 | AR14: 0 | AS14: 772617.5751 | AT14: 3863.087876 | AU14: 776480.663 | AV14: 0 | AW14: 0 | AX14: 0 | AY14: 0 | AZ14: 0 | BA14: 0 | BB14: 0 | BC14: 0 | BD14: 0 | BE14: 0 | BF14: 0 | BG14: 0 | BH14: 0 | BI14: 100477.6967 | BJ14: 0 | BK14: 199.9506165 | BL14: 501.3887306 | BM14: 100779.1348 | BN14: 0 | BO14: 0 | BP14: 0 | BQ14: 0 | BR14: 0 | BS14: 0 | BT14: 0 | BU14: 0 | BV14: 0 | BW14: 0 | BX14: 0 | BY14: 0 | BZ14: 0 | CA14: 0 | CB14: 0 | CC14: 0 | CD14: 0 | CE14: 0 | CF14: 0 | CG14: 0 | CH14: 0 | CI14: 0 | CJ14: 0 | CK14: 0 | CL14: 100779.1348 | CU14: 12 | CV14: 0.02 | CW14: 0.000139767587 | DP14: Egyszeri befektetési költség | DQ14: 0.025
A15: Rokkantsági BÖ: | B15: 400000 | D15: 14 | E15: 400000 | F15: =+SUM($E$2:E15) -> 5600000 | G15: 6657397.042 | H15: 409812.4549 | I15: =+IF(D15<=Term1, +SUM(INDEX($W$2:$BG$601,1,35):INDEX($W$2:$BG$601,$D15*12,35)), 0) +IF(AND(D15=Term1+1,Term2>0), +SUM(INDEX($W$2:$BG$601,1,35):INDEX($W$2:$BG$601,$D15*12+Term2-12,35), 0)) -> 1040000 | J15: 1271571.683 | K15: 160331.4055 | L15: 7067209.497 | M15: 8338781.18 | N15: 8499112.586 | O15: 1 | P15: 7067209.497 | Q15: 7090781.18 | R15: 7251112.586 | T15: 1045097.478 | U15: 5612299.563 | W15: 14 | X15: 2 | Y15: 0 | Z15: =IF($B$29=1,1,FundingFactor(W15,FEL_period,Entage,1,kktg+aktg,10)) -> 0.4553743212 | AA15: 776480.663 | AB15: 0 | AC15: 4526.882265 | AD15: 1164.720995 | AE15: 770789.0597 | AF15: 0 | AG15: 0 | AH15: 0 | AI15: 0 | AJ15: 600 | AK15: 0 | AL15: 770189.0597 | AM15: 0 | AN15: 0 | AO15: 0 | AP15: 160 | AQ15: 160 | AR15: 0 | AS15: 770029.0597 | AT15: 3850.145299 | AU15: 773879.205 | AV15: 0 | AW15: 0 | AX15: 0 | AY15: 0 | AZ15: 0 | BA15: 0 | BB15: 0 | BC15: 0 | BD15: 0 | BE15: 0 | BF15: 0 | BG15: 0 | BH15: 0 | BI15: 100779.1348 | BJ15: 0 | BK15: 200.5504783 | BL15: 502.8929218 | BM15: 101081.4773 | BN15: 0 | BO15: 0 | BP15: 0 | BQ15: 0 | BR15: 0 | BS15: 0 | BT15: 0 | BU15: 0 | BV15: 0 | BW15: 0 | BX15: 0 | BY15: 0 | BZ15: 0 | CA15: 0 | CB15: 0 | CC15: 0 | CD15: 0 | CE15: 0 | CF15: 0 | CG15: 0 | CH15: 0 | CI15: 0 | CJ15: 0 | CK15: 0 | CL15: 101081.4773 | CU15: 13 | CV15: 0.02 | CW15: 0.0001742740329
D16: 15 | E16: 400000 | F16: =+SUM($E$2:E16) -> 6000000 | G16: 7349576.969 | H16: 612302.9514 | I16: =+IF(D16<=Term1, +SUM(INDEX($W$2:$BG$601,1,35):INDEX($W$2:$BG$601,$D16*12,35)), 0) +IF(AND(D16=Term1+1,Term2>0), +SUM(INDEX($W$2:$BG$601,1,35):INDEX($W$2:$BG$601,$D16*12+Term2-12,35), 0)) -> 1120000 | J16: 1391455.278 | K16: 166199.6312 | L16: 7961879.92 | M16: 9353335.198 | N16: 9519534.829 | O16: 1 | P16: 7961879.92 | Q16: 8009335.198 | R16: 8175534.829 | T16: 1088656.225 | U16: 6260920.743 | W16: 15 | X16: 2 | Y16: 0 | Z16: =IF($B$29=1,1,FundingFactor(W16,FEL_period,Entage,1,kktg+aktg,10)) -> 0.458713408 | AA16: 773879.205 | AB16: 0 | AC16: 4511.715765 | AD16: 1160.818808 | AE16: 768206.6705 | AF16: 0 | AG16: 0 | AH16: 0 | AI16: 0 | AJ16: 600 | AK16: 0 | AL16: 767606.6705 | AM16: 0 | AN16: 0 | AO16: 0 | AP16: 160 | AQ16: 160 | AR16: 0 | AS16: 767446.6705 | AT16: 3837.233352 | AU16: 771283.9038 | AV16: 0 | AW16: 0 | AX16: 0 | AY16: 0 | AZ16: 0 | BA16: 0 | BB16: 0 | BC16: 0 | BD16: 0 | BE16: 0 | BF16: 0 | BG16: 0 | BH16: 0 | BI16: 101081.4773 | BJ16: 0 | BK16: 201.1521398 | BL16: 504.4016257 | BM16: 101384.7268 | BN16: 0 | BO16: 0 | BP16: 0 | BQ16: 0 | BR16: 0 | BS16: 0 | BT16: 0 | BU16: 0 | BV16: 0 | BW16: 0 | BX16: 0 | BY16: 0 | BZ16: 0 | CA16: 0 | CB16: 0 | CC16: 0 | CD16: 0 | CE16: 0 | CF16: 0 | CG16: 0 | CH16: 0 | CI16: 0 | CJ16: 0 | CK16: 0 | CL16: 101384.7268 | CU16: 14 | CV16: 0.02 | CW16: 0.0002940814135
A17: 1. eseti díj dátuma: | B17: 2015-05-01 | D17: 16 | E17: 400000 | F17: =+SUM($E$2:E17) -> 6400000 | G17: 8071329.926 | H17: 616024.0155 | I17: =+IF(D17<=Term1, +SUM(INDEX($W$2:$BG$601,1,35):INDEX($W$2:$BG$601,$D17*12,35)), 0) +IF(AND(D17=Term1+1,Term2>0), +SUM(INDEX($W$2:$BG$601,1,35):INDEX($W$2:$BG$601,$D17*12+Term2-12,35), 0)) -> 1200000 | J17: 1514985.247 | K17: 172282.6375 | L17: 8687353.942 | M17: 10202339.19 | N17: 10374621.83 | O17: 1 | P17: 8687353.942 | Q17: 8762339.188 | R17: 8934621.826 | T17: 1134132.122 | U17: 6937197.805 | W17: 16 | X17: 2 | Y17: 0 | Z17: =IF($B$29=1,1,FundingFactor(W17,FEL_period,Entage,1,kktg+aktg,10)) -> 0.4620524948 | AA17: 771283.9038 | AB17: 0 | AC17: 4496.585159 | AD17: 1156.925856 | AE17: 765630.3928 | AF17: 0 | AG17: 0 | AH17: 0 | AI17: 0 | AJ17: 600 | AK17: 0 | AL17: 765030.3928 | AM17: 0 | AN17: 0 | AO17: 0 | AP17: 160 | AQ17: 160 | AR17: 0 | AS17: 764870.3928 | AT17: 3824.351964 | AU17: 768694.7448 | AV17: 0 | AW17: 0 | AX17: 0 | AY17: 0 | AZ17: 0 | BA17: 0 | BB17: 0 | BC17: 0 | BD17: 0 | BE17: 0 | BF17: 0 | BG17: 0 | BH17: 0 | BI17: 101384.7268 | BJ17: 0 | BK17: 201.7556063 | BL17: 505.9148558 | BM17: 101688.886 | BN17: 0 | BO17: 0 | BP17: 0 | BQ17: 0 | BR17: 0 | BS17: 0 | BT17: 0 | BU17: 0 | BV17: 0 | BW17: 0 | BX17: 0 | BY17: 0 | BZ17: 0 | CA17: 0 | CB17: 0 | CC17: 0 | CD17: 0 | CE17: 0 | CF17: 0 | CG17: 0 | CH17: 0 | CI17: 0 | CJ17: 0 | CK17: 0 | CL17: 101688.886 | CU17: 15 | CV17: 0.02 | CW17: 0.0003346896747
A18: 1. eseti díj összege: | B18: 100000 | D18: 17 | E18: 400000 | F18: =+SUM($E$2:E18) -> 6800000 | G18: 8823919.407 | H18: 619767.693 | I18: =+IF(D18<=Term1, +SUM(INDEX($W$2:$BG$601,1,35):INDEX($W$2:$BG$601,$D18*12,35)), 0) +IF(AND(D18=Term1+1,Term2>0), +SUM(INDEX($W$2:$BG$601,1,35):INDEX($W$2:$BG$601,$D18*12+Term2-12,35), 0)) -> 1280000 | J18: 1642272.498 | K18: 178588.2854 | L18: 9443687.1 | M18: 11085959.6 | N18: 11264547.88 | O18: 1 | P18: 9443687.1 | Q18: 9549959.598 | R18: 9728547.883 | T18: 1181599.657 | U18: 7642319.75 | W18: 17 | X18: 2 | Y18: 0 | Z18: =IF($B$29=1,1,FundingFactor(W18,FEL_period,Entage,1,kktg+aktg,10)) -> 0.4653915816 | AA18: 768694.7448 | AB18: 0 | AC18: 4481.490362 | AD18: 1153.042117 | AE18: 763060.2123 | AF18: 0 | AG18: 0 | AH18: 0 | AI18: 0 | AJ18: 600 | AK18: 0 | AL18: 762460.2123 | AM18: 0 | AN18: 0 | AO18: 0 | AP18: 160 | AQ18: 160 | AR18: 0 | AS18: 762300.2123 | AT18: 3811.501061 | AU18: 766111.7134 | AV18: 0 | AW18: 0 | AX18: 0 | AY18: 0 | AZ18: 0 | BA18: 0 | BB18: 0 | BC18: 0 | BD18: 0 | BE18: 0 | BF18: 0 | BG18: 0 | BH18: 0 | BI18: 101688.886 | BJ18: 0 | BK18: 202.3608832 | BL18: 507.4326257 | BM18: 101993.9578 | BN18: 0 | BO18: 0 | BP18: 0 | BQ18: 0 | BR18: 0 | BS18: 0 | BT18: 0 | BU18: 0 | BV18: 0 | BW18: 0 | BX18: 0 | BY18: 0 | BZ18: 0 | CA18: 0 | CB18: 0 | CC18: 0 | CD18: 0 | CE18: 0 | CF18: 0 | CG18: 0 | CH18: 0 | CI18: 0 | CJ18: 0 | CK18: 0 | CL18: 101993.9578 | CU18: 16 | CV18: 0.02 | CW18: 0.0003896074396 | CZ18: Eseti díjak | DA18: Elelt évek | DB18: Eltelt hónapok | DC18: Eltelt idő | DD18: Eseti díj összege | DP18: Tartam | DQ18: kktg %
A19: 2. eseti díj dátuma: | D19: 18 | E19: 400000 | F19: =+SUM($E$2:E19) -> 7200000 | G19: 9608662.886 | H19: 623534.1215 | I19: =+IF(D19<=Term1, +SUM(INDEX($W$2:$BG$601,1,35):INDEX($W$2:$BG$601,$D19*12,35)), 0) +IF(AND(D19=Term1+1,Term2>0), +SUM(INDEX($W$2:$BG$601,1,35):INDEX($W$2:$BG$601,$D19*12+Term2-12,35), 0)) -> 1360000 | J19: 1773431.312 | K19: 185124.7239 | L19: 10232197.01 | M19: 12005628.32 | N19: 12190753.04 | O19: 1 | P19: 10232197.01 | Q19: 10373628.32 | R19: 10558753.04 | T19: 1231137.847 | U19: 8377525.039 | W19: 18 | X19: 2 | Y19: 0 | Z19: =IF($B$29=1,1,FundingFactor(W19,FEL_period,Entage,1,kktg+aktg,10)) -> 0.4687306684 | AA19: 766111.7134 | AB19: 0 | AC19: 4466.431289 | AD19: 1149.16757 | AE19: 760496.1145 | AF19: 0 | AG19: 0 | AH19: 0 | AI19: 0 | AJ19: 600 | AK19: 0 | AL19: 759896.1145 | AM19: 0 | AN19: 0 | AO19: 0 | AP19: 160 | AQ19: 160 | AR19: 0 | AS19: 759736.1145 | AT19: 3798.680572 | AU19: 763534.7951 | AV19: 0 | AW19: 0 | AX19: 0 | AY19: 0 | AZ19: 0 | BA19: 0 | BB19: 0 | BC19: 0 | BD19: 0 | BE19: 0 | BF19: 0 | BG19: 0 | BH19: 0 | BI19: 101993.9578 | BJ19: 0 | BK19: 202.967976 | BL19: 508.954949 | BM19: 102299.9447 | BN19: 0 | BO19: 0 | BP19: 0 | BQ19: 0 | BR19: 0 | BS19: 0 | BT19: 0 | BU19: 0 | BV19: 0 | BW19: 0 | BX19: 0 | BY19: 0 | BZ19: 0 | CA19: 0 | CB19: 0 | CC19: 0 | CD19: 0 | CE19: 0 | CF19: 0 | CG19: 0 | CH19: 0 | CI19: 0 | CJ19: 0 | CK19: 0 | CL19: 102299.9447 | CU19: 17 | CV19: 0.02 | CW19: 0.0004588322586 | CZ19: 1. | DA19: =YEAR($B$17)-YEAR($B$3) -> 0 | DB19: =MONTH($B$17)-MONTH($B$3) -> 3 | DC19: =DA19*12+DB19 -> 3 | DD19: =$B$18 -> 100000 | DP19: 5 | DQ19: 0.04896
A20: 2. eseti díj összege: | D20: 19 | E20: 400000 | F20: =+SUM($E$2:E20) -> 7600000 | G20: 10426934.12 | H20: 627323.4392 | I20: =+IF(D20<=Term1, +SUM(INDEX($W$2:$BG$601,1,35):INDEX($W$2:$BG$601,$D20*12,35)), 0) +IF(AND(D20=Term1+1,Term2>0), +SUM(INDEX($W$2:$BG$601,1,35):INDEX($W$2:$BG$601,$D20*12+Term2-12,35), 0)) -> 1440000 | J20: 1908579.448 | K20: 191900.3999 | L20: 11054257.56 | M20: 12962837.01 | N20: 13154737.41 | O20: 1 | P20: 11054257.56 | Q20: 11234837.01 | R20: 11426737.41 | T20: 1282830.12 | U20: 9144104.005 | W20: 19 | X20: 2 | Y20: 0 | Z20: =IF($B$29=1,1,FundingFactor(W20,FEL_period,Entage,1,kktg+aktg,10)) -> 0.4720697552 | AA20: 763534.7951 | AB20: 0 | AC20: 4451.407855 | AD20: 1145.302193 | AE20: 757938.085 | AF20: 0 | AG20: 0 | AH20: 0 | AI20: 0 | AJ20: 600 | AK20: 0 | AL20: 757338.085 | AM20: 0 | AN20: 0 | AO20: 0 | AP20: 160 | AQ20: 160 | AR20: 0 | AS20: 757178.085 | AT20: 3785.890425 | AU20: 760963.9754 | AV20: 0 | AW20: 0 | AX20: 0 | AY20: 0 | AZ20: 0 | BA20: 0 | BB20: 0 | BC20: 0 | BD20: 0 | BE20: 80000 | BF20: 200 | BG20: 80200 | BH20: 0 | BI20: 102299.9447 | BJ20: 0 | BK20: 203.57689 | BL20: 510.4818392 | BM20: 102606.8497 | BN20: 0 | BO20: 0 | BP20: 0 | BQ20: 0 | BR20: 0 | BS20: 0 | BT20: 0 | BU20: 0 | BV20: 0 | BW20: 0 | BX20: 0 | BY20: 0 | BZ20: 0 | CA20: 0 | CB20: 0 | CC20: 0 | CD20: 0 | CE20: 0 | CF20: 0 | CG20: 0 | CH20: 0 | CI20: 0 | CJ20: 0 | CK20: 0 | CL20: 102606.8497 | CU20: 18 | CV20: 0.02 | CW20: 0.0005220620917 | CZ20: 2. | DA20: =YEAR($B$19)-YEAR($B$3) -> -115 | DB20: =MONTH($B$19)-MONTH($B$3) -> -1 | DC20: =DA20*12+DB20 -> -1381 | DD20: =$B$20 -> 0 | DP20: 6 | DQ20: 0.04896
A21: 3. eseti díj dátuma: | D21: 20 | E21: 400000 | F21: =+SUM($E$2:E21) -> 8000000 | G21: 11280165.58 | H21: 831135.7851 | I21: =+IF(D21<=Term1, +SUM(INDEX($W$2:$BG$601,1,35):INDEX($W$2:$BG$601,$D21*12,35)), 0) +IF(AND(D21=Term1+1,Term2>0), +SUM(INDEX($W$2:$BG$601,1,35):INDEX($W$2:$BG$601,$D21*12+Term2-12,35), 0)) -> 1520000 | J21: 2047838.243 | K21: 198924.0698 | L21: 12111301.37 | M21: 14159139.61 | N21: 14358063.68 | O21: 1 | P21: 12111301.37 | Q21: 12335139.61 | R21: 12534063.68 | T21: 1336764.286 | U21: 9943401.295 | W21: 20 | X21: 2 | Y21: 0 | Z21: =IF($B$29=1,1,FundingFactor(W21,FEL_period,Entage,1,kktg+aktg,10)) -> 0.475408842 | AA21: 760963.9754 | AB21: 0 | AC21: 4436.419977 | AD21: 1141.445963 | AE21: 755386.1095 | AF21: 0 | AG21: 0 | AH21: 0 | AI21: 0 | AJ21: 600 | AK21: 0 | AL21: 754786.1095 | AM21: 0 | AN21: 0 | AO21: 0 | AP21: 160 | AQ21: 160 | AR21: 0 | AS21: 754626.1095 | AT21: 3773.130548 | AU21: 758399.2401 | AV21: 0 | AW21: 0 | AX21: 0 | AY21: 0 | AZ21: 0 | BA21: 0 | BB21: 0 | BC21: 0 | BD21: 80200 | BE21: 0 | BF21: 200.5 | BG21: 80400.5 | BH21: 0 | BI21: 102606.8497 | BJ21: 0 | BK21: 204.1876309 | BL21: 512.0133103 | BM21: 102914.6754 | BN21: 0 | BO21: 0 | BP21: 0 | BQ21: 0 | BR21: 0 | BS21: 0 | BT21: 0 | BU21: 0 | BV21: 0 | BW21: 0 | BX21: 0 | BY21: 0 | BZ21: 0 | CA21: 0 | CB21: 0 | CC21: 0 | CD21: 0 | CE21: 0 | CF21: 0 | CG21: 0 | CH21: 0 | CI21: 0 | CJ21: 0 | CK21: 0 | CL21: 102914.6754 | CU21: 19 | CV21: 0.02 | CW21: 0.0005955591886 | CZ21: 3. | DA21: =YEAR($B$21)-YEAR($B$3) -> -115 | DB21: =MONTH($B$21)-MONTH($B$3) -> -1 | DC21: -1381 | DD21: =$B$22 -> 0 | DP21: 7 | DQ21: 0.04896
A22: 3. eseti díj összege: | D22: 21 | E22: 400000 | F22: =+SUM($E$2:E22) -> 8400000 | G22: 12169850.91 | H22: 836186.7317 | I22: =+IF(D22<=Term1, +SUM(INDEX($W$2:$BG$601,1,35):INDEX($W$2:$BG$601,$D22*12,35)), 0) +IF(AND(D22=Term1+1,Term2>0), +SUM(INDEX($W$2:$BG$601,1,35):INDEX($W$2:$BG$601,$D22*12+Term2-12,35), 0)) -> 1600000 | J22: 2191332.728 | K22: 206204.8102 | L22: 13006037.64 | M22: 15197370.37 | N22: 15403575.18 | O22: 1 | P22: 13006037.64 | Q22: 13277370.37 | R22: 13483575.18 | T22: 1393032.554 | U22: 10776818.36 | W22: 21 | X22: 2 | Y22: 0 | Z22: =IF($B$29=1,1,FundingFactor(W22,FEL_period,Entage,1,kktg+aktg,10)) -> 0.4787479287 | AA22: 758399.2401 | AB22: 0 | AC22: 4421.46757 | AD22: 1137.59886 | AE22: 752840.1736 | AF22: 0 | AG22: 0 | AH22: 0 | AI22: 0 | AJ22: 600 | AK22: 0 | AL22: 752240.1736 | AM22: 0 | AN22: 0 | AO22: 0 | AP22: 160 | AQ22: 160 | AR22: 0 | AS22: 752080.1736 | AT22: 3760.400868 | AU22: 755840.5745 | AV22: 0 | AW22: 0 | AX22: 0 | AY22: 0 | AZ22: 0 | BA22: 0 | BB22: 0 | BC22: 0 | BD22: 80400.5 | BE22: 0 | BF22: 201.00125 | BG22: 80601.50125 | BH22: 0 | BI22: 102914.6754 | BJ22: 0 | BK22: 204.800204 | BL22: 513.5493758 | BM22: 103223.4245 | BN22: 0 | BO22: 0 | BP22: 0 | BQ22: 0 | BR22: 0 | BS22: 0 | BT22: 0 | BU22: 0 | BV22: 0 | BW22: 0 | BX22: 0 | BY22: 0 | BZ22: 0 | CA22: 0 | CB22: 0 | CC22: 0 | CD22: 0 | CE22: 0 | CF22: 0 | CG22: 0 | CH22: 0 | CI22: 0 | CJ22: 0 | CK22: 0 | CL22: 103223.4245 | CU22: 20 | CV22: 0.02 | CW22: 0.000648879078 | CZ22: 4. | DA22: =YEAR($B$23)-YEAR($B$3) -> -115 | DB22: =MONTH($B$23)-MONTH($B$3) -> -1 | DC22: -1381 | DD22: =$B$24 -> 0 | DP22: 8 | DQ22: 0.04896
A23: 4. eseti díj dátuma: | D23: 22 | E23: 400000 | F23: =+SUM($E$2:E23) -> 8800000 | G23: 12919190.05 | H23: 839571.0709 | I23: =+IF(D23<=Term1, +SUM(INDEX($W$2:$BG$601,1,35):INDEX($W$2:$BG$601,$D23*12,35)), 0) +IF(AND(D23=Term1+1,Term2>0), +SUM(INDEX($W$2:$BG$601,1,35):INDEX($W$2:$BG$601,$D23*12+Term2-12,35), 0)) -> 1680000 | J23: 2315945.289 | K23: 211206.0864 | L23: 13758761.12 | M23: 16074706.41 | N23: 16285912.5 | O23: 1 | P23: 13758761.12 | Q23: 14058706.41 | R23: 14269912.5 | T23: 1431891.769 | U23: 11487298.28 | W23: 22 | X23: 2 | Y23: 0 | Z23: =IF($B$29=1,1,FundingFactor(W23,FEL_period,Entage,1,kktg+aktg,10)) -> 0.4820870155 | AA23: 755840.5745 | AB23: 0 | AC23: 4406.550549 | AD23: 1133.760862 | AE23: 750300.2631 | AF23: 0 | AG23: 0 | AH23: 0 | AI23: 0 | AJ23: 600 | AK23: 0 | AL23: 749700.2631 | AM23: 0 | AN23: 0 | AO23: 0 | AP23: 160 | AQ23: 160 | AR23: 0 | AS23: 749540.2631 | AT23: 3747.701315 | AU23: 753287.9644 | AV23: 0 | AW23: 0 | AX23: 0 | AY23: 0 | AZ23: 0 | BA23: 0 | BB23: 0 | BC23: 0 | BD23: 80601.50125 | BE23: 0 | BF23: 201.5037531 | BG23: 80803.005 | BH23: 0 | BI23: 103223.4245 | BJ23: 0 | BK23: 205.4146148 | BL23: 515.0900496 | BM23: 103533.1 | BN23: 0 | BO23: 0 | BP23: 0 | BQ23: 0 | BR23: 0 | BS23: 0 | BT23: 0 | BU23: 0 | BV23: 0 | BW23: 0 | BX23: 0 | BY23: 0 | BZ23: 0 | CA23: 0 | CB23: 0 | CC23: 0 | CD23: 0 | CE23: 0 | CF23: 0 | CG23: 0 | CH23: 0 | CI23: 0 | CJ23: 0 | CK23: 0 | CL23: 103533.1 | CU23: 21 | CV23: 0.02 | CW23: 0.0006860416339 | CZ23: 5. | DA23: =YEAR($B$25)-YEAR($B$3) -> -115 | DB23: =MONTH($B$25)-MONTH($B$3) -> -1 | DC23: -1381 | DD23: =$B$26 -> 0 | DP23: 9 | DQ23: 0.04896
A24: 4. eseti díj összege: | D24: 23 | E24: 400000 | F24: =+SUM($E$2:E24) -> 9200000 | G24: 0 | H24: 0 | I24: =+IF(D24<=Term1, +SUM(INDEX($W$2:$BG$601,1,35):INDEX($W$2:$BG$601,$D24*12,35)), 0) +IF(AND(D24=Term1+1,Term2>0), +SUM(INDEX($W$2:$BG$601,1,35):INDEX($W$2:$BG$601,$D24*12+Term2-12,35), 0)) -> 0 | J24: 0 | K24: 0 | L24: 0 | M24: 0 | N24: 0 | O24: 1 | P24: 0 | Q24: 0 | R24: 0 | T24: 0 | U24: 0 | W24: 23 | X24: 2 | Y24: 0 | Z24: =IF($B$29=1,1,FundingFactor(W24,FEL_period,Entage,1,kktg+aktg,10)) -> 0.4854261023 | AA24: 753287.9644 | AB24: 0 | AC24: 4391.668832 | AD24: 1129.931947 | AE24: 747766.3636 | AF24: 0 | AG24: 0 | AH24: 0 | AI24: 0 | AJ24: 600 | AK24: 0 | AL24: 747166.3636 | AM24: 0 | AN24: 0 | AO24: 0 | AP24: 160 | AQ24: 160 | AR24: 0 | AS24: 747006.3636 | AT24: 3735.031818 | AU24: 750741.3954 | AV24: 0 | AW24: 0 | AX24: 0 | AY24: 0 | AZ24: 0 | BA24: 0 | BB24: 0 | BC24: 0 | BD24: 80803.005 | BE24: 0 | BF24: 202.0075125 | BG24: 81005.01252 | BH24: 0 | BI24: 103533.1 | BJ24: 0 | BK24: 206.0308689 | BL24: 516.6353455 | BM24: 103843.7045 | BN24: 0 | BO24: 0 | BP24: 0 | BQ24: 0 | BR24: 0 | BS24: 0 | BT24: 0 | BU24: 0 | BV24: 0 | BW24: 0 | BX24: 0 | BY24: 0 | BZ24: 0 | CA24: 0 | CB24: 0 | CC24: 0 | CD24: 0 | CE24: 0 | CF24: 0 | CG24: 0 | CH24: 0 | CI24: 0 | CJ24: 0 | CK24: 0 | CL24: 103843.7045 | CU24: 22 | CV24: 0.02 | CW24: 0.000717183176 | DP24: 10 | DQ24: 0.04896
A25: 5. eseti díj dátuma: | D25: 24 | E25: 400000 | F25: =+SUM($E$2:E25) -> 9600000 | G25: 0 | H25: 0 | I25: =+IF(D25<=Term1, +SUM(INDEX($W$2:$BG$601,1,35):INDEX($W$2:$BG$601,$D25*12,35)), 0) +IF(AND(D25=Term1+1,Term2>0), +SUM(INDEX($W$2:$BG$601,1,35):INDEX($W$2:$BG$601,$D25*12+Term2-12,35), 0)) -> 0 | J25: 0 | K25: 0 | L25: 0 | M25: 0 | N25: 0 | O25: 1 | P25: 0 | Q25: 0 | R25: 0 | T25: 0 | U25: 0 | W25: 24 | X25: 2 | Y25: 0 | Z25: =IF($B$29=1,1,FundingFactor(W25,FEL_period,Entage,1,kktg+aktg,10)) -> 0.4887651891 | AA25: 750741.3954 | AB25: 0 | AC25: 4376.822335 | AD25: 1126.112093 | AE25: 745238.461 | AF25: 0 | AG25: 0 | AH25: 0 | AI25: 0 | AJ25: 600 | AK25: 0 | AL25: 744638.461 | AM25: 0 | AN25: 0 | AO25: 0 | AP25: 160 | AQ25: 160 | AR25: 0 | AS25: 744478.461 | AT25: 3722.392305 | AU25: 748200.8533 | AV25: 0 | AW25: 0 | AX25: 0 | AY25: 0 | AZ25: 0 | BA25: 0 | BB25: 0 | BC25: 0 | BD25: 81005.01252 | BE25: 0 | BF25: 202.5125313 | BG25: 81207.52505 | BH25: 0 | BI25: 103843.7045 | BJ25: 0 | BK25: 206.6489719 | BL25: 518.1852774 | BM25: 104155.2408 | BN25: 0 | BO25: 0 | BP25: 0 | BQ25: 0 | BR25: 0 | BS25: 0 | BT25: 0 | BU25: 0 | BV25: 0 | BW25: 0 | BX25: 0 | BY25: 0 | BZ25: 0 | CA25: 0 | CB25: 0 | CC25: 0 | CD25: 0 | CE25: 0 | CF25: 0 | CG25: 0 | CH25: 0 | CI25: 0 | CJ25: 0 | CK25: 0 | CL25: 104155.2408 | CU25: 23 | CV25: 0.02 | CW25: 0.0007504802364 | DP25: 11 | DQ25: 0.05316
A26: 5. eseti díj összege: | D26: 25 | E26: 400000 | F26: =+SUM($E$2:E26) -> 10000000 | G26: 0 | H26: 0 | I26: =+IF(D26<=Term1, +SUM(INDEX($W$2:$BG$601,1,35):INDEX($W$2:$BG$601,$D26*12,35)), 0) +IF(AND(D26=Term1+1,Term2>0), +SUM(INDEX($W$2:$BG$601,1,35):INDEX($W$2:$BG$601,$D26*12+Term2-12,35), 0)) -> 0 | J26: 0 | K26: 0 | L26: 0 | M26: 0 | N26: 0 | O26: 1 | P26: 0 | Q26: 0 | R26: 0 | T26: 0 | U26: 0 | W26: 25 | X26: 3 | Y26: 400000 | Z26: =IF($B$29=1,1,FundingFactor(W26,FEL_period,Entage,1,kktg+aktg,10)) -> 0.4921042759 | AA26: 748200.8533 | AB26: 400000 | AC26: 6694.010975 | AD26: 1722.30128 | AE26: 1139784.541 | AF26: 0 | AG26: 0 | AH26: 0 | AI26: 0 | AJ26: 600 | AK26: 0 | AL26: 1139184.541 | AM26: 0 | AN26: 0 | AO26: 0 | AP26: 160 | AQ26: 160 | AR26: 0 | AS26: 1139024.541 | AT26: 5695.122705 | AU26: 1144719.664 | AV26: 0 | AW26: 0 | AX26: 0 | AY26: 0 | AZ26: 0 | BA26: 0 | BB26: 0 | BC26: 0 | BD26: 81207.52505 | BE26: 0 | BF26: 203.0188126 | BG26: 81410.54386 | BH26: 0 | BI26: 104155.2408 | BJ26: 0 | BK26: 207.2689291 | BL26: 519.7398591 | BM26: 104467.7117 | BN26: 0 | BO26: 0 | BP26: 0 | BQ26: 0 | BR26: 0 | BS26: 0 | BT26: 0 | BU26: 0 | BV26: 0 | BW26: 0 | BX26: 0 | BY26: 0 | BZ26: 0 | CA26: 0 | CB26: 0 | CC26: 0 | CD26: 0 | CE26: 0 | CF26: 0 | CG26: 0 | CH26: 0 | CI26: 0 | CJ26: 0 | CK26: 0 | CL26: 104467.7117 | CU26: 24 | CV26: 0.02 | CW26: 0.0007818117114 | DP26: 12 | DQ26: 0.05736
D27: 26 | E27: 400000 | F27: =+SUM($E$2:E27) -> 10400000 | G27: 0 | H27: 0 | I27: =+IF(D27<=Term1, +SUM(INDEX($W$2:$BG$601,1,35):INDEX($W$2:$BG$601,$D27*12,35)), 0) +IF(AND(D27=Term1+1,Term2>0), +SUM(INDEX($W$2:$BG$601,1,35):INDEX($W$2:$BG$601,$D27*12+Term2-12,35), 0)) -> 0 | J27: 0 | K27: 0 | L27: 0 | M27: 0 | N27: 0 | O27: 1 | P27: 0 | Q27: 0 | R27: 0 | T27: 0 | U27: 0 | W27: 26 | X27: 3 | Y27: 0 | Z27: =IF($B$29=1,1,FundingFactor(W27,FEL_period,Entage,1,kktg+aktg,10)) -> 0.4957686634 | AA27: 1144719.664 | AB27: 0 | AC27: 6673.71564 | AD27: 1717.079496 | AE27: 1136328.869 | AF27: 0 | AG27: 0 | AH27: 0 | AI27: 0 | AJ27: 600 | AK27: 0 | AL27: 1135728.869 | AM27: 0 | AN27: 0 | AO27: 0 | AP27: 160 | AQ27: 160 | AR27: 0 | AS27: 1135568.869 | AT27: 5677.844343 | AU27: 1141246.713 | AV27: 0 | AW27: 0 | AX27: 0 | AY27: 0 | AZ27: 0 | BA27: 0 | BB27: 0 | BC27: 0 | BD27: 81410.54386 | BE27: 0 | BF27: 203.5263596 | BG27: 81614.07022 | BH27: 0 | BI27: 104467.7117 | BJ27: 0 | BK27: 207.8907463 | BL27: 521.2991047 | BM27: 104781.12 | BN27: 0 | BO27: 0 | BP27: 0 | BQ27: 0 | BR27: 0 | BS27: 0 | BT27: 0 | BU27: 0 | BV27: 0 | BW27: 0 | BX27: 0 | BY27: 0 | BZ27: 0 | CA27: 0 | CB27: 0 | CC27: 0 | CD27: 0 | CE27: 0 | CF27: 0 | CG27: 0 | CH27: 0 | CI27: 0 | CJ27: 0 | CK27: 0 | CL27: 104781.12 | CU27: 25 | CV27: 0.02 | CW27: 0.00082957819 | DP27: 13 | DQ27: 0.06156
D28: 27 | E28: 400000 | F28: =+SUM($E$2:E28) -> 10800000 | G28: 0 | H28: 0 | I28: =+IF(D28<=Term1, +SUM(INDEX($W$2:$BG$601,1,35):INDEX($W$2:$BG$601,$D28*12,35)), 0) +IF(AND(D28=Term1+1,Term2>0), +SUM(INDEX($W$2:$BG$601,1,35):INDEX($W$2:$BG$601,$D28*12+Term2-12,35), 0)) -> 0 | J28: 0 | K28: 0 | L28: 0 | M28: 0 | N28: 0 | O28: 1 | P28: 0 | Q28: 0 | R28: 0 | T28: 0 | U28: 0 | W28: 27 | X28: 3 | Y28: 0 | Z28: =IF($B$29=1,1,FundingFactor(W28,FEL_period,Entage,1,kktg+aktg,10)) -> 0.4994330509 | AA28: 1141246.713 | AB28: 0 | AC28: 6653.468337 | AD28: 1711.870069 | AE28: 1132881.375 | AF28: 0 | AG28: 0 | AH28: 0 | AI28: 0 | AJ28: 600 | AK28: 0 | AL28: 1132281.375 | AM28: 0 | AN28: 0 | AO28: 0 | AP28: 160 | AQ28: 160 | AR28: 0 | AS28: 1132121.375 | AT28: 5660.606873 | AU28: 1137781.981 | AV28: 0 | AW28: 0 | AX28: 0 | AY28: 0 | AZ28: 0 | BA28: 0 | BB28: 0 | BC28: 0 | BD28: 81614.07022 | BE28: 0 | BF28: 204.0351755 | BG28: 81818.10539 | BH28: 0 | BI28: 104781.12 | BJ28: 0 | BK28: 208.5144289 | BL28: 522.8630281 | BM28: 105095.4686 | BN28: 0 | BO28: 0 | BP28: 0 | BQ28: 0 | BR28: 0 | BS28: 0 | BT28: 0 | BU28: 0 | BV28: 0 | BW28: 0 | BX28: 0 | BY28: 0 | BZ28: 0 | CA28: 0 | CB28: 0 | CC28: 0 | CD28: 0 | CE28: 0 | CF28: 0 | CG28: 0 | CH28: 0 | CI28: 0 | CJ28: 0 | CK28: 0 | CL28: 105095.4686 | CU28: 26 | CV28: 0.02 | CW28: 0.000885618374 | DP28: 14 | DQ28: 0.06576
A29: Ügyfélkedvezményes | B29: 0 | D29: 28 | E29: 400000 | F29: =+SUM($E$2:E29) -> 11200000 | G29: 0 | H29: 0 | I29: =+IF(D29<=Term1, +SUM(INDEX($W$2:$BG$601,1,35):INDEX($W$2:$BG$601,$D29*12,35)), 0) +IF(AND(D29=Term1+1,Term2>0), +SUM(INDEX($W$2:$BG$601,1,35):INDEX($W$2:$BG$601,$D29*12+Term2-12,35), 0)) -> 0 | J29: 0 | K29: 0 | L29: 0 | M29: 0 | N29: 0 | O29: 1 | P29: 0 | Q29: 0 | R29: 0 | T29: 0 | U29: 0 | W29: 28 | X29: 3 | Y29: 0 | Z29: =IF($B$29=1,1,FundingFactor(W29,FEL_period,Entage,1,kktg+aktg,10)) -> 0.5030974384 | AA29: 1137781.981 | AB29: 0 | AC29: 6633.268952 | AD29: 1706.672972 | AE29: 1129442.04 | AF29: 0 | AG29: 0 | AH29: 0 | AI29: 0 | AJ29: 600 | AK29: 0 | AL29: 1128842.04 | AM29: 0 | AN29: 0 | AO29: 0 | AP29: 160 | AQ29: 160 | AR29: 0 | AS29: 1128682.04 | AT29: 5643.410198 | AU29: 1134325.45 | AV29: 0 | AW29: 0 | AX29: 0 | AY29: 0 | AZ29: 0 | BA29: 0 | BB29: 0 | BC29: 0 | BD29: 81818.10539 | BE29: 0 | BF29: 204.5452635 | BG29: 82022.65066 | BH29: 0 | BI29: 105095.4686 | BJ29: 0 | BK29: 209.1399826 | BL29: 524.4316433 | BM29: 105410.7603 | BN29: 0 | BO29: 0 | BP29: 0 | BQ29: 0 | BR29: 0 | BS29: 0 | BT29: 0 | BU29: 0 | BV29: 0 | BW29: 0 | BX29: 0 | BY29: 0 | BZ29: 0 | CA29: 0 | CB29: 0 | CC29: 0 | CD29: 0 | CE29: 0 | CF29: 0 | CG29: 0 | CH29: 0 | CI29: 0 | CJ29: 0 | CK29: 0 | CL29: 105410.7603 | CU29: 27 | CV29: 0.02 | CW29: 0.0009356758812 | DP29: 15 | DQ29: 0.06996
D30: 29 | E30: 400000 | F30: =+SUM($E$2:E30) -> 11600000 | G30: 0 | H30: 0 | I30: =+IF(D30<=Term1, +SUM(INDEX($W$2:$BG$601,1,35):INDEX($W$2:$BG$601,$D30*12,35)), 0) +IF(AND(D30=Term1+1,Term2>0), +SUM(INDEX($W$2:$BG$601,1,35):INDEX($W$2:$BG$601,$D30*12+Term2-12,35), 0)) -> 0 | J30: 0 | K30: 0 | L30: 0 | M30: 0 | N30: 0 | O30: 1 | P30: 0 | Q30: 0 | R30: 0 | T30: 0 | U30: 0 | W30: 29 | X30: 3 | Y30: 0 | Z30: =IF($B$29=1,1,FundingFactor(W30,FEL_period,Entage,1,kktg+aktg,10)) -> 0.5067618259 | AA30: 1134325.45 | AB30: 0 | AC30: 6613.117372 | AD30: 1701.488175 | AE30: 1126010.844 | AF30: 0 | AG30: 0 | AH30: 0 | AI30: 0 | AJ30: 600 | AK30: 0 | AL30: 1125410.844 | AM30: 0 | AN30: 0 | AO30: 0 | AP30: 160 | AQ30: 160 | AR30: 0 | AS30: 1125250.844 | AT30: 5626.254221 | AU30: 1130877.098 | AV30: 0 | AW30: 0 | AX30: 0 | AY30: 0 | AZ30: 0 | BA30: 0 | BB30: 0 | BC30: 0 | BD30: 82022.65066 | BE30: 0 | BF30: 205.0566266 | BG30: 82227.70728 | BH30: 0 | BI30: 105410.7603 | BJ30: 0 | BK30: 209.767413 | BL30: 526.0049645 | BM30: 105726.9979 | BN30: 0 | BO30: 0 | BP30: 0 | BQ30: 0 | BR30: 0 | BS30: 0 | BT30: 0 | BU30: 0 | BV30: 0 | BW30: 0 | BX30: 0 | BY30: 0 | BZ30: 0 | CA30: 0 | CB30: 0 | CC30: 0 | CD30: 0 | CE30: 0 | CF30: 0 | CG30: 0 | CH30: 0 | CI30: 0 | CJ30: 0 | CK30: 0 | CL30: 105726.9979 | CU30: 28 | CV30: 0.02 | CW30: 0.001010405996
D31: 30 | E31: 400000 | F31: =+SUM($E$2:E31) -> 12000000 | G31: 0 | H31: 0 | I31: =+IF(D31<=Term1, +SUM(INDEX($W$2:$BG$601,1,35):INDEX($W$2:$BG$601,$D31*12,35)), 0) +IF(AND(D31=Term1+1,Term2>0), +SUM(INDEX($W$2:$BG$601,1,35):INDEX($W$2:$BG$601,$D31*12+Term2-12,35), 0)) -> 0 | J31: 0 | K31: 0 | L31: 0 | M31: 0 | N31: 0 | O31: 1 | P31: 0 | Q31: 0 | R31: 0 | T31: 0 | U31: 0 | W31: 30 | X31: 3 | Y31: 0 | Z31: =IF($B$29=1,1,FundingFactor(W31,FEL_period,Entage,1,kktg+aktg,10)) -> 0.5104262134 | AA31: 1130877.098 | AB31: 0 | AC31: 6593.013484 | AD31: 1696.315648 | AE31: 1122587.769 | AF31: 0 | AG31: 0 | AH31: 0 | AI31: 0 | AJ31: 600 | AK31: 0 | AL31: 1121987.769 | AM31: 0 | AN31: 0 | AO31: 0 | AP31: 160 | AQ31: 160 | AR31: 0 | AS31: 1121827.769 | AT31: 5609.138846 | AU31: 1127436.908 | AV31: 0 | AW31: 0 | AX31: 0 | AY31: 0 | AZ31: 0 | BA31: 0 | BB31: 0 | BC31: 0 | BD31: 82227.70728 | BE31: 0 | BF31: 205.5692682 | BG31: 82433.27655 | BH31: 0 | BI31: 105726.9979 | BJ31: 0 | BK31: 210.3967257 | BL31: 527.5830057 | BM31: 106044.1841 | BN31: 0 | BO31: 0 | BP31: 0 | BQ31: 0 | BR31: 0 | BS31: 0 | BT31: 0 | BU31: 0 | BV31: 0 | BW31: 0 | BX31: 0 | BY31: 0 | BZ31: 0 | CA31: 0 | CB31: 0 | CC31: 0 | CD31: 0 | CE31: 0 | CF31: 0 | CG31: 0 | CH31: 0 | CI31: 0 | CJ31: 0 | CK31: 0 | CL31: 106044.1841 | CU31: 29 | CV31: 0.02 | CW31: 0.001105979788
D32: 31 | E32: 400000 | F32: =+SUM($E$2:E32) -> 12400000 | G32: 0 | H32: 0 | I32: =+IF(D32<=Term1, +SUM(INDEX($W$2:$BG$601,1,35):INDEX($W$2:$BG$601,$D32*12,35)), 0) +IF(AND(D32=Term1+1,Term2>0), +SUM(INDEX($W$2:$BG$601,1,35):INDEX($W$2:$BG$601,$D32*12+Term2-12,35), 0)) -> 0 | J32: 0 | K32: 0 | L32: 0 | M32: 0 | N32: 0 | O32: 1 | P32: 0 | Q32: 0 | R32: 0 | T32: 0 | U32: 0 | W32: 31 | X32: 3 | Y32: 0 | Z32: =IF($B$29=1,1,FundingFactor(W32,FEL_period,Entage,1,kktg+aktg,10)) -> 0.5140906009 | AA32: 1127436.908 | AB32: 0 | AC32: 6572.957174 | AD32: 1691.155362 | AE32: 1119172.796 | AF32: 0 | AG32: 0 | AH32: 0 | AI32: 0 | AJ32: 600 | AK32: 0 | AL32: 1118572.796 | AM32: 0 | AN32: 0 | AO32: 0 | AP32: 160 | AQ32: 160 | AR32: 0 | AS32: 1118412.796 | AT32: 5592.063978 | AU32: 1124004.86 | AV32: 0 | AW32: 0 | AX32: 0 | AY32: 0 | AZ32: 0 | BA32: 0 | BB32: 0 | BC32: 0 | BD32: 82433.27655 | BE32: 80000 | BF32: 406.0831914 | BG32: 162839.3597 | BH32: 0 | BI32: 106044.1841 | BJ32: 0 | BK32: 211.0279264 | BL32: 529.1657811 | BM32: 106362.322 | BN32: 0 | BO32: 0 | BP32: 0 | BQ32: 0 | BR32: 0 | BS32: 0 | BT32: 0 | BU32: 0 | BV32: 0 | BW32: 0 | BX32: 0 | BY32: 0 | BZ32: 0 | CA32: 0 | CB32: 0 | CC32: 0 | CD32: 0 | CE32: 0 | CF32: 0 | CG32: 0 | CH32: 0 | CI32: 0 | CJ32: 0 | CK32: 0 | CL32: 106362.322 | CU32: 30 | CV32: 0.02 | CW32: 0.001245008426
D33: 32 | E33: 400000 | F33: =+SUM($E$2:E33) -> 12800000 | G33: 0 | H33: 0 | I33: =+IF(D33<=Term1, +SUM(INDEX($W$2:$BG$601,1,35):INDEX($W$2:$BG$601,$D33*12,35)), 0) +IF(AND(D33=Term1+1,Term2>0), +SUM(INDEX($W$2:$BG$601,1,35):INDEX($W$2:$BG$601,$D33*12+Term2-12,35), 0)) -> 0 | J33: 0 | K33: 0 | L33: 0 | M33: 0 | N33: 0 | O33: 1 | P33: 0 | Q33: 0 | R33: 0 | T33: 0 | U33: 0 | W33: 32 | X33: 3 | Y33: 0 | Z33: =IF($B$29=1,1,FundingFactor(W33,FEL_period,Entage,1,kktg+aktg,10)) -> 0.5177549884 | AA33: 1124004.86 | AB33: 0 | AC33: 6552.948331 | AD33: 1686.007289 | AE33: 1115765.904 | AF33: 0 | AG33: 0 | AH33: 0 | AI33: 0 | AJ33: 600 | AK33: 0 | AL33: 1115165.904 | AM33: 0 | AN33: 0 | AO33: 0 | AP33: 160 | AQ33: 160 | AR33: 0 | AS33: 1115005.904 | AT33: 5575.02952 | AU33: 1120580.933 | AV33: 0 | AW33: 0 | AX33: 0 | AY33: 0 | AZ33: 0 | BA33: 0 | BB33: 0 | BC33: 0 | BD33: 162839.3597 | BE33: 0 | BF33: 407.0983994 | BG33: 163246.4581 | BH33: 0 | BI33: 106362.322 | BJ33: 0 | BK33: 211.6610208 | BL33: 530.7533049 | BM33: 106681.4143 | BN33: 0 | BO33: 0 | BP33: 0 | BQ33: 0 | BR33: 0 | BS33: 0 | BT33: 0 | BU33: 0 | BV33: 0 | BW33: 0 | BX33: 0 | BY33: 0 | BZ33: 0 | CA33: 0 | CB33: 0 | CC33: 0 | CD33: 0 | CE33: 0 | CF33: 0 | CG33: 0 | CH33: 0 | CI33: 0 | CJ33: 0 | CK33: 0 | CL33: 106681.4143 | CU33: 31 | CV33: 0.02 | CW33: 0.001421737872
D34: 33 | E34: =+Prem -> 400000 | F34: =+SUM($E$2:E34) -> 13200000 | G34: =+IF(D34<=Term1, +INDEX($W$2:$BG$601,$D34*12,25)+INDEX($W$2:$BG$601,$D34*12,28), 0) +IF(AND(D34=Term1+1,Term2>0), +INDEX($W$2:$BG$601,$D34*12+Term2-12,25)+INDEX($W$2:$BG$601,$D34*12+Term2-12,28), 0) -> 0 | H34: =+IF(D34<=Term1, +INDEX($W$2:$BG$601,$D34*12,33), 0) +IF(AND(D34=Term1+1,Term2>0), +INDEX($W$2:$BG$601,$D34*12+Term2-12,33), 0) -> 0 | I34: =+IF(D34<=Term1, +SUM(INDEX($W$2:$BG$601,1,35):INDEX($W$2:$BG$601,$D34*12,35)), 0) +IF(AND(D34=Term1+1,Term2>0), +SUM(INDEX($W$2:$BG$601,1,35):INDEX($W$2:$BG$601,$D34*12+Term2-12,35), 0)) -> 0 | J34: =+IF(D34<=Term1, +INDEX($W$2:$BG$601,$D34*12,37), 0) +IF(AND(D34=Term1+1,Term2>0), +INDEX($W$2:$BG$601,$D34*12+Term2-12,37), 0) -> 0 | K34: =+IF($D34<=Term1, +INDEX($W$2:$CL$601,$D34*12,68), 0)+IF(AND($D34=Term1+1,Term2>0), +INDEX($W$2:$CL$601,$D34*12+Term2-12,68), 0) -> 0 | L34: 0 | M34: 0 | N34: 0 | O34: =IF($B$29=1,IF(D34<3,90%,100%),INDEX($DA$2:$DF$11,MIN(D34,10),FEL_period-4)) -> 1 | P34: 0 | Q34: 0 | R34: 0 | T34: =+IF(D34<=Term1, +INDEX($W$2:$BG$601,$D34*12,25), 0) +IF(AND(D34=Term1+1,Term2>0), +INDEX($W$2:$BG$601,$D34*12+Term2-12,25), 0) -> 0 | U34: =+IF(D34<=Term1, +INDEX($W$2:$BG$601,$D34*12,28), 0) +IF(AND(D34=Term1+1,Term2>0), +INDEX($W$2:$BG$601,$D34*12+Term2-12,28), 0) -> 0 | W34: 33 | X34: 3 | Y34: 0 | Z34: =IF($B$29=1,1,FundingFactor(W34,FEL_period,Entage,1,kktg+aktg,10)) -> 0.5214193759 | AA34: 1120580.933 | AB34: 0 | AC34: 6532.986842 | AD34: 1680.8714 | AE34: 1112367.075 | AF34: 0 | AG34: 0 | AH34: 0 | AI34: 0 | AJ34: 600 | AK34: 0 | AL34: 1111767.075 | AM34: 0 | AN34: 0 | AO34: 0 | AP34: 160 | AQ34: 160 | AR34: 0 | AS34: 1111607.075 | AT34: 5558.035376 | AU34: 1117165.111 | AV34: 0 | AW34: 0 | AX34: 0 | AY34: 0 | AZ34: 0 | BA34: 0 | BB34: 0 | BC34: 0 | BD34: 163246.4581 | BE34: 0 | BF34: 408.1161454 | BG34: 163654.5743 | BH34: 0 | BI34: 106681.4143 | BJ34: 0 | BK34: 212.2960144 | BL34: 532.3455913 | BM34: 107001.4639 | BN34: 0 | BO34: 0 | BP34: 0 | BQ34: 0 | BR34: 0 | BS34: 0 | BT34: 0 | BU34: 0 | BV34: 0 | BW34: 0 | BX34: 0 | BY34: 0 | BZ34: 0 | CA34: 0 | CB34: 0 | CC34: 0 | CD34: 0 | CE34: 0 | CF34: 0 | CG34: 0 | CH34: 0 | CI34: 0 | CJ34: 0 | CK34: 0 | CL34: 107001.4639 | CU34: 32 | CV34: 0.02 | CW34: 0.001636345217
D35: 34 | E35: 400000 | F35: =+SUM($E$2:E35) -> 13600000 | G35: 0 | H35: 0 | I35: =+IF(D35<=Term1, +SUM(INDEX($W$2:$BG$601,1,35):INDEX($W$2:$BG$601,$D35*12,35)), 0) +IF(AND(D35=Term1+1,Term2>0), +SUM(INDEX($W$2:$BG$601,1,35):INDEX($W$2:$BG$601,$D35*12+Term2-12,35), 0)) -> 0 | J35: 0 | K35: 0 | L35: 0 | M35: 0 | N35: 0 | O35: 1 | P35: 0 | Q35: 0 | R35: 0 | T35: 0 | U35: 0 | W35: 34 | X35: 3 | Y35: 0 | Z35: =IF($B$29=1,1,FundingFactor(W35,FEL_period,Entage,1,kktg+aktg,10)) -> 0.5250837634 | AA35: 1117165.111 | AB35: 0 | AC35: 6513.072595 | AD35: 1675.747666 | AE35: 1108976.29 | AF35: 0 | AG35: 0 | AH35: 0 | AI35: 0 | AJ35: 600 | AK35: 0 | AL35: 1108376.29 | AM35: 0 | AN35: 0 | AO35: 0 | AP35: 160 | AQ35: 160 | AR35: 0 | AS35: 1108216.29 | AT35: 5541.081452 | AU35: 1113757.372 | AV35: 0 | AW35: 0 | AX35: 0 | AY35: 0 | AZ35: 0 | BA35: 0 | BB35: 0 | BC35: 0 | BD35: 163654.5743 | BE35: 0 | BF35: 409.1364357 | BG35: 164063.7107 | BH35: 0 | BI35: 107001.4639 | BJ35: 0 | BK35: 212.9329131 | BL35: 533.9426547 | BM35: 107322.4736 | BN35: 0 | BO35: 0 | BP35: 0 | BQ35: 0 | BR35: 0 | BS35: 0 | BT35: 0 | BU35: 0 | BV35: 0 | BW35: 0 | BX35: 0 | BY35: 0 | BZ35: 0 | CA35: 0 | CB35: 0 | CC35: 0 | CD35: 0 | CE35: 0 | CF35: 0 | CG35: 0 | CH35: 0 | CI35: 0 | CJ35: 0 | CK35: 0 | CL35: 107322.4736 | CU35: 33 | CV35: 0.02 | CW35: 0.001876977034
D36: 35 | E36: 400000 | F36: =+SUM($E$2:E36) -> 14000000 | G36: 0 | H36: 0 | I36: =+IF(D36<=Term1, +SUM(INDEX($W$2:$BG$601,1,35):INDEX($W$2:$BG$601,$D36*12,35)), 0) +IF(AND(D36=Term1+1,Term2>0), +SUM(INDEX($W$2:$BG$601,1,35):INDEX($W$2:$BG$601,$D36*12+Term2-12,35), 0)) -> 0 | J36: 0 | K36: 0 | L36: 0 | M36: 0 | N36: 0 | O36: 1 | P36: 0 | Q36: 0 | R36: 0 | T36: 0 | U36: 0 | W36: 35 | X36: 3 | Y36: 0 | Z36: =IF($B$29=1,1,FundingFactor(W36,FEL_period,Entage,1,kktg+aktg,10)) -> 0.5287481509 | AA36: 1113757.372 | AB36: 0 | AC36: 6493.205477 | AD36: 1670.636058 | AE36: 1105593.53 | AF36: 0 | AG36: 0 | AH36: 0 | AI36: 0 | AJ36: 600 | AK36: 0 | AL36: 1104993.53 | AM36: 0 | AN36: 0 | AO36: 0 | AP36: 160 | AQ36: 160 | AR36: 0 | AS36: 1104833.53 | AT36: 5524.167651 | AU36: 1110357.698 | AV36: 0 | AW36: 0 | AX36: 0 | AY36: 0 | AZ36: 0 | BA36: 0 | BB36: 0 | BC36: 0 | BD36: 164063.7107 | BE36: 0 | BF36: 410.1592768 | BG36: 164473.87 | BH36: 0 | BI36: 107322.4736 | BJ36: 0 | BK36: 213.5717225 | BL36: 535.5445094 | BM36: 107644.4464 | BN36: 0 | BO36: 0 | BP36: 0 | BQ36: 0 | BR36: 0 | BS36: 0 | BT36: 0 | BU36: 0 | BV36: 0 | BW36: 0 | BX36: 0 | BY36: 0 | BZ36: 0 | CA36: 0 | CB36: 0 | CC36: 0 | CD36: 0 | CE36: 0 | CF36: 0 | CG36: 0 | CH36: 0 | CI36: 0 | CJ36: 0 | CK36: 0 | CL36: 107644.4464 | CU36: 34 | CV36: 0.02 | CW36: 0.00216252961
D37: 36 | E37: 400000 | F37: =+SUM($E$2:E37) -> 14400000 | G37: 0 | H37: 0 | I37: =+IF(D37<=Term1, +SUM(INDEX($W$2:$BG$601,1,35):INDEX($W$2:$BG$601,$D37*12,35)), 0) +IF(AND(D37=Term1+1,Term2>0), +SUM(INDEX($W$2:$BG$601,1,35):INDEX($W$2:$BG$601,$D37*12+Term2-12,35), 0)) -> 0 | J37: 0 | K37: 0 | L37: 0 | M37: 0 | N37: 0 | O37: 1 | P37: 0 | Q37: 0 | R37: 0 | T37: 0 | U37: 0 | W37: 36 | X37: 3 | Y37: 0 | Z37: =IF($B$29=1,1,FundingFactor(W37,FEL_period,Entage,1,kktg+aktg,10)) -> 0.5324125384 | AA37: 1110357.698 | AB37: 0 | AC37: 6473.385379 | AD37: 1665.536547 | AE37: 1102218.776 | AF37: 0 | AG37: 0 | AH37: 0 | AI37: 0 | AJ37: 600 | AK37: 0 | AL37: 1101618.776 | AM37: 0 | AN37: 0 | AO37: 0 | AP37: 160 | AQ37: 160 | AR37: 0 | AS37: 1101458.776 | AT37: 5507.29388 | AU37: 1106966.07 | AV37: 0 | AW37: 0 | AX37: 0 | AY37: 0 | AZ37: 0 | BA37: 0 | BB37: 0 | BC37: 0 | BD37: 164473.87 | BE37: 0 | BF37: 411.184675 | BG37: 164885.0547 | BH37: 0 | BI37: 107644.4464 | BJ37: 0 | BK37: 214.2124483 | BL37: 537.1511697 | BM37: 107967.3851 | BN37: 0 | BO37: 0 | BP37: 0 | BQ37: 0 | BR37: 0 | BS37: 0 | BT37: 0 | BU37: 0 | BV37: 0 | BW37: 0 | BX37: 0 | BY37: 0 | BZ37: 0 | CA37: 0 | CB37: 0 | CC37: 0 | CD37: 0 | CE37: 0 | CF37: 0 | CG37: 0 | CH37: 0 | CI37: 0 | CJ37: 0 | CK37: 0 | CL37: 107967.3851 | CU37: 35 | CV37: 0.02 | CW37: 0.002487395855
D38: 37 | E38: 400000 | F38: =+SUM($E$2:E38) -> 14800000 | G38: 0 | H38: 0 | I38: =+IF(D38<=Term1, +SUM(INDEX($W$2:$BG$601,1,35):INDEX($W$2:$BG$601,$D38*12,35)), 0) +IF(AND(D38=Term1+1,Term2>0), +SUM(INDEX($W$2:$BG$601,1,35):INDEX($W$2:$BG$601,$D38*12+Term2-12,35), 0)) -> 0 | J38: 0 | K38: 0 | L38: 0 | M38: 0 | N38: 0 | O38: 1 | P38: 0 | Q38: 0 | R38: 0 | T38: 0 | U38: 0 | W38: 37 | X38: 4 | Y38: 400000 | Z38: =IF($B$29=1,1,FundingFactor(W38,FEL_period,Entage,1,kktg+aktg,10)) -> 0.5360769259 | AA38: 1106966.07 | AB38: 0 | AC38: 6453.612187 | AD38: 1660.449105 | AE38: 1098852.009 | AF38: 0 | AG38: 400000 | AH38: 600 | AI38: 399400 | AJ38: 440.0536101 | AK38: 159.9463899 | AL38: 1098411.955 | AM38: 399240.0536 | AN38: 0 | AO38: 0 | AP38: 160 | AQ38: 0 | AR38: 160 | AS38: 1098411.955 | AT38: 5492.059775 | AU38: 1103904.015 | AV38: 399080.0536 | AW38: 1995.400268 | AX38: 401075.4539 | AY38: 0 | AZ38: 0 | BA38: 0 | BB38: 0 | BC38: 0 | BD38: 164885.0547 | BE38: 0 | BF38: 412.2126367 | BG38: 165297.2673 | BH38: 0 | BI38: 107967.3851 | BJ38: 0 | BK38: 214.8550964 | BL38: 538.76265 | BM38: 108291.2927 | BN38: 0 | BO38: 0 | BP38: 0 | BQ38: 0 | BR38: 0 | BS38: 0 | BT38: 0 | BU38: 0 | BV38: 0 | BW38: 0 | BX38: 0 | BY38: 0 | BZ38: 0 | CA38: 0 | CB38: 0 | CC38: 0 | CD38: 0 | CE38: 0 | CF38: 0 | CG38: 0 | CH38: 0 | CI38: 0 | CJ38: 0 | CK38: 0 | CL38: 108291.2927 | CU38: 36 | CV38: 0.02 | CW38: 0.002874912023
D39: 38 | E39: 400000 | F39: =+SUM($E$2:E39) -> 15200000 | G39: 0 | H39: 0 | I39: =+IF(D39<=Term1, +SUM(INDEX($W$2:$BG$601,1,35):INDEX($W$2:$BG$601,$D39*12,35)), 0) +IF(AND(D39=Term1+1,Term2>0), +SUM(INDEX($W$2:$BG$601,1,35):INDEX($W$2:$BG$601,$D39*12+Term2-12,35), 0)) -> 0 | J39: 0 | K39: 0 | L39: 0 | M39: 0 | N39: 0 | O39: 1 | P39: 0 | Q39: 0 | R39: 0 | T39: 0 | U39: 0 | W39: 38 | X39: 4 | Y39: 0 | Z39: =IF($B$29=1,1,FundingFactor(W39,FEL_period,Entage,1,kktg+aktg,10)) -> 0.5401047091 | AA39: 1103904.015 | AB39: 0 | AC39: 6435.760406 | AD39: 1655.856022 | AE39: 1095812.398 | AF39: 401075.4539 | AG39: 0 | AH39: 601.6131808 | AI39: 400473.8407 | AJ39: 439.4128756 | AK39: 160.5871244 | AL39: 1095372.985 | AM39: 400313.2536 | AN39: 0 | AO39: 0 | AP39: 160 | AQ39: 0 | AR39: 160 | AS39: 1095372.985 | AT39: 5476.864927 | AU39: 1100849.85 | AV39: 400153.2536 | AW39: 2000.766268 | AX39: 402154.0198 | AY39: 0 | AZ39: 0 | BA39: 0 | BB39: 0 | BC39: 0 | BD39: 165297.2673 | BE39: 0 | BF39: 413.2431683 | BG39: 165710.5105 | BH39: 0 | BI39: 108291.2927 | BJ39: 0 | BK39: 215.4996724 | BL39: 540.3789649 | BM39: 108616.1719 | BN39: 0 | BO39: 0 | BP39: 0 | BQ39: 0 | BR39: 0 | BS39: 0 | BT39: 0 | BU39: 0 | BV39: 0 | BW39: 0 | BX39: 0 | BY39: 0 | BZ39: 0 | CA39: 0 | CB39: 0 | CC39: 0 | CD39: 0 | CE39: 0 | CF39: 0 | CG39: 0 | CH39: 0 | CI39: 0 | CJ39: 0 | CK39: 0 | CL39: 108616.1719 | CU39: 37 | CV39: 0.02 | CW39: 0.003305644209
D40: 39 | E40: 400000 | F40: =+SUM($E$2:E40) -> 15600000 | G40: 0 | H40: 0 | I40: =+IF(D40<=Term1, +SUM(INDEX($W$2:$BG$601,1,35):INDEX($W$2:$BG$601,$D40*12,35)), 0) +IF(AND(D40=Term1+1,Term2>0), +SUM(INDEX($W$2:$BG$601,1,35):INDEX($W$2:$BG$601,$D40*12+Term2-12,35), 0)) -> 0 | J40: 0 | K40: 0 | L40: 0 | M40: 0 | N40: 0 | O40: 1 | P40: 0 | Q40: 0 | R40: 0 | T40: 0 | U40: 0 | W40: 39 | X40: 4 | Y40: 0 | Z40: =IF($B$29=1,1,FundingFactor(W40,FEL_period,Entage,1,kktg+aktg,10)) -> 0.5441324923 | AA40: 1100849.85 | AB40: 0 | AC40: 6417.954627 | AD40: 1651.274776 | AE40: 1092780.621 | AF40: 402154.0198 | AG40: 0 | AH40: 603.2310298 | AI40: 401550.7888 | AJ40: 438.7703881 | AK40: 161.2296119 | AL40: 1092341.851 | AM40: 401389.5592 | AN40: 0 | AO40: 0 | AP40: 160 | AQ40: 0 | AR40: 160 | AS40: 1092341.851 | AT40: 5461.709253 | AU40: 1097803.56 | AV40: 401229.5592 | AW40: 2006.147796 | AX40: 403235.707 | AY40: 0 | AZ40: 0 | BA40: 0 | BB40: 0 | BC40: 0 | BD40: 165710.5105 | BE40: 0 | BF40: 414.2762762 | BG40: 166124.7868 | BH40: 0 | BI40: 108616.1719 | BJ40: 0 | BK40: 216.1461822 | BL40: 542.0001288 | BM40: 108942.0259 | BN40: 0 | BO40: 0 | BP40: 0 | BQ40: 0 | BR40: 0 | BS40: 0 | BT40: 0 | BU40: 0 | BV40: 0 | BW40: 0 | BX40: 0 | BY40: 0 | BZ40: 0 | CA40: 0 | CB40: 0 | CC40: 0 | CD40: 0 | CE40: 0 | CF40: 0 | CG40: 0 | CH40: 0 | CI40: 0 | CJ40: 0 | CK40: 0 | CL40: 108942.0259 | CU40: 38 | CV40: 0.02 | CW40: 0.003776308602
D41: 40 | E41: 400000 | F41: =+SUM($E$2:E41) -> 16000000 | G41: 0 | H41: 0 | I41: =+IF(D41<=Term1, +SUM(INDEX($W$2:$BG$601,1,35):INDEX($W$2:$BG$601,$D41*12,35)), 0) +IF(AND(D41=Term1+1,Term2>0), +SUM(INDEX($W$2:$BG$601,1,35):INDEX($W$2:$BG$601,$D41*12+Term2-12,35), 0)) -> 0 | J41: 0 | K41: 0 | L41: 0 | M41: 0 | N41: 0 | O41: 1 | P41: 0 | Q41: 0 | R41: 0 | T41: 0 | U41: 0 | W41: 40 | X41: 4 | Y41: 0 | Z41: =IF($B$29=1,1,FundingFactor(W41,FEL_period,Entage,1,kktg+aktg,10)) -> 0.5481602754 | AA41: 1097803.56 | AB41: 0 | AC41: 6400.194754 | AD41: 1646.70534 | AE41: 1089756.66 | AF41: 403235.707 | AG41: 0 | AH41: 604.8535605 | AI41: 402630.8534 | AJ41: 438.1261503 | AK41: 161.8738497 | AL41: 1089318.534 | AM41: 402468.9796 | AN41: 0 | AO41: 0 | AP41: 160 | AQ41: 0 | AR41: 160 | AS41: 1089318.534 | AT41: 5446.592668 | AU41: 1094765.126 | AV41: 402308.9796 | AW41: 2011.544898 | AX41: 404320.5245 | AY41: 0 | AZ41: 0 | BA41: 0 | BB41: 0 | BC41: 0 | BD41: 166124.7868 | BE41: 0 | BF41: 415.3119669 | BG41: 166540.0987 | BH41: 0 | BI41: 108942.0259 | BJ41: 0 | BK41: 216.7946315 | BL41: 543.6261563 | BM41: 109268.8574 | BN41: 0 | BO41: 0 | BP41: 0 | BQ41: 0 | BR41: 0 | BS41: 0 | BT41: 0 | BU41: 0 | BV41: 0 | BW41: 0 | BX41: 0 | BY41: 0 | BZ41: 0 | CA41: 0 | CB41: 0 | CC41: 0 | CD41: 0 | CE41: 0 | CF41: 0 | CG41: 0 | CH41: 0 | CI41: 0 | CJ41: 0 | CK41: 0 | CL41: 109268.8574 | CU41: 39 | CV41: 0.02 | CW41: 0.004267529784
D42: 41 | E42: 400000 | F42: =+SUM($E$2:E42) -> 16400000 | G42: 0 | H42: 0 | I42: =+IF(D42<=Term1, +SUM(INDEX($W$2:$BG$601,1,35):INDEX($W$2:$BG$601,$D42*12,35)), 0) +IF(AND(D42=Term1+1,Term2>0), +SUM(INDEX($W$2:$BG$601,1,35):INDEX($W$2:$BG$601,$D42*12+Term2-12,35), 0)) -> 0 | J42: 0 | K42: 0 | L42: 0 | M42: 0 | N42: 0 | O42: 1 | P42: 0 | Q42: 0 | R42: 0 | T42: 0 | U42: 0 | W42: 41 | X42: 4 | Y42: 0 | Z42: =IF($B$29=1,1,FundingFactor(W42,FEL_period,Entage,1,kktg+aktg,10)) -> 0.5521880586 | AA42: 1094765.126 | AB42: 0 | AC42: 6382.480686 | AD42: 1642.147689 | AE42: 1086740.498 | AF42: 404320.5245 | AG42: 0 | AH42: 606.4807867 | AI42: 403714.0437 | AJ42: 437.480165 | AK42: 162.519835 | AL42: 1086303.018 | AM42: 403551.5239 | AN42: 0 | AO42: 0 | AP42: 160 | AQ42: 0 | AR42: 160 | AS42: 1086303.018 | AT42: 5431.515088 | AU42: 1091734.533 | AV42: 403391.5239 | AW42: 2016.957619 | AX42: 405408.4815 | AY42: 0 | AZ42: 0 | BA42: 0 | BB42: 0 | BC42: 0 | BD42: 166540.0987 | BE42: 0 | BF42: 416.3502468 | BG42: 166956.449 | BH42: 0 | BI42: 109268.8574 | BJ42: 0 | BK42: 217.4450263 | BL42: 545.257062 | BM42: 109596.6695 | BN42: 0 | BO42: 0 | BP42: 0 | BQ42: 0 | BR42: 0 | BS42: 0 | BT42: 0 | BU42: 0 | BV42: 0 | BW42: 0 | BX42: 0 | BY42: 0 | BZ42: 0 | CA42: 0 | CB42: 0 | CC42: 0 | CD42: 0 | CE42: 0 | CF42: 0 | CG42: 0 | CH42: 0 | CI42: 0 | CJ42: 0 | CK42: 0 | CL42: 109596.6695 | CU42: 40 | CV42: 0.02 | CW42: 0.004768123973
D43: 42 | E43: 400000 | F43: =+SUM($E$2:E43) -> 16800000 | G43: 0 | H43: 0 | I43: =+IF(D43<=Term1, +SUM(INDEX($W$2:$BG$601,1,35):INDEX($W$2:$BG$601,$D43*12,35)), 0) +IF(AND(D43=Term1+1,Term2>0), +SUM(INDEX($W$2:$BG$601,1,35):INDEX($W$2:$BG$601,$D43*12+Term2-12,35), 0)) -> 0 | J43: 0 | K43: 0 | L43: 0 | M43: 0 | N43: 0 | O43: 1 | P43: 0 | Q43: 0 | R43: 0 | T43: 0 | U43: 0 | W43: 42 | X43: 4 | Y43: 0 | Z43: =IF($B$29=1,1,FundingFactor(W43,FEL_period,Entage,1,kktg+aktg,10)) -> 0.5562158418 | AA43: 1091734.533 | AB43: 0 | AC43: 6364.812326 | AD43: 1637.601799 | AE43: 1083732.119 | AF43: 405408.4815 | AG43: 0 | AH43: 608.1127222 | AI43: 404800.3688 | AJ43: 436.8324351 | AK43: 163.1675649 | AL43: 1083295.286 | AM43: 404637.2012 | AN43: 0 | AO43: 0 | AP43: 160 | AQ43: 0 | AR43: 160 | AS43: 1083295.286 | AT43: 5416.476431 | AU43: 1088711.763 | AV43: 404477.2012 | AW43: 2022.386006 | AX43: 406499.5872 | AY43: 0 | AZ43: 0 | BA43: 0 | BB43: 0 | BC43: 0 | BD43: 166956.449 | BE43: 0 | BF43: 417.3911224 | BG43: 167373.8401 | BH43: 0 | BI43: 109596.6695 | BJ43: 0 | BK43: 218.0973722 | BL43: 546.8928604 | BM43: 109925.4649 | BN43: 0 | BO43: 0 | BP43: 0 | BQ43: 0 | BR43: 0 | BS43: 0 | BT43: 0 | BU43: 0 | BV43: 0 | BW43: 0 | BX43: 0 | BY43: 0 | BZ43: 0 | CA43: 0 | CB43: 0 | CC43: 0 | CD43: 0 | CE43: 0 | CF43: 0 | CG43: 0 | CH43: 0 | CI43: 0 | CJ43: 0 | CK43: 0 | CL43: 109925.4649 | CU43: 41 | CV43: 0.02 | CW43: 0.005283424987
D44: 43 | E44: 400000 | F44: =+SUM($E$2:E44) -> 17200000 | G44: 0 | H44: 0 | I44: =+IF(D44<=Term1, +SUM(INDEX($W$2:$BG$601,1,35):INDEX($W$2:$BG$601,$D44*12,35)), 0) +IF(AND(D44=Term1+1,Term2>0), +SUM(INDEX($W$2:$BG$601,1,35):INDEX($W$2:$BG$601,$D44*12+Term2-12,35), 0)) -> 0 | J44: 0 | K44: 0 | L44: 0 | M44: 0 | N44: 0 | O44: 1 | P44: 0 | Q44: 0 | R44: 0 | T44: 0 | U44: 0 | W44: 43 | X44: 4 | Y44: 0 | Z44: =IF($B$29=1,1,FundingFactor(W44,FEL_period,Entage,1,kktg+aktg,10)) -> 0.560243625 | AA44: 1088711.763 | AB44: 0 | AC44: 6347.189576 | AD44: 1633.067644 | AE44: 1080731.505 | AF44: 406499.5872 | AG44: 0 | AH44: 609.7493808 | AI44: 405889.8378 | AJ44: 436.1829636 | AK44: 163.8170364 | AL44: 1080295.322 | AM44: 405726.0208 | AN44: 0 | AO44: 0 | AP44: 160 | AQ44: 0 | AR44: 160 | AS44: 1080295.322 | AT44: 5401.476612 | AU44: 1085696.799 | AV44: 405566.0208 | AW44: 2027.830104 | AX44: 407593.8509 | AY44: 0 | AZ44: 0 | BA44: 0 | BB44: 0 | BC44: 0 | BD44: 167373.8401 | BE44: 80000 | BF44: 618.4346002 | BG44: 247992.2747 | BH44: 0 | BI44: 109925.4649 | BJ44: 0 | BK44: 218.7516752 | BL44: 548.5335663 | BM44: 110255.2468 | BN44: 0 | BO44: 0 | BP44: 0 | BQ44: 0 | BR44: 0 | BS44: 0 | BT44: 0 | BU44: 0 | BV44: 0 | BW44: 0 | BX44: 0 | BY44: 0 | BZ44: 0 | CA44: 0 | CB44: 0 | CC44: 0 | CD44: 0 | CE44: 0 | CF44: 0 | CG44: 0 | CH44: 0 | CI44: 0 | CJ44: 0 | CK44: 0 | CL44: 110255.2468 | CU44: 42 | CV44: 0.02 | CW44: 0.005818968964
D45: 44 | E45: 400000 | F45: =+SUM($E$2:E45) -> 17600000 | G45: 0 | H45: 0 | I45: =+IF(D45<=Term1, +SUM(INDEX($W$2:$BG$601,1,35):INDEX($W$2:$BG$601,$D45*12,35)), 0) +IF(AND(D45=Term1+1,Term2>0), +SUM(INDEX($W$2:$BG$601,1,35):INDEX($W$2:$BG$601,$D45*12+Term2-12,35), 0)) -> 0 | J45: 0 | K45: 0 | L45: 0 | M45: 0 | N45: 0 | O45: 1 | P45: 0 | Q45: 0 | R45: 0 | T45: 0 | U45: 0 | W45: 44 | X45: 4 | Y45: 0 | Z45: =IF($B$29=1,1,FundingFactor(W45,FEL_period,Entage,1,kktg+aktg,10)) -> 0.5642714082 | AA45: 1085696.799 | AB45: 0 | AC45: 6329.612339 | AD45: 1628.545199 | AE45: 1077738.642 | AF45: 407593.8509 | AG45: 0 | AH45: 611.3907763 | AI45: 406982.4601 | AJ45: 435.5317535 | AK45: 164.4682465 | AL45: 1077303.11 | AM45: 406817.9919 | AN45: 0 | AO45: 0 | AP45: 160 | AQ45: 0 | AR45: 160 | AS45: 1077303.11 | AT45: 5386.515549 | AU45: 1082689.625 | AV45: 406657.9919 | AW45: 2033.289959 | AX45: 408691.2818 | AY45: 0 | AZ45: 0 | BA45: 0 | BB45: 0 | BC45: 0 | BD45: 247992.2747 | BE45: 0 | BF45: 619.9806867 | BG45: 248612.2554 | BH45: 0 | BI45: 110255.2468 | BJ45: 0 | BK45: 219.4079412 | BL45: 550.1791945 | BM45: 110586.0181 | BN45: 0 | BO45: 0 | BP45: 0 | BQ45: 0 | BR45: 0 | BS45: 0 | BT45: 0 | BU45: 0 | BV45: 0 | BW45: 0 | BX45: 0 | BY45: 0 | BZ45: 0 | CA45: 0 | CB45: 0 | CC45: 0 | CD45: 0 | CE45: 0 | CF45: 0 | CG45: 0 | CH45: 0 | CI45: 0 | CJ45: 0 | CK45: 0 | CL45: 110586.0181 | CU45: 43 | CV45: 0.02 | CW45: 0.006374015939
D46: 45 | E46: 400000 | F46: =+SUM($E$2:E46) -> 18000000 | G46: 0 | H46: 0 | I46: =+IF(D46<=Term1, +SUM(INDEX($W$2:$BG$601,1,35):INDEX($W$2:$BG$601,$D46*12,35)), 0) +IF(AND(D46=Term1+1,Term2>0), +SUM(INDEX($W$2:$BG$601,1,35):INDEX($W$2:$BG$601,$D46*12+Term2-12,35), 0)) -> 0 | J46: 0 | K46: 0 | L46: 0 | M46: 0 | N46: 0 | O46: 1 | P46: 0 | Q46: 0 | R46: 0 | T46: 0 | U46: 0 | W46: 45 | X46: 4 | Y46: 0 | Z46: =IF($B$29=1,1,FundingFactor(W46,FEL_period,Entage,1,kktg+aktg,10)) -> 0.5682991913 | AA46: 1082689.625 | AB46: 0 | AC46: 6312.080516 | AD46: 1624.034438 | AE46: 1074753.51 | AF46: 408691.2818 | AG46: 0 | AH46: 613.0369227 | AI46: 408078.2449 | AJ46: 434.878808 | AK46: 165.121192 | AL46: 1074318.632 | AM46: 407913.1237 | AN46: 0 | AO46: 0 | AP46: 160 | AQ46: 0 | AR46: 160 | AS46: 1074318.632 | AT46: 5371.593158 | AU46: 1079690.225 | AV46: 407753.1237 | AW46: 2038.765619 | AX46: 409791.8893 | AY46: 0 | AZ46: 0 | BA46: 0 | BB46: 0 | BC46: 0 | BD46: 248612.2554 | BE46: 0 | BF46: 621.5306385 | BG46: 249233.786 | BH46: 0 | BI46: 110586.0181 | BJ46: 0 | BK46: 220.066176 | BL46: 551.8297596 | BM46: 110917.7817 | BN46: 0 | BO46: 0 | BP46: 0 | BQ46: 0 | BR46: 0 | BS46: 0 | BT46: 0 | BU46: 0 | BV46: 0 | BW46: 0 | BX46: 0 | BY46: 0 | BZ46: 0 | CA46: 0 | CB46: 0 | CC46: 0 | CD46: 0 | CE46: 0 | CF46: 0 | CG46: 0 | CH46: 0 | CI46: 0 | CJ46: 0 | CK46: 0 | CL46: 110917.7817 | CU46: 44 | CV46: 0.02 | CW46: 0.006943660141
D47: 46 | E47: 400000 | F47: =+SUM($E$2:E47) -> 18400000 | G47: 0 | H47: 0 | I47: =+IF(D47<=Term1, +SUM(INDEX($W$2:$BG$601,1,35):INDEX($W$2:$BG$601,$D47*12,35)), 0) +IF(AND(D47=Term1+1,Term2>0), +SUM(INDEX($W$2:$BG$601,1,35):INDEX($W$2:$BG$601,$D47*12+Term2-12,35), 0)) -> 0 | J47: 0 | K47: 0 | L47: 0 | M47: 0 | N47: 0 | O47: 1 | P47: 0 | Q47: 0 | R47: 0 | T47: 0 | U47: 0 | W47: 46 | X47: 4 | Y47: 0 | Z47: =IF($B$29=1,1,FundingFactor(W47,FEL_period,Entage,1,kktg+aktg,10)) -> 0.5723269745 | AA47: 1079690.225 | AB47: 0 | AC47: 6294.59401 | AD47: 1619.535337 | AE47: 1071776.095 | AF47: 409791.8893 | AG47: 0 | AH47: 614.687834 | AI47: 409177.2015 | AJ47: 434.2241302 | AK47: 165.7758698 | AL47: 1071341.871 | AM47: 409011.4256 | AN47: 0 | AO47: 0 | AP47: 160 | AQ47: 0 | AR47: 160 | AS47: 1071341.871 | AT47: 5356.709356 | AU47: 1076698.581 | AV47: 408851.4256 | AW47: 2044.257128 | AX47: 410895.6828 | AY47: 0 | AZ47: 0 | BA47: 0 | BB47: 0 | BC47: 0 | BD47: 249233.786 | BE47: 0 | BF47: 623.084465 | BG47: 249856.8705 | BH47: 0 | BI47: 110917.7817 | BJ47: 0 | BK47: 220.7263855 | BL47: 553.4852764 | BM47: 111250.5406 | BN47: 0 | BO47: 0 | BP47: 0 | BQ47: 0 | BR47: 0 | BS47: 0 | BT47: 0 | BU47: 0 | BV47: 0 | BW47: 0 | BX47: 0 | BY47: 0 | BZ47: 0 | CA47: 0 | CB47: 0 | CC47: 0 | CD47: 0 | CE47: 0 | CF47: 0 | CG47: 0 | CH47: 0 | CI47: 0 | CJ47: 0 | CK47: 0 | CL47: 111250.5406 | CU47: 45 | CV47: 0.02 | CW47: 0.007517260885
D48: 47 | E48: 400000 | F48: =+SUM($E$2:E48) -> 18800000 | G48: 0 | H48: 0 | I48: =+IF(D48<=Term1, +SUM(INDEX($W$2:$BG$601,1,35):INDEX($W$2:$BG$601,$D48*12,35)), 0) +IF(AND(D48=Term1+1,Term2>0), +SUM(INDEX($W$2:$BG$601,1,35):INDEX($W$2:$BG$601,$D48*12+Term2-12,35), 0)) -> 0 | J48: 0 | K48: 0 | L48: 0 | M48: 0 | N48: 0 | O48: 1 | P48: 0 | Q48: 0 | R48: 0 | T48: 0 | U48: 0 | W48: 47 | X48: 4 | Y48: 0 | Z48: =IF($B$29=1,1,FundingFactor(W48,FEL_period,Entage,1,kktg+aktg,10)) -> 0.5763547577 | AA48: 1076698.581 | AB48: 0 | AC48: 6277.152725 | AD48: 1615.047871 | AE48: 1068806.38 | AF48: 410895.6828 | AG48: 0 | AH48: 616.3435241 | AI48: 410279.3392 | AJ48: 433.5677234 | AK48: 166.4322766 | AL48: 1068372.812 | AM48: 410112.9069 | AN48: 0 | AO48: 0 | AP48: 160 | AQ48: 0 | AR48: 160 | AS48: 1068372.812 | AT48: 5341.864061 | AU48: 1073714.676 | AV48: 409952.9069 | AW48: 2049.764535 | AX48: 412002.6715 | AY48: 0 | AZ48: 0 | BA48: 0 | BB48: 0 | BC48: 0 | BD48: 249856.8705 | BE48: 0 | BF48: 624.6421762 | BG48: 250481.5127 | BH48: 0 | BI48: 111250.5406 | BJ48: 0 | BK48: 221.3885757 | BL48: 555.1457599 | BM48: 111584.2977 | BN48: 0 | BO48: 0 | BP48: 0 | BQ48: 0 | BR48: 0 | BS48: 0 | BT48: 0 | BU48: 0 | BV48: 0 | BW48: 0 | BX48: 0 | BY48: 0 | BZ48: 0 | CA48: 0 | CB48: 0 | CC48: 0 | CD48: 0 | CE48: 0 | CF48: 0 | CG48: 0 | CH48: 0 | CI48: 0 | CJ48: 0 | CK48: 0 | CL48: 111584.2977 | CU48: 46 | CV48: 0.02 | CW48: 0.008103047918
D49: 48 | E49: 400000 | F49: =+SUM($E$2:E49) -> 19200000 | G49: 0 | H49: 0 | I49: =+IF(D49<=Term1, +SUM(INDEX($W$2:$BG$601,1,35):INDEX($W$2:$BG$601,$D49*12,35)), 0) +IF(AND(D49=Term1+1,Term2>0), +SUM(INDEX($W$2:$BG$601,1,35):INDEX($W$2:$BG$601,$D49*12+Term2-12,35), 0)) -> 0 | J49: 0 | K49: 0 | L49: 0 | M49: 0 | N49: 0 | O49: 1 | P49: 0 | Q49: 0 | R49: 0 | T49: 0 | U49: 0 | W49: 48 | X49: 4 | Y49: 0 | Z49: =IF($B$29=1,1,FundingFactor(W49,FEL_period,Entage,1,kktg+aktg,10)) -> 0.5803825409 | AA49: 1073714.676 | AB49: 0 | AC49: 6259.756563 | AD49: 1610.572015 | AE49: 1065844.348 | AF49: 412002.6715 | AG49: 0 | AH49: 618.0040072 | AI49: 411384.6675 | AJ49: 432.9095909 | AK49: 167.0904091 | AL49: 1065411.438 | AM49: 411217.5771 | AN49: 0 | AO49: 0 | AP49: 160 | AQ49: 0 | AR49: 160 | AS49: 1065411.438 | AT49: 5327.057191 | AU49: 1070738.495 | AV49: 411057.5771 | AW49: 2055.287885 | AX49: 413112.865 | AY49: 0 | AZ49: 0 | BA49: 0 | BB49: 0 | BC49: 0 | BD49: 250481.5127 | BE49: 0 | BF49: 626.2037817 | BG49: 251107.7164 | BH49: 0 | BI49: 111584.2977 | BJ49: 0 | BK49: 222.0527525 | BL49: 556.811225 | BM49: 111919.0562 | BN49: 0 | BO49: 0 | BP49: 0 | BQ49: 0 | BR49: 0 | BS49: 0 | BT49: 0 | BU49: 0 | BV49: 0 | BW49: 0 | BX49: 0 | BY49: 0 | BZ49: 0 | CA49: 0 | CB49: 0 | CC49: 0 | CD49: 0 | CE49: 0 | CF49: 0 | CG49: 0 | CH49: 0 | CI49: 0 | CJ49: 0 | CK49: 0 | CL49: 111919.0562 | CU49: 47 | CV49: 0.02 | CW49: 0.008666801455
D50: 49 | E50: 400000 | F50: =+SUM($E$2:E50) -> 19600000 | G50: 0 | H50: 0 | I50: =+IF(D50<=Term1, +SUM(INDEX($W$2:$BG$601,1,35):INDEX($W$2:$BG$601,$D50*12,35)), 0) +IF(AND(D50=Term1+1,Term2>0), +SUM(INDEX($W$2:$BG$601,1,35):INDEX($W$2:$BG$601,$D50*12+Term2-12,35), 0)) -> 0 | J50: 0 | K50: 0 | L50: 0 | M50: 0 | N50: 0 | O50: 1 | P50: 0 | Q50: 0 | R50: 0 | T50: 0 | U50: 0 | W50: 49 | X50: 5 | Y50: 400000 | Z50: =IF($B$29=1,1,FundingFactor(W50,FEL_period,Entage,1,kktg+aktg,10)) -> 0.584410324 | AA50: 1070738.495 | AB50: 0 | AC50: 6242.405428 | AD50: 1606.107743 | AE50: 1062889.982 | AF50: 413112.865 | AG50: 400000 | AH50: 1219.669297 | AI50: 811893.1957 | AJ50: 340.1641304 | AK50: 259.8358696 | AL50: 1062549.818 | AM50: 811633.3598 | AN50: 0 | AO50: 0 | AP50: 160 | AQ50: 0 | AR50: 160 | AS50: 1062549.818 | AT50: 5312.74909 | AU50: 1067862.567 | AV50: 811473.3598 | AW50: 4057.366799 | AX50: 815530.7266 | AY50: 0 | AZ50: 0 | BA50: 0 | BB50: 0 | BC50: 0 | BD50: 251107.7164 | BE50: 0 | BF50: 627.7692911 | BG50: 251735.4857 | BH50: 0 | BI50: 111919.0562 | BJ50: 0 | BK50: 222.7189219 | BL50: 558.4816865 | BM50: 112254.819 | BN50: 0 | BO50: 0 | BP50: 0 | BQ50: 0 | BR50: 0 | BS50: 0 | BT50: 0 | BU50: 0 | BV50: 0 | BW50: 0 | BX50: 0 | BY50: 0 | BZ50: 0 | CA50: 0 | CB50: 0 | CC50: 0 | CD50: 0 | CE50: 0 | CF50: 0 | CG50: 0 | CH50: 0 | CI50: 0 | CJ50: 0 | CK50: 0 | CL50: 112254.819 | CU50: 48 | CV50: 0.02 | CW50: 0.009251250043
D51: 50 | E51: 400000 | F51: =+SUM($E$2:E51) -> 20000000 | G51: 0 | H51: 0 | I51: =+IF(D51<=Term1, +SUM(INDEX($W$2:$BG$601,1,35):INDEX($W$2:$BG$601,$D51*12,35)), 0) +IF(AND(D51=Term1+1,Term2>0), +SUM(INDEX($W$2:$BG$601,1,35):INDEX($W$2:$BG$601,$D51*12+Term2-12,35), 0)) -> 0 | J51: 0 | K51: 0 | L51: 0 | M51: 0 | N51: 0 | O51: 1 | P51: 0 | Q51: 0 | R51: 0 | T51: 0 | U51: 0 | W51: 50 | X51: 5 | Y51: 0 | Z51: =IF($B$29=1,1,FundingFactor(W51,FEL_period,Entage,1,kktg+aktg,10)) -> 0.5888454737 | AA51: 1067862.567 | AB51: 0 | AC51: 6225.638767 | AD51: 1601.793851 | AE51: 1060035.135 | AF51: 815530.7266 | AG51: 0 | AH51: 1223.29609 | AI51: 814307.4305 | AJ51: 339.3302231 | AK51: 260.6697769 | AL51: 1059695.804 | AM51: 814046.7607 | AN51: 0 | AO51: 0 | AP51: 160 | AQ51: 0 | AR51: 160 | AS51: 1059695.804 | AT51: 5298.479022 | AU51: 1064994.283 | AV51: 813886.7607 | AW51: 4069.433804 | AX51: 817956.1945 | AY51: 0 | AZ51: 0 | BA51: 0 | BB51: 0 | BC51: 0 | BD51: 251735.4857 | BE51: 0 | BF51: 629.3387143 | BG51: 252364.8244 | BH51: 0 | BI51: 112254.819 | BJ51: 0 | BK51: 223.3870898 | BL51: 560.1571595 | BM51: 112591.5891 | BN51: 0 | BO51: 0 | BP51: 0 | BQ51: 0 | BR51: 0 | BS51: 0 | BT51: 0 | BU51: 0 | BV51: 0 | BW51: 0 | BX51: 0 | BY51: 0 | BZ51: 0 | CA51: 0 | CB51: 0 | CC51: 0 | CD51: 0 | CE51: 0 | CF51: 0 | CG51: 0 | CH51: 0 | CI51: 0 | CJ51: 0 | CK51: 0 | CL51: 112591.5891 | CU51: 49 | CV51: 0.02 | CW51: 0.009905557769
W52: 51 | X52: 5 | Y52: 0 | Z52: =IF($B$29=1,1,FundingFactor(W52,FEL_period,Entage,1,kktg+aktg,10)) -> 0.5932806233 | AA52: 1064994.283 | AB52: 0 | AC52: 6208.916672 | AD52: 1597.491425 | AE52: 1057187.875 | AF52: 817956.1945 | AG52: 0 | AH52: 1226.934292 | AI52: 816729.2602 | AJ52: 338.4956107 | AK52: 261.5043893 | AL52: 1056849.38 | AM52: 816467.7558 | AN52: 0 | AO52: 0 | AP52: 160 | AQ52: 0 | AR52: 160 | AS52: 1056849.38 | AT52: 5284.246898 | AU52: 1062133.627 | AV52: 816307.7558 | AW52: 4081.538779 | AX52: 820389.2946 | AY52: 0 | AZ52: 0 | BA52: 0 | BB52: 0 | BC52: 0 | BD52: 252364.8244 | BE52: 0 | BF52: 630.9120611 | BG52: 252995.7365 | BH52: 0 | BI52: 112591.5891 | BJ52: 0 | BK52: 224.0572622 | BL52: 561.837659 | BM52: 112929.3695 | BN52: 0 | BO52: 0 | BP52: 0 | BQ52: 0 | BR52: 0 | BS52: 0 | BT52: 0 | BU52: 0 | BV52: 0 | BW52: 0 | BX52: 0 | BY52: 0 | BZ52: 0 | CA52: 0 | CB52: 0 | CC52: 0 | CD52: 0 | CE52: 0 | CF52: 0 | CG52: 0 | CH52: 0 | CI52: 0 | CJ52: 0 | CK52: 0 | CL52: 112929.3695 | CU52: 50 | CV52: 0.02 | CW52: 0.01062390888
A53: Biztosító nyilatkozata: A jelen tájékoztatás nem tekinthető befektetési szolgáltatásnak, sem egyedi befektetési-, pénzügyi- vagy jogi tanácsnak illetve ajánlatnak. A jelen tájékoztatást csak saját felelősségére használhatja fel, annak felhasználásából, vagy az arra támaszkodó döntéshozatalból származó esetleges veszteségért semmilyen – közvetlen vagy közvetett – jogi felelősség nem terheli az UNION Biztosítót, és az itt közölt információk alapján semmilyen követelés nem érvényesíthető. Az eszközalapok választása a szerződő fél felelőssége és kockázata. Felhívjuk a figyelmet, hogy a befektetésnek az értéke emelkedhet és csökkenhet is, és az alapok múltbeli teljesítménye, hozama nem jelent garanciát a jövőbeli teljesítményre, hozamra. Az egyes eszközalapok részletes leírását, így a befektetési politikát a Különös Biztosítási Feltételek tartalmazzák. | W53: 52 | X53: 5 | Y53: 0 | Z53: =IF($B$29=1,1,FundingFactor(W53,FEL_period,Entage,1,kktg+aktg,10)) -> 0.5977157729 | AA53: 1062133.627 | AB53: 0 | AC53: 6192.239043 | AD53: 1593.20044 | AE53: 1054348.187 | AF53: 820389.2946 | AG53: 0 | AH53: 1230.583942 | AI53: 819158.7107 | AJ53: 337.6603059 | AK53: 262.3396941 | AL53: 1054010.527 | AM53: 818896.371 | AN53: 0 | AO53: 0 | AP53: 160 | AQ53: 0 | AR53: 160 | AS53: 1054010.527 | AT53: 5270.052634 | AU53: 1059280.579 | AV53: 818736.371 | AW53: 4093.681855 | AX53: 822830.0528 | AY53: 0 | AZ53: 0 | BA53: 0 | BB53: 0 | BC53: 0 | BD53: 252995.7365 | BE53: 0 | BF53: 632.4893413 | BG53: 253628.2259 | BH53: 0 | BI53: 112929.3695 | BJ53: 0 | BK53: 224.7294452 | BL53: 563.5232 | BM53: 113268.1632 | BN53: 0 | BO53: 0 | BP53: 0 | BQ53: 0 | BR53: 0 | BS53: 0 | BT53: 0 | BU53: 0 | BV53: 0 | BW53: 0 | BX53: 0 | BY53: 0 | BZ53: 0 | CA53: 0 | CB53: 0 | CC53: 0 | CD53: 0 | CE53: 0 | CF53: 0 | CG53: 0 | CH53: 0 | CI53: 0 | CJ53: 0 | CK53: 0 | CL53: 113268.1632 | CU53: 51 | CV53: 0.02 | CW53: 0.01142016477
W54: 53 | X54: 5 | Y54: 0 | Z54: =IF($B$29=1,1,FundingFactor(W54,FEL_period,Entage,1,kktg+aktg,10)) -> 0.6021509225 | AA54: 1059280.579 | AB54: 0 | AC54: 6175.605778 | AD54: 1588.920869 | AE54: 1051516.053 | AF54: 822830.0528 | AG54: 0 | AH54: 1234.245079 | AI54: 821595.8078 | AJ54: 336.8243216 | AK54: 263.1756784 | AL54: 1051179.228 | AM54: 821332.6321 | AN54: 0 | AO54: 0 | AP54: 160 | AQ54: 0 | AR54: 160 | AS54: 1051179.228 | AT54: 5255.896142 | AU54: 1056435.125 | AV54: 821172.6321 | AW54: 4105.86316 | AX54: 825278.4952 | AY54: 0 | AZ54: 0 | BA54: 0 | BB54: 0 | BC54: 0 | BD54: 253628.2259 | BE54: 0 | BF54: 634.0705646 | BG54: 254262.2964 | BH54: 0 | BI54: 113268.1632 | BJ54: 0 | BK54: 225.4036448 | BL54: 565.2137978 | BM54: 113607.9734 | BN54: 0 | BO54: 0 | BP54: 0 | BQ54: 0 | BR54: 0 | BS54: 0 | BT54: 0 | BU54: 0 | BV54: 0 | BW54: 0 | BX54: 0 | BY54: 0 | BZ54: 0 | CA54: 0 | CB54: 0 | CC54: 0 | CD54: 0 | CE54: 0 | CF54: 0 | CG54: 0 | CH54: 0 | CI54: 0 | CJ54: 0 | CK54: 0 | CL54: 113607.9734 | CU54: 52 | CV54: 0.02 | CW54: 0.01227644495
W55: 54 | X55: 5 | Y55: 0 | Z55: =IF($B$29=1,1,FundingFactor(W55,FEL_period,Entage,1,kktg+aktg,10)) -> 0.6065860721 | AA55: 1056435.125 | AB55: 0 | AC55: 6159.016776 | AD55: 1584.652687 | AE55: 1048691.455 | AF55: 825278.4952 | AG55: 0 | AH55: 1237.917743 | AI55: 824040.5775 | AJ55: 335.9876705 | AK55: 264.0123295 | AL55: 1048355.467 | AM55: 823776.5652 | AN55: 0 | AO55: 0 | AP55: 160 | AQ55: 0 | AR55: 160 | AS55: 1048355.467 | AT55: 5241.777337 | AU55: 1053597.245 | AV55: 823616.5652 | AW55: 4118.082826 | AX55: 827734.648 | AY55: 0 | AZ55: 0 | BA55: 0 | BB55: 0 | BC55: 0 | BD55: 254262.2964 | BE55: 0 | BF55: 635.655741 | BG55: 254897.9522 | BH55: 0 | BI55: 113607.9734 | BJ55: 0 | BK55: 226.079867 | BL55: 566.9094675 | BM55: 113948.803 | BN55: 0 | BO55: 0 | BP55: 0 | BQ55: 0 | BR55: 0 | BS55: 0 | BT55: 0 | BU55: 0 | BV55: 0 | BW55: 0 | BX55: 0 | BY55: 0 | BZ55: 0 | CA55: 0 | CB55: 0 | CC55: 0 | CD55: 0 | CE55: 0 | CF55: 0 | CG55: 0 | CH55: 0 | CI55: 0 | CJ55: 0 | CK55: 0 | CL55: 113948.803 | CU55: 53 | CV55: 0.02 | CW55: 0.01319163688
W56: 55 | X56: 5 | Y56: 0 | Z56: =IF($B$29=1,1,FundingFactor(W56,FEL_period,Entage,1,kktg+aktg,10)) -> 0.6110212217 | AA56: 1053597.245 | AB56: 0 | AC56: 6142.471937 | AD56: 1580.395867 | AE56: 1045874.377 | AF56: 827734.648 | AG56: 0 | AH56: 1241.601972 | AI56: 826493.046 | AJ56: 335.1503655 | AK56: 264.8496345 | AL56: 1045539.227 | AM56: 826228.1964 | AN56: 0 | AO56: 0 | AP56: 160 | AQ56: 0 | AR56: 160 | AS56: 1045539.227 | AT56: 5227.696133 | AU56: 1050766.923 | AV56: 826068.1964 | AW56: 4130.340982 | AX56: 830198.5374 | AY56: 0 | AZ56: 0 | BA56: 0 | BB56: 0 | BC56: 0 | BD56: 254897.9522 | BE56: 80000 | BF56: 837.2448804 | BG56: 335735.197 | BH56: 0 | BI56: 113948.803 | BJ56: 0 | BK56: 226.7581179 | BL56: 568.6102242 | BM56: 114290.6551 | BN56: 0 | BO56: 0 | BP56: 0 | BQ56: 0 | BR56: 0 | BS56: 0 | BT56: 0 | BU56: 0 | BV56: 0 | BW56: 0 | BX56: 0 | BY56: 0 | BZ56: 0 | CA56: 0 | CB56: 0 | CC56: 0 | CD56: 0 | CE56: 0 | CF56: 0 | CG56: 0 | CH56: 0 | CI56: 0 | CJ56: 0 | CK56: 0 | CL56: 114290.6551 | CU56: 54 | CV56: 0.02 | CW56: 0.01417808868
W57: 56 | X57: 5 | Y57: 0 | Z57: =IF($B$29=1,1,FundingFactor(W57,FEL_period,Entage,1,kktg+aktg,10)) -> 0.6154563713 | AA57: 1050766.923 | AB57: 0 | AC57: 6125.971159 | AD57: 1576.150384 | AE57: 1043064.801 | AF57: 830198.5374 | AG57: 0 | AH57: 1245.297806 | AI57: 828953.2396 | AJ57: 334.3124196 | AK57: 265.6875804 | AL57: 1042730.489 | AM57: 828687.552 | AN57: 0 | AO57: 0 | AP57: 160 | AQ57: 0 | AR57: 160 | AS57: 1042730.489 | AT57: 5213.652444 | AU57: 1047944.141 | AV57: 828527.552 | AW57: 4142.63776 | AX57: 832670.1897 | AY57: 0 | AZ57: 0 | BA57: 0 | BB57: 0 | BC57: 0 | BD57: 335735.197 | BE57: 0 | BF57: 839.3379926 | BG57: 336574.535 | BH57: 0 | BI57: 114290.6551 | BJ57: 0 | BK57: 227.4384036 | BL57: 570.3160833 | BM57: 114633.5327 | BN57: 0 | BO57: 0 | BP57: 0 | BQ57: 0 | BR57: 0 | BS57: 0 | BT57: 0 | BU57: 0 | BV57: 0 | BW57: 0 | BX57: 0 | BY57: 0 | BZ57: 0 | CA57: 0 | CB57: 0 | CC57: 0 | CD57: 0 | CE57: 0 | CF57: 0 | CG57: 0 | CH57: 0 | CI57: 0 | CJ57: 0 | CK57: 0 | CL57: 114633.5327 | CU57: 55 | CV57: 0.02 | CW57: 0.01524308786
W58: 57 | X58: 5 | Y58: 0 | Z58: =IF($B$29=1,1,FundingFactor(W58,FEL_period,Entage,1,kktg+aktg,10)) -> 0.6198915209 | AA58: 1047944.141 | AB58: 0 | AC58: 6109.514343 | AD58: 1571.916212 | AE58: 1040262.711 | AF58: 832670.1897 | AG58: 0 | AH58: 1249.005285 | AI58: 831421.1845 | AJ58: 333.4738457 | AK58: 266.5261543 | AL58: 1039929.237 | AM58: 831154.6583 | AN58: 0 | AO58: 0 | AP58: 160 | AQ58: 0 | AR58: 160 | AS58: 1039929.237 | AT58: 5199.646184 | AU58: 1045128.883 | AV58: 830994.6583 | AW58: 4154.973292 | AX58: 835149.6316 | AY58: 0 | AZ58: 0 | BA58: 0 | BB58: 0 | BC58: 0 | BD58: 336574.535 | BE58: 0 | BF58: 841.4363376 | BG58: 337415.9714 | BH58: 0 | BI58: 114633.5327 | BJ58: 0 | BK58: 228.1207302 | BL58: 572.0270601 | BM58: 114977.4391 | BN58: 0 | BO58: 0 | BP58: 0 | BQ58: 0 | BR58: 0 | BS58: 0 | BT58: 0 | BU58: 0 | BV58: 0 | BW58: 0 | BX58: 0 | BY58: 0 | BZ58: 0 | CA58: 0 | CB58: 0 | CC58: 0 | CD58: 0 | CE58: 0 | CF58: 0 | CG58: 0 | CH58: 0 | CI58: 0 | CJ58: 0 | CK58: 0 | CL58: 114977.4391 | CU58: 56 | CV58: 0.02 | CW58: 0.01639334108
W59: 58 | X59: 5 | Y59: 0 | Z59: =IF($B$29=1,1,FundingFactor(W59,FEL_period,Entage,1,kktg+aktg,10)) -> 0.6243266705 | AA59: 1045128.883 | AB59: 0 | AC59: 6093.101388 | AD59: 1567.693324 | AE59: 1037468.088 | AF59: 835149.6316 | AG59: 0 | AH59: 1252.724447 | AI59: 833896.9071 | AJ59: 332.6346568 | AK59: 267.3653432 | AL59: 1037135.454 | AM59: 833629.5418 | AN59: 0 | AO59: 0 | AP59: 160 | AQ59: 0 | AR59: 160 | AS59: 1037135.454 | AT59: 5185.677268 | AU59: 1042321.131 | AV59: 833469.5418 | AW59: 4167.347709 | AX59: 837636.8895 | AY59: 0 | AZ59: 0 | BA59: 0 | BB59: 0 | BC59: 0 | BD59: 337415.9714 | BE59: 0 | BF59: 843.5399284 | BG59: 338259.5113 | BH59: 0 | BI59: 114977.4391 | BJ59: 0 | BK59: 228.8051038 | BL59: 573.7431699 | BM59: 115322.3771 | BN59: 0 | BO59: 0 | BP59: 0 | BQ59: 0 | BR59: 0 | BS59: 0 | BT59: 0 | BU59: 0 | BV59: 0 | BW59: 0 | BX59: 0 | BY59: 0 | BZ59: 0 | CA59: 0 | CB59: 0 | CC59: 0 | CD59: 0 | CE59: 0 | CF59: 0 | CG59: 0 | CH59: 0 | CI59: 0 | CJ59: 0 | CK59: 0 | CL59: 115322.3771 | CU59: 57 | CV59: 0.02 | CW59: 0.01758675672
W60: 59 | X60: 5 | Y60: 0 | Z60: =IF($B$29=1,1,FundingFactor(W60,FEL_period,Entage,1,kktg+aktg,10)) -> 0.6287618201 | AA60: 1042321.131 | AB60: 0 | AC60: 6076.732193 | AD60: 1563.481696 | AE60: 1034680.917 | AF60: 837636.8895 | AG60: 0 | AH60: 1256.455334 | AI60: 836380.4342 | AJ60: 331.7948659 | AK60: 268.2051341 | AL60: 1034349.122 | AM60: 836112.229 | AN60: 0 | AO60: 0 | AP60: 160 | AQ60: 0 | AR60: 160 | AS60: 1034349.122 | AT60: 5171.745611 | AU60: 1039520.868 | AV60: 835952.229 | AW60: 4179.761145 | AX60: 840131.9902 | AY60: 0 | AZ60: 0 | BA60: 0 | BB60: 0 | BC60: 0 | BD60: 338259.5113 | BE60: 0 | BF60: 845.6487782 | BG60: 339105.1601 | BH60: 0 | BI60: 115322.3771 | BJ60: 0 | BK60: 229.4915305 | BL60: 575.4644281 | BM60: 115668.35 | BN60: 0 | BO60: 0 | BP60: 0 | BQ60: 0 | BR60: 0 | BS60: 0 | BT60: 0 | BU60: 0 | BV60: 0 | BW60: 0 | BX60: 0 | BY60: 0 | BZ60: 0 | CA60: 0 | CB60: 0 | CC60: 0 | CD60: 0 | CE60: 0 | CF60: 0 | CG60: 0 | CH60: 0 | CI60: 0 | CJ60: 0 | CK60: 0 | CL60: 115668.35 | CU60: 58 | CV60: 0.02 | CW60: 0.01887481785
W61: 60 | X61: 5 | Y61: 0 | Z61: =IF($B$29=1,1,FundingFactor(W61,FEL_period,Entage,1,kktg+aktg,10)) -> 0.6331969698 | AA61: 1039520.868 | AB61: 0 | AC61: 6060.406659 | AD61: 1559.281302 | AE61: 1031901.18 | AF61: 840131.9902 | AG61: 0 | AH61: 1260.197985 | AI61: 838871.7922 | AJ61: 330.9544863 | AK61: 269.0455137 | AL61: 1031570.225 | AM61: 838602.7467 | AN61: 0 | AO61: 0 | AP61: 160 | AQ61: 0 | AR61: 160 | AS61: 1031570.225 | AT61: 5157.851126 | AU61: 1036728.076 | AV61: 838442.7467 | AW61: 4192.213733 | AX61: 842634.9604 | AY61: 0 | AZ61: 0 | BA61: 0 | BB61: 0 | BC61: 0 | BD61: 339105.1601 | BE61: 0 | BF61: 847.7629002 | BG61: 339952.923 | BH61: 0 | BI61: 115668.35 | BJ61: 0 | BK61: 230.1800166 | BL61: 577.1908501 | BM61: 116015.3609 | BN61: 0 | BO61: 0 | BP61: 0 | BQ61: 0 | BR61: 0 | BS61: 0 | BT61: 0 | BU61: 0 | BV61: 0 | BW61: 0 | BX61: 0 | BY61: 0 | BZ61: 0 | CA61: 0 | CB61: 0 | CC61: 0 | CD61: 0 | CE61: 0 | CF61: 0 | CG61: 0 | CH61: 0 | CI61: 0 | CJ61: 0 | CK61: 0 | CL61: 116015.3609 | CU61: 59 | CV61: 0.02 | CW61: 0.0202368185
W62: 61 | X62: 6 | Y62: 400000 | Z62: =IF($B$29=1,1,FundingFactor(W62,FEL_period,Entage,1,kktg+aktg,10)) -> 0.6376321194 | AA62: 1036728.076 | AB62: 0 | AC62: 6044.124685 | AD62: 1555.092115 | AE62: 1029128.86 | AF62: 842634.9604 | AG62: 400000 | AH62: 1863.952441 | AI62: 1240771.008 | AJ62: 272.0284382 | AK62: 327.9715618 | AL62: 1028856.831 | AM62: 1240443.036 | AN62: 0 | AO62: 0 | AP62: 160 | AQ62: 0 | AR62: 160 | AS62: 1028856.831 | AT62: 5144.284156 | AU62: 1034001.115 | AV62: 1240283.036 | AW62: 6201.415182 | AX62: 1246484.452 | AY62: 0 | AZ62: 0 | BA62: 0 | BB62: 0 | BC62: 0 | BD62: 339952.923 | BE62: 0 | BF62: 849.8823074 | BG62: 340802.8053 | BH62: 0 | BI62: 116015.3609 | BJ62: 0 | BK62: 230.8705681 | BL62: 578.9224515 | BM62: 116363.4128 | BN62: 0 | BO62: 0 | BP62: 0 | BQ62: 0 | BR62: 0 | BS62: 0 | BT62: 0 | BU62: 0 | BV62: 0 | BW62: 0 | BX62: 0 | BY62: 0 | BZ62: 0 | CA62: 0 | CB62: 0 | CC62: 0 | CD62: 0 | CE62: 0 | CF62: 0 | CG62: 0 | CH62: 0 | CI62: 0 | CJ62: 0 | CK62: 0 | CL62: 116363.4128 | CU62: 60 | CV62: 0.02 | CW62: 0.02169029378
W63: 62 | X63: 6 | Y63: 0 | Z63: =IF($B$29=1,1,FundingFactor(W63,FEL_period,Entage,1,kktg+aktg,10)) -> 0.642522603 | AA63: 1034001.115 | AB63: 0 | AC63: 6028.226502 | AD63: 1551.001673 | AE63: 1026421.887 | AF63: 1246484.452 | AG63: 0 | AH63: 1869.726677 | AI63: 1244614.725 | AJ63: 271.1771043 | AK63: 328.8228957 | AL63: 1026150.71 | AM63: 1244285.902 | AN63: 0 | AO63: 0 | AP63: 160 | AQ63: 0 | AR63: 160 | AS63: 1026150.71 | AT63: 5130.75355 | AU63: 1031281.464 | AV63: 1244125.902 | AW63: 6220.62951 | AX63: 1250346.532 | AY63: 0 | AZ63: 0 | BA63: 0 | BB63: 0 | BC63: 0 | BD63: 340802.8053 | BE63: 0 | BF63: 852.0070132 | BG63: 341654.8123 | BH63: 0 | BI63: 116363.4128 | BJ63: 0 | BK63: 231.5631914 | BL63: 580.6592478 | BM63: 116712.5088 | BN63: 0 | BO63: 0 | BP63: 0 | BQ63: 0 | BR63: 0 | BS63: 0 | BT63: 0 | BU63: 0 | BV63: 0 | BW63: 0 | BX63: 0 | BY63: 0 | BZ63: 0 | CA63: 0 | CB63: 0 | CC63: 0 | CD63: 0 | CE63: 0 | CF63: 0 | CG63: 0 | CH63: 0 | CI63: 0 | CJ63: 0 | CK63: 0 | CL63: 116712.5088 | CU63: 61 | CV63: 0.02 | CW63: 0.02317005731
W64: 63 | X64: 6 | Y64: 0 | Z64: =IF($B$29=1,1,FundingFactor(W64,FEL_period,Entage,1,kktg+aktg,10)) -> 0.6474130867 | AA64: 1031281.464 | AB64: 0 | AC64: 6012.370933 | AD64: 1546.922195 | AE64: 1023722.17 | AF64: 1250346.532 | AG64: 0 | AH64: 1875.519797 | AI64: 1248471.012 | AJ64: 270.3261796 | AK64: 329.6738204 | AL64: 1023451.844 | AM64: 1248141.338 | AN64: 0 | AO64: 0 | AP64: 160 | AQ64: 0 | AR64: 160 | AS64: 1023451.844 | AT64: 5117.259221 | AU64: 1028569.104 | AV64: 1247981.338 | AW64: 6239.90669 | AX64: 1254221.245 | AY64: 0 | AZ64: 0 | BA64: 0 | BB64: 0 | BC64: 0 | BD64: 341654.8123 | BE64: 0 | BF64: 854.1370307 | BG64: 342508.9493 | BH64: 0 | BI64: 116712.5088 | BJ64: 0 | BK64: 232.2578925 | BL64: 582.4012546 | BM64: 117062.6522 | BN64: 0 | BO64: 0 | BP64: 0 | BQ64: 0 | BR64: 0 | BS64: 0 | BT64: 0 | BU64: 0 | BV64: 0 | BW64: 0 | BX64: 0 | BY64: 0 | BZ64: 0 | CA64: 0 | CB64: 0 | CC64: 0 | CD64: 0 | CE64: 0 | CF64: 0 | CG64: 0 | CH64: 0 | CI64: 0 | CJ64: 0 | CK64: 0 | CL64: 117062.6522 | CU64: 62 | CV64: 0.02 | CW64: 0.02468579692
W65: 64 | X65: 6 | Y65: 0 | Z65: =IF($B$29=1,1,FundingFactor(W65,FEL_period,Entage,1,kktg+aktg,10)) -> 0.6523035704 | AA65: 1028569.104 | AB65: 0 | AC65: 5996.557873 | AD65: 1542.853655 | AE65: 1021029.692 | AF65: 1254221.245 | AG65: 0 | AH65: 1881.331867 | AI65: 1252339.913 | AJ65: 269.4756778 | AK65: 330.5243222 | AL65: 1020760.216 | AM65: 1252009.388 | AN65: 0 | AO65: 0 | AP65: 160 | AQ65: 0 | AR65: 160 | AS65: 1020760.216 | AT65: 5103.801082 | AU65: 1025864.017 | AV65: 1251849.388 | AW65: 6259.246942 | AX65: 1258108.635 | AY65: 0 | AZ65: 0 | BA65: 0 | BB65: 0 | BC65: 0 | BD65: 342508.9493 | BE65: 0 | BF65: 856.2723733 | BG65: 343365.2217 | BH65: 0 | BI65: 117062.6522 | BJ65: 0 | BK65: 232.9546778 | BL65: 584.1484875 | BM65: 117413.846 | BN65: 0 | BO65: 0 | BP65: 0 | BQ65: 0 | BR65: 0 | BS65: 0 | BT65: 0 | BU65: 0 | BV65: 0 | BW65: 0 | BX65: 0 | BY65: 0 | BZ65: 0 | CA65: 0 | CB65: 0 | CC65: 0 | CD65: 0 | CE65: 0 | CF65: 0 | CG65: 0 | CH65: 0 | CI65: 0 | CJ65: 0 | CK65: 0 | CL65: 117413.846 | CU65: 63 | CV65: 0.02 | CW65: 0.02630599682
W66: 65 | X66: 6 | Y66: 0 | Z66: =IF($B$29=1,1,FundingFactor(W66,FEL_period,Entage,1,kktg+aktg,10)) -> 0.657194054 | AA66: 1025864.017 | AB66: =+IF(W66<=FEL_build*12,Y66,0) -> 0 | AC66: =IF($B$29=1,0,IF(X66<=FEL_period,(AA66+AB66)*kktg/12,0)) -> 5980.787221 | AD66: =+(AA66+AB66)*aktg/12 -> 1538.796026 | AE66: 1018344.434 | AF66: 1258108.635 | AG66: 0 | AH66: =+(AF66+AG66)*aktg/12 -> 1887.162953 | AI66: 1256221.472 | AJ66: =+fixktg-AK66 -> 268.6256128 | AK66: =+IF(share_mode=1,AI66/(AI66+AE66),MIN(AI66/fixktg,1))*fixktg -> 331.3743872 | AL66: 1018075.809 | AM66: 1255890.098 | AN66: =MAX((hal_bo-AL66*Z66-AM66),0) -> 0 | AO66: =+AN66*VLOOKUP(Entage+X66-1,$CU$2:$CV$102,2,FALSE)/12*(1+$DQ$10) -> 0 | AP66: =+rokk_bo*rokk_dij/12 -> 160 | AQ66: 0 | AR66: =+IF(share_mode2=1,AM66/(AM66+AL66),MIN(AM66/(AO66+AP66),1))*AO66 +IF(share_mode3=1,AM66/(AM66+AL66),MIN(AM66/(AO66+AP66),1))*AP66 -> 160 | AS66: 1018075.809 | AT66: =+AS66*hozam/12 -> 5090.379043 | AU66: 1023166.188 | AV66: 1255730.098 | AW66: =+AV66*hozam/12 -> 6278.65049 | AX66: 1262008.749 | AY66: 0 | AZ66: =+(AY66)*eaktg/12 -> 0 | BA66: =+(AY66-AZ66)*hozam2/12 -> 0 | BB66: =+IF(W66=120,Prem,0) +IF(W66=180,Prem*0.5,0) +IF(W66=240,Prem*0.5,0) -> 0 | BC66: =+AY66-AZ66+BA66+BB66 -> 0 | BD66: 343365.2217 | BE66: =MIN(IF(AND(W66>12,MOD(W66,12)=7),1,0)*Prem*20%,130000) -> 0 | BF66: =+(BD66+BE66)*hozam2/12 -> 858.4130542 | BG66: 344223.6348 | BH66: 0 | BI66: 117413.846 | BJ66: 0 | BK66: =+(BI66-BJ66)*eaktg/12 -> 233.6535535 | BL66: =+(BI66-BK66)*hozam/12 -> 585.9009621 | BM66: 117766.0934 | BN66: 0 | BO66: 0 | BP66: 0 | BQ66: =+(BO66-BP66)*eaktg/12 -> 0 | BR66: =+(BO66-BQ66)*hozam/12 -> 0 | BS66: 0 | BT66: 0 | BU66: 0 | BV66: 0 | BW66: =+(BU66-BV66)*eaktg/12 -> 0 | BX66: =+(BU66-BW66)*hozam/12 -> 0 | BY66: 0 | BZ66: 0 | CA66: 0 | CB66: 0 | CC66: =+(CA66-CB66)*eaktg/12 -> 0 | CD66: =+(CA66-CC66)*hozam/12 -> 0 | CE66: 0 | CF66: 0 | CG66: 0 | CH66: 0 | CI66: =+(CG66-CH66)*eaktg/12 -> 0 | CJ66: =+(CG66-CI66)*hozam/12 -> 0 | CK66: 0 | CL66: 117766.0934 | CU66: 64 | CV66: 0.02 | CW66: 0.02811713037
W67: 66 | X67: =+ROUNDDOWN((W67-1)/12,0)+1 -> 6 | Y67: =+IF(MOD((W67-1),(12/PremFreq))=0,Prem/PremFreq,0) -> 0 | Z67: =IF($B$29=1,1,FundingFactor(W67,FEL_period,Entage,1,kktg+aktg,10)) -> 0.6620845377 | AA67: 1023166.188 | AB67: 0 | AC67: 5965.058874 | AD67: 1534.749281 | AE67: 1015666.379 | AF67: 1262008.749 | AG67: 0 | AH67: 1893.013123 | AI67: 1260115.735 | AJ67: 267.7759983 | AK67: 332.2240017 | AL67: 1015398.603 | AM67: 1259783.511 | AN67: 0 | AO67: 0 | AP67: 160 | AQ67: 0 | AR67: 160 | AS67: 1015398.603 | AT67: 5076.993017 | AU67: 1020475.596 | AV67: 1259623.511 | AW67: 6298.117557 | AX67: 1265921.629 | AY67: 0 | AZ67: 0 | BA67: 0 | BB67: 0 | BC67: 0 | BD67: 344223.6348 | BE67: 0 | BF67: 860.5590869 | BG67: =+BD67+BE67+BF67 -> 345084.1938 | BH67: =IF($W67=$DC$19,$DD$19,0) -> 0 | BI67: 117766.0934 | BJ67: =BH67*$DQ$14 -> 0 | BK67: 234.3545258 | BL67: 587.6586943 | BM67: =BI67-BJ67-BK67+BL67 -> 118119.3976 | BN67: =IF($W67=$DC$20,$DD$20,0) -> 0 | BO67: 0 | BP67: =BN67*$DQ$14 -> 0 | BQ67: 0 | BR67: 0 | BS67: =BO67-BP67-BQ67+BR67 -> 0 | BT67: =IF($W67=$DC$21,$DD$21,0) -> 0 | BU67: 0 | BV67: =BT67*$DQ$14 -> 0 | BW67: 0 | BX67: 0 | BY67: =BU67-BV67-BW67+BX67 -> 0 | BZ67: =IF($W67=$DC$22,$DD$22,0) -> 0 | CA67: 0 | CB67: =BZ67*$DQ$14 -> 0 | CC67: 0 | CD67: 0 | CE67: =CA67-CB67-CC67+CD67 -> 0 | CF67: =IF($W67=$DC$23,$DD$23,0) -> 0 | CG67: 0 | CH67: =CF67*$DQ$14 -> 0 | CI67: 0 | CJ67: 0 | CK67: =CG67-CH67-CI67+CJ67 -> 0 | CL67: =BM67+BS67+BY67+CE67+CK67 -> 118119.3976 | CU67: 65 | CV67: 0.02 | CW67: 0.03023273125
W68: 67 | X68: 6 | Y68: 0 | Z68: =IF($B$29=1,1,FundingFactor(W68,FEL_period,Entage,1,kktg+aktg,10)) -> 0.6669750213 | AA68: =+AU67 -> 1020475.596 | AB68: 0 | AC68: 5949.372727 | AD68: 1530.713395 | AE68: =+AA68+AB68-AC68-AD68 -> 1012995.51 | AF68: =+AX67 -> 1265921.629 | AG68: =+Y68-AB68 -> 0 | AH68: 1898.882443 | AI68: =+AF68+AG68-AH68 -> 1264022.747 | AJ68: 266.926848 | AK68: 333.073152 | AL68: =+AE68-AJ68 -> 1012728.583 | AM68: =+AI68-AK68 -> 1263689.673 | AN68: 0 | AO68: 0 | AP68: 160 | AQ68: =+(AO68+AP68)-AR68 -> 0 | AR68: 160 | AS68: =+AL68-AQ68 -> 1012728.583 | AT68: 5063.642917 | AU68: =+AS68+AT68 -> 1017792.226 | AV68: =+AM68-AR68 -> 1263529.673 | AW68: 6317.648367 | AX68: =+AV68+AW68 -> 1269847.322 | AY68: =+BC67 -> 0 | AZ68: 0 | BA68: 0 | BB68: 0 | BC68: 0 | BD68: =+BG67 -> 345084.1938 | BE68: 80000 | BF68: 1062.710485 | BG68: 426146.9043 | BH68: 0 | BI68: =BH68+BM67 -> 118119.3976 | BJ68: 0 | BK68: 235.0576011 | BL68: 589.4216998 | BM68: 118473.7617 | BN68: 0 | BO68: =BN68+BS67 -> 0 | BP68: 0 | BQ68: 0 | BR68: 0 | BS68: 0 | BT68: 0 | BU68: =BT68+BY67 -> 0 | BV68: 0 | BW68: 0 | BX68: 0 | BY68: 0 | BZ68: 0 | CA68: =BZ68+CE67 -> 0 | CB68: 0 | CC68: 0 | CD68: 0 | CE68: 0 | CF68: 0 | CG68: =CF68+CK67 -> 0 | CH68: 0 | CI68: 0 | CJ68: 0 | CK68: 0 | CL68: 118473.7617 | CU68: 66 | CV68: 0.02 | CW68: 0.03257920958
W69: 68 | X69: 6 | Y69: 0 | Z69: =IF($B$29=1,1,FundingFactor(W69,FEL_period,Entage,1,kktg+aktg,10)) -> 0.671865505 | AA69: 1017792.226 | AB69: 0 | AC69: 5933.72868 | AD69: 1526.68834 | AE69: 1010331.809 | AF69: 1269847.322 | AG69: 0 | AH69: 1904.770983 | AI69: 1267942.551 | AJ69: 266.0781758 | AK69: 333.9218242 | AL69: 1010065.731 | AM69: 1267608.629 | AN69: 0 | AO69: 0 | AP69: 160 | AQ69: 0 | AR69: 160 | AS69: 1010065.731 | AT69: 5050.328656 | AU69: 1015116.06 | AV69: 1267448.629 | AW69: 6337.243145 | AX69: 1273785.872 | AY69: 0 | AZ69: 0 | BA69: 0 | BB69: 0 | BC69: 0 | BD69: 426146.9043 | BE69: 0 | BF69: 1065.367261 | BG69: 427212.2716 | BH69: 0 | BI69: 118473.7617 | BJ69: 0 | BK69: 235.7627857 | BL69: 591.1899944 | BM69: 118829.1889 | BN69: 0 | BO69: 0 | BP69: 0 | BQ69: 0 | BR69: 0 | BS69: 0 | BT69: 0 | BU69: 0 | BV69: 0 | BW69: 0 | BX69: 0 | BY69: 0 | BZ69: 0 | CA69: 0 | CB69: 0 | CC69: 0 | CD69: 0 | CE69: 0 | CF69: 0 | CG69: 0 | CH69: 0 | CI69: 0 | CJ69: 0 | CK69: 0 | CL69: 118829.1889 | CU69: 67 | CV69: 0.02 | CW69: 0.03512081416
W70: 69 | X70: 6 | Y70: 0 | Z70: =IF($B$29=1,1,FundingFactor(W70,FEL_period,Entage,1,kktg+aktg,10)) -> 0.6767559887 | AA70: 1015116.06 | AB70: 0 | AC70: 5918.126629 | AD70: 1522.67409 | AE70: 1007675.259 | AF70: 1273785.872 | AG70: 0 | AH70: 1910.678808 | AI70: 1271875.193 | AJ70: 265.2299952 | AK70: 334.7700048 | AL70: 1007410.029 | AM70: 1271540.423 | AN70: 0 | AO70: 0 | AP70: 160 | AQ70: 0 | AR70: 160 | AS70: 1007410.029 | AT70: 5037.050146 | AU70: 1012447.079 | AV70: 1271380.423 | AW70: 6356.902116 | AX70: 1277737.325 | AY70: 0 | AZ70: 0 | BA70: 0 | BB70: 0 | BC70: 0 | BD70: 427212.2716 | BE70: 0 | BF70: 1068.030679 | BG70: 428280.3023 | BH70: 0 | BI70: 118829.1889 | BJ70: 0 | BK70: 236.4700858 | BL70: 592.9635939 | BM70: 119185.6824 | BN70: 0 | BO70: 0 | BP70: 0 | BQ70: 0 | BR70: 0 | BS70: 0 | BT70: 0 | BU70: 0 | BV70: 0 | BW70: 0 | BX70: 0 | BY70: 0 | BZ70: 0 | CA70: 0 | CB70: 0 | CC70: 0 | CD70: 0 | CE70: 0 | CF70: 0 | CG70: 0 | CH70: 0 | CI70: 0 | CJ70: 0 | CK70: 0 | CL70: 119185.6824 | CU70: 68 | CV70: 0.02 | CW70: 0.03791466495
W71: 70 | X71: 6 | Y71: 0 | Z71: =IF($B$29=1,1,FundingFactor(W71,FEL_period,Entage,1,kktg+aktg,10)) -> 0.6816464723 | AA71: 1012447.079 | AB71: 0 | AC71: 5902.566472 | AD71: 1518.670619 | AE71: 1005025.842 | AF71: 1277737.325 | AG71: 0 | AH71: 1916.605988 | AI71: 1275820.719 | AJ71: 264.3823199 | AK71: 335.6176801 | AL71: 1004761.46 | AM71: 1275485.102 | AN71: 0 | AO71: 0 | AP71: 160 | AQ71: 0 | AR71: 160 | AS71: 1004761.46 | AT71: 5023.807299 | AU71: 1009785.267 | AV71: 1275325.102 | AW71: 6376.625508 | AX71: 1281701.727 | AY71: 0 | AZ71: 0 | BA71: 0 | BB71: 0 | BC71: 0 | BD71: 428280.3023 | BE71: 0 | BF71: 1070.700756 | BG71: 429351.003 | BH71: 0 | BI71: 119185.6824 | BJ71: 0 | BK71: 237.1795079 | BL71: 594.7425143 | BM71: 119543.2454 | BN71: 0 | BO71: 0 | BP71: 0 | BQ71: 0 | BR71: 0 | BS71: 0 | BT71: 0 | BU71: 0 | BV71: 0 | BW71: 0 | BX71: 0 | BY71: 0 | BZ71: 0 | CA71: 0 | CB71: 0 | CC71: 0 | CD71: 0 | CE71: 0 | CF71: 0 | CG71: 0 | CH71: 0 | CI71: 0 | CJ71: 0 | CK71: 0 | CL71: 119543.2454 | CU71: 69 | CV71: 0.02 | CW71: 0.04101806338
W72: 71 | X72: 6 | Y72: 0 | Z72: =IF($B$29=1,1,FundingFactor(W72,FEL_period,Entage,1,kktg+aktg,10)) -> 0.686536956 | AA72: 1009785.267 | AB72: 0 | AC72: 5887.048108 | AD72: 1514.677901 | AE72: 1002383.541 | AF72: 1281701.727 | AG72: 0 | AH72: 1922.552591 | AI72: 1279779.175 | AJ72: 263.5351636 | AK72: 336.4648364 | AL72: 1002120.006 | AM72: 1279442.71 | AN72: 0 | AO72: 0 | AP72: 160 | AQ72: 0 | AR72: 160 | AS72: 1002120.006 | AT72: 5010.60003 | AU72: 1007130.606 | AV72: 1279282.71 | AW72: 6396.413549 | AX72: 1285679.123 | AY72: 0 | AZ72: 0 | BA72: 0 | BB72: 0 | BC72: 0 | BD72: 429351.003 | BE72: 0 | BF72: 1073.377508 | BG72: 430424.3805 | BH72: 0 | BI72: 119543.2454 | BJ72: 0 | BK72: 237.8910583 | BL72: 596.5267716 | BM72: 119901.8811 | BN72: 0 | BO72: 0 | BP72: 0 | BQ72: 0 | BR72: 0 | BS72: 0 | BT72: 0 | BU72: 0 | BV72: 0 | BW72: 0 | BX72: 0 | BY72: 0 | BZ72: 0 | CA72: 0 | CB72: 0 | CC72: 0 | CD72: 0 | CE72: 0 | CF72: 0 | CG72: 0 | CH72: 0 | CI72: 0 | CJ72: 0 | CK72: 0 | CL72: 119901.8811 | CU72: 70 | CV72: 0.02 | CW72: 0.04444523083
W73: 72 | X73: 6 | Y73: 0 | Z73: =IF($B$29=1,1,FundingFactor(W73,FEL_period,Entage,1,kktg+aktg,10)) -> 0.6914274396 | AA73: 1007130.606 | AB73: 0 | AC73: 5871.571433 | AD73: 1510.695909 | AE73: 999748.3387 | AF73: 1285679.123 | AG73: 0 | AH73: 1928.518685 | AI73: 1283750.605 | AJ73: 262.6885399 | AK73: 337.3114601 | AL73: 999485.6501 | AM73: 1283413.293 | AN73: 0 | AO73: 0 | AP73: 160 | AQ73: 0 | AR73: 160 | AS73: 999485.6501 | AT73: 4997.428251 | AU73: 1004483.078 | AV73: 1283253.293 | AW73: 6416.266466 | AX73: 1289669.56 | AY73: 0 | AZ73: 0 | BA73: 0 | BB73: 0 | BC73: 0 | BD73: 430424.3805 | BE73: 0 | BF73: 1076.060951 | BG73: 431500.4415 | BH73: 0 | BI73: 119901.8811 | BJ73: 0 | BK73: 238.6047434 | BL73: 598.3163818 | BM73: 120261.5927 | BN73: 0 | BO73: 0 | BP73: 0 | BQ73: 0 | BR73: 0 | BS73: 0 | BT73: 0 | BU73: 0 | BV73: 0 | BW73: 0 | BX73: 0 | BY73: 0 | BZ73: 0 | CA73: 0 | CB73: 0 | CC73: 0 | CD73: 0 | CE73: 0 | CF73: 0 | CG73: 0 | CH73: 0 | CI73: 0 | CJ73: 0 | CK73: 0 | CL73: 120261.5927 | CU73: 71 | CV73: 0.02 | CW73: 0.04824399089
W74: 73 | X74: 7 | Y74: 400000 | Z74: =IF($B$29=1,1,FundingFactor(W74,FEL_period,Entage,1,kktg+aktg,10)) -> 0.6963179233 | AA74: 1004483.078 | AB74: 0 | AC74: 5856.136347 | AD74: 1506.724618 | AE74: 997120.2174 | AF74: 1289669.56 | AG74: 400000 | AH74: 2534.504339 | AI74: 1687135.055 | AJ74: 222.8819802 | AK74: 377.1180198 | AL74: 996897.3354 | AM74: 1686757.937 | AN74: 0 | AO74: 0 | AP74: 160 | AQ74: 0 | AR74: 160 | AS74: 996897.3354 | AT74: 4984.486677 | AU74: 1001881.822 | AV74: 1686597.937 | AW74: 8432.989686 | AX74: 1695030.927 | AY74: 0 | AZ74: 0 | BA74: 0 | BB74: 0 | BC74: 0 | BD74: 431500.4415 | BE74: 0 | BF74: 1078.751104 | BG74: 432579.1926 | BH74: 0 | BI74: 120261.5927 | BJ74: 0 | BK74: 239.3205695 | BL74: 600.1113608 | BM74: 120622.3835 | BN74: 0 | BO74: 0 | BP74: 0 | BQ74: 0 | BR74: 0 | BS74: 0 | BT74: 0 | BU74: 0 | BV74: 0 | BW74: 0 | BX74: 0 | BY74: 0 | BZ74: 0 | CA74: 0 | CB74: 0 | CC74: 0 | CD74: 0 | CE74: 0 | CF74: 0 | CG74: 0 | CH74: 0 | CI74: 0 | CJ74: 0 | CK74: 0 | CL74: 120622.3835 | CU74: 72 | CV74: 0.02 | CW74: 0.05232705923
W75: 74 | X75: 7 | Y75: 0 | Z75: =IF($B$29=1,1,FundingFactor(W75,FEL_period,Entage,1,kktg+aktg,10)) -> 0.7017169828 | AA75: 1001881.822 | AB75: 0 | AC75: 5840.971023 | AD75: 1502.822733 | AE75: 994538.0284 | AF75: 1695030.927 | AG75: 0 | AH75: 2542.54639 | AI75: 1692488.381 | AJ75: 222.0755312 | AK75: 377.9244688 | AL75: 994315.9528 | AM75: 1692110.456 | AN75: 0 | AO75: 0 | AP75: 160 | AQ75: 0 | AR75: 160 | AS75: 994315.9528 | AT75: 4971.579764 | AU75: 999287.5326 | AV75: 1691950.456 | AW75: 8459.752281 | AX75: 1700410.208 | AY75: 0 | AZ75: 0 | BA75: 0 | BB75: 0 | BC75: 0 | BD75: 432579.1926 | BE75: 0 | BF75: 1081.447981 | BG75: 433660.6406 | BH75: 0 | BI75: 120622.3835 | BJ75: 0 | BK75: 240.0385432 | BL75: 601.9117249 | BM75: 120984.2567 | BN75: 0 | BO75: 0 | BP75: 0 | BQ75: 0 | BR75: 0 | BS75: 0 | BT75: 0 | BU75: 0 | BV75: 0 | BW75: 0 | BX75: 0 | BY75: 0 | BZ75: 0 | CA75: 0 | CB75: 0 | CC75: 0 | CD75: 0 | CE75: 0 | CF75: 0 | CG75: 0 | CH75: 0 | CI75: 0 | CJ75: 0 | CK75: 0 | CL75: 120984.2567 | CU75: 73 | CV75: 0.02 | CW75: 0.0567465738
W76: 75 | X76: 7 | Y76: 0 | Z76: =IF($B$29=1,1,FundingFactor(W76,FEL_period,Entage,1,kktg+aktg,10)) -> 0.7071160423 | AA76: 999287.5326 | AB76: 0 | AC76: 5825.846315 | AD76: 1498.931299 | AE76: 991962.755 | AF76: 1700410.208 | AG76: 0 | AH76: 2550.615313 | AI76: 1697859.593 | AJ76: 221.2702461 | AK76: 378.7297539 | AL76: 991741.4847 | AM76: 1697480.863 | AN76: 0 | AO76: 0 | AP76: 160 | AQ76: 0 | AR76: 160 | AS76: 991741.4847 | AT76: 4958.707424 | AU76: 996700.1922 | AV76: 1697320.863 | AW76: 8486.604317 | AX76: 1705807.468 | AY76: 0 | AZ76: 0 | BA76: 0 | BB76: 0 | BC76: 0 | BD76: 433660.6406 | BE76: 0 | BF76: 1084.151601 | BG76: 434744.7922 | BH76: 0 | BI76: 120984.2567 | BJ76: 0 | BK76: 240.7586708 | BL76: 603.7174902 | BM76: 121347.2155 | BN76: 0 | BO76: 0 | BP76: 0 | BQ76: 0 | BR76: 0 | BS76: 0 | BT76: 0 | BU76: 0 | BV76: 0 | BW76: 0 | BX76: 0 | BY76: 0 | BZ76: 0 | CA76: 0 | CB76: 0 | CC76: 0 | CD76: 0 | CE76: 0 | CF76: 0 | CG76: 0 | CH76: 0 | CI76: 0 | CJ76: 0 | CK76: 0 | CL76: 121347.2155 | CU76: 74 | CV76: 0.02 | CW76: 0.0614847793
W77: 76 | X77: 7 | Y77: 0 | Z77: =IF($B$29=1,1,FundingFactor(W77,FEL_period,Entage,1,kktg+aktg,10)) -> 0.7125151018 | AA77: 996700.1922 | AB77: 0 | AC77: 5810.76212 | AD77: 1495.050288 | AE77: 989394.3798 | AF77: 1705807.468 | AG77: 0 | AH77: 2558.711201 | AI77: 1703248.756 | AJ77: 220.466136 | AK77: 379.533864 | AL77: 989173.9136 | AM77: 1702869.223 | AN77: 0 | AO77: 0 | AP77: 160 | AQ77: 0 | AR77: 160 | AS77: 989173.9136 | AT77: 4945.869568 | AU77: 994119.7832 | AV77: 1702709.223 | AW77: 8513.546113 | AX77: 1711222.769 | AY77: 0 | AZ77: 0 | BA77: 0 | BB77: 0 | BC77: 0 | BD77: 434744.7922 | BE77: 0 | BF77: 1086.86198 | BG77: 435831.6541 | BH77: 0 | BI77: 121347.2155 | BJ77: 0 | BK77: 241.4809589 | BL77: 605.5286728 | BM77: 121711.2632 | BN77: 0 | BO77: 0 | BP77: 0 | BQ77: 0 | BR77: 0 | BS77: 0 | BT77: 0 | BU77: 0 | BV77: 0 | BW77: 0 | BX77: 0 | BY77: 0 | BZ77: 0 | CA77: 0 | CB77: 0 | CC77: 0 | CD77: 0 | CE77: 0 | CF77: 0 | CG77: 0 | CH77: 0 | CI77: 0 | CJ77: 0 | CK77: 0 | CL77: 121711.2632 | CU77: 75 | CV77: 0.02 | CW77: 0.06661666464
W78: 77 | X78: 7 | Y78: 0 | Z78: =IF($B$29=1,1,FundingFactor(W78,FEL_period,Entage,1,kktg+aktg,10)) -> 0.7179141613 | AA78: 994119.7832 | AB78: 0 | AC78: 5795.718336 | AD78: 1491.179675 | AE78: 986832.8852 | AF78: 1711222.769 | AG78: 0 | AH78: 2566.834153 | AI78: 1708655.935 | AJ78: 219.6632116 | AK78: 380.3367884 | AL78: 986613.222 | AM78: 1708275.598 | AN78: 0 | AO78: 0 | AP78: 160 | AQ78: 0 | AR78: 160 | AS78: 986613.222 | AT78: 4933.06611 | AU78: 991546.2881 | AV78: 1708115.598 | AW78: 8540.577989 | AX78: 1716656.176 | AY78: 0 | AZ78: 0 | BA78: 0 | BB78: 0 | BC78: 0 | BD78: 435831.6541 | BE78: 0 | BF78: 1089.579135 | BG78: 436921.2333 | BH78: 0 | BI78: 121711.2632 | BJ78: 0 | BK78: 242.2054138 | BL78: 607.3452891 | BM78: 122076.4031 | BN78: 0 | BO78: 0 | BP78: 0 | BQ78: 0 | BR78: 0 | BS78: 0 | BT78: 0 | BU78: 0 | BV78: 0 | BW78: 0 | BX78: 0 | BY78: 0 | BZ78: 0 | CA78: 0 | CB78: 0 | CC78: 0 | CD78: 0 | CE78: 0 | CF78: 0 | CG78: 0 | CH78: 0 | CI78: 0 | CJ78: 0 | CK78: 0 | CL78: 122076.4031 | CU78: 76 | CV78: 0.02 | CW78: 0.07228795401
W79: 78 | X79: 7 | Y79: 0 | Z79: =IF($B$29=1,1,FundingFactor(W79,FEL_period,Entage,1,kktg+aktg,10)) -> 0.7233132208 | AA79: 991546.2881 | AB79: 0 | AC79: 5780.714859 | AD79: 1487.319432 | AE79: 984278.2538 | AF79: 1716656.176 | AG79: 0 | AH79: 2574.984264 | AI79: 1714081.191 | AJ79: 218.8614839 | AK79: 381.1385161 | AL79: 984059.3923 | AM79: 1713700.053 | AN79: 0 | AO79: 0 | AP79: 160 | AQ79: 0 | AR79: 160 | AS79: 984059.3923 | AT79: 4920.296961 | AU79: 988979.6893 | AV79: 1713540.053 | AW79: 8567.700265 | AX79: 1722107.753 | AY79: 0 | AZ79: 0 | BA79: 0 | BB79: 0 | BC79: 0 | BD79: 436921.2333 | BE79: 0 | BF79: 1092.303083 | BG79: 438013.5364 | BH79: 0 | BI79: 122076.4031 | BJ79: 0 | BK79: 242.9320422 | BL79: 609.1673554 | BM79: 122442.6384 | BN79: 0 | BO79: 0 | BP79: 0 | BQ79: 0 | BR79: 0 | BS79: 0 | BT79: 0 | BU79: 0 | BV79: 0 | BW79: 0 | BX79: 0 | BY79: 0 | BZ79: 0 | CA79: 0 | CB79: 0 | CC79: 0 | CD79: 0 | CE79: 0 | CF79: 0 | CG79: 0 | CH79: 0 | CI79: 0 | CJ79: 0 | CK79: 0 | CL79: 122442.6384 | CU79: 77 | CV79: 0.02 | CW79: 0.07721439513
W80: 79 | X80: 7 | Y80: 0 | Z80: =IF($B$29=1,1,FundingFactor(W80,FEL_period,Entage,1,kktg+aktg,10)) -> 0.7287122803 | AA80: 988979.6893 | AB80: 0 | AC80: 5765.751588 | AD80: 1483.469534 | AE80: 981730.4681 | AF80: 1722107.753 | AG80: 0 | AH80: 2583.16163 | AI80: 1719524.592 | AJ80: 218.0609635 | AK80: 381.9390365 | AL80: 981512.4072 | AM80: 1719142.653 | AN80: 0 | AO80: 0 | AP80: 160 | AQ80: 0 | AR80: 160 | AS80: 981512.4072 | AT80: 4907.562036 | AU80: 986419.9692 | AV80: 1718982.653 | AW80: 8594.913263 | AX80: 1727577.566 | AY80: 0 | AZ80: 0 | BA80: 0 | BB80: 0 | BC80: 0 | BD80: 438013.5364 | BE80: 80000 | BF80: 1295.033841 | BG80: 519308.5702 | BH80: 0 | BI80: 122442.6384 | BJ80: 0 | BK80: 243.6608505 | BL80: 610.9948879 | BM80: 122809.9725 | BN80: 0 | BO80: 0 | BP80: 0 | BQ80: 0 | BR80: 0 | BS80: 0 | BT80: 0 | BU80: 0 | BV80: 0 | BW80: 0 | BX80: 0 | BY80: 0 | BZ80: 0 | CA80: 0 | CB80: 0 | CC80: 0 | CD80: 0 | CE80: 0 | CF80: 0 | CG80: 0 | CH80: 0 | CI80: 0 | CJ80: 0 | CK80: 0 | CL80: 122809.9725 | CU80: 78 | CV80: 0.02 | CW80: 0.08294318272
W81: 80 | X81: 7 | Y81: 0 | Z81: =IF($B$29=1,1,FundingFactor(W81,FEL_period,Entage,1,kktg+aktg,10)) -> 0.7341113397 | AA81: 986419.9692 | AB81: 0 | AC81: 5750.82842 | AD81: 1479.629954 | AE81: 979189.5108 | AF81: 1727577.566 | AG81: 0 | AH81: 2591.366349 | AI81: 1724986.199 | AJ81: 217.261661 | AK81: 382.738339 | AL81: 978972.2492 | AM81: 1724603.461 | AN81: 0 | AO81: 0 | AP81: 160 | AQ81: 0 | AR81: 160 | AS81: 978972.2492 | AT81: 4894.861246 | AU81: 983867.1104 | AV81: 1724443.461 | AW81: 8622.217306 | AX81: 1733065.678 | AY81: 0 | AZ81: 0 | BA81: 0 | BB81: 0 | BC81: 0 | BD81: 519308.5702 | BE81: 0 | BF81: 1298.271426 | BG81: 520606.8416 | BH81: 0 | BI81: 122809.9725 | BJ81: 0 | BK81: 244.3918452 | BL81: 612.8279031 | BM81: 123178.4085 | BN81: 0 | BO81: 0 | BP81: 0 | BQ81: 0 | BR81: 0 | BS81: 0 | BT81: 0 | BU81: 0 | BV81: 0 | BW81: 0 | BX81: 0 | BY81: 0 | BZ81: 0 | CA81: 0 | CB81: 0 | CC81: 0 | CD81: 0 | CE81: 0 | CF81: 0 | CG81: 0 | CH81: 0 | CI81: 0 | CJ81: 0 | CK81: 0 | CL81: 123178.4085 | CU81: 79 | CV81: 0.02 | CW81: 0.08953133181
W82: 81 | X82: 7 | Y82: 0 | Z82: =IF($B$29=1,1,FundingFactor(W82,FEL_period,Entage,1,kktg+aktg,10)) -> 0.7395103992 | AA82: 983867.1104 | AB82: 0 | AC82: 5735.945254 | AD82: 1475.800666 | AE82: 976655.3645 | AF82: 1733065.678 | AG82: 0 | AH82: 2599.598518 | AI82: 1730466.08 | AJ82: 216.4635871 | AK82: 383.5364129 | AL82: 976438.9009 | AM82: 1730082.544 | AN82: 0 | AO82: 0 | AP82: 160 | AQ82: 0 | AR82: 160 | AS82: 976438.9009 | AT82: 4882.194505 | AU82: 981321.0954 | AV82: 1729922.544 | AW82: 8649.612718 | AX82: 1738572.156 | AY82: 0 | AZ82: 0 | BA82: 0 | BB82: 0 | BC82: 0 | BD82: 520606.8416 | BE82: 0 | BF82: 1301.517104 | BG82: 521908.3587 | BH82: 0 | BI82: 123178.4085 | BJ82: 0 | BK82: 245.125033 | BL82: 614.6664175 | BM82: 123547.9499 | BN82: 0 | BO82: 0 | BP82: 0 | BQ82: 0 | BR82: 0 | BS82: 0 | BT82: 0 | BU82: 0 | BV82: 0 | BW82: 0 | BX82: 0 | BY82: 0 | BZ82: 0 | CA82: 0 | CB82: 0 | CC82: 0 | CD82: 0 | CE82: 0 | CF82: 0 | CG82: 0 | CH82: 0 | CI82: 0 | CJ82: 0 | CK82: 0 | CL82: 123547.9499 | CU82: 80 | CV82: 0.02 | CW82: 0.09711089289
W83: 82 | X83: 7 | Y83: 0 | Z83: =IF($B$29=1,1,FundingFactor(W83,FEL_period,Entage,1,kktg+aktg,10)) -> 0.7449094587 | AA83: 981321.0954 | AB83: 0 | AC83: 5721.101986 | AD83: 1471.981643 | AE83: 974128.0118 | AF83: 1738572.156 | AG83: 0 | AH83: 2607.858234 | AI83: 1735964.298 | AJ83: 215.6667524 | AK83: 384.3332476 | AL83: 973912.345 | AM83: 1735579.965 | AN83: 0 | AO83: 0 | AP83: 160 | AQ83: 0 | AR83: 160 | AS83: 973912.345 | AT83: 4869.561725 | AU83: 978781.9068 | AV83: 1735419.965 | AW83: 8677.099824 | AX83: 1744097.065 | AY83: 0 | AZ83: 0 | BA83: 0 | BB83: 0 | BC83: 0 | BD83: 521908.3587 | BE83: 0 | BF83: 1304.770897 | BG83: 523213.1296 | BH83: 0 | BI83: 123547.9499 | BJ83: 0 | BK83: 245.8604203 | BL83: 616.5104474 | BM83: 123918.5999 | BN83: 0 | BO83: 0 | BP83: 0 | BQ83: 0 | BR83: 0 | BS83: 0 | BT83: 0 | BU83: 0 | BV83: 0 | BW83: 0 | BX83: 0 | BY83: 0 | BZ83: 0 | CA83: 0 | CB83: 0 | CC83: 0 | CD83: 0 | CE83: 0 | CF83: 0 | CG83: 0 | CH83: 0 | CI83: 0 | CJ83: 0 | CK83: 0 | CL83: 123918.5999 | CU83: 81 | CV83: 0.02 | CW83: 0.1057999362
W84: 83 | X84: 7 | Y84: 0 | Z84: =IF($B$29=1,1,FundingFactor(W84,FEL_period,Entage,1,kktg+aktg,10)) -> 0.7503085182 | AA84: 978781.9068 | AB84: 0 | AC84: 5706.298516 | AD84: 1468.17286 | AE84: 971607.4354 | AF84: 1744097.065 | AG84: 0 | AH84: 2616.145597 | AI84: 1741480.919 | AJ84: 214.8711671 | AK84: 385.1288329 | AL84: 971392.5642 | AM84: 1741095.79 | AN84: 0 | AO84: 0 | AP84: 160 | AQ84: 0 | AR84: 160 | AS84: 971392.5642 | AT84: 4856.962821 | AU84: 976249.527 | AV84: 1740935.79 | AW84: 8704.678951 | AX84: 1749640.469 | AY84: 0 | AZ84: 0 | BA84: 0 | BB84: 0 | BC84: 0 | BD84: 523213.1296 | BE84: 0 | BF84: 1308.032824 | BG84: 524521.1625 | BH84: 0 | BI84: 123918.5999 | BJ84: 0 | BK84: 246.5980139 | BL84: 618.3600096 | BM84: 124290.3619 | BN84: 0 | BO84: 0 | BP84: 0 | BQ84: 0 | BR84: 0 | BS84: 0 | BT84: 0 | BU84: 0 | BV84: 0 | BW84: 0 | BX84: 0 | BY84: 0 | BZ84: 0 | CA84: 0 | CB84: 0 | CC84: 0 | CD84: 0 | CE84: 0 | CF84: 0 | CG84: 0 | CH84: 0 | CI84: 0 | CJ84: 0 | CK84: 0 | CL84: 124290.3619 | CU84: 82 | CV84: 0.02 | CW84: 0.1158633969
W85: 84 | X85: 7 | Y85: 0 | Z85: =IF($B$29=1,1,FundingFactor(W85,FEL_period,Entage,1,kktg+aktg,10)) -> 0.7557075777 | AA85: 976249.527 | AB85: 0 | AC85: 5691.534743 | AD85: 1464.374291 | AE85: 969093.618 | AF85: 1749640.469 | AG85: 0 | AH85: 2624.460704 | AI85: 1747016.008 | AJ85: 214.0768418 | AK85: 385.9231582 | AL85: 968879.5412 | AM85: 1746630.085 | AN85: 0 | AO85: 0 | AP85: 160 | AQ85: 0 | AR85: 160 | AS85: 968879.5412 | AT85: 4844.397706 | AU85: 973723.9389 | AV85: 1746470.085 | AW85: 8732.350426 | AX85: 1755202.436 | AY85: 0 | AZ85: 0 | BA85: 0 | BB85: 0 | BC85: 0 | BD85: 524521.1625 | BE85: 0 | BF85: 1311.302906 | BG85: 525832.4654 | BH85: 0 | BI85: 124290.3619 | BJ85: 0 | BK85: 247.3378202 | BL85: 620.2151206 | BM85: 124663.2392 | BN85: 0 | BO85: 0 | BP85: 0 | BQ85: 0 | BR85: 0 | BS85: 0 | BT85: 0 | BU85: 0 | BV85: 0 | BW85: 0 | BX85: 0 | BY85: 0 | BZ85: 0 | CA85: 0 | CB85: 0 | CC85: 0 | CD85: 0 | CE85: 0 | CF85: 0 | CG85: 0 | CH85: 0 | CI85: 0 | CJ85: 0 | CK85: 0 | CL85: 124663.2392 | CU85: 83 | CV85: 0.02 | CW85: 0.1273126432
W86: 85 | X86: 8 | Y86: 400000 | Z86: =IF($B$29=1,1,FundingFactor(W86,FEL_period,Entage,1,kktg+aktg,10)) -> 0.7611066372 | AA86: 973723.9389 | AB86: 0 | AC86: 5676.810564 | AD86: 1460.585908 | AE86: 966586.5424 | AF86: 1755202.436 | AG86: 400000 | AH86: 3232.803653 | AI86: 2151969.632 | AJ86: 185.9680868 | AK86: 414.0319132 | AL86: 966400.5743 | AM86: 2151555.6 | AN86: 0 | AO86: 0 | AP86: 160 | AQ86: 0 | AR86: 160 | AS86: 966400.5743 | AT86: 4832.002872 | AU86: 971232.5772 | AV86: 2151395.6 | AW86: 10756.978 | AX86: 2162152.578 | AY86: 0 | AZ86: 0 | BA86: 0 | BB86: 0 | BC86: 0 | BD86: 525832.4654 | BE86: 0 | BF86: 1314.581163 | BG86: 527147.0465 | BH86: 0 | BI86: 124663.2392 | BJ86: 0 | BK86: 248.0798461 | BL86: 622.0757969 | BM86: 125037.2352 | BN86: 0 | BO86: 0 | BP86: 0 | BQ86: 0 | BR86: 0 | BS86: 0 | BT86: 0 | BU86: 0 | BV86: 0 | BW86: 0 | BX86: 0 | BY86: 0 | BZ86: 0 | CA86: 0 | CB86: 0 | CC86: 0 | CD86: 0 | CE86: 0 | CF86: 0 | CG86: 0 | CH86: 0 | CI86: 0 | CJ86: 0 | CK86: 0 | CL86: 125037.2352 | CU86: 84 | CV86: 0.02 | CW86: 0.1404265818
W87: 86 | X87: 8 | Y87: 0 | Z87: =IF($B$29=1,1,FundingFactor(W87,FEL_period,Entage,1,kktg+aktg,10)) -> 0.7670755109 | AA87: 971232.5772 | AB87: 0 | AC87: 5662.285925 | AD87: 1456.848866 | AE87: 964113.4424 | AF87: 2162152.578 | AG87: 0 | AH87: 3243.228867 | AI87: 2158909.349 | AJ87: 185.2269753 | AK87: 414.7730247 | AL87: 963928.2154 | AM87: 2158494.576 | AN87: 0 | AO87: 0 | AP87: 160 | AQ87: 0 | AR87: 160 | AS87: 963928.2154 | AT87: 4819.641077 | AU87: 968747.8565 | AV87: 2158334.576 | AW87: 10791.67288 | AX87: 2169126.249 | AY87: 0 | AZ87: 0 | BA87: 0 | BB87: 0 | BC87: 0 | BD87: 527147.0465 | BE87: 0 | BF87: 1317.867616 | BG87: 528464.9141 | BH87: 0 | BI87: 125037.2352 | BJ87: 0 | BK87: 248.824098 | BL87: 623.9420554 | BM87: 125412.3531 | BN87: 0 | BO87: 0 | BP87: 0 | BQ87: 0 | BR87: 0 | BS87: 0 | BT87: 0 | BU87: 0 | BV87: 0 | BW87: 0 | BX87: 0 | BY87: 0 | BZ87: 0 | CA87: 0 | CB87: 0 | CC87: 0 | CD87: 0 | CE87: 0 | CF87: 0 | CG87: 0 | CH87: 0 | CI87: 0 | CJ87: 0 | CK87: 0 | CL87: 125412.3531 | CU87: 85 | CV87: 0.02 | CW87: 0.1554219956
W88: 87 | X88: 8 | Y88: 0 | Z88: =IF($B$29=1,1,FundingFactor(W88,FEL_period,Entage,1,kktg+aktg,10)) -> 0.7730443846 | AA88: 968747.8565 | AB88: 0 | AC88: 5647.800003 | AD88: 1453.121785 | AE88: 961646.9347 | AF88: 2169126.249 | AG88: 0 | AH88: 3253.689374 | AI88: 2165872.56 | AJ88: 184.4874706 | AK88: 415.5125294 | AL88: 961462.4472 | AM88: 2165457.047 | AN88: 0 | AO88: 0 | AP88: 160 | AQ88: 0 | AR88: 160 | AS88: 961462.4472 | AT88: 4807.312236 | AU88: 966269.7595 | AV88: 2165297.047 | AW88: 10826.48524 | AX88: 2176123.532 | AY88: 0 | AZ88: 0 | BA88: 0 | BB88: 0 | BC88: 0 | BD88: 528464.9141 | BE88: 0 | BF88: 1321.162285 | BG88: 529786.0764 | BH88: 0 | BI88: 125412.3531 | BJ88: 0 | BK88: 249.5705827 | BL88: 625.8139128 | BM88: 125788.5965 | BN88: 0 | BO88: 0 | BP88: 0 | BQ88: 0 | BR88: 0 | BS88: 0 | BT88: 0 | BU88: 0 | BV88: 0 | BW88: 0 | BX88: 0 | BY88: 0 | BZ88: 0 | CA88: 0 | CB88: 0 | CC88: 0 | CD88: 0 | CE88: 0 | CF88: 0 | CG88: 0 | CH88: 0 | CI88: 0 | CJ88: 0 | CK88: 0 | CL88: 125788.5965 | CU88: 86 | CV88: 0.02 | CW88: 0.1725269546
W89: 88 | X89: 8 | Y89: 0 | Z89: =IF($B$29=1,1,FundingFactor(W89,FEL_period,Entage,1,kktg+aktg,10)) -> 0.7790132584 | AA89: 966269.7595 | AB89: 0 | AC89: 5633.352698 | AD89: 1449.404639 | AE89: 959187.0021 | AF89: 2176123.532 | AG89: 0 | AH89: 3264.185299 | AI89: 2172859.347 | AJ89: 183.74958 | AK89: 416.25042 | AL89: 959003.2526 | AM89: 2172443.097 | AN89: 0 | AO89: 0 | AP89: 160 | AQ89: 0 | AR89: 160 | AS89: 959003.2526 | AT89: 4795.016263 | AU89: 963798.2688 | AV89: 2172283.097 | AW89: 10861.41548 | AX89: 2183144.512 | AY89: 0 | AZ89: 0 | BA89: 0 | BB89: 0 | BC89: 0 | BD89: 529786.0764 | BE89: 0 | BF89: 1324.465191 | BG89: 531110.5416 | BH89: 0 | BI89: 125788.5965 | BJ89: 0 | BK89: 250.319307 | BL89: 627.6913858 | BM89: 126165.9685 | BN89: 0 | BO89: 0 | BP89: 0 | BQ89: 0 | BR89: 0 | BS89: 0 | BT89: 0 | BU89: 0 | BV89: 0 | BW89: 0 | BX89: 0 | BY89: 0 | BZ89: 0 | CA89: 0 | CB89: 0 | CC89: 0 | CD89: 0 | CE89: 0 | CF89: 0 | CG89: 0 | CH89: 0 | CI89: 0 | CJ89: 0 | CK89: 0 | CL89: 126165.9685 | CU89: 87 | CV89: 0.02 | CW89: 0.1917999562
W90: 89 | X90: 8 | Y90: 0 | Z90: =IF($B$29=1,1,FundingFactor(W90,FEL_period,Entage,1,kktg+aktg,10)) -> 0.7849821321 | AA90: 963798.2688 | AB90: 0 | AC90: 5618.943907 | AD90: 1445.697403 | AE90: 956733.6275 | AF90: 2183144.512 | AG90: 0 | AH90: 3274.716768 | AI90: 2179869.795 | AJ90: 183.0133106 | AK90: 416.9866894 | AL90: 956550.6142 | AM90: 2179452.809 | AN90: 0 | AO90: 0 | AP90: 160 | AQ90: 0 | AR90: 160 | AS90: 956550.6142 | AT90: 4782.753071 | AU90: 961333.3673 | AV90: 2179292.809 | AW90: 10896.46404 | AX90: 2190189.273 | AY90: 0 | AZ90: 0 | BA90: 0 | BB90: 0 | BC90: 0 | BD90: 531110.5416 | BE90: 0 | BF90: 1327.776354 | BG90: 532438.318 | BH90: 0 | BI90: 126165.9685 | BJ90: 0 | BK90: 251.0702774 | BL90: 629.5744914 | BM90: 126544.4728 | BN90: 0 | BO90: 0 | BP90: 0 | BQ90: 0 | BR90: 0 | BS90: 0 | BT90: 0 | BU90: 0 | BV90: 0 | BW90: 0 | BX90: 0 | BY90: 0 | BZ90: 0 | CA90: 0 | CB90: 0 | CC90: 0 | CD90: 0 | CE90: 0 | CF90: 0 | CG90: 0 | CH90: 0 | CI90: 0 | CJ90: 0 | CK90: 0 | CL90: 126544.4728 | CU90: 88 | CV90: 0.02 | CW90: 0.2138096728
W91: 90 | X91: 8 | Y91: 0 | Z91: =IF($B$29=1,1,FundingFactor(W91,FEL_period,Entage,1,kktg+aktg,10)) -> 0.7909510058 | AA91: 961333.3673 | AB91: 0 | AC91: 5604.573531 | AD91: 1442.000051 | AE91: 954286.7937 | AF91: 2190189.273 | AG91: 0 | AH91: 3285.283909 | AI91: 2186903.989 | AJ91: 182.2786694 | AK91: 417.7213306 | AL91: 954104.515 | AM91: 2186486.268 | AN91: 0 | AO91: 0 | AP91: 160 | AQ91: 0 | AR91: 160 | AS91: 954104.515 | AT91: 4770.522575 | AU91: 958875.0376 | AV91: 2186326.268 | AW91: 10931.63134 | AX91: 2197257.899 | AY91: 0 | AZ91: 0 | BA91: 0 | BB91: 0 | BC91: 0 | BD91: 532438.318 | BE91: 0 | BF91: 1331.095795 | BG91: 533769.4138 | BH91: 0 | BI91: 126544.4728 | BJ91: 0 | BK91: 251.8235008 | BL91: 631.4632463 | BM91: 126924.1125 | BN91: 0 | BO91: 0 | BP91: 0 | BQ91: 0 | BR91: 0 | BS91: 0 | BT91: 0 | BU91: 0 | BV91: 0 | BW91: 0 | BX91: 0 | BY91: 0 | BZ91: 0 | CA91: 0 | CB91: 0 | CC91: 0 | CD91: 0 | CE91: 0 | CF91: 0 | CG91: 0 | CH91: 0 | CI91: 0 | CJ91: 0 | CK91: 0 | CL91: 126924.1125 | CU91: 89 | CV91: 0.02 | CW91: 0.2384501621
W92: 91 | X92: 8 | Y92: 0 | Z92: =IF($B$29=1,1,FundingFactor(W92,FEL_period,Entage,1,kktg+aktg,10)) -> 0.7969198796 | AA92: 958875.0376 | AB92: 0 | AC92: 5590.241469 | AD92: 1438.312556 | AE92: 951846.4836 | AF92: 2197257.899 | AG92: 0 | AH92: 3295.886848 | AI92: 2193962.012 | AJ92: 181.5456634 | AK92: 418.4543366 | AL92: 951664.9379 | AM92: 2193543.558 | AN92: 0 | AO92: 0 | AP92: 160 | AQ92: 0 | AR92: 160 | AS92: 951664.9379 | AT92: 4758.32469 | AU92: 956423.2626 | AV92: 2193383.558 | AW92: 10966.91779 | AX92: 2204350.475 | AY92: 0 | AZ92: 0 | BA92: 0 | BB92: 0 | BC92: 0 | BD92: 533769.4138 | BE92: 80000 | BF92: 1534.423534 | BG92: 615303.8373 | BH92: 0 | BI92: 126924.1125 | BJ92: 0 | BK92: 252.5789839 | BL92: 633.3576676 | BM92: 127304.8912 | BN92: 0 | BO92: 0 | BP92: 0 | BQ92: 0 | BR92: 0 | BS92: 0 | BT92: 0 | BU92: 0 | BV92: 0 | BW92: 0 | BX92: 0 | BY92: 0 | BZ92: 0 | CA92: 0 | CB92: 0 | CC92: 0 | CD92: 0 | CE92: 0 | CF92: 0 | CG92: 0 | CH92: 0 | CI92: 0 | CJ92: 0 | CK92: 0 | CL92: 127304.8912 | CU92: 90 | CV92: 0.02 | CW92: 0.2660182412
W93: 92 | X93: 8 | Y93: 0 | Z93: =IF($B$29=1,1,FundingFactor(W93,FEL_period,Entage,1,kktg+aktg,10)) -> 0.8028887533 | AA93: 956423.2626 | AB93: 0 | AC93: 5575.947621 | AD93: 1434.634894 | AE93: 949412.6801 | AF93: 2204350.475 | AG93: 0 | AH93: 3306.525713 | AI93: 2201043.95 | AJ93: 180.8142993 | AK93: 419.1857007 | AL93: 949231.8658 | AM93: 2200624.764 | AN93: 0 | AO93: 0 | AP93: 160 | AQ93: 0 | AR93: 160 | AS93: 949231.8658 | AT93: 4746.159329 | AU93: 953978.0251 | AV93: 2200464.764 | AW93: 11002.32382 | AX93: 2211467.088 | AY93: 0 | AZ93: 0 | BA93: 0 | BB93: 0 | BC93: 0 | BD93: 615303.8373 | BE93: 0 | BF93: 1538.259593 | BG93: 616842.0969 | BH93: 0 | BI93: 127304.8912 | BJ93: 0 | BK93: 253.3367335 | BL93: 635.2577723 | BM93: 127686.8122 | BN93: 0 | BO93: 0 | BP93: 0 | BQ93: 0 | BR93: 0 | BS93: 0 | BT93: 0 | BU93: 0 | BV93: 0 | BW93: 0 | BX93: 0 | BY93: 0 | BZ93: 0 | CA93: 0 | CB93: 0 | CC93: 0 | CD93: 0 | CE93: 0 | CF93: 0 | CG93: 0 | CH93: 0 | CI93: 0 | CJ93: 0 | CK93: 0 | CL93: 127686.8122 | CU93: 91 | CV93: 0.02 | CW93: 0.2970241335
W94: 93 | X94: 8 | Y94: 0 | Z94: =IF($B$29=1,1,FundingFactor(W94,FEL_period,Entage,1,kktg+aktg,10)) -> 0.808857627 | AA94: 953978.0251 | AB94: 0 | AC94: 5561.691886 | AD94: 1430.967038 | AE94: 946985.3662 | AF94: 2211467.088 | AG94: 0 | AH94: 3317.200632 | AI94: 2208149.887 | AJ94: 180.084584 | AK94: 419.915416 | AL94: 946805.2816 | AM94: 2207729.972 | AN94: 0 | AO94: 0 | AP94: 160 | AQ94: 0 | AR94: 160 | AS94: 946805.2816 | AT94: 4734.026408 | AU94: 951539.308 | AV94: 2207569.972 | AW94: 11037.84986 | AX94: 2218607.822 | AY94: 0 | AZ94: 0 | BA94: 0 | BB94: 0 | BC94: 0 | BD94: 616842.0969 | BE94: 0 | BF94: 1542.105242 | BG94: 618384.2021 | BH94: 0 | BI94: 127686.8122 | BJ94: 0 | BK94: 254.0967563 | BL94: 637.1635774 | BM94: 128069.8791 | BN94: 0 | BO94: 0 | BP94: 0 | BQ94: 0 | BR94: 0 | BS94: 0 | BT94: 0 | BU94: 0 | BV94: 0 | BW94: 0 | BX94: 0 | BY94: 0 | BZ94: 0 | CA94: 0 | CB94: 0 | CC94: 0 | CD94: 0 | CE94: 0 | CF94: 0 | CG94: 0 | CH94: 0 | CI94: 0 | CJ94: 0 | CK94: 0 | CL94: 128069.8791 | CU94: 92 | CV94: 0.02 | CW94: 0.3309741339
W95: 94 | X95: 8 | Y95: 0 | Z95: =IF($B$29=1,1,FundingFactor(W95,FEL_period,Entage,1,kktg+aktg,10)) -> 0.8148265007 | AA95: 951539.308 | AB95: 0 | AC95: 5547.474166 | AD95: 1427.308962 | AE95: 944564.5249 | AF95: 2218607.822 | AG95: 0 | AH95: 3327.911733 | AI95: 2215279.91 | AJ95: 179.3565242 | AK95: 420.6434758 | AL95: 944385.1684 | AM95: 2214859.266 | AN95: 0 | AO95: 0 | AP95: 160 | AQ95: 0 | AR95: 160 | AS95: 944385.1684 | AT95: 4721.925842 | AU95: 949107.0942 | AV95: 2214699.266 | AW95: 11073.49633 | AX95: 2225772.763 | AY95: 0 | AZ95: 0 | BA95: 0 | BB95: 0 | BC95: 0 | BD95: 618384.2021 | BE95: 0 | BF95: 1545.960505 | BG95: 619930.1626 | BH95: 0 | BI95: 128069.8791 | BJ95: 0 | BK95: 254.8590593 | BL95: 639.0751 | BM95: 128454.0951 | BN95: 0 | BO95: 0 | BP95: 0 | BQ95: 0 | BR95: 0 | BS95: 0 | BT95: 0 | BU95: 0 | BV95: 0 | BW95: 0 | BX95: 0 | BY95: 0 | BZ95: 0 | CA95: 0 | CB95: 0 | CC95: 0 | CD95: 0 | CE95: 0 | CF95: 0 | CG95: 0 | CH95: 0 | CI95: 0 | CJ95: 0 | CK95: 0 | CL95: 128454.0951 | CU95: 93 | CV95: 0.02 | CW95: 0.3685918214
W96: 95 | X96: 8 | Y96: 0 | Z96: =IF($B$29=1,1,FundingFactor(W96,FEL_period,Entage,1,kktg+aktg,10)) -> 0.8207953745 | AA96: 949107.0942 | AB96: 0 | AC96: 5533.294359 | AD96: 1423.660641 | AE96: 942150.1392 | AF96: 2225772.763 | AG96: 0 | AH96: 3338.659144 | AI96: 2222434.104 | AJ96: 178.6301265 | AK96: 421.3698735 | AL96: 941971.5091 | AM96: 2222012.734 | AN96: 0 | AO96: 0 | AP96: 160 | AQ96: 0 | AR96: 160 | AS96: 941971.5091 | AT96: 4709.857545 | AU96: 946681.3666 | AV96: 2221852.734 | AW96: 11109.26367 | AX96: 2232961.997 | AY96: 0 | AZ96: 0 | BA96: 0 | BB96: 0 | BC96: 0 | BD96: 619930.1626 | BE96: 0 | BF96: 1549.825407 | BG96: 621479.988 | BH96: 0 | BI96: 128454.0951 | BJ96: 0 | BK96: 255.6236492 | BL96: 640.9923572 | BM96: 128839.4638 | BN96: 0 | BO96: 0 | BP96: 0 | BQ96: 0 | BR96: 0 | BS96: 0 | BT96: 0 | BU96: 0 | BV96: 0 | BW96: 0 | BX96: 0 | BY96: 0 | BZ96: 0 | CA96: 0 | CB96: 0 | CC96: 0 | CD96: 0 | CE96: 0 | CF96: 0 | CG96: 0 | CH96: 0 | CI96: 0 | CJ96: 0 | CK96: 0 | CL96: 128839.4638 | CU96: 94 | CV96: 0.02 | CW96: 0.4097631569
W97: 96 | X97: 8 | Y97: 0 | Z97: =IF($B$29=1,1,FundingFactor(W97,FEL_period,Entage,1,kktg+aktg,10)) -> 0.8267642482 | AA97: 946681.3666 | AB97: 0 | AC97: 5519.152367 | AD97: 1420.02205 | AE97: 939742.1922 | AF97: 2232961.997 | AG97: 0 | AH97: 3349.442996 | AI97: 2229612.554 | AJ97: 177.9053973 | AK97: 422.0946027 | AL97: 939564.2868 | AM97: 2229190.46 | AN97: 0 | AO97: 0 | AP97: 160 | AQ97: 0 | AR97: 160 | AS97: 939564.2868 | AT97: 4697.821434 | AU97: 944262.1082 | AV97: 2229030.46 | AW97: 11145.1523 | AX97: 2240175.612 | AY97: 0 | AZ97: 0 | BA97: 0 | BB97: 0 | BC97: 0 | BD97: 621479.988 | BE97: 0 | BF97: 1553.69997 | BG97: 623033.688 | BH97: 0 | BI97: 128839.4638 | BJ97: 0 | BK97: 256.390533 | BL97: 642.9153663 | BM97: 129225.9886 | BN97: 0 | BO97: 0 | BP97: 0 | BQ97: 0 | BR97: 0 | BS97: 0 | BT97: 0 | BU97: 0 | BV97: 0 | BW97: 0 | BX97: 0 | BY97: 0 | BZ97: 0 | CA97: 0 | CB97: 0 | CC97: 0 | CD97: 0 | CE97: 0 | CF97: 0 | CG97: 0 | CH97: 0 | CI97: 0 | CJ97: 0 | CK97: 0 | CL97: 129225.9886 | CU97: 95 | CV97: 0.02 | CW97: 0.453209049
W98: 97 | X98: 9 | Y98: 400000 | Z98: =IF($B$29=1,1,FundingFactor(W98,FEL_period,Entage,1,kktg+aktg,10)) -> 0.8327331219 | AA98: 944262.1082 | AB98: 0 | AC98: 5505.048091 | AD98: 1416.393162 | AE98: 937340.667 | AF98: 2240175.612 | AG98: 400000 | AH98: 3960.263418 | AI98: 2636215.349 | AJ98: 157.3794835 | AK98: 442.6205165 | AL98: 937183.2875 | AM98: 2635772.728 | AN98: 0 | AO98: 0 | AP98: 160 | AQ98: 0 | AR98: 160 | AS98: 937183.2875 | AT98: 4685.916437 | AU98: 941869.2039 | AV98: 2635612.728 | AW98: 13178.06364 | AX98: 2648790.792 | AY98: 0 | AZ98: 0 | BA98: 0 | BB98: 0 | BC98: 0 | BD98: 623033.688 | BE98: 0 | BF98: 1557.58422 | BG98: 624591.2722 | BH98: 0 | BI98: 129225.9886 | BJ98: 0 | BK98: 257.1597174 | BL98: 644.8441446 | BM98: 129613.6731 | BN98: 0 | BO98: 0 | BP98: 0 | BQ98: 0 | BR98: 0 | BS98: 0 | BT98: 0 | BU98: 0 | BV98: 0 | BW98: 0 | BX98: 0 | BY98: 0 | BZ98: 0 | CA98: 0 | CB98: 0 | CC98: 0 | CD98: 0 | CE98: 0 | CF98: 0 | CG98: 0 | CH98: 0 | CI98: 0 | CJ98: 0 | CK98: 0 | CL98: 129613.6731 | CU98: 96 | CV98: 0.02 | CW98: 0.5024502137
W99: 98 | X99: 9 | Y99: 0 | Z99: =IF($B$29=1,1,FundingFactor(W99,FEL_period,Entage,1,kktg+aktg,10)) -> 0.8393420284 | AA99: 941869.2039 | AB99: 0 | AC99: 5491.097459 | AD99: 1412.803806 | AE99: 934965.3027 | AF99: 2648790.792 | AG99: 0 | AH99: 3973.186188 | AI99: 2644817.606 | AJ99: 156.7075982 | AK99: 443.2924018 | AL99: 934808.5951 | AM99: 2644374.313 | AN99: 0 | AO99: 0 | AP99: 160 | AQ99: 0 | AR99: 160 | AS99: 934808.5951 | AT99: 4674.042975 | AU99: 939482.638 | AV99: 2644214.313 | AW99: 13221.07157 | AX99: 2657435.385 | AY99: 0 | AZ99: 0 | BA99: 0 | BB99: 0 | BC99: 0 | BD99: 624591.2722 | BE99: 0 | BF99: 1561.478181 | BG99: 626152.7504 | BH99: 0 | BI99: 129613.6731 | BJ99: 0 | BK99: 257.9312094 | BL99: 646.7787093 | BM99: 130002.5206 | BN99: 0 | BO99: 0 | BP99: 0 | BQ99: 0 | BR99: 0 | BS99: 0 | BT99: 0 | BU99: 0 | BV99: 0 | BW99: 0 | BX99: 0 | BY99: 0 | BZ99: 0 | CA99: 0 | CB99: 0 | CC99: 0 | CD99: 0 | CE99: 0 | CF99: 0 | CG99: 0 | CH99: 0 | CI99: 0 | CJ99: 0 | CK99: 0 | CL99: 130002.5206 | CU99: 97 | CV99: 0.02 | CW99: 0.5481299418
W100: 99 | X100: 9 | Y100: 0 | Z100: =IF($B$29=1,1,FundingFactor(W100,FEL_period,Entage,1,kktg+aktg,10)) -> 0.8459509349 | AA100: 939482.638 | AB100: 0 | AC100: 5477.18378 | AD100: 1409.223957 | AE100: 932596.2303 | AF100: 2657435.385 | AG100: 0 | AH100: 3986.153077 | AI100: 2653449.232 | AJ100: 156.0375472 | AK100: 443.9624528 | AL100: 932440.1928 | AM100: 2653005.269 | AN100: 0 | AO100: 0 | AP100: 160 | AQ100: 0 | AR100: 160 | AS100: 932440.1928 | AT100: 4662.200964 | AU100: 937102.3937 | AV100: 2652845.269 | AW100: 13264.22635 | AX100: 2666109.496 | AY100: 0 | AZ100: 0 | BA100: 0 | BB100: 0 | BC100: 0 | BD100: 626152.7504 | BE100: 0 | BF100: 1565.381876 | BG100: 627718.1323 | BH100: 0 | BI100: 130002.5206 | BJ100: 0 | BK100: 258.7050159 | BL100: 648.7190777 | BM100: 130392.5346 | BN100: 0 | BO100: 0 | BP100: 0 | BQ100: 0 | BR100: 0 | BS100: 0 | BT100: 0 | BU100: 0 | BV100: 0 | BW100: 0 | BX100: 0 | BY100: 0 | BZ100: 0 | CA100: 0 | CB100: 0 | CC100: 0 | CD100: 0 | CE100: 0 | CF100: 0 | CG100: 0 | CH100: 0 | CI100: 0 | CJ100: 0 | CK100: 0 | CL100: 130392.5346 | CU100: 98 | CV100: 0.02 | CW100: 0.6108967851
W101: 100 | X101: 9 | Y101: 0 | Z101: =IF($B$29=1,1,FundingFactor(W101,FEL_period,Entage,1,kktg+aktg,10)) -> 0.8525598414 | AA101: 937102.3937 | AB101: 0 | AC101: 5463.306955 | AD101: 1405.653591 | AE101: 930233.4332 | AF101: 2666109.496 | AG101: 0 | AH101: 3999.164243 | AI101: 2662110.331 | AJ101: 155.3693345 | AK101: 444.6306655 | AL101: 930078.0638 | AM101: 2661665.701 | AN101: 0 | AO101: 0 | AP101: 160 | AQ101: 0 | AR101: 160 | AS101: 930078.0638 | AT101: 4650.390319 | AU101: 934728.4542 | AV101: 2661505.701 | AW101: 13307.5285 | AX101: 2674813.229 | AY101: 0 | AZ101: 0 | BA101: 0 | BB101: 0 | BC101: 0 | BD101: 627718.1323 | BE101: 0 | BF101: 1569.295331 | BG101: 629287.4276 | BH101: 0 | BI101: 130392.5346 | BJ101: 0 | BK101: 259.4811439 | BL101: 650.6652674 | BM101: 130783.7187 | BN101: 0 | BO101: 0 | BP101: 0 | BQ101: 0 | BR101: 0 | BS101: 0 | BT101: 0 | BU101: 0 | BV101: 0 | BW101: 0 | BX101: 0 | BY101: 0 | BZ101: 0 | CA101: 0 | CB101: 0 | CC101: 0 | CD101: 0 | CE101: 0 | CF101: 0 | CG101: 0 | CH101: 0 | CI101: 0 | CJ101: 0 | CK101: 0 | CL101: 130783.7187 | CU101: 99 | CV101: 0.02 | CW101: 0.6482352941
W102: 101 | X102: 9 | Y102: 0 | Z102: =IF($B$29=1,1,FundingFactor(W102,FEL_period,Entage,1,kktg+aktg,10)) -> 0.8591687479 | AA102: 934728.4542 | AB102: 0 | AC102: 5449.466888 | AD102: 1402.092681 | AE102: 927876.8946 | AF102: 2674813.229 | AG102: 0 | AH102: 4012.219844 | AI102: 2670801.009 | AJ102: 154.7029636 | AK102: 445.2970364 | AL102: 927722.1916 | AM102: 2670355.712 | AN102: 0 | AO102: 0 | AP102: 160 | AQ102: 0 | AR102: 160 | AS102: 927722.1916 | AT102: 4638.610958 | AU102: 932360.8026 | AV102: 2670195.712 | AW102: 13350.97856 | AX102: 2683546.691 | AY102: 0 | AZ102: 0 | BA102: 0 | BB102: 0 | BC102: 0 | BD102: 629287.4276 | BE102: 0 | BF102: 1573.218569 | BG102: 630860.6462 | BH102: 0 | BI102: 130783.7187 | BJ102: 0 | BK102: 260.2596003 | BL102: 652.6172957 | BM102: 131176.0764 | BN102: 0 | BO102: 0 | BP102: 0 | BQ102: 0 | BR102: 0 | BS102: 0 | BT102: 0 | BU102: 0 | BV102: 0 | BW102: 0 | BX102: 0 | BY102: 0 | BZ102: 0 | CA102: 0 | CB102: 0 | CC102: 0 | CD102: 0 | CE102: 0 | CF102: 0 | CG102: 0 | CH102: 0 | CI102: 0 | CJ102: 0 | CK102: 0 | CL102: 131176.0764 | CU102: 100 | CV102: 0.02 | CW102: 0.4714285714
W103: 102 | X103: 9 | Y103: 0 | Z103: =IF($B$29=1,1,FundingFactor(W103,FEL_period,Entage,1,kktg+aktg,10)) -> 0.8657776545 | AA103: 932360.8026 | AB103: 0 | AC103: 5435.663479 | AD103: 1398.541204 | AE103: 925526.5979 | AF103: 2683546.691 | AG103: 0 | AH103: 4025.320036 | AI103: 2679521.371 | AJ103: 154.0384382 | AK103: 445.9615618 | AL103: 925372.5595 | AM103: 2679075.409 | AN103: 0 | AO103: 0 | AP103: 160 | AQ103: 0 | AR103: 160 | AS103: 925372.5595 | AT103: 4626.862797 | AU103: 929999.4223 | AV103: 2678915.409 | AW103: 13394.57705 | AX103: 2692309.986 | AY103: 0 | AZ103: 0 | BA103: 0 | BB103: 0 | BC103: 0 | BD103: 630860.6462 | BE103: 0 | BF103: 1577.151615 | BG103: 632437.7978 | BH103: 0 | BI103: 131176.0764 | BJ103: 0 | BK103: 261.0403921 | BL103: 654.5751802 | BM103: 131569.6112 | BN103: 0 | BO103: 0 | BP103: 0 | BQ103: 0 | BR103: 0 | BS103: 0 | BT103: 0 | BU103: 0 | BV103: 0 | BW103: 0 | BX103: 0 | BY103: 0 | BZ103: 0 | CA103: 0 | CB103: 0 | CC103: 0 | CD103: 0 | CE103: 0 | CF103: 0 | CG103: 0 | CH103: 0 | CI103: 0 | CJ103: 0 | CK103: 0 | CL103: 131569.6112
W104: 103 | X104: 9 | Y104: 0 | Z104: =IF($B$29=1,1,FundingFactor(W104,FEL_period,Entage,1,kktg+aktg,10)) -> 0.872386561 | AA104: 929999.4223 | AB104: 0 | AC104: 5421.896632 | AD104: 1394.999133 | AE104: 923182.5265 | AF104: 2692309.986 | AG104: 0 | AH104: 4038.46498 | AI104: 2688271.521 | AJ104: 153.3757618 | AK104: 446.6242382 | AL104: 923029.1507 | AM104: 2687824.897 | AN104: 0 | AO104: 0 | AP104: 160 | AQ104: 0 | AR104: 160 | AS104: 923029.1507 | AT104: 4615.145754 | AU104: 927644.2965 | AV104: 2687664.897 | AW104: 13438.32449 | AX104: 2701103.222 | AY104: 0 | AZ104: 0 | BA104: 0 | BB104: 0 | BC104: 0 | BD104: 632437.7978 | BE104: 80000 | BF104: 1781.094495 | BG104: 714218.8923 | BH104: 0 | BI104: 131569.6112 | BJ104: 0 | BK104: 261.8235263 | BL104: 656.5389385 | BM104: 131964.3266 | BN104: 0 | BO104: 0 | BP104: 0 | BQ104: 0 | BR104: 0 | BS104: 0 | BT104: 0 | BU104: 0 | BV104: 0 | BW104: 0 | BX104: 0 | BY104: 0 | BZ104: 0 | CA104: 0 | CB104: 0 | CC104: 0 | CD104: 0 | CE104: 0 | CF104: 0 | CG104: 0 | CH104: 0 | CI104: 0 | CJ104: 0 | CK104: 0 | CL104: 131964.3266
W105: 104 | X105: 9 | Y105: 0 | Z105: =IF($B$29=1,1,FundingFactor(W105,FEL_period,Entage,1,kktg+aktg,10)) -> 0.8789954675 | AA105: 927644.2965 | AB105: 0 | AC105: 5408.166249 | AD105: 1391.466445 | AE105: 920844.6638 | AF105: 2701103.222 | AG105: 0 | AH105: 4051.654832 | AI105: 2697051.567 | AJ105: 152.7149379 | AK105: 447.2850621 | AL105: 920691.9489 | AM105: 2696604.282 | AN105: 0 | AO105: 0 | AP105: 160 | AQ105: 0 | AR105: 160 | AS105: 920691.9489 | AT105: 4603.459744 | AU105: 925295.4086 | AV105: 2696444.282 | AW105: 13482.22141 | AX105: 2709926.503 | AY105: 0 | AZ105: 0 | BA105: 0 | BB105: 0 | BC105: 0 | BD105: 714218.8923 | BE105: 0 | BF105: 1785.547231 | BG105: 716004.4395 | BH105: 0 | BI105: 131964.3266 | BJ105: 0 | BK105: 262.60901 | BL105: 658.5085882 | BM105: 132360.2262 | BN105: 0 | BO105: 0 | BP105: 0 | BQ105: 0 | BR105: 0 | BS105: 0 | BT105: 0 | BU105: 0 | BV105: 0 | BW105: 0 | BX105: 0 | BY105: 0 | BZ105: 0 | CA105: 0 | CB105: 0 | CC105: 0 | CD105: 0 | CE105: 0 | CF105: 0 | CG105: 0 | CH105: 0 | CI105: 0 | CJ105: 0 | CK105: 0 | CL105: 132360.2262
W106: 105 | X106: 9 | Y106: 0 | Z106: =IF($B$29=1,1,FundingFactor(W106,FEL_period,Entage,1,kktg+aktg,10)) -> 0.885604374 | AA106: 925295.4086 | AB106: 0 | AC106: 5394.472232 | AD106: 1387.943113 | AE106: 918512.9933 | AF106: 2709926.503 | AG106: 0 | AH106: 4064.889755 | AI106: 2705861.613 | AJ106: 152.0559699 | AK106: 447.9440301 | AL106: 918360.9373 | AM106: 2705413.669 | AN106: 0 | AO106: 0 | AP106: 160 | AQ106: 0 | AR106: 160 | AS106: 918360.9373 | AT106: 4591.804686 | AU106: 922952.742 | AV106: 2705253.669 | AW106: 13526.26835 | AX106: 2718779.938 | AY106: 0 | AZ106: 0 | BA106: 0 | BB106: 0 | BC106: 0 | BD106: 716004.4395 | BE106: 0 | BF106: 1790.011099 | BG106: 717794.4506 | BH106: 0 | BI106: 132360.2262 | BJ106: 0 | BK106: 263.3968502 | BL106: 660.4841468 | BM106: 132757.3135 | BN106: 0 | BO106: 0 | BP106: 0 | BQ106: 0 | BR106: 0 | BS106: 0 | BT106: 0 | BU106: 0 | BV106: 0 | BW106: 0 | BX106: 0 | BY106: 0 | BZ106: 0 | CA106: 0 | CB106: 0 | CC106: 0 | CD106: 0 | CE106: 0 | CF106: 0 | CG106: 0 | CH106: 0 | CI106: 0 | CJ106: 0 | CK106: 0 | CL106: 132757.3135
W107: 106 | X107: 9 | Y107: 0 | Z107: =IF($B$29=1,1,FundingFactor(W107,FEL_period,Entage,1,kktg+aktg,10)) -> 0.8922132805 | AA107: 922952.742 | AB107: 0 | AC107: 5380.814486 | AD107: 1384.429113 | AE107: 916187.4984 | AF107: 2718779.938 | AG107: 0 | AH107: 4078.169907 | AI107: 2714701.768 | AJ107: 151.3988609 | AK107: 448.6011391 | AL107: 916036.0995 | AM107: 2714253.167 | AN107: 0 | AO107: 0 | AP107: 160 | AQ107: 0 | AR107: 160 | AS107: 916036.0995 | AT107: 4580.180498 | AU107: 920616.28 | AV107: 2714093.167 | AW107: 13570.46583 | AX107: 2727663.633 | AY107: 0 | AZ107: 0 | BA107: 0 | BB107: 0 | BC107: 0 | BD107: 717794.4506 | BE107: 0 | BF107: 1794.486127 | BG107: 719588.9368 | BH107: 0 | BI107: 132757.3135 | BJ107: 0 | BK107: 264.1870539 | BL107: 662.4656323 | BM107: 133155.5921 | BN107: 0 | BO107: 0 | BP107: 0 | BQ107: 0 | BR107: 0 | BS107: 0 | BT107: 0 | BU107: 0 | BV107: 0 | BW107: 0 | BX107: 0 | BY107: 0 | BZ107: 0 | CA107: 0 | CB107: 0 | CC107: 0 | CD107: 0 | CE107: 0 | CF107: 0 | CG107: 0 | CH107: 0 | CI107: 0 | CJ107: 0 | CK107: 0 | CL107: 133155.5921
W108: 107 | X108: 9 | Y108: 0 | Z108: =IF($B$29=1,1,FundingFactor(W108,FEL_period,Entage,1,kktg+aktg,10)) -> 0.898822187 | AA108: 920616.28 | AB108: 0 | AC108: 5367.192912 | AD108: 1380.92442 | AE108: 913868.1627 | AF108: 2727663.633 | AG108: 0 | AH108: 4091.495449 | AI108: 2723572.137 | AJ108: 150.7436143 | AK108: 449.2563857 | AL108: 913717.4191 | AM108: 2723122.881 | AN108: 0 | AO108: 0 | AP108: 160 | AQ108: 0 | AR108: 160 | AS108: 913717.4191 | AT108: 4568.587095 | AU108: 918286.0062 | AV108: 2722962.881 | AW108: 13614.8144 | AX108: 2736577.695 | AY108: 0 | AZ108: 0 | BA108: 0 | BB108: 0 | BC108: 0 | BD108: 719588.9368 | BE108: 0 | BF108: 1798.972342 | BG108: 721387.9091 | BH108: 0 | BI108: 133155.5921 | BJ108: 0 | BK108: 264.9796283 | BL108: 664.4530623 | BM108: 133555.0655 | BN108: 0 | BO108: 0 | BP108: 0 | BQ108: 0 | BR108: 0 | BS108: 0 | BT108: 0 | BU108: 0 | BV108: 0 | BW108: 0 | BX108: 0 | BY108: 0 | BZ108: 0 | CA108: 0 | CB108: 0 | CC108: 0 | CD108: 0 | CE108: 0 | CF108: 0 | CG108: 0 | CH108: 0 | CI108: 0 | CJ108: 0 | CK108: 0 | CL108: 133555.0655
W109: 108 | X109: 9 | Y109: 0 | Z109: =IF($B$29=1,1,FundingFactor(W109,FEL_period,Entage,1,kktg+aktg,10)) -> 0.9054310935 | AA109: 918286.0062 | AB109: 0 | AC109: 5353.607416 | AD109: 1377.429009 | AE109: 911554.9697 | AF109: 2736577.695 | AG109: 0 | AH109: 4104.866543 | AI109: 2732472.829 | AJ109: 150.0902331 | AK109: 449.9097669 | AL109: 911404.8795 | AM109: 2732022.919 | AN109: 0 | AO109: 0 | AP109: 160 | AQ109: 0 | AR109: 160 | AS109: 911404.8795 | AT109: 4557.024398 | AU109: 915961.9039 | AV109: 2731862.919 | AW109: 13659.31459 | AX109: 2745522.233 | AY109: 0 | AZ109: 0 | BA109: 0 | BB109: 0 | BC109: 0 | BD109: 721387.9091 | BE109: 0 | BF109: 1803.469773 | BG109: 723191.3789 | BH109: 0 | BI109: 133555.0655 | BJ109: 0 | BK109: 265.7745804 | BL109: 666.4464547 | BM109: 133955.7374 | BN109: 0 | BO109: 0 | BP109: 0 | BQ109: 0 | BR109: 0 | BS109: 0 | BT109: 0 | BU109: 0 | BV109: 0 | BW109: 0 | BX109: 0 | BY109: 0 | BZ109: 0 | CA109: 0 | CB109: 0 | CC109: 0 | CD109: 0 | CE109: 0 | CF109: 0 | CG109: 0 | CH109: 0 | CI109: 0 | CJ109: 0 | CK109: 0 | CL109: 133955.7374
W110: 109 | X110: 10 | Y110: 400000 | Z110: =IF($B$29=1,1,FundingFactor(W110,FEL_period,Entage,1,kktg+aktg,10)) -> 0.91204 | AA110: 915961.9039 | AB110: 0 | AC110: 5340.0579 | AD110: 1373.942856 | AE110: 909247.9031 | AF110: 2745522.233 | AG110: 400000 | AH110: 4718.28335 | AI110: 3140803.95 | AJ110: 134.7016684 | AK110: 465.2983316 | AL110: 909113.2015 | AM110: 3140338.652 | AN110: 0 | AO110: 0 | AP110: 160 | AQ110: 0 | AR110: 160 | AS110: 909113.2015 | AT110: 4545.566007 | AU110: 913658.7675 | AV110: 3140178.652 | AW110: 15700.89326 | AX110: 3155879.545 | AY110: 0 | AZ110: 0 | BA110: 0 | BB110: 0 | BC110: 0 | BD110: 723191.3789 | BE110: 0 | BF110: 1807.978447 | BG110: 724999.3573 | BH110: 0 | BI110: 133955.7374 | BJ110: 0 | BK110: 266.5719174 | BL110: 668.4458274 | BM110: 134357.6113 | BN110: 0 | BO110: 0 | BP110: 0 | BQ110: 0 | BR110: 0 | BS110: 0 | BT110: 0 | BU110: 0 | BV110: 0 | BW110: 0 | BX110: 0 | BY110: 0 | BZ110: 0 | CA110: 0 | CB110: 0 | CC110: 0 | CD110: 0 | CE110: 0 | CF110: 0 | CG110: 0 | CH110: 0 | CI110: 0 | CJ110: 0 | CK110: 0 | CL110: 134357.6113
W111: 110 | X111: 10 | Y111: 0 | Z111: =IF($B$29=1,1,FundingFactor(W111,FEL_period,Entage,1,kktg+aktg,10)) -> 0.91937 | AA111: 913658.7675 | AB111: 0 | AC111: 5326.630614 | AD111: 1370.488151 | AE111: 906961.6487 | AF111: 3155879.545 | AG111: 0 | AH111: 4733.819317 | AI111: 3151145.726 | AJ111: 134.096252 | AK111: 465.903748 | AL111: 906827.5525 | AM111: 3150679.822 | AN111: 0 | AO111: 0 | AP111: 160 | AQ111: 0 | AR111: 160 | AS111: 906827.5525 | AT111: 4534.137762 | AU111: 911361.6902 | AV111: 3150519.822 | AW111: 15752.59911 | AX111: 3166272.421 | AY111: 0 | AZ111: 0 | BA111: 0 | BB111: 0 | BC111: 0 | BD111: 724999.3573 | BE111: 0 | BF111: 1812.498393 | BG111: 726811.8557 | BH111: 0 | BI111: 134357.6113 | BJ111: 0 | BK111: 267.3716465 | BL111: 670.4511983 | BM111: 134760.6909 | BN111: 0 | BO111: 0 | BP111: 0 | BQ111: 0 | BR111: 0 | BS111: 0 | BT111: 0 | BU111: 0 | BV111: 0 | BW111: 0 | BX111: 0 | BY111: 0 | BZ111: 0 | CA111: 0 | CB111: 0 | CC111: 0 | CD111: 0 | CE111: 0 | CF111: 0 | CG111: 0 | CH111: 0 | CI111: 0 | CJ111: 0 | CK111: 0 | CL111: 134760.6909
W112: 111 | X112: 10 | Y112: 0 | Z112: =IF($B$29=1,1,FundingFactor(W112,FEL_period,Entage,1,kktg+aktg,10)) -> 0.9267 | AA112: 911361.6902 | AB112: 0 | AC112: 5313.238654 | AD112: 1367.042535 | AE112: 904681.409 | AF112: 3166272.421 | AG112: 0 | AH112: 4749.408631 | AI112: 3161523.012 | AJ112: 133.4927586 | AK112: 466.5072414 | AL112: 904547.9163 | AM112: 3161056.505 | AN112: 0 | AO112: 0 | AP112: 160 | AQ112: 0 | AR112: 160 | AS112: 904547.9163 | AT112: 4522.739581 | AU112: 909070.6559 | AV112: 3160896.505 | AW112: 15804.48253 | AX112: 3176700.988 | AY112: 0 | AZ112: 0 | BA112: 0 | BB112: 0 | BC112: 0 | BD112: 726811.8557 | BE112: 0 | BF112: 1817.029639 | BG112: 728628.8854 | BH112: 0 | BI112: 134760.6909 | BJ112: 0 | BK112: 268.1737748 | BL112: 672.4625855 | BM112: 135164.9797 | BN112: 0 | BO112: 0 | BP112: 0 | BQ112: 0 | BR112: 0 | BS112: 0 | BT112: 0 | BU112: 0 | BV112: 0 | BW112: 0 | BX112: 0 | BY112: 0 | BZ112: 0 | CA112: 0 | CB112: 0 | CC112: 0 | CD112: 0 | CE112: 0 | CF112: 0 | CG112: 0 | CH112: 0 | CI112: 0 | CJ112: 0 | CK112: 0 | CL112: 135164.9797
W113: 112 | X113: 10 | Y113: 0 | Z113: =IF($B$29=1,1,FundingFactor(W113,FEL_period,Entage,1,kktg+aktg,10)) -> 0.93403 | AA113: 909070.6559 | AB113: 0 | AC113: 5299.881924 | AD113: 1363.605984 | AE113: 902407.168 | AF113: 3176700.988 | AG113: 0 | AH113: 4765.051481 | AI113: 3171935.936 | AJ113: 132.8911893 | AK113: 467.1088107 | AL113: 902274.2768 | AM113: 3171468.827 | AN113: 0 | AO113: 0 | AP113: 160 | AQ113: 0 | AR113: 160 | AS113: 902274.2768 | AT113: 4511.371384 | AU113: 906785.6482 | AV113: 3171308.827 | AW113: 15856.54414 | AX113: 3187165.371 | AY113: 0 | AZ113: 0 | BA113: 0 | BB113: 0 | BC113: 0 | BD113: 728628.8854 | BE113: 0 | BF113: 1821.572213 | BG113: 730450.4576 | BH113: 0 | BI113: 135164.9797 | BJ113: 0 | BK113: 268.9783096 | BL113: 674.4800068 | BM113: 135570.4814 | BN113: 0 | BO113: 0 | BP113: 0 | BQ113: 0 | BR113: 0 | BS113: 0 | BT113: 0 | BU113: 0 | BV113: 0 | BW113: 0 | BX113: 0 | BY113: 0 | BZ113: 0 | CA113: 0 | CB113: 0 | CC113: 0 | CD113: 0 | CE113: 0 | CF113: 0 | CG113: 0 | CH113: 0 | CI113: 0 | CJ113: 0 | CK113: 0 | CL113: 135570.4814
W114: 113 | X114: 10 | Y114: 0 | Z114: =IF($B$29=1,1,FundingFactor(W114,FEL_period,Entage,1,kktg+aktg,10)) -> 0.94136 | AA114: 906785.6482 | AB114: 0 | AC114: 5286.560329 | AD114: 1360.178472 | AE114: 900138.9093 | AF114: 3187165.371 | AG114: 0 | AH114: 4780.748057 | AI114: 3182384.623 | AJ114: 132.291545 | AK114: 467.708455 | AL114: 900006.6178 | AM114: 3181916.915 | AN114: 0 | AO114: 0 | AP114: 160 | AQ114: 0 | AR114: 160 | AS114: 900006.6178 | AT114: 4500.033089 | AU114: 904506.6509 | AV114: 3181756.915 | AW114: 15908.78457 | AX114: 3197665.7 | AY114: 0 | AZ114: 0 | BA114: 0 | BB114: 0 | BC114: 0 | BD114: 730450.4576 | BE114: 0 | BF114: 1826.126144 | BG114: 732276.5837 | BH114: 0 | BI114: 135570.4814 | BJ114: 0 | BK114: 269.7852579 | BL114: 676.5034806 | BM114: 135977.1996 | BN114: 0 | BO114: 0 | BP114: 0 | BQ114: 0 | BR114: 0 | BS114: 0 | BT114: 0 | BU114: 0 | BV114: 0 | BW114: 0 | BX114: 0 | BY114: 0 | BZ114: 0 | CA114: 0 | CB114: 0 | CC114: 0 | CD114: 0 | CE114: 0 | CF114: 0 | CG114: 0 | CH114: 0 | CI114: 0 | CJ114: 0 | CK114: 0 | CL114: 135977.1996
W115: 114 | X115: 10 | Y115: 0 | Z115: =IF($B$29=1,1,FundingFactor(W115,FEL_period,Entage,1,kktg+aktg,10)) -> 0.94869 | AA115: 904506.6509 | AB115: 0 | AC115: 5273.273775 | AD115: 1356.759976 | AE115: 897876.6171 | AF115: 3197665.7 | AG115: 0 | AH115: 4796.498549 | AI115: 3192869.201 | AJ115: 131.6938266 | AK115: 468.3061734 | AL115: 897744.9233 | AM115: 3192400.895 | AN115: 0 | AO115: 0 | AP115: 160 | AQ115: 0 | AR115: 160 | AS115: 897744.9233 | AT115: 4488.724617 | AU115: 902233.6479 | AV115: 3192240.895 | AW115: 15961.20447 | AX115: 3208202.099 | AY115: 0 | AZ115: 0 | BA115: 0 | BB115: 0 | BC115: 0 | BD115: 732276.5837 | BE115: 0 | BF115: 1830.691459 | BG115: 734107.2752 | BH115: 0 | BI115: 135977.1996 | BJ115: 0 | BK115: 270.5946272 | BL115: 678.5330248 | BM115: 136385.138 | BN115: 0 | BO115: 0 | BP115: 0 | BQ115: 0 | BR115: 0 | BS115: 0 | BT115: 0 | BU115: 0 | BV115: 0 | BW115: 0 | BX115: 0 | BY115: 0 | BZ115: 0 | CA115: 0 | CB115: 0 | CC115: 0 | CD115: 0 | CE115: 0 | CF115: 0 | CG115: 0 | CH115: 0 | CI115: 0 | CJ115: 0 | CK115: 0 | CL115: 136385.138
W116: 115 | X116: 10 | Y116: 0 | Z116: =IF($B$29=1,1,FundingFactor(W116,FEL_period,Entage,1,kktg+aktg,10)) -> 0.95602 | AA116: 902233.6479 | AB116: 0 | AC116: 5260.022167 | AD116: 1353.350472 | AE116: 895620.2753 | AF116: 3208202.099 | AG116: 0 | AH116: 4812.303149 | AI116: 3203389.796 | AJ116: 131.0980348 | AK116: 468.9019652 | AL116: 895489.1773 | AM116: 3202920.894 | AN116: 0 | AO116: 0 | AP116: 160 | AQ116: 0 | AR116: 160 | AS116: 895489.1773 | AT116: 4477.445886 | AU116: 899966.6231 | AV116: 3202760.894 | AW116: 16013.80447 | AX116: 3218774.699 | AY116: 0 | AZ116: 0 | BA116: 0 | BB116: 0 | BC116: 0 | BD116: 734107.2752 | BE116: 80000 | BF116: 2035.268188 | BG116: 816142.5434 | BH116: 0 | BI116: 136385.138 | BJ116: 0 | BK116: 271.4064246 | BL116: 680.5686578 | BM116: 136794.3002 | BN116: 0 | BO116: 0 | BP116: 0 | BQ116: 0 | BR116: 0 | BS116: 0 | BT116: 0 | BU116: 0 | BV116: 0 | BW116: 0 | BX116: 0 | BY116: 0 | BZ116: 0 | CA116: 0 | CB116: 0 | CC116: 0 | CD116: 0 | CE116: 0 | CF116: 0 | CG116: 0 | CH116: 0 | CI116: 0 | CJ116: 0 | CK116: 0 | CL116: 136794.3002
W117: 116 | X117: 10 | Y117: 0 | Z117: =IF($B$29=1,1,FundingFactor(W117,FEL_period,Entage,1,kktg+aktg,10)) -> 0.96335 | AA117: 899966.6231 | AB117: 0 | AC117: 5246.805413 | AD117: 1349.949935 | AE117: 893369.8678 | AF117: 3218774.699 | AG117: 0 | AH117: 4828.162048 | AI117: 3213946.537 | AJ117: 130.5041706 | AK117: 469.4958294 | AL117: 893239.3636 | AM117: 3213477.041 | AN117: 0 | AO117: 0 | AP117: 160 | AQ117: 0 | AR117: 160 | AS117: 893239.3636 | AT117: 4466.196818 | AU117: 897705.5604 | AV117: 3213317.041 | AW117: 16066.5852 | AX117: 3229383.626 | AY117: 0 | AZ117: 0 | BA117: 0 | BB117: 0 | BC117: 0 | BD117: 816142.5434 | BE117: 0 | BF117: 2040.356358 | BG117: 818182.8997 | BH117: 0 | BI117: 136794.3002 | BJ117: 0 | BK117: 272.2206575 | BL117: 682.6103978 | BM117: 137204.69 | BN117: 0 | BO117: 0 | BP117: 0 | BQ117: 0 | BR117: 0 | BS117: 0 | BT117: 0 | BU117: 0 | BV117: 0 | BW117: 0 | BX117: 0 | BY117: 0 | BZ117: 0 | CA117: 0 | CB117: 0 | CC117: 0 | CD117: 0 | CE117: 0 | CF117: 0 | CG117: 0 | CH117: 0 | CI117: 0 | CJ117: 0 | CK117: 0 | CL117: 137204.69
W118: 117 | X118: 10 | Y118: 0 | Z118: =IF($B$29=1,1,FundingFactor(W118,FEL_period,Entage,1,kktg+aktg,10)) -> 0.97068 | AA118: 897705.5604 | AB118: 0 | AC118: 5233.623417 | AD118: 1346.558341 | AE118: 891125.3787 | AF118: 3229383.626 | AG118: 0 | AH118: 4844.075439 | AI118: 3224539.551 | AJ118: 129.9122345 | AK118: 470.0877655 | AL118: 890995.4665 | AM118: 3224069.463 | AN118: 0 | AO118: 0 | AP118: 160 | AQ118: 0 | AR118: 160 | AS118: 890995.4665 | AT118: 4454.977332 | AU118: 895450.4438 | AV118: 3223909.463 | AW118: 16119.54731 | AX118: 3240029.01 | AY118: 0 | AZ118: 0 | BA118: 0 | BB118: 0 | BC118: 0 | BD118: 818182.8997 | BE118: 0 | BF118: 2045.457249 | BG118: 820228.357 | BH118: 0 | BI118: 137204.69 | BJ118: 0 | BK118: 273.037333 | BL118: 684.6582632 | BM118: 137616.3109 | BN118: 0 | BO118: 0 | BP118: 0 | BQ118: 0 | BR118: 0 | BS118: 0 | BT118: 0 | BU118: 0 | BV118: 0 | BW118: 0 | BX118: 0 | BY118: 0 | BZ118: 0 | CA118: 0 | CB118: 0 | CC118: 0 | CD118: 0 | CE118: 0 | CF118: 0 | CG118: 0 | CH118: 0 | CI118: 0 | CJ118: 0 | CK118: 0 | CL118: 137616.3109
W119: 118 | X119: 10 | Y119: 0 | Z119: =IF($B$29=1,1,FundingFactor(W119,FEL_period,Entage,1,kktg+aktg,10)) -> 0.97801 | AA119: 895450.4438 | AB119: 0 | AC119: 5220.476087 | AD119: 1343.175666 | AE119: 888886.792 | AF119: 3240029.01 | AG119: 0 | AH119: 4860.043515 | AI119: 3235168.967 | AJ119: 129.3222271 | AK119: 470.6777729 | AL119: 888757.4698 | AM119: 3234698.289 | AN119: 0 | AO119: 0 | AP119: 160 | AQ119: 0 | AR119: 160 | AS119: 888757.4698 | AT119: 4443.787349 | AU119: 893201.2572 | AV119: 3234538.289 | AW119: 16172.69144 | AX119: 3250710.98 | AY119: 0 | AZ119: 0 | BA119: 0 | BB119: 0 | BC119: 0 | BD119: 820228.357 | BE119: 0 | BF119: 2050.570892 | BG119: 822278.9279 | BH119: 0 | BI119: 137616.3109 | BJ119: 0 | BK119: 273.8564587 | BL119: 686.7122722 | BM119: 138029.1667 | BN119: 0 | BO119: 0 | BP119: 0 | BQ119: 0 | BR119: 0 | BS119: 0 | BT119: 0 | BU119: 0 | BV119: 0 | BW119: 0 | BX119: 0 | BY119: 0 | BZ119: 0 | CA119: 0 | CB119: 0 | CC119: 0 | CD119: 0 | CE119: 0 | CF119: 0 | CG119: 0 | CH119: 0 | CI119: 0 | CJ119: 0 | CK119: 0 | CL119: 138029.1667
W120: 119 | X120: 10 | Y120: 0 | Z120: =IF($B$29=1,1,FundingFactor(W120,FEL_period,Entage,1,kktg+aktg,10)) -> 0.98534 | AA120: 893201.2572 | AB120: 0 | AC120: 5207.363329 | AD120: 1339.801886 | AE120: 886654.0919 | AF120: 3250710.98 | AG120: 0 | AH120: 4876.06647 | AI120: 3245834.914 | AJ120: 128.7341489 | AK120: 471.2658511 | AL120: 886525.3578 | AM120: 3245363.648 | AN120: 0 | AO120: 0 | AP120: 160 | AQ120: 0 | AR120: 160 | AS120: 886525.3578 | AT120: 4432.626789 | AU120: 890957.9846 | AV120: 3245203.648 | AW120: 16226.01824 | AX120: 3261429.666 | AY120: 0 | AZ120: 0 | BA120: 0 | BB120: 0 | BC120: 0 | BD120: 822278.9279 | BE120: 0 | BF120: 2055.69732 | BG120: 824334.6252 | BH120: 0 | BI120: 138029.1667 | BJ120: 0 | BK120: 274.6780418 | BL120: 688.7724433 | BM120: 138443.2611 | BN120: 0 | BO120: 0 | BP120: 0 | BQ120: 0 | BR120: 0 | BS120: 0 | BT120: 0 | BU120: 0 | BV120: 0 | BW120: 0 | BX120: 0 | BY120: 0 | BZ120: 0 | CA120: 0 | CB120: 0 | CC120: 0 | CD120: 0 | CE120: 0 | CF120: 0 | CG120: 0 | CH120: 0 | CI120: 0 | CJ120: 0 | CK120: 0 | CL120: 138443.2611
W121: 120 | X121: 10 | Y121: 0 | Z121: =IF($B$29=1,1,FundingFactor(W121,FEL_period,Entage,1,kktg+aktg,10)) -> 0.99267 | AA121: 890957.9846 | AB121: 0 | AC121: 5194.28505 | AD121: 1336.436977 | AE121: 884427.2626 | AF121: 3261429.666 | AG121: 0 | AH121: 4892.144499 | AI121: 3256537.522 | AJ121: 128.1480006 | AK121: 471.8519994 | AL121: 884299.1146 | AM121: 3256065.67 | AN121: 0 | AO121: 0 | AP121: 160 | AQ121: 0 | AR121: 160 | AS121: 884299.1146 | AT121: 4421.495573 | AU121: 888720.6101 | AV121: 3255905.67 | AW121: 16279.52835 | AX121: 3272185.198 | AY121: 0 | AZ121: 0 | BA121: 0 | BB121: 400000 | BC121: 400000 | BD121: 824334.6252 | BE121: 0 | BF121: 2060.836563 | BG121: 826395.4617 | BH121: 0 | BI121: 138443.2611 | BJ121: 0 | BK121: 275.5020896 | BL121: 690.8387951 | BM121: 138858.5978 | BN121: 0 | BO121: 0 | BP121: 0 | BQ121: 0 | BR121: 0 | BS121: 0 | BT121: 0 | BU121: 0 | BV121: 0 | BW121: 0 | BX121: 0 | BY121: 0 | BZ121: 0 | CA121: 0 | CB121: 0 | CC121: 0 | CD121: 0 | CE121: 0 | CF121: 0 | CG121: 0 | CH121: 0 | CI121: 0 | CJ121: 0 | CK121: 0 | CL121: 138858.5978
W122: 121 | X122: 11 | Y122: 400000 | Z122: =IF($B$29=1,1,FundingFactor(W122,FEL_period,Entage,1,kktg+aktg,10)) -> 1 | AA122: 888720.6101 | AB122: 0 | AC122: 0 | AD122: 1333.080915 | AE122: 887387.5292 | AF122: 3272185.198 | AG122: 400000 | AH122: 5508.277797 | AI122: 3666676.92 | AJ122: 116.9136984 | AK122: 483.0863016 | AL122: 887270.6155 | AM122: 3666193.834 | AN122: 0 | AO122: 0 | AP122: 160 | AQ122: 0 | AR122: 160 | AS122: 887270.6155 | AT122: 4436.353078 | AU122: 891706.9686 | AV122: 3666033.834 | AW122: 18330.16917 | AX122: 3684364.003 | AY122: 400000 | AZ122: 796 | BA122: 998.01 | BB122: 0 | BC122: 400202.01 | BD122: 826395.4617 | BE122: 0 | BF122: 2065.988654 | BG122: 828461.4504 | BH122: 0 | BI122: 138858.5978 | BJ122: 0 | BK122: 276.3286097 | BL122: 692.911346 | BM122: 139275.1806 | BN122: 0 | BO122: 0 | BP122: 0 | BQ122: 0 | BR122: 0 | BS122: 0 | BT122: 0 | BU122: 0 | BV122: 0 | BW122: 0 | BX122: 0 | BY122: 0 | BZ122: 0 | CA122: 0 | CB122: 0 | CC122: 0 | CD122: 0 | CE122: 0 | CF122: 0 | CG122: 0 | CH122: 0 | CI122: 0 | CJ122: 0 | CK122: 0 | CL122: 139275.1806
W123: 122 | X123: 11 | Y123: 0 | Z123: =IF($B$29=1,1,FundingFactor(W123,FEL_period,Entage,1,kktg+aktg,10)) -> 1 | AA123: 891706.9686 | AB123: 0 | AC123: 0 | AD123: 1337.560453 | AE123: 890369.4081 | AF123: 3684364.003 | AG123: 0 | AH123: 5526.546005 | AI123: 3678837.457 | AJ123: 116.9178067 | AK123: 483.0821933 | AL123: 890252.4903 | AM123: 3678354.375 | AN123: 0 | AO123: 0 | AP123: 160 | AQ123: 0 | AR123: 160 | AS123: 890252.4903 | AT123: 4451.262452 | AU123: 894703.7528 | AV123: 3678194.375 | AW123: 18390.97187 | AX123: 3696585.347 | AY123: 400202.01 | AZ123: 796.4019999 | BA123: 998.51402 | BB123: 0 | BC123: 400404.122 | BD123: 828461.4504 | BE123: 0 | BF123: 2071.153626 | BG123: 830532.604 | BH123: 0 | BI123: 139275.1806 | BJ123: 0 | BK123: 277.1576093 | BL123: 694.9901147 | BM123: 139693.0131 | BN123: 0 | BO123: 0 | BP123: 0 | BQ123: 0 | BR123: 0 | BS123: 0 | BT123: 0 | BU123: 0 | BV123: 0 | BW123: 0 | BX123: 0 | BY123: 0 | BZ123: 0 | CA123: 0 | CB123: 0 | CC123: 0 | CD123: 0 | CE123: 0 | CF123: 0 | CG123: 0 | CH123: 0 | CI123: 0 | CJ123: 0 | CK123: 0 | CL123: 139693.0131
W124: 123 | X124: 11 | Y124: 0 | Z124: =IF($B$29=1,1,FundingFactor(W124,FEL_period,Entage,1,kktg+aktg,10)) -> 1 | AA124: 894703.7528 | AB124: 0 | AC124: 0 | AD124: 1342.055629 | AE124: 893361.6972 | AF124: 3696585.347 | AG124: 0 | AH124: 5544.87802 | AI124: 3691040.469 | AJ124: 116.9219015 | AK124: 483.0780985 | AL124: 893244.7752 | AM124: 3690557.391 | AN124: 0 | AO124: 0 | AP124: 160 | AQ124: 0 | AR124: 160 | AS124: 893244.7752 | AT124: 4466.223876 | AU124: 897710.9991 | AV124: 3690397.391 | AW124: 18451.98695 | AX124: 3708849.378 | AY124: 400404.122 | AZ124: 796.8042028 | BA124: 999.0182945 | BB124: 0 | BC124: 400606.3361 | BD124: 830532.604 | BE124: 0 | BF124: 2076.33151 | BG124: 832608.9355 | BH124: 0 | BI124: 139693.0131 | BJ124: 0 | BK124: 277.989096 | BL124: 697.0751198 | BM124: 140112.0991 | BN124: 0 | BO124: 0 | BP124: 0 | BQ124: 0 | BR124: 0 | BS124: 0 | BT124: 0 | BU124: 0 | BV124: 0 | BW124: 0 | BX124: 0 | BY124: 0 | BZ124: 0 | CA124: 0 | CB124: 0 | CC124: 0 | CD124: 0 | CE124: 0 | CF124: 0 | CG124: 0 | CH124: 0 | CI124: 0 | CJ124: 0 | CK124: 0 | CL124: 140112.0991
W125: 124 | X125: 11 | Y125: 0 | Z125: =IF($B$29=1,1,FundingFactor(W125,FEL_period,Entage,1,kktg+aktg,10)) -> 1 | AA125: 897710.9991 | AB125: 0 | AC125: 0 | AD125: 1346.566499 | AE125: 896364.4326 | AF125: 3708849.378 | AG125: 0 | AH125: 5563.274066 | AI125: 3703286.104 | AJ125: 116.9259828 | AK125: 483.0740172 | AL125: 896247.5066 | AM125: 3702803.03 | AN125: 0 | AO125: 0 | AP125: 160 | AQ125: 0 | AR125: 160 | AS125: 896247.5066 | AT125: 4481.237533 | AU125: 900728.7442 | AV125: 3702643.03 | AW125: 18513.21515 | AX125: 3721156.245 | AY125: 400606.3361 | AZ125: 797.2066089 | BA125: 999.5228238 | BB125: 0 | BC125: 400808.6523 | BD125: 832608.9355 | BE125: 0 | BF125: 2081.522339 | BG125: 834690.4579 | BH125: 0 | BI125: 140112.0991 | BJ125: 0 | BK125: 278.8230772 | BL125: 699.16638 | BM125: 140532.4424 | BN125: 0 | BO125: 0 | BP125: 0 | BQ125: 0 | BR125: 0 | BS125: 0 | BT125: 0 | BU125: 0 | BV125: 0 | BW125: 0 | BX125: 0 | BY125: 0 | BZ125: 0 | CA125: 0 | CB125: 0 | CC125: 0 | CD125: 0 | CE125: 0 | CF125: 0 | CG125: 0 | CH125: 0 | CI125: 0 | CJ125: 0 | CK125: 0 | CL125: 140532.4424
W126: 125 | X126: 11 | Y126: 0 | Z126: =IF($B$29=1,1,FundingFactor(W126,FEL_period,Entage,1,kktg+aktg,10)) -> 1 | AA126: 900728.7442 | AB126: 0 | AC126: 0 | AD126: 1351.093116 | AE126: 899377.6511 | AF126: 3721156.245 | AG126: 0 | AH126: 5581.734367 | AI126: 3715574.51 | AJ126: 116.9300508 | AK126: 483.0699492 | AL126: 899260.721 | AM126: 3715091.44 | AN126: 0 | AO126: 0 | AP126: 160 | AQ126: 0 | AR126: 160 | AS126: 899260.721 | AT126: 4496.303605 | AU126: 903757.0246 | AV126: 3714931.44 | AW126: 18574.6572 | AX126: 3733506.098 | AY126: 400808.6523 | AZ126: 797.6092181 | BA126: 1000.027608 | BB126: 0 | BC126: 401011.0707 | BD126: 834690.4579 | BE126: 0 | BF126: 2086.726145 | BG126: 836777.184 | BH126: 0 | BI126: 140532.4424 | BJ126: 0 | BK126: 279.6595603 | BL126: 701.2639141 | BM126: 140954.0467 | BN126: 0 | BO126: 0 | BP126: 0 | BQ126: 0 | BR126: 0 | BS126: 0 | BT126: 0 | BU126: 0 | BV126: 0 | BW126: 0 | BX126: 0 | BY126: 0 | BZ126: 0 | CA126: 0 | CB126: 0 | CC126: 0 | CD126: 0 | CE126: 0 | CF126: 0 | CG126: 0 | CH126: 0 | CI126: 0 | CJ126: 0 | CK126: 0 | CL126: 140954.0467
W127: 126 | X127: 11 | Y127: 0 | Z127: =IF($B$29=1,1,FundingFactor(W127,FEL_period,Entage,1,kktg+aktg,10)) -> 1 | AA127: 903757.0246 | AB127: 0 | AC127: 0 | AD127: 1355.635537 | AE127: 902401.3891 | AF127: 3733506.098 | AG127: 0 | AH127: 5600.259146 | AI127: 3727905.838 | AJ127: 116.9341054 | AK127: 483.0658946 | AL127: 902284.455 | AM127: 3727422.773 | AN127: 0 | AO127: 0 | AP127: 160 | AQ127: 0 | AR127: 160 | AS127: 902284.455 | AT127: 4511.422275 | AU127: 906795.8772 | AV127: 3727262.773 | AW127: 18636.31386 | AX127: 3745899.086 | AY127: 401011.0707 | AZ127: 798.0120307 | BA127: 1000.532647 | BB127: 0 | BC127: 401213.5913 | BD127: 836777.184 | BE127: 0 | BF127: 2091.94296 | BG127: 838869.127 | BH127: 0 | BI127: 140954.0467 | BJ127: 0 | BK127: 280.498553 | BL127: 703.3677409 | BM127: 141376.9159 | BN127: 0 | BO127: 0 | BP127: 0 | BQ127: 0 | BR127: 0 | BS127: 0 | BT127: 0 | BU127: 0 | BV127: 0 | BW127: 0 | BX127: 0 | BY127: 0 | BZ127: 0 | CA127: 0 | CB127: 0 | CC127: 0 | CD127: 0 | CE127: 0 | CF127: 0 | CG127: 0 | CH127: 0 | CI127: 0 | CJ127: 0 | CK127: 0 | CL127: 141376.9159
W128: 127 | X128: 11 | Y128: 0 | Z128: =IF($B$29=1,1,FundingFactor(W128,FEL_period,Entage,1,kktg+aktg,10)) -> 1 | AA128: 906795.8772 | AB128: 0 | AC128: 0 | AD128: 1360.193816 | AE128: 905435.6834 | AF128: 3745899.086 | AG128: 0 | AH128: 5618.84863 | AI128: 3740280.238 | AJ128: 116.9381467 | AK128: 483.0618533 | AL128: 905318.7453 | AM128: 3739797.176 | AN128: 0 | AO128: 0 | AP128: 160 | AQ128: 0 | AR128: 160 | AS128: 905318.7453 | AT128: 4526.593726 | AU128: 909845.339 | AV128: 3739637.176 | AW128: 18698.18588 | AX128: 3758335.362 | AY128: 401213.5913 | AZ128: 798.4150468 | BA128: 1001.037941 | BB128: 0 | BC128: 401416.2142 | BD128: 838869.127 | BE128: 80000 | BF128: 2297.172817 | BG128: 921166.2998 | BH128: 0 | BI128: 141376.9159 | BJ128: 0 | BK128: 281.3400627 | BL128: 705.4778793 | BM128: 141801.0537 | BN128: 0 | BO128: 0 | BP128: 0 | BQ128: 0 | BR128: 0 | BS128: 0 | BT128: 0 | BU128: 0 | BV128: 0 | BW128: 0 | BX128: 0 | BY128: 0 | BZ128: 0 | CA128: 0 | CB128: 0 | CC128: 0 | CD128: 0 | CE128: 0 | CF128: 0 | CG128: 0 | CH128: 0 | CI128: 0 | CJ128: 0 | CK128: 0 | CL128: 141801.0537
W129: 128 | X129: 11 | Y129: 0 | Z129: =IF($B$29=1,1,FundingFactor(W129,FEL_period,Entage,1,kktg+aktg,10)) -> 1 | AA129: 909845.339 | AB129: 0 | AC129: 0 | AD129: 1364.768009 | AE129: 908480.571 | AF129: 3758335.362 | AG129: 0 | AH129: 5637.503043 | AI129: 3752697.859 | AJ129: 116.9421748 | AK129: 483.0578252 | AL129: 908363.6288 | AM129: 3752214.801 | AN129: 0 | AO129: 0 | AP129: 160 | AQ129: 0 | AR129: 160 | AS129: 908363.6288 | AT129: 4541.818144 | AU129: 912905.447 | AV129: 3752054.801 | AW129: 18760.274 | AX129: 3770815.075 | AY129: 401416.2142 | AZ129: 798.8182663 | BA129: 1001.54349 | BB129: 0 | BC129: 401618.9394 | BD129: 921166.2998 | BE129: 0 | BF129: 2302.915749 | BG129: 923469.2155 | BH129: 0 | BI129: 141801.0537 | BJ129: 0 | BK129: 282.184097 | BL129: 707.5943482 | BM129: 142226.464 | BN129: 0 | BO129: 0 | BP129: 0 | BQ129: 0 | BR129: 0 | BS129: 0 | BT129: 0 | BU129: 0 | BV129: 0 | BW129: 0 | BX129: 0 | BY129: 0 | BZ129: 0 | CA129: 0 | CB129: 0 | CC129: 0 | CD129: 0 | CE129: 0 | CF129: 0 | CG129: 0 | CH129: 0 | CI129: 0 | CJ129: 0 | CK129: 0 | CL129: 142226.464
W130: 129 | X130: 11 | Y130: 0 | Z130: =IF($B$29=1,1,FundingFactor(W130,FEL_period,Entage,1,kktg+aktg,10)) -> 1 | AA130: 912905.447 | AB130: =+IF(W130<=FEL_build*12,Y130,0) -> 0 | AC130: =IF($B$29=1,0,IF(X130<=FEL_period,(AA130+AB130)*kktg/12,0)) -> 0 | AD130: =+(AA130+AB130)*aktg/12 -> 1369.35817 | AE130: 911536.0888 | AF130: 3770815.075 | AG130: 0 | AH130: =+(AF130+AG130)*aktg/12 -> 5656.222612 | AI130: 3765158.852 | AJ130: =+fixktg-AK130 -> 116.9461896 | AK130: =+IF(share_mode=1,AI130/(AI130+AE130),MIN(AI130/fixktg,1))*fixktg -> 483.0538104 | AL130: 911419.1426 | AM130: 3764675.798 | AN130: =MAX((hal_bo-AL130*Z130-AM130),0) -> 0 | AO130: =+AN130*VLOOKUP(Entage+X130-1,$CU$2:$CV$102,2,FALSE)/12*(1+$DQ$10) -> 0 | AP130: =+rokk_bo*rokk_dij/12 -> 160 | AQ130: 0 | AR130: =+IF(share_mode2=1,AM130/(AM130+AL130),MIN(AM130/(AO130+AP130),1))*AO130 +IF(share_mode3=1,AM130/(AM130+AL130),MIN(AM130/(AO130+AP130),1))*AP130 -> 160 | AS130: 911419.1426 | AT130: =+AS130*hozam/12 -> 4557.095713 | AU130: 915976.2383 | AV130: 3764515.798 | AW130: =+AV130*hozam/12 -> 18822.57899 | AX130: 3783338.377 | AY130: 401618.9394 | AZ130: =+(AY130)*eaktg/12 -> 799.2216895 | BA130: =+(AY130-AZ130)*hozam2/12 -> 1002.049294 | BB130: =+IF(W130=120,Prem,0) +IF(W130=180,Prem*0.5,0) +IF(W130=240,Prem*0.5,0) -> 0 | BC130: =+AY130-AZ130+BA130+BB130 -> 401821.7671 | BD130: 923469.2155 | BE130: =MIN(IF(AND(W130>12,MOD(W130,12)=7),1,0)*Prem*20%,130000) -> 0 | BF130: =+(BD130+BE130)*hozam2/12 -> 2308.673039 | BG130: 925777.8886 | BH130: 0 | BI130: 142226.464 | BJ130: 0 | BK130: =+(BI130-BJ130)*eaktg/12 -> 283.0306634 | BL130: =+(BI130-BK130)*hozam/12 -> 709.7171667 | BM130: 142653.1505 | BN130: 0 | BO130: 0 | BP130: 0 | BQ130: =+(BO130-BP130)*eaktg/12 -> 0 | BR130: =+(BO130-BQ130)*hozam/12 -> 0 | BS130: 0 | BT130: 0 | BU130: 0 | BV130: 0 | BW130: =+(BU130-BV130)*eaktg/12 -> 0 | BX130: =+(BU130-BW130)*hozam/12 -> 0 | BY130: 0 | BZ130: 0 | CA130: 0 | CB130: 0 | CC130: =+(CA130-CB130)*eaktg/12 -> 0 | CD130: =+(CA130-CC130)*hozam/12 -> 0 | CE130: 0 | CF130: 0 | CG130: 0 | CH130: 0 | CI130: =+(CG130-CH130)*eaktg/12 -> 0 | CJ130: =+(CG130-CI130)*hozam/12 -> 0 | CK130: 0 | CL130: 142653.1505
W131: 130 | X131: =+ROUNDDOWN((W131-1)/12,0)+1 -> 11 | Y131: =+IF(MOD((W131-1),(12/PremFreq))=0,Prem/PremFreq,0) -> 0 | Z131: =IF($B$29=1,1,FundingFactor(W131,FEL_period,Entage,1,kktg+aktg,10)) -> 1 | AA131: 915976.2383 | AB131: 0 | AC131: 0 | AD131: 1373.964357 | AE131: 914602.274 | AF131: 3783338.377 | AG131: 0 | AH131: 5675.007566 | AI131: 3777663.37 | AJ131: 116.9501912 | AK131: 483.0498088 | AL131: 914485.3238 | AM131: 3777180.32 | AN131: 0 | AO131: 0 | AP131: 160 | AQ131: 0 | AR131: 160 | AS131: 914485.3238 | AT131: 4572.426619 | AU131: 919057.7504 | AV131: 3777020.32 | AW131: 18885.1016 | AX131: 3795905.422 | AY131: 401821.7671 | AZ131: 799.6253164 | BA131: 1002.555354 | BB131: 0 | BC131: 402024.6971 | BD131: 925777.8886 | BE131: 0 | BF131: 2314.444721 | BG131: =+BD131+BE131+BF131 -> 928092.3333 | BH131: =IF($W131=$DC$19,$DD$19,0) -> 0 | BI131: 142653.1505 | BJ131: =BH131*$DQ$14 -> 0 | BK131: 283.8797695 | BL131: 711.8463536 | BM131: =BI131-BJ131-BK131+BL131 -> 143081.1171 | BN131: =IF($W131=$DC$20,$DD$20,0) -> 0 | BO131: 0 | BP131: =BN131*$DQ$14 -> 0 | BQ131: 0 | BR131: 0 | BS131: =BO131-BP131-BQ131+BR131 -> 0 | BT131: =IF($W131=$DC$21,$DD$21,0) -> 0 | BU131: 0 | BV131: =BT131*$DQ$14 -> 0 | BW131: 0 | BX131: 0 | BY131: =BU131-BV131-BW131+BX131 -> 0 | BZ131: =IF($W131=$DC$22,$DD$22,0) -> 0 | CA131: 0 | CB131: =BZ131*$DQ$14 -> 0 | CC131: 0 | CD131: 0 | CE131: =CA131-CB131-CC131+CD131 -> 0 | CF131: =IF($W131=$DC$23,$DD$23,0) -> 0 | CG131: 0 | CH131: =CF131*$DQ$14 -> 0 | CI131: 0 | CJ131: 0 | CK131: =CG131-CH131-CI131+CJ131 -> 0 | CL131: =BM131+BS131+BY131+CE131+CK131 -> 143081.1171
W132: 131 | X132: 11 | Y132: 0 | Z132: =IF($B$29=1,1,FundingFactor(W132,FEL_period,Entage,1,kktg+aktg,10)) -> 1 | AA132: =+AU131 -> 919057.7504 | AB132: 0 | AC132: 0 | AD132: 1378.586626 | AE132: =+AA132+AB132-AC132-AD132 -> 917679.1638 | AF132: =+AX131 -> 3795905.422 | AG132: =+Y132-AB132 -> 0 | AH132: 5693.858133 | AI132: =+AF132+AG132-AH132 -> 3790211.564 | AJ132: 116.9541797 | AK132: 483.0458203 | AL132: =+AE132-AJ132 -> 917562.2096 | AM132: =+AI132-AK132 -> 3789728.518 | AN132: 0 | AO132: 0 | AP132: 160 | AQ132: =+(AO132+AP132)-AR132 -> 0 | AR132: 160 | AS132: =+AL132-AQ132 -> 917562.2096 | AT132: 4587.811048 | AU132: =+AS132+AT132 -> 922150.0206 | AV132: =+AM132-AR132 -> 3789568.518 | AW132: 18947.84259 | AX132: =+AV132+AW132 -> 3808516.36 | AY132: =+BC131 -> 402024.6971 | AZ132: 800.0291472 | BA132: 1003.06167 | BB132: 0 | BC132: 402227.7296 | BD132: =+BG131 -> 928092.3333 | BE132: 0 | BF132: 2320.230833 | BG132: 930412.5641 | BH132: 0 | BI132: =BH132+BM131 -> 143081.1171 | BJ132: 0 | BK132: 284.731423 | BL132: 713.9819283 | BM132: 143510.3676 | BN132: 0 | BO132: =BN132+BS131 -> 0 | BP132: 0 | BQ132: 0 | BR132: 0 | BS132: 0 | BT132: 0 | BU132: =BT132+BY131 -> 0 | BV132: 0 | BW132: 0 | BX132: 0 | BY132: 0 | BZ132: 0 | CA132: =BZ132+CE131 -> 0 | CB132: 0 | CC132: 0 | CD132: 0 | CE132: 0 | CF132: 0 | CG132: =CF132+CK131 -> 0 | CH132: 0 | CI132: 0 | CJ132: 0 | CK132: 0 | CL132: 143510.3676
W133: 132 | X133: 11 | Y133: 0 | Z133: =IF($B$29=1,1,FundingFactor(W133,FEL_period,Entage,1,kktg+aktg,10)) -> 1 | AA133: 922150.0206 | AB133: 0 | AC133: 0 | AD133: 1383.225031 | AE133: 920766.7956 | AF133: 3808516.36 | AG133: 0 | AH133: 5712.77454 | AI133: 3802803.586 | AJ133: 116.9581551 | AK133: 483.0418449 | AL133: 920649.8375 | AM133: 3802320.544 | AN133: 0 | AO133: 0 | AP133: 160 | AQ133: 0 | AR133: 160 | AS133: 920649.8375 | AT133: 4603.249187 | AU133: 925253.0866 | AV133: 3802160.544 | AW133: 19010.80272 | AX133: 3821171.347 | AY133: 402227.7296 | AZ133: 800.4331819 | BA133: 1003.568241 | BB133: 0 | BC133: 402430.8647 | BD133: 930412.5641 | BE133: 0 | BF133: 2326.03141 | BG133: 932738.5955 | BH133: 0 | BI133: 143510.3676 | BJ133: 0 | BK133: 285.5856315 | BL133: 716.1239098 | BM133: 143940.9059 | BN133: 0 | BO133: 0 | BP133: 0 | BQ133: 0 | BR133: 0 | BS133: 0 | BT133: 0 | BU133: 0 | BV133: 0 | BW133: 0 | BX133: 0 | BY133: 0 | BZ133: 0 | CA133: 0 | CB133: 0 | CC133: 0 | CD133: 0 | CE133: 0 | CF133: 0 | CG133: 0 | CH133: 0 | CI133: 0 | CJ133: 0 | CK133: 0 | CL133: 143940.9059
W134: 133 | X134: 12 | Y134: 400000 | Z134: =IF($B$29=1,1,FundingFactor(W134,FEL_period,Entage,1,kktg+aktg,10)) -> 1 | AA134: 925253.0866 | AB134: 0 | AC134: 0 | AD134: 1387.87963 | AE134: 923865.207 | AF134: 3821171.347 | AG134: 400000 | AH134: 6331.75702 | AI134: 4214839.59 | AJ134: 107.8713696 | AK134: 492.1286304 | AL134: 923757.3356 | AM134: 4214347.461 | AN134: 0 | AO134: 0 | AP134: 160 | AQ134: 0 | AR134: 160 | AS134: 923757.3356 | AT134: 4618.786678 | AU134: 928376.1223 | AV134: 4214187.461 | AW134: 21070.93731 | AX134: 4235258.398 | AY134: 402430.8647 | AZ134: 800.8374207 | BA134: 1004.075068 | BB134: 0 | BC134: 402634.1023 | BD134: 932738.5955 | BE134: 0 | BF134: 2331.846489 | BG134: 935070.442 | BH134: 0 | BI134: 143940.9059 | BJ134: 0 | BK134: 286.4424027 | BL134: 718.2723173 | BM134: 144372.7358 | BN134: 0 | BO134: 0 | BP134: 0 | BQ134: 0 | BR134: 0 | BS134: 0 | BT134: 0 | BU134: 0 | BV134: 0 | BW134: 0 | BX134: 0 | BY134: 0 | BZ134: 0 | CA134: 0 | CB134: 0 | CC134: 0 | CD134: 0 | CE134: 0 | CF134: 0 | CG134: 0 | CH134: 0 | CI134: 0 | CJ134: 0 | CK134: 0 | CL134: 144372.7358
W135: 134 | X135: 12 | Y135: 0 | Z135: =IF($B$29=1,1,FundingFactor(W135,FEL_period,Entage,1,kktg+aktg,10)) -> 1 | AA135: 928376.1223 | AB135: 0 | AC135: 0 | AD135: 1392.564183 | AE135: 926983.5581 | AF135: 4235258.398 | AG135: 0 | AH135: 6352.887597 | AI135: 4228905.511 | AJ135: 107.8747288 | AK135: 492.1252712 | AL135: 926875.6834 | AM135: 4228413.385 | AN135: 0 | AO135: 0 | AP135: 160 | AQ135: 0 | AR135: 160 | AS135: 926875.6834 | AT135: 4634.378417 | AU135: 931510.0618 | AV135: 4228253.385 | AW135: 21141.26693 | AX135: 4249394.652 | AY135: 402634.1023 | AZ135: 801.2418636 | BA135: 1004.582151 | BB135: 0 | BC135: 402837.4426 | BD135: 935070.442 | BE135: 0 | BF135: 2337.676105 | BG135: 937408.1181 | BH135: 0 | BI135: 144372.7358 | BJ135: 0 | BK135: 287.3017442 | BL135: 720.4271702 | BM135: 144805.8612 | BN135: 0 | BO135: 0 | BP135: 0 | BQ135: 0 | BR135: 0 | BS135: 0 | BT135: 0 | BU135: 0 | BV135: 0 | BW135: 0 | BX135: 0 | BY135: 0 | BZ135: 0 | CA135: 0 | CB135: 0 | CC135: 0 | CD135: 0 | CE135: 0 | CF135: 0 | CG135: 0 | CH135: 0 | CI135: 0 | CJ135: 0 | CK135: 0 | CL135: 144805.8612
W136: 135 | X136: 12 | Y136: 0 | Z136: =IF($B$29=1,1,FundingFactor(W136,FEL_period,Entage,1,kktg+aktg,10)) -> 1 | AA136: 931510.0618 | AB136: 0 | AC136: 0 | AD136: 1397.265093 | AE136: 930112.7967 | AF136: 4249394.652 | AG136: 0 | AH136: 6374.091979 | AI136: 4243020.56 | AJ136: 107.8780769 | AK136: 492.1219231 | AL136: 930004.9187 | AM136: 4242528.438 | AN136: 0 | AO136: 0 | AP136: 160 | AQ136: 0 | AR136: 160 | AS136: 930004.9187 | AT136: 4650.024593 | AU136: 934654.9432 | AV136: 4242368.438 | AW136: 21211.84219 | AX136: 4263580.281 | AY136: 402837.4426 | AZ136: 801.6465108 | BA136: 1005.08949 | BB136: 0 | BC136: 403040.8856 | BD136: 937408.1181 | BE136: 0 | BF136: 2343.520295 | BG136: 939751.6384 | BH136: 0 | BI136: 144805.8612 | BJ136: 0 | BK136: 288.1636638 | BL136: 722.5884877 | BM136: 145240.286 | BN136: 0 | BO136: 0 | BP136: 0 | BQ136: 0 | BR136: 0 | BS136: 0 | BT136: 0 | BU136: 0 | BV136: 0 | BW136: 0 | BX136: 0 | BY136: 0 | BZ136: 0 | CA136: 0 | CB136: 0 | CC136: 0 | CD136: 0 | CE136: 0 | CF136: 0 | CG136: 0 | CH136: 0 | CI136: 0 | CJ136: 0 | CK136: 0 | CL136: 145240.286
W137: 136 | X137: 12 | Y137: 0 | Z137: =IF($B$29=1,1,FundingFactor(W137,FEL_period,Entage,1,kktg+aktg,10)) -> 1 | AA137: 934654.9432 | AB137: 0 | AC137: 0 | AD137: 1401.982415 | AE137: 933252.9608 | AF137: 4263580.281 | AG137: 0 | AH137: 6395.370421 | AI137: 4257184.91 | AJ137: 107.8814139 | AK137: 492.1185861 | AL137: 933145.0794 | AM137: 4256692.792 | AN137: 0 | AO137: 0 | AP137: 160 | AQ137: 0 | AR137: 160 | AS137: 933145.0794 | AT137: 4665.725397 | AU137: 937810.8048 | AV137: 4256532.792 | AW137: 21282.66396 | AX137: 4277815.456 | AY137: 403040.8856 | AZ137: 802.0513623 | BA137: 1005.597086 | BB137: 0 | BC137: 403244.4313 | BD137: 939751.6384 | BE137: 0 | BF137: 2349.379096 | BG137: 942101.0175 | BH137: 0 | BI137: 145240.286 | BJ137: 0 | BK137: 289.0281692 | BL137: 724.7562893 | BM137: 145676.0142 | BN137: 0 | BO137: 0 | BP137: 0 | BQ137: 0 | BR137: 0 | BS137: 0 | BT137: 0 | BU137: 0 | BV137: 0 | BW137: 0 | BX137: 0 | BY137: 0 | BZ137: 0 | CA137: 0 | CB137: 0 | CC137: 0 | CD137: 0 | CE137: 0 | CF137: 0 | CG137: 0 | CH137: 0 | CI137: 0 | CJ137: 0 | CK137: 0 | CL137: 145676.0142
W138: 137 | X138: 12 | Y138: 0 | Z138: =IF($B$29=1,1,FundingFactor(W138,FEL_period,Entage,1,kktg+aktg,10)) -> 1 | AA138: 937810.8048 | AB138: 0 | AC138: 0 | AD138: 1406.716207 | AE138: 936404.0886 | AF138: 4277815.456 | AG138: 0 | AH138: 6416.723183 | AI138: 4271398.732 | AJ138: 107.88474 | AK138: 492.11526 | AL138: 936296.2039 | AM138: 4270906.617 | AN138: 0 | AO138: 0 | AP138: 160 | AQ138: 0 | AR138: 160 | AS138: 936296.2039 | AT138: 4681.481019 | AU138: 940977.6849 | AV138: 4270746.617 | AW138: 21353.73309 | AX138: 4292100.35 | AY138: 403244.4313 | AZ138: 802.4564183 | BA138: 1006.104937 | BB138: 0 | BC138: 403448.0798 | BD138: 942101.0175 | BE138: 0 | BF138: 2355.252544 | BG138: 944456.2701 | BH138: 0 | BI138: 145676.0142 | BJ138: 0 | BK138: 289.8952682 | BL138: 726.9305944 | BM138: 146113.0495 | BN138: 0 | BO138: 0 | BP138: 0 | BQ138: 0 | BR138: 0 | BS138: 0 | BT138: 0 | BU138: 0 | BV138: 0 | BW138: 0 | BX138: 0 | BY138: 0 | BZ138: 0 | CA138: 0 | CB138: 0 | CC138: 0 | CD138: 0 | CE138: 0 | CF138: 0 | CG138: 0 | CH138: 0 | CI138: 0 | CJ138: 0 | CK138: 0 | CL138: 146113.0495
W139: 138 | X139: 12 | Y139: 0 | Z139: =IF($B$29=1,1,FundingFactor(W139,FEL_period,Entage,1,kktg+aktg,10)) -> 1 | AA139: 940977.6849 | AB139: 0 | AC139: 0 | AD139: 1411.466527 | AE139: 939566.2184 | AF139: 4292100.35 | AG139: 0 | AH139: 6438.150525 | AI139: 4285662.2 | AJ139: 107.888055 | AK139: 492.111945 | AL139: 939458.3303 | AM139: 4285170.088 | AN139: 0 | AO139: 0 | AP139: 160 | AQ139: 0 | AR139: 160 | AS139: 939458.3303 | AT139: 4697.291652 | AU139: 944155.622 | AV139: 4285010.088 | AW139: 21425.05044 | AX139: 4306435.138 | AY139: 403448.0798 | AZ139: 802.8616789 | BA139: 1006.613045 | BB139: 0 | BC139: 403651.8312 | BD139: 944456.2701 | BE139: 0 | BF139: 2361.140675 | BG139: 946817.4108 | BH139: 0 | BI139: 146113.0495 | BJ139: 0 | BK139: 290.7649685 | BL139: 729.1114225 | BM139: 146551.3959 | BN139: 0 | BO139: 0 | BP139: 0 | BQ139: 0 | BR139: 0 | BS139: 0 | BT139: 0 | BU139: 0 | BV139: 0 | BW139: 0 | BX139: 0 | BY139: 0 | BZ139: 0 | CA139: 0 | CB139: 0 | CC139: 0 | CD139: 0 | CE139: 0 | CF139: 0 | CG139: 0 | CH139: 0 | CI139: 0 | CJ139: 0 | CK139: 0 | CL139: 146551.3959
W140: 139 | X140: 12 | Y140: 0 | Z140: =IF($B$29=1,1,FundingFactor(W140,FEL_period,Entage,1,kktg+aktg,10)) -> 1 | AA140: 944155.622 | AB140: 0 | AC140: 0 | AD140: 1416.233433 | AE140: 942739.3885 | AF140: 4306435.138 | AG140: 0 | AH140: 6459.652707 | AI140: 4299975.486 | AJ140: 107.8913591 | AK140: 492.1086409 | AL140: 942631.4972 | AM140: 4299483.377 | AN140: 0 | AO140: 0 | AP140: 160 | AQ140: 0 | AR140: 160 | AS140: 942631.4972 | AT140: 4713.157486 | AU140: 947344.6546 | AV140: 4299323.377 | AW140: 21496.61688 | AX140: 4320819.994 | AY140: 403651.8312 | AZ140: 803.2671441 | BA140: 1007.12141 | BB140: 0 | BC140: 403855.6855 | BD140: 946817.4108 | BE140: 80000 | BF140: 2567.043527 | BG140: 1029384.454 | BH140: 0 | BI140: 146551.3959 | BJ140: 0 | BK140: 291.6372779 | BL140: 731.2987933 | BM140: 146991.0574 | BN140: 0 | BO140: 0 | BP140: 0 | BQ140: 0 | BR140: 0 | BS140: 0 | BT140: 0 | BU140: 0 | BV140: 0 | BW140: 0 | BX140: 0 | BY140: 0 | BZ140: 0 | CA140: 0 | CB140: 0 | CC140: 0 | CD140: 0 | CE140: 0 | CF140: 0 | CG140: 0 | CH140: 0 | CI140: 0 | CJ140: 0 | CK140: 0 | CL140: 146991.0574
W141: 140 | X141: 12 | Y141: 0 | Z141: =IF($B$29=1,1,FundingFactor(W141,FEL_period,Entage,1,kktg+aktg,10)) -> 1 | AA141: 947344.6546 | AB141: 0 | AC141: 0 | AD141: 1421.016982 | AE141: 945923.6377 | AF141: 4320819.994 | AG141: 0 | AH141: 6481.229991 | AI141: 4314338.764 | AJ141: 107.8946523 | AK141: 492.1053477 | AL141: 945815.743 | AM141: 4313846.658 | AN141: 0 | AO141: 0 | AP141: 160 | AQ141: 0 | AR141: 160 | AS141: 945815.743 | AT141: 4729.078715 | AU141: 950544.8217 | AV141: 4313686.658 | AW141: 21568.43329 | AX141: 4335255.092 | AY141: 403855.6855 | AZ141: 803.6728141 | BA141: 1007.630032 | BB141: 0 | BC141: 404059.6427 | BD141: 1029384.454 | BE141: 0 | BF141: 2573.461136 | BG141: 1031957.915 | BH141: 0 | BI141: 146991.0574 | BJ141: 0 | BK141: 292.5122043 | BL141: 733.4927262 | BM141: 147432.038 | BN141: 0 | BO141: 0 | BP141: 0 | BQ141: 0 | BR141: 0 | BS141: 0 | BT141: 0 | BU141: 0 | BV141: 0 | BW141: 0 | BX141: 0 | BY141: 0 | BZ141: 0 | CA141: 0 | CB141: 0 | CC141: 0 | CD141: 0 | CE141: 0 | CF141: 0 | CG141: 0 | CH141: 0 | CI141: 0 | CJ141: 0 | CK141: 0 | CL141: 147432.038
W142: 141 | X142: 12 | Y142: 0 | Z142: =IF($B$29=1,1,FundingFactor(W142,FEL_period,Entage,1,kktg+aktg,10)) -> 1 | AA142: 950544.8217 | AB142: 0 | AC142: 0 | AD142: 1425.817233 | AE142: 949119.0045 | AF142: 4335255.092 | AG142: 0 | AH142: 6502.882638 | AI142: 4328752.209 | AJ142: 107.8979345 | AK142: 492.1020655 | AL142: 949011.1066 | AM142: 4328260.107 | AN142: 0 | AO142: 0 | AP142: 160 | AQ142: 0 | AR142: 160 | AS142: 949011.1066 | AT142: 4745.055533 | AU142: 953756.1621 | AV142: 4328100.107 | AW142: 21640.50054 | AX142: 4349740.608 | AY142: 404059.6427 | AZ142: 804.0786889 | BA142: 1008.13891 | BB142: 0 | BC142: 404263.7029 | BD142: 1031957.915 | BE142: 0 | BF142: 2579.894789 | BG142: 1034537.81 | BH142: 0 | BI142: 147432.038 | BJ142: 0 | BK142: 293.3897556 | BL142: 735.6932411 | BM142: 147874.3415 | BN142: 0 | BO142: 0 | BP142: 0 | BQ142: 0 | BR142: 0 | BS142: 0 | BT142: 0 | BU142: 0 | BV142: 0 | BW142: 0 | BX142: 0 | BY142: 0 | BZ142: 0 | CA142: 0 | CB142: 0 | CC142: 0 | CD142: 0 | CE142: 0 | CF142: 0 | CG142: 0 | CH142: 0 | CI142: 0 | CJ142: 0 | CK142: 0 | CL142: 147874.3415
W143: 142 | X143: 12 | Y143: 0 | Z143: =IF($B$29=1,1,FundingFactor(W143,FEL_period,Entage,1,kktg+aktg,10)) -> 1 | AA143: 953756.1621 | AB143: 0 | AC143: 0 | AD143: 1430.634243 | AE143: 952325.5279 | AF143: 4349740.608 | AG143: 0 | AH143: 6524.610911 | AI143: 4343215.997 | AJ143: 107.901206 | AK143: 492.098794 | AL143: 952217.6266 | AM143: 4342723.898 | AN143: 0 | AO143: 0 | AP143: 160 | AQ143: 0 | AR143: 160 | AS143: 952217.6266 | AT143: 4761.088133 | AU143: 956978.7148 | AV143: 4342563.898 | AW143: 21712.81949 | AX143: 4364276.717 | AY143: 404263.7029 | AZ143: 804.4847688 | BA143: 1008.648045 | BB143: 0 | BC143: 404467.8662 | BD143: 1034537.81 | BE143: 0 | BF143: 2586.344526 | BG143: 1037124.155 | BH143: 0 | BI143: 147874.3415 | BJ143: 0 | BK143: 294.2699395 | BL143: 737.9003576 | BM143: 148317.9719 | BN143: 0 | BO143: 0 | BP143: 0 | BQ143: 0 | BR143: 0 | BS143: 0 | BT143: 0 | BU143: 0 | BV143: 0 | BW143: 0 | BX143: 0 | BY143: 0 | BZ143: 0 | CA143: 0 | CB143: 0 | CC143: 0 | CD143: 0 | CE143: 0 | CF143: 0 | CG143: 0 | CH143: 0 | CI143: 0 | CJ143: 0 | CK143: 0 | CL143: 148317.9719
W144: 143 | X144: 12 | Y144: 0 | Z144: =IF($B$29=1,1,FundingFactor(W144,FEL_period,Entage,1,kktg+aktg,10)) -> 1 | AA144: 956978.7148 | AB144: 0 | AC144: 0 | AD144: 1435.468072 | AE144: 955543.2467 | AF144: 4364276.717 | AG144: 0 | AH144: 6546.415076 | AI144: 4357730.302 | AJ144: 107.9044666 | AK144: 492.0955334 | AL144: 955435.3422 | AM144: 4357238.207 | AN144: 0 | AO144: 0 | AP144: 160 | AQ144: 0 | AR144: 160 | AS144: 955435.3422 | AT144: 4777.176711 | AU144: 960212.519 | AV144: 4357078.207 | AW144: 21785.39103 | AX144: 4378863.598 | AY144: 404467.8662 | AZ144: 804.8910537 | BA144: 1009.157438 | BB144: 0 | BC144: 404672.1326 | BD144: 1037124.155 | BE144: 0 | BF144: 2592.810387 | BG144: 1039716.965 | BH144: 0 | BI144: 148317.9719 | BJ144: 0 | BK144: 295.152764 | BL144: 740.1140955 | BM144: 148762.9332 | BN144: 0 | BO144: 0 | BP144: 0 | BQ144: 0 | BR144: 0 | BS144: 0 | BT144: 0 | BU144: 0 | BV144: 0 | BW144: 0 | BX144: 0 | BY144: 0 | BZ144: 0 | CA144: 0 | CB144: 0 | CC144: 0 | CD144: 0 | CE144: 0 | CF144: 0 | CG144: 0 | CH144: 0 | CI144: 0 | CJ144: 0 | CK144: 0 | CL144: 148762.9332
W145: 144 | X145: 12 | Y145: 0 | Z145: =IF($B$29=1,1,FundingFactor(W145,FEL_period,Entage,1,kktg+aktg,10)) -> 1 | AA145: 960212.519 | AB145: 0 | AC145: 0 | AD145: 1440.318778 | AE145: 958772.2002 | AF145: 4378863.598 | AG145: 0 | AH145: 6568.295397 | AI145: 4372295.302 | AJ145: 107.9077164 | AK145: 492.0922836 | AL145: 958664.2925 | AM145: 4371803.21 | AN145: 0 | AO145: 0 | AP145: 160 | AQ145: 0 | AR145: 160 | AS145: 958664.2925 | AT145: 4793.321462 | AU145: 963457.6139 | AV145: 4371643.21 | AW145: 21858.21605 | AX145: 4393501.426 | AY145: 404672.1326 | AZ145: 805.2975438 | BA145: 1009.667088 | BB145: 0 | BC145: 404876.5021 | BD145: 1039716.965 | BE145: 0 | BF145: 2599.292413 | BG145: 1042316.258 | BH145: 0 | BI145: 148762.9332 | BJ145: 0 | BK145: 296.0382371 | BL145: 742.3344748 | BM145: 149209.2294 | BN145: 0 | BO145: 0 | BP145: 0 | BQ145: 0 | BR145: 0 | BS145: 0 | BT145: 0 | BU145: 0 | BV145: 0 | BW145: 0 | BX145: 0 | BY145: 0 | BZ145: 0 | CA145: 0 | CB145: 0 | CC145: 0 | CD145: 0 | CE145: 0 | CF145: 0 | CG145: 0 | CH145: 0 | CI145: 0 | CJ145: 0 | CK145: 0 | CL145: 149209.2294
W146: 145 | X146: 13 | Y146: 400000 | Z146: =IF($B$29=1,1,FundingFactor(W146,FEL_period,Entage,1,kktg+aktg,10)) -> 1 | AA146: 963457.6139 | AB146: 0 | AC146: 0 | AD146: 1445.186421 | AE146: 962012.4275 | AF146: 4393501.426 | AG146: 400000 | AH146: 7190.252139 | AI146: 4786311.174 | AJ146: 100.4131807 | AK146: 499.5868193 | AL146: 961912.0143 | AM146: 4785811.587 | AN146: 0 | AO146: 0 | AP146: 160 | AQ146: 0 | AR146: 160 | AS146: 961912.0143 | AT146: 4809.560072 | AU146: 966721.5744 | AV146: 4785651.587 | AW146: 23928.25794 | AX146: 4809579.845 | AY146: 404876.5021 | AZ146: 805.7042392 | BA146: 1010.176995 | BB146: 0 | BC146: 405080.9749 | BD146: 1042316.258 | BE146: 0 | BF146: 2605.790644 | BG146: 1044922.048 | BH146: 0 | BI146: 149209.2294 | BJ146: 0 | BK146: 296.9263666 | BL146: 744.5615154 | BM146: 149656.8646 | BN146: 0 | BO146: 0 | BP146: 0 | BQ146: 0 | BR146: 0 | BS146: 0 | BT146: 0 | BU146: 0 | BV146: 0 | BW146: 0 | BX146: 0 | BY146: 0 | BZ146: 0 | CA146: 0 | CB146: 0 | CC146: 0 | CD146: 0 | CE146: 0 | CF146: 0 | CG146: 0 | CH146: 0 | CI146: 0 | CJ146: 0 | CK146: 0 | CL146: 149656.8646
W147: 146 | X147: 13 | Y147: 0 | Z147: =IF($B$29=1,1,FundingFactor(W147,FEL_period,Entage,1,kktg+aktg,10)) -> 1 | AA147: 966721.5744 | AB147: 0 | AC147: 0 | AD147: 1450.082362 | AE147: 965271.492 | AF147: 4809579.845 | AG147: 0 | AH147: 7214.369768 | AI147: 4802365.475 | AJ147: 100.415976 | AK147: 499.584024 | AL147: 965171.0761 | AM147: 4801865.891 | AN147: 0 | AO147: 0 | AP147: 160 | AQ147: 0 | AR147: 160 | AS147: 965171.0761 | AT147: 4825.85538 | AU147: 969996.9314 | AV147: 4801705.891 | AW147: 24008.52946 | AX147: 4825714.421 | AY147: 405080.9749 | AZ147: 806.11114 | BA147: 1010.687159 | BB147: 0 | BC147: 405285.5509 | BD147: 1044922.048 | BE147: 0 | BF147: 2612.30512 | BG147: 1047534.353 | BH147: 0 | BI147: 149656.8646 | BJ147: 0 | BK147: 297.8171605 | BL147: 746.7952372 | BM147: 150105.8427 | BN147: 0 | BO147: 0 | BP147: 0 | BQ147: 0 | BR147: 0 | BS147: 0 | BT147: 0 | BU147: 0 | BV147: 0 | BW147: 0 | BX147: 0 | BY147: 0 | BZ147: 0 | CA147: 0 | CB147: 0 | CC147: 0 | CD147: 0 | CE147: 0 | CF147: 0 | CG147: 0 | CH147: 0 | CI147: 0 | CJ147: 0 | CK147: 0 | CL147: 150105.8427
W148: 147 | X148: 13 | Y148: 0 | Z148: =IF($B$29=1,1,FundingFactor(W148,FEL_period,Entage,1,kktg+aktg,10)) -> 1 | AA148: 969996.9314 | AB148: 0 | AC148: 0 | AD148: 1454.995397 | AE148: 968541.936 | AF148: 4825714.421 | AG148: 0 | AH148: 7238.571631 | AI148: 4818475.849 | AJ148: 100.418762 | AK148: 499.581238 | AL148: 968441.5173 | AM148: 4817976.268 | AN148: 0 | AO148: 0 | AP148: 160 | AQ148: 0 | AR148: 160 | AS148: 968441.5173 | AT148: 4842.207586 | AU148: 973283.7249 | AV148: 4817816.268 | AW148: 24089.08134 | AX148: 4841905.349 | AY148: 405285.5509 | AZ148: 806.5182463 | BA148: 1011.197582 | BB148: 0 | BC148: 405490.2302 | BD148: 1047534.353 | BE148: 0 | BF148: 2618.835883 | BG148: 1050153.189 | BH148: 0 | BI148: 150105.8427 | BJ148: 0 | BK148: 298.7106269 | BL148: 749.0356602 | BM148: 150556.1677 | BN148: 0 | BO148: 0 | BP148: 0 | BQ148: 0 | BR148: 0 | BS148: 0 | BT148: 0 | BU148: 0 | BV148: 0 | BW148: 0 | BX148: 0 | BY148: 0 | BZ148: 0 | CA148: 0 | CB148: 0 | CC148: 0 | CD148: 0 | CE148: 0 | CF148: 0 | CG148: 0 | CH148: 0 | CI148: 0 | CJ148: 0 | CK148: 0 | CL148: 150556.1677
W149: 148 | X149: 13 | Y149: 0 | Z149: =IF($B$29=1,1,FundingFactor(W149,FEL_period,Entage,1,kktg+aktg,10)) -> 1 | AA149: 973283.7249 | AB149: 0 | AC149: 0 | AD149: 1459.925587 | AE149: 971823.7993 | AF149: 4841905.349 | AG149: 0 | AH149: 7262.858024 | AI149: 4834642.491 | AJ149: 100.4215387 | AK149: 499.5784613 | AL149: 971723.3777 | AM149: 4834142.913 | AN149: 0 | AO149: 0 | AP149: 160 | AQ149: 0 | AR149: 160 | AS149: 971723.3777 | AT149: 4858.616889 | AU149: 976581.9946 | AV149: 4833982.913 | AW149: 24169.91456 | AX149: 4858152.827 | AY149: 405490.2302 | AZ149: 806.9255581 | BA149: 1011.708262 | BB149: 0 | BC149: 405695.0129 | BD149: 1050153.189 | BE149: 0 | BF149: 2625.382973 | BG149: 1052778.572 | BH149: 0 | BI149: 150556.1677 | BJ149: 0 | BK149: 299.6067737 | BL149: 751.2828046 | BM149: 151007.8437 | BN149: 0 | BO149: 0 | BP149: 0 | BQ149: 0 | BR149: 0 | BS149: 0 | BT149: 0 | BU149: 0 | BV149: 0 | BW149: 0 | BX149: 0 | BY149: 0 | BZ149: 0 | CA149: 0 | CB149: 0 | CC149: 0 | CD149: 0 | CE149: 0 | CF149: 0 | CG149: 0 | CH149: 0 | CI149: 0 | CJ149: 0 | CK149: 0 | CL149: 151007.8437
W150: 149 | X150: 13 | Y150: 0 | Z150: =IF($B$29=1,1,FundingFactor(W150,FEL_period,Entage,1,kktg+aktg,10)) -> 1 | AA150: 976581.9946 | AB150: 0 | AC150: 0 | AD150: 1464.872992 | AE150: 975117.1216 | AF150: 4858152.827 | AG150: 0 | AH150: 7287.229241 | AI150: 4850865.598 | AJ150: 100.4243063 | AK150: 499.5756937 | AL150: 975016.6973 | AM150: 4850366.022 | AN150: 0 | AO150: 0 | AP150: 160 | AQ150: 0 | AR150: 160 | AS150: 975016.6973 | AT150: 4875.083487 | AU150: 979891.7808 | AV150: 4850206.022 | AW150: 24251.03011 | AX150: 4874457.052 | AY150: 405695.0129 | AZ150: 807.3330757 | BA150: 1012.2192 | BB150: 0 | BC150: 405899.899 | BD150: 1052778.572 | BE150: 0 | BF150: 2631.94643 | BG150: 1055410.519 | BH150: 0 | BI150: 151007.8437 | BJ150: 0 | BK150: 300.505609 | BL150: 753.5366906 | BM150: 151460.8748 | BN150: 0 | BO150: 0 | BP150: 0 | BQ150: 0 | BR150: 0 | BS150: 0 | BT150: 0 | BU150: 0 | BV150: 0 | BW150: 0 | BX150: 0 | BY150: 0 | BZ150: 0 | CA150: 0 | CB150: 0 | CC150: 0 | CD150: 0 | CE150: 0 | CF150: 0 | CG150: 0 | CH150: 0 | CI150: 0 | CJ150: 0 | CK150: 0 | CL150: 151460.8748
W151: 150 | X151: 13 | Y151: 0 | Z151: =IF($B$29=1,1,FundingFactor(W151,FEL_period,Entage,1,kktg+aktg,10)) -> 1 | AA151: 979891.7808 | AB151: 0 | AC151: 0 | AD151: 1469.837671 | AE151: 978421.9431 | AF151: 4874457.052 | AG151: 0 | AH151: 7311.685579 | AI151: 4867145.367 | AJ151: 100.4270646 | AK151: 499.5729354 | AL151: 978321.5161 | AM151: 4866645.794 | AN151: 0 | AO151: 0 | AP151: 160 | AQ151: 0 | AR151: 160 | AS151: 978321.5161 | AT151: 4891.60758 | AU151: 983213.1237 | AV151: 4866485.794 | AW151: 24332.42897 | AX151: 4890818.223 | AY151: 405899.899 | AZ151: 807.7407991 | BA151: 1012.730396 | BB151: 0 | BC151: 406104.8886 | BD151: 1055410.519 | BE151: 0 | BF151: 2638.526296 | BG151: 1058049.045 | BH151: 0 | BI151: 151460.8748 | BJ151: 0 | BK151: 301.4071409 | BL151: 755.7973384 | BM151: 151915.265 | BN151: 0 | BO151: 0 | BP151: 0 | BQ151: 0 | BR151: 0 | BS151: 0 | BT151: 0 | BU151: 0 | BV151: 0 | BW151: 0 | BX151: 0 | BY151: 0 | BZ151: 0 | CA151: 0 | CB151: 0 | CC151: 0 | CD151: 0 | CE151: 0 | CF151: 0 | CG151: 0 | CH151: 0 | CI151: 0 | CJ151: 0 | CK151: 0 | CL151: 151915.265
W152: 151 | X152: 13 | Y152: 0 | Z152: =IF($B$29=1,1,FundingFactor(W152,FEL_period,Entage,1,kktg+aktg,10)) -> 1 | AA152: 983213.1237 | AB152: 0 | AC152: 0 | AD152: 1474.819685 | AE152: 981738.304 | AF152: 4890818.223 | AG152: 0 | AH152: 7336.227334 | AI152: 4883481.996 | AJ152: 100.4298138 | AK152: 499.5701862 | AL152: 981637.8742 | AM152: 4882982.425 | AN152: 0 | AO152: 0 | AP152: 160 | AQ152: 0 | AR152: 160 | AS152: 981637.8742 | AT152: 4908.189371 | AU152: 986546.0635 | AV152: 4882822.425 | AW152: 24414.11213 | AX152: 4907236.538 | AY152: 406104.8886 | AZ152: 808.1487284 | BA152: 1013.24185 | BB152: 0 | BC152: 406309.9818 | BD152: 1058049.045 | BE152: 80000 | BF152: 2845.122612 | BG152: 1140894.167 | BH152: 0 | BI152: 151915.265 | BJ152: 0 | BK152: 302.3113774 | BL152: 758.0647682 | BM152: 152371.0184 | BN152: 0 | BO152: 0 | BP152: 0 | BQ152: 0 | BR152: 0 | BS152: 0 | BT152: 0 | BU152: 0 | BV152: 0 | BW152: 0 | BX152: 0 | BY152: 0 | BZ152: 0 | CA152: 0 | CB152: 0 | CC152: 0 | CD152: 0 | CE152: 0 | CF152: 0 | CG152: 0 | CH152: 0 | CI152: 0 | CJ152: 0 | CK152: 0 | CL152: 152371.0184
W153: 152 | X153: 13 | Y153: 0 | Z153: =IF($B$29=1,1,FundingFactor(W153,FEL_period,Entage,1,kktg+aktg,10)) -> 1 | AA153: 986546.0635 | AB153: 0 | AC153: 0 | AD153: 1479.819095 | AE153: 985066.2444 | AF153: 4907236.538 | AG153: 0 | AH153: 7360.854806 | AI153: 4899875.683 | AJ153: 100.4325538 | AK153: 499.5674462 | AL153: 984965.8119 | AM153: 4899376.115 | AN153: 0 | AO153: 0 | AP153: 160 | AQ153: 0 | AR153: 160 | AS153: 984965.8119 | AT153: 4924.829059 | AU153: 989890.6409 | AV153: 4899216.115 | AW153: 24496.08058 | AX153: 4923712.196 | AY153: 406309.9818 | AZ153: 808.5568637 | BA153: 1013.753562 | BB153: 0 | BC153: 406515.1785 | BD153: 1140894.167 | BE153: 0 | BF153: 2852.235419 | BG153: 1143746.403 | BH153: 0 | BI153: 152371.0184 | BJ153: 0 | BK153: 303.2183266 | BL153: 760.3390004 | BM153: 152828.1391 | BN153: 0 | BO153: 0 | BP153: 0 | BQ153: 0 | BR153: 0 | BS153: 0 | BT153: 0 | BU153: 0 | BV153: 0 | BW153: 0 | BX153: 0 | BY153: 0 | BZ153: 0 | CA153: 0 | CB153: 0 | CC153: 0 | CD153: 0 | CE153: 0 | CF153: 0 | CG153: 0 | CH153: 0 | CI153: 0 | CJ153: 0 | CK153: 0 | CL153: 152828.1391
W154: 153 | X154: 13 | Y154: 0 | Z154: =IF($B$29=1,1,FundingFactor(W154,FEL_period,Entage,1,kktg+aktg,10)) -> 1 | AA154: 989890.6409 | AB154: 0 | AC154: 0 | AD154: 1484.835961 | AE154: 988405.805 | AF154: 4923712.196 | AG154: 0 | AH154: 7385.568294 | AI154: 4916326.628 | AJ154: 100.4352847 | AK154: 499.5647153 | AL154: 988305.3697 | AM154: 4915827.063 | AN154: 0 | AO154: 0 | AP154: 160 | AQ154: 0 | AR154: 160 | AS154: 988305.3697 | AT154: 4941.526848 | AU154: 993246.8965 | AV154: 4915667.063 | AW154: 24578.33531 | AX154: 4940245.398 | AY154: 406515.1785 | AZ154: 808.9652051 | BA154: 1014.265533 | BB154: 0 | BC154: 406720.4788 | BD154: 1143746.403 | BE154: 0 | BF154: 2859.366007 | BG154: 1146605.769 | BH154: 0 | BI154: 152828.1391 | BJ154: 0 | BK154: 304.1279968 | BL154: 762.6200554 | BM154: 153286.6311 | BN154: 0 | BO154: 0 | BP154: 0 | BQ154: 0 | BR154: 0 | BS154: 0 | BT154: 0 | BU154: 0 | BV154: 0 | BW154: 0 | BX154: 0 | BY154: 0 | BZ154: 0 | CA154: 0 | CB154: 0 | CC154: 0 | CD154: 0 | CE154: 0 | CF154: 0 | CG154: 0 | CH154: 0 | CI154: 0 | CJ154: 0 | CK154: 0 | CL154: 153286.6311
W155: 154 | X155: 13 | Y155: 0 | Z155: =IF($B$29=1,1,FundingFactor(W155,FEL_period,Entage,1,kktg+aktg,10)) -> 1 | AA155: 993246.8965 | AB155: 0 | AC155: 0 | AD155: 1489.870345 | AE155: 991757.0262 | AF155: 4940245.398 | AG155: 0 | AH155: 7410.368097 | AI155: 4932835.03 | AJ155: 100.4380065 | AK155: 499.5619935 | AL155: 991656.5882 | AM155: 4932335.468 | AN155: 0 | AO155: 0 | AP155: 160 | AQ155: 0 | AR155: 160 | AS155: 991656.5882 | AT155: 4958.282941 | AU155: 996614.8711 | AV155: 4932175.468 | AW155: 24660.87734 | AX155: 4956836.345 | AY155: 406720.4788 | AZ155: 809.3737528 | BA155: 1014.777763 | BB155: 0 | BC155: 406925.8828 | BD155: 1146605.769 | BE155: 0 | BF155: 2866.514422 | BG155: 1149472.283 | BH155: 0 | BI155: 153286.6311 | BJ155: 0 | BK155: 305.040396 | BL155: 764.9079537 | BM155: 153746.4987 | BN155: 0 | BO155: 0 | BP155: 0 | BQ155: 0 | BR155: 0 | BS155: 0 | BT155: 0 | BU155: 0 | BV155: 0 | BW155: 0 | BX155: 0 | BY155: 0 | BZ155: 0 | CA155: 0 | CB155: 0 | CC155: 0 | CD155: 0 | CE155: 0 | CF155: 0 | CG155: 0 | CH155: 0 | CI155: 0 | CJ155: 0 | CK155: 0 | CL155: 153746.4987
W156: 155 | X156: 13 | Y156: 0 | Z156: =IF($B$29=1,1,FundingFactor(W156,FEL_period,Entage,1,kktg+aktg,10)) -> 1 | AA156: 996614.8711 | AB156: 0 | AC156: 0 | AD156: 1494.922307 | AE156: 995119.9488 | AF156: 4956836.345 | AG156: 0 | AH156: 7435.254518 | AI156: 4949401.091 | AJ156: 100.4407193 | AK156: 499.5592807 | AL156: 995019.5081 | AM156: 4948901.532 | AN156: 0 | AO156: 0 | AP156: 160 | AQ156: 0 | AR156: 160 | AS156: 995019.5081 | AT156: 4975.097541 | AU156: 999994.6056 | AV156: 4948741.532 | AW156: 24743.70766 | AX156: 4973485.239 | AY156: 406925.8828 | AZ156: 809.7825068 | BA156: 1015.290251 | BB156: 0 | BC156: 407131.3905 | BD156: 1149472.283 | BE156: 0 | BF156: 2873.680708 | BG156: 1152345.964 | BH156: 0 | BI156: 153746.4987 | BJ156: 0 | BK156: 305.9555324 | BL156: 767.2027158 | BM156: 154207.7459 | BN156: 0 | BO156: 0 | BP156: 0 | BQ156: 0 | BR156: 0 | BS156: 0 | BT156: 0 | BU156: 0 | BV156: 0 | BW156: 0 | BX156: 0 | BY156: 0 | BZ156: 0 | CA156: 0 | CB156: 0 | CC156: 0 | CD156: 0 | CE156: 0 | CF156: 0 | CG156: 0 | CH156: 0 | CI156: 0 | CJ156: 0 | CK156: 0 | CL156: 154207.7459
W157: 156 | X157: 13 | Y157: 0 | Z157: =IF($B$29=1,1,FundingFactor(W157,FEL_period,Entage,1,kktg+aktg,10)) -> 1 | AA157: 999994.6056 | AB157: 0 | AC157: 0 | AD157: 1499.991908 | AE157: 998494.6137 | AF157: 4973485.239 | AG157: 0 | AH157: 7460.227859 | AI157: 4966025.011 | AJ157: 100.4434231 | AK157: 499.5565769 | AL157: 998394.1703 | AM157: 4965525.455 | AN157: 0 | AO157: 0 | AP157: 160 | AQ157: 0 | AR157: 160 | AS157: 998394.1703 | AT157: 4991.970852 | AU157: 1003386.141 | AV157: 4965365.455 | AW157: 24826.82727 | AX157: 4990192.282 | AY157: 407131.3905 | AZ157: 810.1914672 | BA157: 1015.802998 | BB157: 0 | BC157: 407337.0021 | BD157: 1152345.964 | BE157: 0 | BF157: 2880.86491 | BG157: 1155226.829 | BH157: 0 | BI157: 154207.7459 | BJ157: 0 | BK157: 306.8734143 | BL157: 769.5043623 | BM157: 154670.3768 | BN157: 0 | BO157: 0 | BP157: 0 | BQ157: 0 | BR157: 0 | BS157: 0 | BT157: 0 | BU157: 0 | BV157: 0 | BW157: 0 | BX157: 0 | BY157: 0 | BZ157: 0 | CA157: 0 | CB157: 0 | CC157: 0 | CD157: 0 | CE157: 0 | CF157: 0 | CG157: 0 | CH157: 0 | CI157: 0 | CJ157: 0 | CK157: 0 | CL157: 154670.3768
W158: 157 | X158: 14 | Y158: 400000 | Z158: =IF($B$29=1,1,FundingFactor(W158,FEL_period,Entage,1,kktg+aktg,10)) -> 1 | AA158: 1003386.141 | AB158: 0 | AC158: 0 | AD158: 1505.079212 | AE158: 1001881.062 | AF158: 4990192.282 | AG158: 400000 | AH158: 8085.288423 | AI158: 5382106.994 | AJ158: 94.16193012 | AK158: 505.8380699 | AL158: 1001786.9 | AM158: 5381601.156 | AN158: 0 | AO158: 0 | AP158: 160 | AQ158: 0 | AR158: 160 | AS158: 1001786.9 | AT158: 5008.9345 | AU158: 1006795.835 | AV158: 5381441.156 | AW158: 26907.20578 | AX158: 5408348.361 | AY158: 407337.0021 | AZ158: 810.6006341 | BA158: 1016.316004 | BB158: 0 | BC158: 407542.7174 | BD158: 1155226.829 | BE158: 0 | BF158: 2888.067072 | BG158: 1158114.896 | BH158: 0 | BI158: 154670.3768 | BJ158: 0 | BK158: 307.7940499 | BL158: 771.8129139 | BM158: 155134.3957 | BN158: 0 | BO158: 0 | BP158: 0 | BQ158: 0 | BR158: 0 | BS158: 0 | BT158: 0 | BU158: 0 | BV158: 0 | BW158: 0 | BX158: 0 | BY158: 0 | BZ158: 0 | CA158: 0 | CB158: 0 | CC158: 0 | CD158: 0 | CE158: 0 | CF158: 0 | CG158: 0 | CH158: 0 | CI158: 0 | CJ158: 0 | CK158: 0 | CL158: 155134.3957
W159: 158 | X159: 14 | Y159: 0 | Z159: =IF($B$29=1,1,FundingFactor(W159,FEL_period,Entage,1,kktg+aktg,10)) -> 1 | AA159: 1006795.835 | AB159: 0 | AC159: 0 | AD159: 1510.193752 | AE159: 1005285.641 | AF159: 5408348.361 | AG159: 0 | AH159: 8112.522542 | AI159: 5400235.839 | AJ159: 94.16429035 | AK159: 505.8357096 | AL159: 1005191.476 | AM159: 5399730.003 | AN159: 0 | AO159: 0 | AP159: 160 | AQ159: 0 | AR159: 160 | AS159: 1005191.476 | AT159: 5025.957382 | AU159: 1010217.434 | AV159: 5399570.003 | AW159: 26997.85002 | AX159: 5426567.853 | AY159: 407542.7174 | AZ159: 811.0100077 | BA159: 1016.829269 | BB159: 0 | BC159: 407748.5367 | BD159: 1158114.896 | BE159: 0 | BF159: 2895.28724 | BG159: 1161010.183 | BH159: 0 | BI159: 155134.3957 | BJ159: 0 | BK159: 308.7174474 | BL159: 774.1283912 | BM159: 155599.8066 | BN159: 0 | BO159: 0 | BP159: 0 | BQ159: 0 | BR159: 0 | BS159: 0 | BT159: 0 | BU159: 0 | BV159: 0 | BW159: 0 | BX159: 0 | BY159: 0 | BZ159: 0 | CA159: 0 | CB159: 0 | CC159: 0 | CD159: 0 | CE159: 0 | CF159: 0 | CG159: 0 | CH159: 0 | CI159: 0 | CJ159: 0 | CK159: 0 | CL159: 155599.8066
W160: 159 | X160: 14 | Y160: 0 | Z160: =IF($B$29=1,1,FundingFactor(W160,FEL_period,Entage,1,kktg+aktg,10)) -> 1 | AA160: 1010217.434 | AB160: 0 | AC160: 0 | AD160: 1515.326151 | AE160: 1008702.108 | AF160: 5426567.853 | AG160: 0 | AH160: 8139.85178 | AI160: 5418428.001 | AJ160: 94.16664271 | AK160: 505.8333573 | AL160: 1008607.941 | AM160: 5417922.168 | AN160: 0 | AO160: 0 | AP160: 160 | AQ160: 0 | AR160: 160 | AS160: 1008607.941 | AT160: 5043.039705 | AU160: 1013650.981 | AV160: 5417762.168 | AW160: 27088.81084 | AX160: 5444850.979 | AY160: 407748.5367 | AZ160: 811.419588 | BA160: 1017.342793 | BB160: 0 | BC160: 407954.4599 | BD160: 1161010.183 | BE160: 0 | BF160: 2902.525458 | BG160: 1163912.709 | BH160: 0 | BI160: 155599.8066 | BJ160: 0 | BK160: 309.6436152 | BL160: 776.4508151 | BM160: 156066.6138 | BN160: 0 | BO160: 0 | BP160: 0 | BQ160: 0 | BR160: 0 | BS160: 0 | BT160: 0 | BU160: 0 | BV160: 0 | BW160: 0 | BX160: 0 | BY160: 0 | BZ160: 0 | CA160: 0 | CB160: 0 | CC160: 0 | CD160: 0 | CE160: 0 | CF160: 0 | CG160: 0 | CH160: 0 | CI160: 0 | CJ160: 0 | CK160: 0 | CL160: 156066.6138
W161: 160 | X161: 14 | Y161: 0 | Z161: =IF($B$29=1,1,FundingFactor(W161,FEL_period,Entage,1,kktg+aktg,10)) -> 1 | AA161: 1013650.981 | AB161: 0 | AC161: 0 | AD161: 1520.476471 | AE161: 1012130.504 | AF161: 5444850.979 | AG161: 0 | AH161: 8167.276468 | AI161: 5436683.702 | AJ161: 94.16898721 | AK161: 505.8310128 | AL161: 1012036.335 | AM161: 5436177.871 | AN161: 0 | AO161: 0 | AP161: 160 | AQ161: 0 | AR161: 160 | AS161: 1012036.335 | AT161: 5060.181677 | AU161: 1017096.517 | AV161: 5436017.871 | AW161: 27180.08936 | AX161: 5463197.961 | AY161: 407954.4599 | AZ161: 811.8293752 | BA161: 1017.856576 | BB161: 0 | BC161: 408160.4871 | BD161: 1163912.709 | BE161: 0 | BF161: 2909.781772 | BG161: 1166822.49 | BH161: 0 | BI161: 156066.6138 | BJ161: 0 | BK161: 310.5725615 | BL161: 778.7802063 | BM161: 156534.8215 | BN161: 0 | BO161: 0 | BP161: 0 | BQ161: 0 | BR161: 0 | BS161: 0 | BT161: 0 | BU161: 0 | BV161: 0 | BW161: 0 | BX161: 0 | BY161: 0 | BZ161: 0 | CA161: 0 | CB161: 0 | CC161: 0 | CD161: 0 | CE161: 0 | CF161: 0 | CG161: 0 | CH161: 0 | CI161: 0 | CJ161: 0 | CK161: 0 | CL161: 156534.8215
W162: 161 | X162: 14 | Y162: 0 | Z162: =IF($B$29=1,1,FundingFactor(W162,FEL_period,Entage,1,kktg+aktg,10)) -> 1 | AA162: 1017096.517 | AB162: 0 | AC162: 0 | AD162: 1525.644775 | AE162: 1015570.872 | AF162: 5463197.961 | AG162: 0 | AH162: 8194.796941 | AI162: 5455003.164 | AJ162: 94.17132389 | AK162: 505.8286761 | AL162: 1015476.701 | AM162: 5454497.335 | AN162: 0 | AO162: 0 | AP162: 160 | AQ162: 0 | AR162: 160 | AS162: 1015476.701 | AT162: 5077.383504 | AU162: 1020554.084 | AV162: 5454337.335 | AW162: 27271.68668 | AX162: 5481609.022 | AY162: 408160.4871 | AZ162: 812.2393693 | BA162: 1018.370619 | BB162: 0 | BC162: 408366.6184 | BD162: 1166822.49 | BE162: 0 | BF162: 2917.056226 | BG162: 1169739.547 | BH162: 0 | BI162: 156534.8215 | BJ162: 0 | BK162: 311.5042947 | BL162: 781.1165859 | BM162: 157004.4338 | BN162: 0 | BO162: 0 | BP162: 0 | BQ162: 0 | BR162: 0 | BS162: 0 | BT162: 0 | BU162: 0 | BV162: 0 | BW162: 0 | BX162: 0 | BY162: 0 | BZ162: 0 | CA162: 0 | CB162: 0 | CC162: 0 | CD162: 0 | CE162: 0 | CF162: 0 | CG162: 0 | CH162: 0 | CI162: 0 | CJ162: 0 | CK162: 0 | CL162: 157004.4338
W163: 162 | X163: 14 | Y163: 0 | Z163: =IF($B$29=1,1,FundingFactor(W163,FEL_period,Entage,1,kktg+aktg,10)) -> 1 | AA163: 1020554.084 | AB163: 0 | AC163: 0 | AD163: 1530.831127 | AE163: 1019023.253 | AF163: 5481609.022 | AG163: 0 | AH163: 8222.413533 | AI163: 5473386.608 | AJ163: 94.17365277 | AK163: 505.8263472 | AL163: 1018929.08 | AM163: 5472880.782 | AN163: 0 | AO163: 0 | AP163: 160 | AQ163: 0 | AR163: 160 | AS163: 1018929.08 | AT163: 5094.645398 | AU163: 1024023.725 | AV163: 5472720.782 | AW163: 27363.60391 | AX163: 5500084.386 | AY163: 408366.6184 | AZ163: 812.6495705 | BA163: 1018.884922 | BB163: 0 | BC163: 408572.8537 | BD163: 1169739.547 | BE163: 0 | BF163: 2924.348867 | BG163: 1172663.896 | BH163: 0 | BI163: 157004.4338 | BJ163: 0 | BK163: 312.4388232 | BL163: 783.4599747 | BM163: 157475.4549 | BN163: 0 | BO163: 0 | BP163: 0 | BQ163: 0 | BR163: 0 | BS163: 0 | BT163: 0 | BU163: 0 | BV163: 0 | BW163: 0 | BX163: 0 | BY163: 0 | BZ163: 0 | CA163: 0 | CB163: 0 | CC163: 0 | CD163: 0 | CE163: 0 | CF163: 0 | CG163: 0 | CH163: 0 | CI163: 0 | CJ163: 0 | CK163: 0 | CL163: 157475.4549
W164: 163 | X164: 14 | Y164: 0 | Z164: =IF($B$29=1,1,FundingFactor(W164,FEL_period,Entage,1,kktg+aktg,10)) -> 1 | AA164: 1024023.725 | AB164: 0 | AC164: 0 | AD164: 1536.035588 | AE164: 1022487.689 | AF164: 5500084.386 | AG164: 0 | AH164: 8250.126579 | AI164: 5491834.259 | AJ164: 94.17597388 | AK164: 505.8240261 | AL164: 1022393.513 | AM164: 5491328.435 | AN164: 0 | AO164: 0 | AP164: 160 | AQ164: 0 | AR164: 160 | AS164: 1022393.513 | AT164: 5111.967567 | AU164: 1027505.481 | AV164: 5491168.435 | AW164: 27455.84218 | AX164: 5518624.277 | AY164: 408572.8537 | AZ164: 813.0599789 | BA164: 1019.399484 | BB164: 0 | BC164: 408779.1932 | BD164: 1172663.896 | BE164: 80000 | BF164: 3131.659739 | BG164: 1255795.555 | BH164: 0 | BI164: 157475.4549 | BJ164: 0 | BK164: 313.3761553 | BL164: 785.8103938 | BM164: 157947.8892 | BN164: 0 | BO164: 0 | BP164: 0 | BQ164: 0 | BR164: 0 | BS164: 0 | BT164: 0 | BU164: 0 | BV164: 0 | BW164: 0 | BX164: 0 | BY164: 0 | BZ164: 0 | CA164: 0 | CB164: 0 | CC164: 0 | CD164: 0 | CE164: 0 | CF164: 0 | CG164: 0 | CH164: 0 | CI164: 0 | CJ164: 0 | CK164: 0 | CL164: 157947.8892
W165: 164 | X165: 14 | Y165: 0 | Z165: =IF($B$29=1,1,FundingFactor(W165,FEL_period,Entage,1,kktg+aktg,10)) -> 1 | AA165: 1027505.481 | AB165: 0 | AC165: 0 | AD165: 1541.258222 | AE165: 1025964.223 | AF165: 5518624.277 | AG165: 0 | AH165: 8277.936416 | AI165: 5510346.341 | AJ165: 94.17828723 | AK165: 505.8217128 | AL165: 1025870.045 | AM165: 5509840.519 | AN165: 0 | AO165: 0 | AP165: 160 | AQ165: 0 | AR165: 160 | AS165: 1025870.045 | AT165: 5129.350223 | AU165: 1030999.395 | AV165: 5509680.519 | AW165: 27548.4026 | AX165: 5537228.922 | AY165: 408779.1932 | AZ165: 813.4705945 | BA165: 1019.914307 | BB165: 0 | BC165: 408985.6369 | BD165: 1255795.555 | BE165: 0 | BF165: 3139.488888 | BG165: 1258935.044 | BH165: 0 | BI165: 157947.8892 | BJ165: 0 | BK165: 314.3162994 | BL165: 788.1678643 | BM165: 158421.7407 | BN165: 0 | BO165: 0 | BP165: 0 | BQ165: 0 | BR165: 0 | BS165: 0 | BT165: 0 | BU165: 0 | BV165: 0 | BW165: 0 | BX165: 0 | BY165: 0 | BZ165: 0 | CA165: 0 | CB165: 0 | CC165: 0 | CD165: 0 | CE165: 0 | CF165: 0 | CG165: 0 | CH165: 0 | CI165: 0 | CJ165: 0 | CK165: 0 | CL165: 158421.7407
W166: 165 | X166: 14 | Y166: 0 | Z166: =IF($B$29=1,1,FundingFactor(W166,FEL_period,Entage,1,kktg+aktg,10)) -> 1 | AA166: 1030999.395 | AB166: 0 | AC166: 0 | AD166: 1546.499092 | AE166: 1029452.896 | AF166: 5537228.922 | AG166: 0 | AH166: 8305.843383 | AI166: 5528923.079 | AJ166: 94.18059285 | AK166: 505.8194071 | AL166: 1029358.715 | AM166: 5528417.259 | AN166: 0 | AO166: 0 | AP166: 160 | AQ166: 0 | AR166: 160 | AS166: 1029358.715 | AT166: 5146.793575 | AU166: 1034505.509 | AV166: 5528257.259 | AW166: 27641.2863 | AX166: 5555898.545 | AY166: 408985.6369 | AZ166: 813.8814175 | BA166: 1020.429389 | BB166: 0 | BC166: 409192.1849 | BD166: 1258935.044 | BE166: 0 | BF166: 3147.337611 | BG166: 1262082.382 | BH166: 0 | BI166: 158421.7407 | BJ166: 0 | BK166: 315.259264 | BL166: 790.5324073 | BM166: 158897.0139 | BN166: 0 | BO166: 0 | BP166: 0 | BQ166: 0 | BR166: 0 | BS166: 0 | BT166: 0 | BU166: 0 | BV166: 0 | BW166: 0 | BX166: 0 | BY166: 0 | BZ166: 0 | CA166: 0 | CB166: 0 | CC166: 0 | CD166: 0 | CE166: 0 | CF166: 0 | CG166: 0 | CH166: 0 | CI166: 0 | CJ166: 0 | CK166: 0 | CL166: 158897.0139
W167: 166 | X167: 14 | Y167: 0 | Z167: =IF($B$29=1,1,FundingFactor(W167,FEL_period,Entage,1,kktg+aktg,10)) -> 1 | AA167: 1034505.509 | AB167: 0 | AC167: 0 | AD167: 1551.758263 | AE167: 1032953.75 | AF167: 5555898.545 | AG167: 0 | AH167: 8333.847818 | AI167: 5547564.698 | AJ167: 94.18289077 | AK167: 505.8171092 | AL167: 1032859.567 | AM167: 5547058.88 | AN167: 0 | AO167: 0 | AP167: 160 | AQ167: 0 | AR167: 160 | AS167: 1032859.567 | AT167: 5164.297837 | AU167: 1038023.865 | AV167: 5546898.88 | AW167: 27734.4944 | AX167: 5574633.375 | AY167: 409192.1849 | AZ167: 814.2924479 | BA167: 1020.944731 | BB167: 0 | BC167: 409398.8372 | BD167: 1262082.382 | BE167: 0 | BF167: 3155.205955 | BG167: 1265237.588 | BH167: 0 | BI167: 158897.0139 | BJ167: 0 | BK167: 316.2050576 | BL167: 792.904044 | BM167: 159373.7129 | BN167: 0 | BO167: 0 | BP167: 0 | BQ167: 0 | BR167: 0 | BS167: 0 | BT167: 0 | BU167: 0 | BV167: 0 | BW167: 0 | BX167: 0 | BY167: 0 | BZ167: 0 | CA167: 0 | CB167: 0 | CC167: 0 | CD167: 0 | CE167: 0 | CF167: 0 | CG167: 0 | CH167: 0 | CI167: 0 | CJ167: 0 | CK167: 0 | CL167: 159373.7129
W168: 167 | X168: 14 | Y168: 0 | Z168: =IF($B$29=1,1,FundingFactor(W168,FEL_period,Entage,1,kktg+aktg,10)) -> 1 | AA168: 1038023.865 | AB168: 0 | AC168: 0 | AD168: 1557.035798 | AE168: 1036466.83 | AF168: 5574633.375 | AG168: 0 | AH168: 8361.950062 | AI168: 5566271.425 | AJ168: 94.18518102 | AK168: 505.814819 | AL168: 1036372.644 | AM168: 5565765.61 | AN168: 0 | AO168: 0 | AP168: 160 | AQ168: 0 | AR168: 160 | AS168: 1036372.644 | AT168: 5181.863222 | AU168: 1041554.508 | AV168: 5565605.61 | AW168: 27828.02805 | AX168: 5593433.638 | AY168: 409398.8372 | AZ168: 814.703686 | BA168: 1021.460334 | BB168: 0 | BC168: 409605.5938 | BD168: 1265237.588 | BE168: 0 | BF168: 3163.093969 | BG168: 1268400.682 | BH168: 0 | BI168: 159373.7129 | BJ168: 0 | BK168: 317.1536886 | BL168: 795.2827958 | BM168: 159851.842 | BN168: 0 | BO168: 0 | BP168: 0 | BQ168: 0 | BR168: 0 | BS168: 0 | BT168: 0 | BU168: 0 | BV168: 0 | BW168: 0 | BX168: 0 | BY168: 0 | BZ168: 0 | CA168: 0 | CB168: 0 | CC168: 0 | CD168: 0 | CE168: 0 | CF168: 0 | CG168: 0 | CH168: 0 | CI168: 0 | CJ168: 0 | CK168: 0 | CL168: 159851.842
W169: 168 | X169: 14 | Y169: 0 | Z169: =IF($B$29=1,1,FundingFactor(W169,FEL_period,Entage,1,kktg+aktg,10)) -> 1 | AA169: 1041554.508 | AB169: 0 | AC169: 0 | AD169: 1562.331761 | AE169: 1039992.176 | AF169: 5593433.638 | AG169: 0 | AH169: 8390.150457 | AI169: 5585043.488 | AJ169: 94.18746361 | AK169: 505.8125364 | AL169: 1039897.988 | AM169: 5584537.675 | AN169: 0 | AO169: 0 | AP169: 160 | AQ169: 0 | AR169: 160 | AS169: 1039897.988 | AT169: 5199.489942 | AU169: 1045097.478 | AV169: 5584377.675 | AW169: 27921.88838 | AX169: 5612299.563 | AY169: 409605.5938 | AZ169: 815.1151317 | BA169: 1021.976197 | BB169: 0 | BC169: 409812.4549 | BD169: 1268400.682 | BE169: 0 | BF169: 3171.001704 | BG169: 1271571.683 | BH169: 0 | BI169: 159851.842 | BJ169: 0 | BK169: 318.1051655 | BL169: 797.668684 | BM169: 160331.4055 | BN169: 0 | BO169: 0 | BP169: 0 | BQ169: 0 | BR169: 0 | BS169: 0 | BT169: 0 | BU169: 0 | BV169: 0 | BW169: 0 | BX169: 0 | BY169: 0 | BZ169: 0 | CA169: 0 | CB169: 0 | CC169: 0 | CD169: 0 | CE169: 0 | CF169: 0 | CG169: 0 | CH169: 0 | CI169: 0 | CJ169: 0 | CK169: 0 | CL169: 160331.4055
W170: 169 | X170: 15 | Y170: 400000 | Z170: =IF($B$29=1,1,FundingFactor(W170,FEL_period,Entage,1,kktg+aktg,10)) -> 1 | AA170: 1045097.478 | AB170: 0 | AC170: 0 | AD170: 1567.646217 | AE170: 1043529.832 | AF170: 5612299.563 | AG170: 400000 | AH170: 9018.449345 | AI170: 6003281.114 | AJ170: 88.85124122 | AK170: 511.1487588 | AL170: 1043440.981 | AM170: 6002769.965 | AN170: 0 | AO170: 0 | AP170: 160 | AQ170: 0 | AR170: 160 | AS170: 1043440.981 | AT170: 5217.204904 | AU170: 1048658.186 | AV170: 6002609.965 | AW170: 30013.04983 | AX170: 6032623.015 | AY170: 409812.4549 | AZ170: 815.5267852 | BA170: 1022.49232 | BB170: 0 | BC170: 410019.4204 | BD170: 1271571.683 | BE170: 0 | BF170: 3178.929209 | BG170: 1274750.613 | BH170: 0 | BI170: 160331.4055 | BJ170: 0 | BK170: 319.0594969 | BL170: 800.0617299 | BM170: 160812.4077 | BN170: 0 | BO170: 0 | BP170: 0 | BQ170: 0 | BR170: 0 | BS170: 0 | BT170: 0 | BU170: 0 | BV170: 0 | BW170: 0 | BX170: 0 | BY170: 0 | BZ170: 0 | CA170: 0 | CB170: 0 | CC170: 0 | CD170: 0 | CE170: 0 | CF170: 0 | CG170: 0 | CH170: 0 | CI170: 0 | CJ170: 0 | CK170: 0 | CL170: 160812.4077
W171: 170 | X171: 15 | Y171: 0 | Z171: =IF($B$29=1,1,FundingFactor(W171,FEL_period,Entage,1,kktg+aktg,10)) -> 1 | AA171: 1048658.186 | AB171: 0 | AC171: 0 | AD171: 1572.987279 | AE171: 1047085.198 | AF171: 6032623.015 | AG171: 0 | AH171: 9048.934523 | AI171: 6023574.081 | AJ171: 88.85325884 | AK171: 511.1467412 | AL171: 1046996.345 | AM171: 6023062.934 | AN171: 0 | AO171: 0 | AP171: 160 | AQ171: 0 | AR171: 160 | AS171: 1046996.345 | AT171: 5234.981726 | AU171: 1052231.327 | AV171: 6022902.934 | AW171: 30114.51467 | AX171: 6053017.449 | AY171: 410019.4204 | AZ171: 815.9386467 | BA171: 1023.008704 | BB171: 0 | BC171: 410226.4905 | BD171: 1274750.613 | BE171: 0 | BF171: 3186.876532 | BG171: 1277937.489 | BH171: 0 | BI171: 160812.4077 | BJ171: 0 | BK171: 320.0166913 | BL171: 802.4619551 | BM171: 161294.853 | BN171: 0 | BO171: 0 | BP171: 0 | BQ171: 0 | BR171: 0 | BS171: 0 | BT171: 0 | BU171: 0 | BV171: 0 | BW171: 0 | BX171: 0 | BY171: 0 | BZ171: 0 | CA171: 0 | CB171: 0 | CC171: 0 | CD171: 0 | CE171: 0 | CF171: 0 | CG171: 0 | CH171: 0 | CI171: 0 | CJ171: 0 | CK171: 0 | CL171: 161294.853
W172: 171 | X172: 15 | Y172: 0 | Z172: =IF($B$29=1,1,FundingFactor(W172,FEL_period,Entage,1,kktg+aktg,10)) -> 1 | AA172: 1052231.327 | AB172: 0 | AC172: 0 | AD172: 1578.34699 | AE172: 1050652.98 | AF172: 6053017.449 | AG172: 0 | AH172: 9079.526173 | AI172: 6043937.922 | AJ172: 88.85526969 | AK172: 511.1447303 | AL172: 1050564.125 | AM172: 6043426.778 | AN172: 0 | AO172: 0 | AP172: 160 | AQ172: 0 | AR172: 160 | AS172: 1050564.125 | AT172: 5252.820623 | AU172: 1055816.945 | AV172: 6043266.778 | AW172: 30216.33389 | AX172: 6073483.112 | AY172: 410226.4905 | AZ172: 816.3507161 | BA172: 1023.525349 | BB172: 0 | BC172: 410433.6651 | BD172: 1277937.489 | BE172: 0 | BF172: 3194.843723 | BG172: 1281132.333 | BH172: 0 | BI172: 161294.853 | BJ172: 0 | BK172: 320.9767574 | BL172: 804.8693811 | BM172: 161778.7456 | BN172: 0 | BO172: 0 | BP172: 0 | BQ172: 0 | BR172: 0 | BS172: 0 | BT172: 0 | BU172: 0 | BV172: 0 | BW172: 0 | BX172: 0 | BY172: 0 | BZ172: 0 | CA172: 0 | CB172: 0 | CC172: 0 | CD172: 0 | CE172: 0 | CF172: 0 | CG172: 0 | CH172: 0 | CI172: 0 | CJ172: 0 | CK172: 0 | CL172: 161778.7456
W173: 172 | X173: 15 | Y173: 0 | Z173: =IF($B$29=1,1,FundingFactor(W173,FEL_period,Entage,1,kktg+aktg,10)) -> 1 | AA173: 1055816.945 | AB173: 0 | AC173: 0 | AD173: 1583.725418 | AE173: 1054233.22 | AF173: 6073483.112 | AG173: 0 | AH173: 9110.224667 | AI173: 6064372.887 | AJ173: 88.8572738 | AK173: 511.1427262 | AL173: 1054144.363 | AM173: 6063861.744 | AN173: 0 | AO173: 0 | AP173: 160 | AQ173: 0 | AR173: 160 | AS173: 1054144.363 | AT173: 5270.721813 | AU173: 1059415.084 | AV173: 6063701.744 | AW173: 30318.50872 | AX173: 6094020.253 | AY173: 410433.6651 | AZ173: 816.7629936 | BA173: 1024.042255 | BB173: 0 | BC173: 410640.9444 | BD173: 1281132.333 | BE173: 0 | BF173: 3202.830832 | BG173: 1284335.164 | BH173: 0 | BI173: 161778.7456 | BJ173: 0 | BK173: 321.9397037 | BL173: 807.2840295 | BM173: 162264.0899 | BN173: 0 | BO173: 0 | BP173: 0 | BQ173: 0 | BR173: 0 | BS173: 0 | BT173: 0 | BU173: 0 | BV173: 0 | BW173: 0 | BX173: 0 | BY173: 0 | BZ173: 0 | CA173: 0 | CB173: 0 | CC173: 0 | CD173: 0 | CE173: 0 | CF173: 0 | CG173: 0 | CH173: 0 | CI173: 0 | CJ173: 0 | CK173: 0 | CL173: 162264.0899
W174: 173 | X174: 15 | Y174: 0 | Z174: =IF($B$29=1,1,FundingFactor(W174,FEL_period,Entage,1,kktg+aktg,10)) -> 1 | AA174: 1059415.084 | AB174: 0 | AC174: 0 | AD174: 1589.122627 | AE174: 1057825.962 | AF174: 6094020.253 | AG174: 0 | AH174: 9141.030379 | AI174: 6084879.222 | AJ174: 88.8592712 | AK174: 511.1407288 | AL174: 1057737.102 | AM174: 6084368.082 | AN174: 0 | AO174: 0 | AP174: 160 | AQ174: 0 | AR174: 160 | AS174: 1057737.102 | AT174: 5288.685512 | AU174: 1063025.788 | AV174: 6084208.082 | AW174: 30421.04041 | AX174: 6114629.122 | AY174: 410640.9444 | AZ174: 817.1754793 | BA174: 1024.559422 | BB174: 0 | BC174: 410848.3283 | BD174: 1284335.164 | BE174: 0 | BF174: 3210.837909 | BG174: 1287546.002 | BH174: 0 | BI174: 162264.0899 | BJ174: 0 | BK174: 322.9055389 | BL174: 809.7059219 | BM174: 162750.8903 | BN174: 0 | BO174: 0 | BP174: 0 | BQ174: 0 | BR174: 0 | BS174: 0 | BT174: 0 | BU174: 0 | BV174: 0 | BW174: 0 | BX174: 0 | BY174: 0 | BZ174: 0 | CA174: 0 | CB174: 0 | CC174: 0 | CD174: 0 | CE174: 0 | CF174: 0 | CG174: 0 | CH174: 0 | CI174: 0 | CJ174: 0 | CK174: 0 | CL174: 162750.8903
W175: 174 | X175: 15 | Y175: 0 | Z175: =IF($B$29=1,1,FundingFactor(W175,FEL_period,Entage,1,kktg+aktg,10)) -> 1 | AA175: 1063025.788 | AB175: 0 | AC175: 0 | AD175: 1594.538682 | AE175: 1061431.249 | AF175: 6114629.122 | AG175: 0 | AH175: 9171.943683 | AI175: 6105457.178 | AJ175: 88.8612619 | AK175: 511.1387381 | AL175: 1061342.388 | AM175: 6104946.04 | AN175: 0 | AO175: 0 | AP175: 160 | AQ175: 0 | AR175: 160 | AS175: 1061342.388 | AT175: 5306.71194 | AU175: 1066649.1 | AV175: 6104786.04 | AW175: 30523.9302 | AX175: 6135309.97 | AY175: 410848.3283 | AZ175: 817.5881734 | BA175: 1025.07685 | BB175: 0 | BC175: 411055.817 | BD175: 1287546.002 | BE175: 0 | BF175: 3218.865004 | BG175: 1290764.867 | BH175: 0 | BI175: 162750.8903 | BJ175: 0 | BK175: 323.8742717 | BL175: 812.1350802 | BM175: 163239.1511 | BN175: 0 | BO175: 0 | BP175: 0 | BQ175: 0 | BR175: 0 | BS175: 0 | BT175: 0 | BU175: 0 | BV175: 0 | BW175: 0 | BX175: 0 | BY175: 0 | BZ175: 0 | CA175: 0 | CB175: 0 | CC175: 0 | CD175: 0 | CE175: 0 | CF175: 0 | CG175: 0 | CH175: 0 | CI175: 0 | CJ175: 0 | CK175: 0 | CL175: 163239.1511
W176: 175 | X176: 15 | Y176: 0 | Z176: =IF($B$29=1,1,FundingFactor(W176,FEL_period,Entage,1,kktg+aktg,10)) -> 1 | AA176: 1066649.1 | AB176: 0 | AC176: 0 | AD176: 1599.97365 | AE176: 1065049.126 | AF176: 6135309.97 | AG176: 0 | AH176: 9202.964955 | AI176: 6126107.005 | AJ176: 88.86324593 | AK176: 511.1367541 | AL176: 1064960.263 | AM176: 6125595.868 | AN176: 0 | AO176: 0 | AP176: 160 | AQ176: 0 | AR176: 160 | AS176: 1064960.263 | AT176: 5324.801316 | AU176: 1070285.064 | AV176: 6125435.868 | AW176: 30627.17934 | AX176: 6156063.048 | AY176: 411055.817 | AZ176: 818.0010758 | BA176: 1025.59454 | BB176: 0 | BC176: 411263.4105 | BD176: 1290764.867 | BE176: 80000 | BF176: 3426.912167 | BG176: 1374191.779 | BH176: 0 | BI176: 163239.1511 | BJ176: 0 | BK176: 324.8459107 | BL176: 814.571526 | BM176: 163728.8767 | BN176: 0 | BO176: 0 | BP176: 0 | BQ176: 0 | BR176: 0 | BS176: 0 | BT176: 0 | BU176: 0 | BV176: 0 | BW176: 0 | BX176: 0 | BY176: 0 | BZ176: 0 | CA176: 0 | CB176: 0 | CC176: 0 | CD176: 0 | CE176: 0 | CF176: 0 | CG176: 0 | CH176: 0 | CI176: 0 | CJ176: 0 | CK176: 0 | CL176: 163728.8767
W177: 176 | X177: 15 | Y177: 0 | Z177: =IF($B$29=1,1,FundingFactor(W177,FEL_period,Entage,1,kktg+aktg,10)) -> 1 | AA177: 1070285.064 | AB177: 0 | AC177: 0 | AD177: 1605.427597 | AE177: 1068679.637 | AF177: 6156063.048 | AG177: 0 | AH177: 9234.094571 | AI177: 6146828.953 | AJ177: 88.8652233 | AK177: 511.1347767 | AL177: 1068590.772 | AM177: 6146317.818 | AN177: 0 | AO177: 0 | AP177: 160 | AQ177: 0 | AR177: 160 | AS177: 1068590.772 | AT177: 5342.953858 | AU177: 1073933.725 | AV177: 6146157.818 | AW177: 30730.78909 | AX177: 6176888.607 | AY177: 411263.4105 | AZ177: 818.4141868 | BA177: 1026.112491 | BB177: 0 | BC177: 411471.1088 | BD177: 1374191.779 | BE177: 0 | BF177: 3435.479447 | BG177: 1377627.258 | BH177: 0 | BI177: 163728.8767 | BJ177: 0 | BK177: 325.8204647 | BL177: 817.0152813 | BM177: 164220.0715 | BN177: 0 | BO177: 0 | BP177: 0 | BQ177: 0 | BR177: 0 | BS177: 0 | BT177: 0 | BU177: 0 | BV177: 0 | BW177: 0 | BX177: 0 | BY177: 0 | BZ177: 0 | CA177: 0 | CB177: 0 | CC177: 0 | CD177: 0 | CE177: 0 | CF177: 0 | CG177: 0 | CH177: 0 | CI177: 0 | CJ177: 0 | CK177: 0 | CL177: 164220.0715
W178: 177 | X178: 15 | Y178: 0 | Z178: =IF($B$29=1,1,FundingFactor(W178,FEL_period,Entage,1,kktg+aktg,10)) -> 1 | AA178: 1073933.725 | AB178: 0 | AC178: 0 | AD178: 1610.900588 | AE178: 1072322.825 | AF178: 6176888.607 | AG178: 0 | AH178: 9265.332911 | AI178: 6167623.274 | AJ178: 88.86719405 | AK178: 511.1328059 | AL178: 1072233.958 | AM178: 6167112.142 | AN178: 0 | AO178: 0 | AP178: 160 | AQ178: 0 | AR178: 160 | AS178: 1072233.958 | AT178: 5361.169788 | AU178: 1077595.127 | AV178: 6166952.142 | AW178: 30834.76071 | AX178: 6197786.902 | AY178: 411471.1088 | AZ178: 818.8275065 | BA178: 1026.630703 | BB178: 0 | BC178: 411678.912 | BD178: 1377627.258 | BE178: 0 | BF178: 3444.068146 | BG178: 1381071.326 | BH178: 0 | BI178: 164220.0715 | BJ178: 0 | BK178: 326.7979424 | BL178: 819.466368 | BM178: 164712.74 | BN178: 0 | BO178: 0 | BP178: 0 | BQ178: 0 | BR178: 0 | BS178: 0 | BT178: 0 | BU178: 0 | BV178: 0 | BW178: 0 | BX178: 0 | BY178: 0 | BZ178: 0 | CA178: 0 | CB178: 0 | CC178: 0 | CD178: 0 | CE178: 0 | CF178: 0 | CG178: 0 | CH178: 0 | CI178: 0 | CJ178: 0 | CK178: 0 | CL178: 164712.74
W179: 178 | X179: 15 | Y179: 0 | Z179: =IF($B$29=1,1,FundingFactor(W179,FEL_period,Entage,1,kktg+aktg,10)) -> 1 | AA179: 1077595.127 | AB179: 0 | AC179: 0 | AD179: 1616.392691 | AE179: 1075978.735 | AF179: 6197786.902 | AG179: 0 | AH179: 9296.680353 | AI179: 6188490.222 | AJ179: 88.86915819 | AK179: 511.1308418 | AL179: 1075889.866 | AM179: 6187979.091 | AN179: 0 | AO179: 0 | AP179: 160 | AQ179: 0 | AR179: 160 | AS179: 1075889.866 | AT179: 5379.449328 | AU179: 1081269.315 | AV179: 6187819.091 | AW179: 30939.09546 | AX179: 6218758.187 | AY179: 411678.912 | AZ179: 819.2410348 | BA179: 1027.149177 | BB179: 0 | BC179: 411886.8201 | BD179: 1381071.326 | BE179: 0 | BF179: 3452.678316 | BG179: 1384524.005 | BH179: 0 | BI179: 164712.74 | BJ179: 0 | BK179: 327.7783525 | BL179: 821.9248081 | BM179: 165206.8864 | BN179: 0 | BO179: 0 | BP179: 0 | BQ179: 0 | BR179: 0 | BS179: 0 | BT179: 0 | BU179: 0 | BV179: 0 | BW179: 0 | BX179: 0 | BY179: 0 | BZ179: 0 | CA179: 0 | CB179: 0 | CC179: 0 | CD179: 0 | CE179: 0 | CF179: 0 | CG179: 0 | CH179: 0 | CI179: 0 | CJ179: 0 | CK179: 0 | CL179: 165206.8864
W180: 179 | X180: 15 | Y180: 0 | Z180: =IF($B$29=1,1,FundingFactor(W180,FEL_period,Entage,1,kktg+aktg,10)) -> 1 | AA180: 1081269.315 | AB180: 0 | AC180: 0 | AD180: 1621.903972 | AE180: 1079647.411 | AF180: 6218758.187 | AG180: 0 | AH180: 9328.13728 | AI180: 6209430.049 | AJ180: 88.87111574 | AK180: 511.1288843 | AL180: 1079558.54 | AM180: 6208918.92 | AN180: 0 | AO180: 0 | AP180: 160 | AQ180: 0 | AR180: 160 | AS180: 1079558.54 | AT180: 5397.792699 | AU180: 1084956.333 | AV180: 6208758.92 | AW180: 31043.7946 | AX180: 6239802.715 | AY180: 411886.8201 | AZ180: 819.654772 | BA180: 1027.667913 | BB180: 0 | BC180: 412094.8333 | BD180: 1384524.005 | BE180: 0 | BF180: 3461.310012 | BG180: 1387985.315 | BH180: 0 | BI180: 165206.8864 | BJ180: 0 | BK180: 328.761704 | BL180: 824.3906236 | BM180: 165702.5153 | BN180: 0 | BO180: 0 | BP180: 0 | BQ180: 0 | BR180: 0 | BS180: 0 | BT180: 0 | BU180: 0 | BV180: 0 | BW180: 0 | BX180: 0 | BY180: 0 | BZ180: 0 | CA180: 0 | CB180: 0 | CC180: 0 | CD180: 0 | CE180: 0 | CF180: 0 | CG180: 0 | CH180: 0 | CI180: 0 | CJ180: 0 | CK180: 0 | CL180: 165702.5153
W181: 180 | X181: 15 | Y181: 0 | Z181: =IF($B$29=1,1,FundingFactor(W181,FEL_period,Entage,1,kktg+aktg,10)) -> 1 | AA181: 1084956.333 | AB181: 0 | AC181: 0 | AD181: 1627.434499 | AE181: 1083328.898 | AF181: 6239802.715 | AG181: 0 | AH181: 9359.704073 | AI181: 6230443.011 | AJ181: 88.87306672 | AK181: 511.1269333 | AL181: 1083240.025 | AM181: 6229931.884 | AN181: 0 | AO181: 0 | AP181: 160 | AQ181: 0 | AR181: 160 | AS181: 1083240.025 | AT181: 5416.200125 | AU181: 1088656.225 | AV181: 6229771.884 | AW181: 31148.85942 | AX181: 6260920.743 | AY181: 412094.8333 | AZ181: 820.0687182 | BA181: 1028.186911 | BB181: 200000 | BC181: 612302.9514 | BD181: 1387985.315 | BE181: 0 | BF181: 3469.963287 | BG181: 1391455.278 | BH181: 0 | BI181: 165702.5153 | BJ181: 0 | BK181: 329.7480055 | BL181: 826.8638367 | BM181: 166199.6312 | BN181: 0 | BO181: 0 | BP181: 0 | BQ181: 0 | BR181: 0 | BS181: 0 | BT181: 0 | BU181: 0 | BV181: 0 | BW181: 0 | BX181: 0 | BY181: 0 | BZ181: 0 | CA181: 0 | CB181: 0 | CC181: 0 | CD181: 0 | CE181: 0 | CF181: 0 | CG181: 0 | CH181: 0 | CI181: 0 | CJ181: 0 | CK181: 0 | CL181: 166199.6312
W182: 181 | X182: 16 | Y182: 400000 | Z182: =IF($B$29=1,1,FundingFactor(W182,FEL_period,Entage,1,kktg+aktg,10)) -> 1 | AA182: 1088656.225 | AB182: 0 | AC182: 0 | AD182: 1632.984338 | AE182: 1087023.241 | AF182: 6260920.743 | AG182: 400000 | AH182: 9991.381115 | AI182: 6650929.362 | AJ182: 84.28766341 | AK182: 515.7123366 | AL182: 1086938.953 | AM182: 6650413.65 | AN182: 0 | AO182: 0 | AP182: 160 | AQ182: 0 | AR182: 160 | AS182: 1086938.953 | AT182: 5434.694766 | AU182: 1092373.648 | AV182: 6650253.65 | AW182: 33251.26825 | AX182: 6683504.918 | AY182: 612302.9514 | AZ182: 1218.482873 | BA182: 1527.711171 | BB182: 0 | BC182: 612612.1797 | BD182: 1391455.278 | BE182: 0 | BF182: 3478.638195 | BG182: 1394933.916 | BH182: 0 | BI182: 166199.6312 | BJ182: 0 | BK182: 330.737266 | BL182: 829.3444696 | BM182: 166698.2384 | BN182: 0 | BO182: 0 | BP182: 0 | BQ182: 0 | BR182: 0 | BS182: 0 | BT182: 0 | BU182: 0 | BV182: 0 | BW182: 0 | BX182: 0 | BY182: 0 | BZ182: 0 | CA182: 0 | CB182: 0 | CC182: 0 | CD182: 0 | CE182: 0 | CF182: 0 | CG182: 0 | CH182: 0 | CI182: 0 | CJ182: 0 | CK182: 0 | CL182: 166698.2384
W183: 182 | X183: 16 | Y183: 0 | Z183: =IF($B$29=1,1,FundingFactor(W183,FEL_period,Entage,1,kktg+aktg,10)) -> 1 | AA183: 1092373.648 | AB183: 0 | AC183: 0 | AD183: 1638.560472 | AE183: 1090735.087 | AF183: 6683504.918 | AG183: 0 | AH183: 10025.25738 | AI183: 6673479.661 | AJ183: 84.28940642 | AK183: 515.7105936 | AL183: 1090650.798 | AM183: 6672963.95 | AN183: 0 | AO183: 0 | AP183: 160 | AQ183: 0 | AR183: 160 | AS183: 1090650.798 | AT183: 5453.25399 | AU183: 1096104.052 | AV183: 6672803.95 | AW183: 33364.01975 | AX183: 6706167.97 | AY183: 612612.1797 | AZ183: 1219.098238 | BA183: 1528.482704 | BB183: 0 | BC183: 612921.5642 | BD183: 1394933.916 | BE183: 0 | BF183: 3487.334791 | BG183: 1398421.251 | BH183: 0 | BI183: 166698.2384 | BJ183: 0 | BK183: 331.7294944 | BL183: 831.8325444 | BM183: 167198.3414 | BN183: 0 | BO183: 0 | BP183: 0 | BQ183: 0 | BR183: 0 | BS183: 0 | BT183: 0 | BU183: 0 | BV183: 0 | BW183: 0 | BX183: 0 | BY183: 0 | BZ183: 0 | CA183: 0 | CB183: 0 | CC183: 0 | CD183: 0 | CE183: 0 | CF183: 0 | CG183: 0 | CH183: 0 | CI183: 0 | CJ183: 0 | CK183: 0 | CL183: 167198.3414
W184: 183 | X184: 16 | Y184: 0 | Z184: =IF($B$29=1,1,FundingFactor(W184,FEL_period,Entage,1,kktg+aktg,10)) -> 1 | AA184: 1096104.052 | AB184: 0 | AC184: 0 | AD184: 1644.156078 | AE184: 1094459.896 | AF184: 6706167.97 | AG184: 0 | AH184: 10059.25196 | AI184: 6696108.718 | AJ184: 84.29114357 | AK184: 515.7088564 | AL184: 1094375.605 | AM184: 6695593.009 | AN184: 0 | AO184: 0 | AP184: 160 | AQ184: 0 | AR184: 160 | AS184: 1094375.605 | AT184: 5471.878024 | AU184: 1099847.483 | AV184: 6695433.009 | AW184: 33477.16505 | AX184: 6728910.174 | AY184: 612921.5642 | AZ184: 1219.713913 | BA184: 1529.254626 | BB184: 0 | BC184: 613231.1049 | BD184: 1398421.251 | BE184: 0 | BF184: 3496.053128 | BG184: 1401917.304 | BH184: 0 | BI184: 167198.3414 | BJ184: 0 | BK184: 332.7246994 | BL184: 834.3280837 | BM184: 167699.9448 | BN184: 0 | BO184: 0 | BP184: 0 | BQ184: 0 | BR184: 0 | BS184: 0 | BT184: 0 | BU184: 0 | BV184: 0 | BW184: 0 | BX184: 0 | BY184: 0 | BZ184: 0 | CA184: 0 | CB184: 0 | CC184: 0 | CD184: 0 | CE184: 0 | CF184: 0 | CG184: 0 | CH184: 0 | CI184: 0 | CJ184: 0 | CK184: 0 | CL184: 167699.9448
W185: 184 | X185: 16 | Y185: 0 | Z185: =IF($B$29=1,1,FundingFactor(W185,FEL_period,Entage,1,kktg+aktg,10)) -> 1 | AA185: 1099847.483 | AB185: 0 | AC185: 0 | AD185: 1649.771224 | AE185: 1098197.712 | AF185: 6728910.174 | AG185: 0 | AH185: 10093.36526 | AI185: 6718816.809 | AJ185: 84.29287488 | AK185: 515.7071251 | AL185: 1098113.419 | AM185: 6718301.102 | AN185: 0 | AO185: 0 | AP185: 160 | AQ185: 0 | AR185: 160 | AS185: 1098113.419 | AT185: 5490.567093 | AU185: 1103603.986 | AV185: 6718141.102 | AW185: 33590.70551 | AX185: 6751731.807 | AY185: 613231.1049 | AZ185: 1220.329899 | BA185: 1530.026938 | BB185: 0 | BC185: 613540.802 | BD185: 1401917.304 | BE185: 0 | BF185: 3504.79326 | BG185: 1405422.097 | BH185: 0 | BI185: 167699.9448 | BJ185: 0 | BK185: 333.7228902 | BL185: 836.8311096 | BM185: 168203.053 | BN185: 0 | BO185: 0 | BP185: 0 | BQ185: 0 | BR185: 0 | BS185: 0 | BT185: 0 | BU185: 0 | BV185: 0 | BW185: 0 | BX185: 0 | BY185: 0 | BZ185: 0 | CA185: 0 | CB185: 0 | CC185: 0 | CD185: 0 | CE185: 0 | CF185: 0 | CG185: 0 | CH185: 0 | CI185: 0 | CJ185: 0 | CK185: 0 | CL185: 168203.053
W186: 185 | X186: 16 | Y186: 0 | Z186: =IF($B$29=1,1,FundingFactor(W186,FEL_period,Entage,1,kktg+aktg,10)) -> 1 | AA186: 1103603.986 | AB186: 0 | AC186: 0 | AD186: 1655.405979 | AE186: 1101948.58 | AF186: 6751731.807 | AG186: 0 | AH186: 10127.59771 | AI186: 6741604.21 | AJ186: 84.29460037 | AK186: 515.7053996 | AL186: 1101864.285 | AM186: 6741088.504 | AN186: 0 | AO186: 0 | AP186: 160 | AQ186: 0 | AR186: 160 | AS186: 1101864.285 | AT186: 5509.321426 | AU186: 1107373.607 | AV186: 6740928.504 | AW186: 33704.64252 | AX186: 6774633.147 | AY186: 613540.802 | AZ186: 1220.946196 | BA186: 1530.799639 | BB186: 0 | BC186: 613850.6554 | BD186: 1405422.097 | BE186: 0 | BF186: 3513.555244 | BG186: 1408935.653 | BH186: 0 | BI186: 168203.053 | BJ186: 0 | BK186: 334.7240755 | BL186: 839.3416448 | BM186: 168707.6706 | BN186: 0 | BO186: 0 | BP186: 0 | BQ186: 0 | BR186: 0 | BS186: 0 | BT186: 0 | BU186: 0 | BV186: 0 | BW186: 0 | BX186: 0 | BY186: 0 | BZ186: 0 | CA186: 0 | CB186: 0 | CC186: 0 | CD186: 0 | CE186: 0 | CF186: 0 | CG186: 0 | CH186: 0 | CI186: 0 | CJ186: 0 | CK186: 0 | CL186: 168707.6706
W187: 186 | X187: 16 | Y187: 0 | Z187: =IF($B$29=1,1,FundingFactor(W187,FEL_period,Entage,1,kktg+aktg,10)) -> 1 | AA187: 1107373.607 | AB187: 0 | AC187: 0 | AD187: 1661.06041 | AE187: 1105712.546 | AF187: 6774633.147 | AG187: 0 | AH187: 10161.94972 | AI187: 6764471.197 | AJ187: 84.29632006 | AK187: 515.7036799 | AL187: 1105628.25 | AM187: 6763955.493 | AN187: 0 | AO187: 0 | AP187: 160 | AQ187: 0 | AR187: 160 | AS187: 1105628.25 | AT187: 5528.14125 | AU187: 1111156.391 | AV187: 6763795.493 | AW187: 33818.97747 | AX187: 6797614.471 | AY187: 613850.6554 | AZ187: 1221.562804 | BA187: 1531.572731 | BB187: 0 | BC187: 614160.6653 | BD187: 1408935.653 | BE187: 0 | BF187: 3522.339132 | BG187: 1412457.992 | BH187: 0 | BI187: 168707.6706 | BJ187: 0 | BK187: 335.7282645 | BL187: 841.8597117 | BM187: 169213.8021 | BN187: 0 | BO187: 0 | BP187: 0 | BQ187: 0 | BR187: 0 | BS187: 0 | BT187: 0 | BU187: 0 | BV187: 0 | BW187: 0 | BX187: 0 | BY187: 0 | BZ187: 0 | CA187: 0 | CB187: 0 | CC187: 0 | CD187: 0 | CE187: 0 | CF187: 0 | CG187: 0 | CH187: 0 | CI187: 0 | CJ187: 0 | CK187: 0 | CL187: 169213.8021
W188: 187 | X188: 16 | Y188: 0 | Z188: =IF($B$29=1,1,FundingFactor(W188,FEL_period,Entage,1,kktg+aktg,10)) -> 1 | AA188: 1111156.391 | AB188: 0 | AC188: 0 | AD188: 1666.734587 | AE188: 1109489.657 | AF188: 6797614.471 | AG188: 0 | AH188: 10196.42171 | AI188: 6787418.049 | AJ188: 84.29803396 | AK188: 515.701966 | AL188: 1109405.359 | AM188: 6786902.347 | AN188: 0 | AO188: 0 | AP188: 160 | AQ188: 0 | AR188: 160 | AS188: 1109405.359 | AT188: 5547.026793 | AU188: 1114952.385 | AV188: 6786742.347 | AW188: 33933.71174 | AX188: 6820676.059 | AY188: 614160.6653 | AZ188: 1222.179724 | BA188: 1532.346214 | BB188: 0 | BC188: 614470.8318 | BD188: 1412457.992 | BE188: 80000 | BF188: 3731.144979 | BG188: 1496189.137 | BH188: 0 | BI188: 169213.8021 | BJ188: 0 | BK188: 336.7354661 | BL188: 844.3853329 | BM188: 169721.4519 | BN188: 0 | BO188: 0 | BP188: 0 | BQ188: 0 | BR188: 0 | BS188: 0 | BT188: 0 | BU188: 0 | BV188: 0 | BW188: 0 | BX188: 0 | BY188: 0 | BZ188: 0 | CA188: 0 | CB188: 0 | CC188: 0 | CD188: 0 | CE188: 0 | CF188: 0 | CG188: 0 | CH188: 0 | CI188: 0 | CJ188: 0 | CK188: 0 | CL188: 169721.4519
W189: 188 | X189: 16 | Y189: 0 | Z189: =IF($B$29=1,1,FundingFactor(W189,FEL_period,Entage,1,kktg+aktg,10)) -> 1 | AA189: 1114952.385 | AB189: 0 | AC189: 0 | AD189: 1672.428578 | AE189: 1113279.957 | AF189: 6820676.059 | AG189: 0 | AH189: 10231.01409 | AI189: 6810445.045 | AJ189: 84.29974209 | AK189: 515.7002579 | AL189: 1113195.657 | AM189: 6809929.345 | AN189: 0 | AO189: 0 | AP189: 160 | AQ189: 0 | AR189: 160 | AS189: 1113195.657 | AT189: 5565.978285 | AU189: 1118761.635 | AV189: 6809769.345 | AW189: 34048.84672 | AX189: 6843818.191 | AY189: 614470.8318 | AZ189: 1222.796955 | BA189: 1533.120087 | BB189: 0 | BC189: 614781.155 | BD189: 1496189.137 | BE189: 0 | BF189: 3740.472842 | BG189: 1499929.61 | BH189: 0 | BI189: 169721.4519 | BJ189: 0 | BK189: 337.7456893 | BL189: 846.9185311 | BM189: 170230.6248 | BN189: 0 | BO189: 0 | BP189: 0 | BQ189: 0 | BR189: 0 | BS189: 0 | BT189: 0 | BU189: 0 | BV189: 0 | BW189: 0 | BX189: 0 | BY189: 0 | BZ189: 0 | CA189: 0 | CB189: 0 | CC189: 0 | CD189: 0 | CE189: 0 | CF189: 0 | CG189: 0 | CH189: 0 | CI189: 0 | CJ189: 0 | CK189: 0 | CL189: 170230.6248
W190: 189 | X190: 16 | Y190: 0 | Z190: =IF($B$29=1,1,FundingFactor(W190,FEL_period,Entage,1,kktg+aktg,10)) -> 1 | AA190: 1118761.635 | AB190: 0 | AC190: 0 | AD190: 1678.142453 | AE190: 1117083.493 | AF190: 6843818.191 | AG190: 0 | AH190: 10265.72729 | AI190: 6833552.464 | AJ190: 84.30144448 | AK190: 515.6985555 | AL190: 1116999.191 | AM190: 6833036.765 | AN190: 0 | AO190: 0 | AP190: 160 | AQ190: 0 | AR190: 160 | AS190: 1116999.191 | AT190: 5584.995957 | AU190: 1122584.187 | AV190: 6832876.765 | AW190: 34164.38383 | AX190: 6867041.149 | AY190: 614781.155 | AZ190: 1223.414498 | BA190: 1533.894351 | BB190: 0 | BC190: 615091.6348 | BD190: 1499929.61 | BE190: 0 | BF190: 3749.824024 | BG190: 1503679.434 | BH190: 0 | BI190: 170230.6248 | BJ190: 0 | BK190: 338.7589433 | BL190: 849.4593291 | BM190: 170741.3251 | BN190: 0 | BO190: 0 | BP190: 0 | BQ190: 0 | BR190: 0 | BS190: 0 | BT190: 0 | BU190: 0 | BV190: 0 | BW190: 0 | BX190: 0 | BY190: 0 | BZ190: 0 | CA190: 0 | CB190: 0 | CC190: 0 | CD190: 0 | CE190: 0 | CF190: 0 | CG190: 0 | CH190: 0 | CI190: 0 | CJ190: 0 | CK190: 0 | CL190: 170741.3251
W191: 190 | X191: 16 | Y191: 0 | Z191: =IF($B$29=1,1,FundingFactor(W191,FEL_period,Entage,1,kktg+aktg,10)) -> 1 | AA191: 1122584.187 | AB191: 0 | AC191: 0 | AD191: 1683.876281 | AE191: 1120900.311 | AF191: 6867041.149 | AG191: 0 | AH191: 10300.56172 | AI191: 6856740.588 | AJ191: 84.30314114 | AK191: 515.6968589 | AL191: 1120816.008 | AM191: 6856224.891 | AN191: 0 | AO191: 0 | AP191: 160 | AQ191: 0 | AR191: 160 | AS191: 1120816.008 | AT191: 5604.08004 | AU191: 1126420.088 | AV191: 6856064.891 | AW191: 34280.32445 | AX191: 6890345.215 | AY191: 615091.6348 | AZ191: 1224.032353 | BA191: 1534.669006 | BB191: 0 | BC191: 615402.2715 | BD191: 1503679.434 | BE191: 0 | BF191: 3759.198584 | BG191: 1507438.632 | BH191: 0 | BI191: 170741.3251 | BJ191: 0 | BK191: 339.775237 | BL191: 852.0077495 | BM191: 171253.5577 | BN191: 0 | BO191: 0 | BP191: 0 | BQ191: 0 | BR191: 0 | BS191: 0 | BT191: 0 | BU191: 0 | BV191: 0 | BW191: 0 | BX191: 0 | BY191: 0 | BZ191: 0 | CA191: 0 | CB191: 0 | CC191: 0 | CD191: 0 | CE191: 0 | CF191: 0 | CG191: 0 | CH191: 0 | CI191: 0 | CJ191: 0 | CK191: 0 | CL191: 171253.5577
W192: 191 | X192: 16 | Y192: 0 | Z192: =IF($B$29=1,1,FundingFactor(W192,FEL_period,Entage,1,kktg+aktg,10)) -> 1 | AA192: 1126420.088 | AB192: 0 | AC192: 0 | AD192: 1689.630132 | AE192: 1124730.458 | AF192: 6890345.215 | AG192: 0 | AH192: 10335.51782 | AI192: 6880009.697 | AJ192: 84.30483209 | AK192: 515.6951679 | AL192: 1124646.153 | AM192: 6879494.002 | AN192: 0 | AO192: 0 | AP192: 160 | AQ192: 0 | AR192: 160 | AS192: 1124646.153 | AT192: 5623.230765 | AU192: 1130269.384 | AV192: 6879334.002 | AW192: 34396.67001 | AX192: 6913730.672 | AY192: 615402.2715 | AZ192: 1224.65052 | BA192: 1535.444052 | BB192: 0 | BC192: 615713.065 | BD192: 1507438.632 | BE192: 0 | BF192: 3768.596581 | BG192: 1511207.229 | BH192: 0 | BI192: 171253.5577 | BJ192: 0 | BK192: 340.7945797 | BL192: 854.5638154 | BM192: 171767.3269 | BN192: 0 | BO192: 0 | BP192: 0 | BQ192: 0 | BR192: 0 | BS192: 0 | BT192: 0 | BU192: 0 | BV192: 0 | BW192: 0 | BX192: 0 | BY192: 0 | BZ192: 0 | CA192: 0 | CB192: 0 | CC192: 0 | CD192: 0 | CE192: 0 | CF192: 0 | CG192: 0 | CH192: 0 | CI192: 0 | CJ192: 0 | CK192: 0 | CL192: 171767.3269
W193: 192 | X193: 16 | Y193: 0 | Z193: =IF($B$29=1,1,FundingFactor(W193,FEL_period,Entage,1,kktg+aktg,10)) -> 1 | AA193: 1130269.384 | AB193: 0 | AC193: 0 | AD193: 1695.404076 | AE193: 1128573.98 | AF193: 6913730.672 | AG193: 0 | AH193: 10370.59601 | AI193: 6903360.076 | AJ193: 84.30651735 | AK193: 515.6934827 | AL193: 1128489.673 | AM193: 6902844.383 | AN193: 0 | AO193: 0 | AP193: 160 | AQ193: 0 | AR193: 160 | AS193: 1128489.673 | AT193: 5642.448366 | AU193: 1134132.122 | AV193: 6902684.383 | AW193: 34513.42191 | AX193: 6937197.805 | AY193: 615713.065 | AZ193: 1225.268999 | BA193: 1536.21949 | BB193: 0 | BC193: 616024.0155 | BD193: 1511207.229 | BE193: 0 | BF193: 3778.018072 | BG193: 1514985.247 | BH193: 0 | BI193: 171767.3269 | BJ193: 0 | BK193: 341.8169805 | BL193: 857.1275496 | BM193: 172282.6375 | BN193: 0 | BO193: 0 | BP193: 0 | BQ193: 0 | BR193: 0 | BS193: 0 | BT193: 0 | BU193: 0 | BV193: 0 | BW193: 0 | BX193: 0 | BY193: 0 | BZ193: 0 | CA193: 0 | CB193: 0 | CC193: 0 | CD193: 0 | CE193: 0 | CF193: 0 | CG193: 0 | CH193: 0 | CI193: 0 | CJ193: 0 | CK193: 0 | CL193: 172282.6375
W194: 193 | X194: 17 | Y194: 400000 | Z194: =IF($B$29=1,1,FundingFactor(W194,FEL_period,Entage,1,kktg+aktg,10)) -> 1 | AA194: 1134132.122 | AB194: =+IF(W194<=FEL_build*12,Y194,0) -> 0 | AC194: =IF($B$29=1,0,IF(X194<=FEL_period,(AA194+AB194)*kktg/12,0)) -> 0 | AD194: =+(AA194+AB194)*aktg/12 -> 1701.198182 | AE194: 1132430.923 | AF194: 6937197.805 | AG194: 400000 | AH194: =+(AF194+AG194)*aktg/12 -> 11005.79671 | AI194: 7326192.008 | AJ194: =+fixktg-AK194 -> 80.32732509 | AK194: =+IF(share_mode=1,AI194/(AI194+AE194),MIN(AI194/fixktg,1))*fixktg -> 519.6726749 | AL194: 1132350.596 | AM194: 7325672.335 | AN194: =MAX((hal_bo-AL194*Z194-AM194),0) -> 0 | AO194: =+AN194*VLOOKUP(Entage+X194-1,$CU$2:$CV$102,2,FALSE)/12*(1+$DQ$10) -> 0 | AP194: =+rokk_bo*rokk_dij/12 -> 160 | AQ194: 0 | AR194: =+IF(share_mode2=1,AM194/(AM194+AL194),MIN(AM194/(AO194+AP194),1))*AO194 +IF(share_mode3=1,AM194/(AM194+AL194),MIN(AM194/(AO194+AP194),1))*AP194 -> 160 | AS194: 1132350.596 | AT194: =+AS194*hozam/12 -> 5661.75298 | AU194: 1138012.349 | AV194: 7325512.335 | AW194: =+AV194*hozam/12 -> 36627.56168 | AX194: 7362139.897 | AY194: 616024.0155 | AZ194: =+(AY194)*eaktg/12 -> 1225.887791 | BA194: =+(AY194-AZ194)*hozam2/12 -> 1536.995319 | BB194: =+IF(W194=120,Prem,0) +IF(W194=180,Prem*0.5,0) +IF(W194=240,Prem*0.5,0) -> 0 | BC194: =+AY194-AZ194+BA194+BB194 -> 616335.123 | BD194: 1514985.247 | BE194: =MIN(IF(AND(W194>12,MOD(W194,12)=7),1,0)*Prem*20%,130000) -> 0 | BF194: =+(BD194+BE194)*hozam2/12 -> 3787.463117 | BG194: 1518772.71 | BH194: 0 | BI194: 172282.6375 | BJ194: 0 | BK194: =+(BI194-BJ194)*eaktg/12 -> 342.8424486 | BL194: =+(BI194-BK194)*hozam/12 -> 859.6989751 | BM194: 172799.494 | BN194: 0 | BO194: 0 | BP194: 0 | BQ194: =+(BO194-BP194)*eaktg/12 -> 0 | BR194: =+(BO194-BQ194)*hozam/12 -> 0 | BS194: 0 | BT194: 0 | BU194: 0 | BV194: 0 | BW194: =+(BU194-BV194)*eaktg/12 -> 0 | BX194: =+(BU194-BW194)*hozam/12 -> 0 | BY194: 0 | BZ194: 0 | CA194: 0 | CB194: 0 | CC194: =+(CA194-CB194)*eaktg/12 -> 0 | CD194: =+(CA194-CC194)*hozam/12 -> 0 | CE194: 0 | CF194: 0 | CG194: 0 | CH194: 0 | CI194: =+(CG194-CH194)*eaktg/12 -> 0 | CJ194: =+(CG194-CI194)*hozam/12 -> 0 | CK194: 0 | CL194: 172799.494
W195: 194 | X195: =+ROUNDDOWN((W195-1)/12,0)+1 -> 17 | Y195: =+IF(MOD((W195-1),(12/PremFreq))=0,Prem/PremFreq,0) -> 0 | Z195: =IF($B$29=1,1,FundingFactor(W195,FEL_period,Entage,1,kktg+aktg,10)) -> 1 | AA195: 1138012.349 | AB195: 0 | AC195: 0 | AD195: 1707.018524 | AE195: 1136305.33 | AF195: 7362139.897 | AG195: 0 | AH195: 11043.20985 | AI195: 7351096.687 | AJ195: 80.32884467 | AK195: 519.6711553 | AL195: 1136225.002 | AM195: 7350577.016 | AN195: 0 | AO195: 0 | AP195: 160 | AQ195: 0 | AR195: 160 | AS195: 1136225.002 | AT195: 5681.125008 | AU195: 1141906.127 | AV195: 7350417.016 | AW195: 36752.08508 | AX195: 7387169.101 | AY195: 616335.123 | AZ195: 1226.506895 | BA195: 1537.77154 | BB195: 0 | BC195: 616646.3877 | BD195: 1518772.71 | BE195: 0 | BF195: 3796.931775 | BG195: =+BD195+BE195+BF195 -> 1522569.642 | BH195: =IF($W195=$DC$19,$DD$19,0) -> 0 | BI195: 172799.494 | BJ195: =BH195*$DQ$14 -> 0 | BK195: 343.870993 | BL195: 862.278115 | BM195: =BI195-BJ195-BK195+BL195 -> 173317.9011 | BN195: =IF($W195=$DC$20,$DD$20,0) -> 0 | BO195: 0 | BP195: =BN195*$DQ$14 -> 0 | BQ195: 0 | BR195: 0 | BS195: =BO195-BP195-BQ195+BR195 -> 0 | BT195: =IF($W195=$DC$21,$DD$21,0) -> 0 | BU195: 0 | BV195: =BT195*$DQ$14 -> 0 | BW195: 0 | BX195: 0 | BY195: =BU195-BV195-BW195+BX195 -> 0 | BZ195: =IF($W195=$DC$22,$DD$22,0) -> 0 | CA195: 0 | CB195: =BZ195*$DQ$14 -> 0 | CC195: 0 | CD195: 0 | CE195: =CA195-CB195-CC195+CD195 -> 0 | CF195: =IF($W195=$DC$23,$DD$23,0) -> 0 | CG195: 0 | CH195: =CF195*$DQ$14 -> 0 | CI195: 0 | CJ195: 0 | CK195: =CG195-CH195-CI195+CJ195 -> 0 | CL195: =BM195+BS195+BY195+CE195+CK195 -> 173317.9011
W196: 195 | X196: 17 | Y196: 0 | Z196: =IF($B$29=1,1,FundingFactor(W196,FEL_period,Entage,1,kktg+aktg,10)) -> 1 | AA196: =+AU195 -> 1141906.127 | AB196: 0 | AC196: 0 | AD196: 1712.85919 | AE196: =+AA196+AB196-AC196-AD196 -> 1140193.267 | AF196: =+AX195 -> 7387169.101 | AG196: =+Y196-AB196 -> 0 | AH196: 11080.75365 | AI196: =+AF196+AG196-AH196 -> 7376088.347 | AJ196: 80.33035912 | AK196: 519.6696409 | AL196: =+AE196-AJ196 -> 1140112.937 | AM196: =+AI196-AK196 -> 7375568.678 | AN196: 0 | AO196: 0 | AP196: 160 | AQ196: =+(AO196+AP196)-AR196 -> 0 | AR196: 160 | AS196: =+AL196-AQ196 -> 1140112.937 | AT196: 5700.564686 | AU196: =+AS196+AT196 -> 1145813.502 | AV196: =+AM196-AR196 -> 7375408.678 | AW196: 36877.04339 | AX196: =+AV196+AW196 -> 7412285.721 | AY196: =+BC195 -> 616646.3877 | AZ196: 1227.126311 | BA196: 1538.548153 | BB196: 0 | BC196: 616957.8095 | BD196: =+BG195 -> 1522569.642 | BE196: 0 | BF196: 3806.424104 | BG196: 1526376.066 | BH196: 0 | BI196: =BH196+BM195 -> 173317.9011 | BJ196: 0 | BK196: 344.9026232 | BL196: 864.8649924 | BM196: 173837.8635 | BN196: 0 | BO196: =BN196+BS195 -> 0 | BP196: 0 | BQ196: 0 | BR196: 0 | BS196: 0 | BT196: 0 | BU196: =BT196+BY195 -> 0 | BV196: 0 | BW196: 0 | BX196: 0 | BY196: 0 | BZ196: 0 | CA196: =BZ196+CE195 -> 0 | CB196: 0 | CC196: 0 | CD196: 0 | CE196: 0 | CF196: 0 | CG196: =CF196+CK195 -> 0 | CH196: 0 | CI196: 0 | CJ196: 0 | CK196: 0 | CL196: 173837.8635
W197: 196 | X197: 17 | Y197: 0 | Z197: =IF($B$29=1,1,FundingFactor(W197,FEL_period,Entage,1,kktg+aktg,10)) -> 1 | AA197: 1145813.502 | AB197: 0 | AC197: 0 | AD197: 1718.720253 | AE197: 1144094.782 | AF197: 7412285.721 | AG197: 0 | AH197: 11118.42858 | AI197: 7401167.292 | AJ197: 80.33186846 | AK197: 519.6681315 | AL197: 1144014.45 | AM197: 7400647.624 | AN197: 0 | AO197: 0 | AP197: 160 | AQ197: 0 | AR197: 160 | AS197: 1144014.45 | AT197: 5720.072248 | AU197: 1149734.522 | AV197: 7400487.624 | AW197: 37002.43812 | AX197: 7437490.062 | AY197: 616957.8095 | AZ197: 1227.746041 | BA197: 1539.325159 | BB197: 0 | BC197: 617269.3886 | BD197: 1526376.066 | BE197: 0 | BF197: 3815.940165 | BG197: 1530192.006 | BH197: 0 | BI197: 173837.8635 | BJ197: 0 | BK197: 345.9373483 | BL197: 867.4596307 | BM197: 174359.3858 | BN197: 0 | BO197: 0 | BP197: 0 | BQ197: 0 | BR197: 0 | BS197: 0 | BT197: 0 | BU197: 0 | BV197: 0 | BW197: 0 | BX197: 0 | BY197: 0 | BZ197: 0 | CA197: 0 | CB197: 0 | CC197: 0 | CD197: 0 | CE197: 0 | CF197: 0 | CG197: 0 | CH197: 0 | CI197: 0 | CJ197: 0 | CK197: 0 | CL197: 174359.3858
W198: 197 | X198: 17 | Y198: 0 | Z198: =IF($B$29=1,1,FundingFactor(W198,FEL_period,Entage,1,kktg+aktg,10)) -> 1 | AA198: 1149734.522 | AB198: 0 | AC198: 0 | AD198: 1724.601783 | AE198: 1148009.92 | AF198: 7437490.062 | AG198: 0 | AH198: 11156.23509 | AI198: 7426333.827 | AJ198: 80.33337272 | AK198: 519.6666273 | AL198: 1147929.587 | AM198: 7425814.161 | AN198: 0 | AO198: 0 | AP198: 160 | AQ198: 0 | AR198: 160 | AS198: 1147929.587 | AT198: 5739.647934 | AU198: 1153669.235 | AV198: 7425654.161 | AW198: 37128.2708 | AX198: 7462782.432 | AY198: 617269.3886 | AZ198: 1228.366083 | BA198: 1540.102556 | BB198: 0 | BC198: 617581.1251 | BD198: 1530192.006 | BE198: 0 | BF198: 3825.480015 | BG198: 1534017.486 | BH198: 0 | BI198: 174359.3858 | BJ198: 0 | BK198: 346.9751777 | BL198: 870.0620529 | BM198: 174882.4726 | BN198: 0 | BO198: 0 | BP198: 0 | BQ198: 0 | BR198: 0 | BS198: 0 | BT198: 0 | BU198: 0 | BV198: 0 | BW198: 0 | BX198: 0 | BY198: 0 | BZ198: 0 | CA198: 0 | CB198: 0 | CC198: 0 | CD198: 0 | CE198: 0 | CF198: 0 | CG198: 0 | CH198: 0 | CI198: 0 | CJ198: 0 | CK198: 0 | CL198: 174882.4726
W199: 198 | X199: 17 | Y199: 0 | Z199: =IF($B$29=1,1,FundingFactor(W199,FEL_period,Entage,1,kktg+aktg,10)) -> 1 | AA199: 1153669.235 | AB199: 0 | AC199: 0 | AD199: 1730.503852 | AE199: 1151938.731 | AF199: 7462782.432 | AG199: 0 | AH199: 11194.17365 | AI199: 7451588.258 | AJ199: 80.3348719 | AK199: 519.6651281 | AL199: 1151858.396 | AM199: 7451068.593 | AN199: 0 | AO199: 0 | AP199: 160 | AQ199: 0 | AR199: 160 | AS199: 1151858.396 | AT199: 5759.29198 | AU199: 1157617.688 | AV199: 7450908.593 | AW199: 37254.54296 | AX199: 7488163.136 | AY199: 617581.1251 | AZ199: 1228.986439 | BA199: 1540.880347 | BB199: 0 | BC199: 617893.019 | BD199: 1534017.486 | BE199: 0 | BF199: 3835.043715 | BG199: 1537852.53 | BH199: 0 | BI199: 174882.4726 | BJ199: 0 | BK199: 348.0161206 | BL199: 872.6722826 | BM199: 175407.1288 | BN199: 0 | BO199: 0 | BP199: 0 | BQ199: 0 | BR199: 0 | BS199: 0 | BT199: 0 | BU199: 0 | BV199: 0 | BW199: 0 | BX199: 0 | BY199: 0 | BZ199: 0 | CA199: 0 | CB199: 0 | CC199: 0 | CD199: 0 | CE199: 0 | CF199: 0 | CG199: 0 | CH199: 0 | CI199: 0 | CJ199: 0 | CK199: 0 | CL199: 175407.1288
W200: 199 | X200: 17 | Y200: 0 | Z200: =IF($B$29=1,1,FundingFactor(W200,FEL_period,Entage,1,kktg+aktg,10)) -> 1 | AA200: 1157617.688 | AB200: 0 | AC200: 0 | AD200: 1736.426532 | AE200: 1155881.261 | AF200: 7488163.136 | AG200: 0 | AH200: 11232.2447 | AI200: 7476930.891 | AJ200: 80.33636602 | AK200: 519.663634 | AL200: 1155800.925 | AM200: 7476411.227 | AN200: 0 | AO200: 0 | AP200: 160 | AQ200: 0 | AR200: 160 | AS200: 1155800.925 | AT200: 5779.004625 | AU200: 1161579.93 | AV200: 7476251.227 | AW200: 37381.25614 | AX200: 7513632.484 | AY200: 617893.019 | AZ200: 1229.607108 | BA200: 1541.65853 | BB200: 0 | BC200: 618205.0704 | BD200: 1537852.53 | BE200: 80000 | BF200: 4044.631324 | BG200: 1621897.161 | BH200: 0 | BI200: 175407.1288 | BJ200: 0 | BK200: 349.0601863 | BL200: 875.2903431 | BM200: 175933.359 | BN200: 0 | BO200: 0 | BP200: 0 | BQ200: 0 | BR200: 0 | BS200: 0 | BT200: 0 | BU200: 0 | BV200: 0 | BW200: 0 | BX200: 0 | BY200: 0 | BZ200: 0 | CA200: 0 | CB200: 0 | CC200: 0 | CD200: 0 | CE200: 0 | CF200: 0 | CG200: 0 | CH200: 0 | CI200: 0 | CJ200: 0 | CK200: 0 | CL200: 175933.359
... 401 more rows

Sheet diagram (3%) (hidden)
A1: Év | B1: Befizetett díjak összege az adott biztosítási év végéig | C1: Jóváírt adókedvezmények összege az adott biztosítási év végéig | D1: UNION Bónuszjóváírások összege az adott biztosítási év végéig | E1: Megtakarítás értéke 0% hozammal | F1: Megtakarítás értéke 3% hozammal | G1: Kumulált hozam az adott biztosítási év végéig
A2: 1 | B2: 300000 | C2: 0 | E2: 263856.0342 | F2: 272061.3395 | G2: =+F2-B2-C2-D2 -> -27938.66046
A3: 2 | B3: 600000 | C3: 60000 | E3: 566521.4281 | F3: 590684.5136 | G3: =+F3-B3-C3-D3 -> -69315.48638
A4: 3 | B4: 900000 | C4: 120000 | E4: 848279.3021 | F4: 896119.1698 | G4: -123880.8302
A5: 4 | B5: 1200000 | C5: 180000 | E5: 1130765.785 | F5: 1209741.428 | G5: -170258.5717
A6: 5 | B6: 1500000 | C6: 240000 | E6: 1413343.437 | F6: 1531263.568 | G6: -208736.4324
A7: 6 | B7: 1800000 | C7: 300000 | E7: 1695552.928 | F7: 1860534.09 | G7: -239465.9105
A8: 7 | B8: 2100000 | C8: 360000 | E8: 1977007.131 | F8: 2197440.394 | G8: -262559.6062
A9: 8 | B9: 2400000 | C9: 420000 | E9: 2257374.817 | F9: 2541897.664 | G9: -278102.3356
A10: 9 | B10: 2700000 | C10: 480000 | E10: 2536370.319 | F10: 2893842.613 | G10: -286157.3871
A11: 10 | B11: 3000000 | C11: 540000 | D11: 300000 | E11: 3113149.312 | F11: 3553381.113 | G11: -286618.8874
A12: 11 | B12: 3300000 | C12: 600000 | D12: 300000 | E12: 3406539.368 | F12: 3955691.806 | G12: -244308.1936
A13: 12 | B13: 3600000 | C13: 660000 | D13: 300000 | E13: 3695378.29 | F13: 4363710.233 | G13: -196289.7674
A14: 13 | B14: 3900000 | C14: 720000 | D14: 300000 | E14: 3979754.708 | F14: 4777543.599 | G14: -142456.4008
A15: 14 | B15: 4200000 | C15: 780000 | D15: 300000 | E15: 4259755.53 | F15: 5197301.699 | G15: -82698.30088
A16: 15 | B16: 4500000 | C16: 840000 | D16: 450000 | E16: 4685167.474 | F16: 5773172.735 | G16: -16827.26463
A17: 16 | B17: 4800000 | C17: 900000 | D17: 450000 | E17: 4953135.099 | F17: 6206032.415 | G17: 56032.41483
A18: 17 | B18: 5100000 | C18: 960000 | D18: 450000 | E18: 5217061.364 | F18: 6645167.985 | G18: 135167.9854
A19: 18 | B19: 5400000 | C19: 1020000 | D19: 450000 | E19: 5477024.641 | F19: 7090700.352 | G19: 220700.3517 | I19: (1969-es születési év; évi 300 eFt díjfizetés, 3% hozam)
A20: 19 | B20: 5700000 | C20: 1080000 | D20: 450000 | E20: 5733101.782 | F20: 7542753.384 | G20: 312753.3836
A21: 20 | B21: 6000000 | C21: 1140000 | D21: 600000 | E21: 6135069.656 | F21: 8151529.753 | G21: 411529.7533
A25: Év | B25: Folyamatos díjakból képzett megtakarítás a hozamok nélkül | C25: Jóváírt adókedvezmények összege az adott biztosítási év végéig | D25: UNION Bónuszjóváírások összege az adott biztosítási év végéig | E25: Megtakarítás értéke 0% hozammal | F25: Megtakarítás értéke 3% hozammal | G25: Kumulált hozam az adott biztosítási év végéig
A26: 1 | B26: 272061.3395 | C26: 0 | E26: 263856.0342 | F26: 272061.3395 | G26: =+F26-B26-C26-D26 -> 0
A27: 2 | B27: 529778.8698 | C27: 60000 | E27: 566521.4281 | F27: 590684.5136 | G27: =+F27-B27-C27-D27 -> 905.6437852
A28: 3 | B28: 772455.3788 | C28: 120000 | E28: 848279.3021 | F28: 896119.1698 | G28: 3663.791008
A29: 4 | B29: 1021410.641 | C29: 180000 | E29: 1130765.785 | F29: 1209741.428 | G29: 8330.787332
A30: 5 | B30: 1276298.875 | C30: 240000 | E30: 1413343.437 | F30: 1531263.568 | G30: 14964.69223
A31: 6 | B31: 1536908.758 | C31: 300000 | E31: 1695552.928 | F31: 1860534.09 | G31: 23625.33111
A32: 7 | B32: 1803066.045 | C32: 360000 | E32: 1977007.131 | F32: 2197440.394 | G32: 34374.34902
A33: 8 | B33: 2074622.398 | C33: 420000 | E33: 2257374.817 | F33: 2541897.664 | G33: 47275.26601
A34: 9 | B34: 2351449.079 | C34: 480000 | E34: 2536370.319 | F34: 2893842.613 | G34: 62393.53416
A35: 10 | B35: 2633433.009 | C35: 540000 | D35: 300000 | E35: 3113149.312 | F35: 3553381.113 | G35: 79948.10381
A36: 11 | B36: 2954162.283 | C36: 600000 | D36: 300000 | E36: 3406539.368 | F36: 3955691.806 | G36: 101529.5234
A37: 12 | B37: 3278162.308 | C37: 660000 | D37: 300000 | E37: 3695378.29 | F37: 4363710.233 | G37: 125547.9243
A38: 13 | B38: 3605466.439 | C38: 720000 | D38: 300000 | E38: 3979754.708 | F38: 4777543.599 | G38: 152077.1598
A39: 14 | B39: 3936108.371 | C39: 780000 | D39: 300000 | E39: 4259755.53 | F39: 5197301.699 | G39: 181193.3279
A40: 15 | B40: 4270122.142 | C40: 840000 | D40: 450000 | E40: 4685167.474 | F40: 5773172.735 | G40: 213050.5933
A41: 16 | B41: 4607542.137 | C41: 900000 | D41: 450000 | E41: 4953135.099 | F41: 6206032.415 | G41: 248490.2774
A42: 17 | B42: 4948403.094 | C42: 960000 | D42: 450000 | E42: 5217061.364 | F42: 6645167.985 | G42: 286764.8918
A43: 18 | B43: 5292740.101 | C43: 1020000 | D43: 450000 | E43: 5477024.641 | F43: 7090700.352 | G43: 327960.2507
A44: 19 | B44: 5640588.608 | C44: 1080000 | D44: 450000 | E44: 5733101.782 | F44: 7542753.384 | G44: 372164.7758
A45: 20 | B45: 5991984.424 | C45: 1140000 | D45: 600000 | E45: 6135069.656 | F45: 8151529.753 | G45: 419545.3295

Sheet diagram (5%) (hidden)
A1: Év | B1: Befizetett díjak összege az adott biztosítási év végéig | C1: Jóváírt adókedvezmények összege az adott biztosítási év végéig | D1: UNION Bónuszjóváírások összege az adott biztosítási év végéig | E1: Megtakarítás értéke 0% hozammal | F1: Megtakarítás értéke 5% hozammal | G1: Kumulált hozam az adott biztosítási év végéig
A2: 1 | B2: 300000 | C2: 0 | E2: 263856.0342 | F2: 277659.0378 | G2: =+F2-B2-C2-D2 -> -22340.96222
A3: 2 | B3: 600000 | C3: 60000 | E3: 566521.4281 | F3: 606811.2498 | G3: =+F3-B3-C3-D3 -> -53188.75023
A4: 3 | B4: 900000 | C4: 120000 | E4: 848279.3021 | F4: 927246.0005 | G4: -92753.99946
A5: 4 | B5: 1200000 | C5: 180000 | E5: 1130765.785 | F5: 1260292.213 | G5: -119707.7872
A6: 5 | B6: 1500000 | C6: 240000 | E6: 1413343.437 | F6: 1606033.773 | G6: -133966.2267
A7: 6 | B7: 1800000 | C7: 300000 | E7: 1695552.928 | F7: 1964684.568 | G7: -135315.4316
A8: 7 | B8: 2100000 | C8: 360000 | E8: 1977007.131 | F8: 2336494.946 | G8: -123505.0543
A9: 8 | B9: 2400000 | C9: 420000 | E9: 2257374.817 | F9: 2721742.509 | G9: -98257.49104
A10: 9 | B10: 2700000 | C10: 480000 | E10: 2536370.319 | F10: 3120727.285 | G10: -59272.7153
A11: 10 | B11: 3000000 | C11: 540000 | D11: 300000 | E11: 3113149.312 | F11: 3833920.507 | G11: -6079.492507
A12: 11 | B12: 3300000 | C12: 600000 | D12: 300000 | E12: 3406539.368 | F12: 4304360.673 | G12: 104360.6725
A13: 12 | B13: 3600000 | C13: 660000 | D13: 300000 | E13: 3695378.29 | F13: 4789112.295 | G13: 229112.2954
A14: 13 | B14: 3900000 | C14: 720000 | D14: 300000 | E14: 3979754.708 | F14: 5288611.837 | G14: 368611.8373
A15: 14 | B15: 4200000 | C15: 780000 | D15: 300000 | E15: 4259755.53 | F15: 5803309.077 | G15: 523309.0767
A16: 15 | B16: 4500000 | C16: 840000 | D16: 450000 | E16: 4685167.474 | F16: 6483743.27 | G16: 693743.27
A17: 16 | B17: 4800000 | C17: 900000 | D17: 450000 | E17: 4953135.099 | F17: 7031152.589 | G17: 881152.5895
A18: 17 | B18: 5100000 | C18: 960000 | D18: 450000 | E18: 5217061.364 | F18: 7595198.516 | G18: 1085198.516
A19: 18 | B19: 5400000 | C19: 1020000 | D19: 450000 | E19: 5477024.641 | F19: 8176388.323 | G19: 1306388.323 | I19: (1969-es születési év; évi 300 eFt díjfizetés, 5% hozam)
A20: 19 | B20: 5700000 | C20: 1080000 | D20: 450000 | E20: 5733101.782 | F20: 8775244.76 | G20: 1545244.76
A21: 20 | B21: 6000000 | C21: 1140000 | D21: 600000 | E21: 6135069.656 | F21: 9542382.279 | G21: 1802382.279
A25: Év | B25: Folyamatos díjakból képzett megtakarítás a hozamok nélkül | C25: Jóváírt adókedvezmények összege az adott biztosítási év végéig | D25: UNION Bónuszjóváírások összege az adott biztosítási év végéig | E25: Megtakarítás értéke 0% hozammal | F25: Megtakarítás értéke 5% hozammal | G25: Kumulált hozam az adott biztosítási év végéig
A26: 1 | B26: 272061.3395 | C26: 0 | E26: 263856.0342 | F26: 277659.0378 | G26: =+F26-B26-C26-D26 -> 5597.69824
A27: 2 | B27: 529778.8698 | C27: 60000 | E27: 566521.4281 | F27: 606811.2498 | G27: =+F27-B27-C27-D27 -> 17032.37994
A28: 3 | B28: 772455.3788 | C28: 120000 | E28: 848279.3021 | F28: 927246.0005 | G28: 34790.6217
A29: 4 | B29: 1021410.641 | C29: 180000 | E29: 1130765.785 | F29: 1260292.213 | G29: 58881.57188
A30: 5 | B30: 1276298.875 | C30: 240000 | E30: 1413343.437 | F30: 1606033.773 | G30: 89734.89794
A31: 6 | B31: 1536908.758 | C31: 300000 | E31: 1695552.928 | F31: 1964684.568 | G31: 127775.81
A32: 7 | B32: 1803066.045 | C32: 360000 | E32: 1977007.131 | F32: 2336494.946 | G32: 173428.901
A33: 8 | B33: 2074622.398 | C33: 420000 | E33: 2257374.817 | F33: 2721742.509 | G33: 227120.1106
A34: 9 | B34: 2351449.079 | C34: 480000 | E34: 2536370.319 | F34: 3120727.285 | G34: 289278.206
A35: 10 | B35: 2633433.009 | C35: 540000 | D35: 300000 | E35: 3113149.312 | F35: 3833920.507 | G35: 360487.4987
A36: 11 | B36: 2954162.283 | C36: 600000 | D36: 300000 | E36: 3406539.368 | F36: 4304360.673 | G36: 450198.3896
A37: 12 | B37: 3278162.308 | C37: 660000 | D37: 300000 | E37: 3695378.29 | F37: 4789112.295 | G37: 550949.9871
A38: 13 | B38: 3605466.439 | C38: 720000 | D38: 300000 | E38: 3979754.708 | F38: 5288611.837 | G38: 663145.3979
A39: 14 | B39: 3936108.371 | C39: 780000 | D39: 300000 | E39: 4259755.53 | F39: 5803309.077 | G39: 787200.7055
A40: 15 | B40: 4270122.142 | C40: 840000 | D40: 450000 | E40: 4685167.474 | F40: 6483743.27 | G40: 923621.128
A41: 16 | B41: 4607542.137 | C41: 900000 | D41: 450000 | E41: 4953135.099 | F41: 7031152.589 | G41: 1073610.452
A42: 17 | B42: 4948403.094 | C42: 960000 | D42: 450000 | E42: 5217061.364 | F42: 7595198.516 | G42: 1236795.423
A43: 18 | B43: 5292740.101 | C43: 1020000 | D43: 450000 | E43: 5477024.641 | F43: 8176388.323 | G43: 1413648.222
A44: 19 | B44: 5640588.608 | C44: 1080000 | D44: 450000 | E44: 5733101.782 | F44: 8775244.76 | G44: 1604656.152
A45: 20 | B45: 5991984.424 | C45: 1140000 | D45: 600000 | E45: 6135069.656 | F45: 9542382.279 | G45: 1810397.855

Sheet diagram (7%) (hidden)
A1: Év | B1: Befizetett díjak összege az adott biztosítási év végéig | C1: Jóváírt adókedvezmények összege az adott biztosítási év végéig | D1: UNION Bónuszjóváírások összege az adott biztosítási év végéig | E1: Megtakarítás értéke 0% hozammal | F1: Megtakarítás értéke 7% hozammal | G1: Kumulált hozam az adott biztosítási év végéig
A2: 1 | B2: 300000 | C2: 0 | E2: 263856.0342 | F2: 283360.735 | G2: =+F2-B2-C2-D2 -> -16639.26501
A3: 2 | B3: 600000 | C3: 60000 | E3: 566521.4281 | F3: 624679.9314 | G3: =+F3-B3-C3-D3 -> -35320.06861
A4: 3 | B4: 900000 | C4: 120000 | E4: 848279.3021 | F4: 964879.9794 | G4: -55120.02055
A5: 4 | B5: 1200000 | C5: 180000 | E5: 1130765.785 | F5: 1325676.165 | G5: -54323.83485
A6: 5 | B6: 1500000 | C6: 240000 | E6: 1413343.437 | F6: 1707999.197 | G6: -32000.80306
A7: 6 | B7: 1800000 | C7: 300000 | E7: 1695552.928 | F7: 2112956.526 | G7: 12956.5262
A8: 7 | B8: 2100000 | C8: 360000 | E8: 1977007.131 | F8: 2541745.144 | G8: 81745.14375
A9: 8 | B9: 2400000 | C9: 420000 | E9: 2257374.817 | F9: 2995647.209 | G9: 175647.2087
A10: 9 | B10: 2700000 | C10: 480000 | E10: 2536370.319 | F10: 3476029.887 | G10: 296029.8875
A11: 10 | B11: 3000000 | C11: 540000 | D11: 300000 | E11: 3113149.312 | F11: 4285496.859 | G11: 445496.8586
A12: 11 | B12: 3300000 | C12: 600000 | D12: 300000 | E12: 3406539.368 | F12: 4887765.641 | G12: 687765.6411
A13: 12 | B13: 3600000 | C13: 660000 | D13: 300000 | E13: 3695378.29 | F13: 5523290.222 | G13: 963290.2218
A14: 13 | B14: 3900000 | C14: 720000 | D14: 300000 | E14: 3979754.708 | F14: 6193949.232 | G14: 1273949.232
A15: 14 | B15: 4200000 | C15: 780000 | D15: 300000 | E15: 4259755.53 | F15: 6901730.252 | G15: 1621730.252
A16: 15 | B16: 4500000 | C16: 840000 | D16: 450000 | E16: 4685167.474 | F16: 7799311.074 | G16: 2009311.074
A17: 16 | B17: 4800000 | C17: 900000 | D17: 450000 | E17: 4953135.099 | F17: 8594838.892 | G17: 2444838.892
A18: 17 | B18: 5100000 | C18: 960000 | D18: 450000 | E18: 5217061.364 | F18: 9434504.301 | G18: 2924504.301
A19: 18 | B19: 5400000 | C19: 1020000 | D19: 450000 | E19: 5477024.641 | F19: 10320815.43 | G19: 3450815.434 | I19: (1969-es születési év; évi 300 eFt díjfizetés, 7% hozam)
A20: 19 | B20: 5700000 | C20: 1080000 | D20: 450000 | E20: 5733101.782 | F20: 11256426.88 | G20: 4026426.879
A21: 20 | B21: 6000000 | C21: 1140000 | D21: 600000 | E21: 6135069.656 | F21: 12394723.25 | G21: 4654723.251
A25: Év | B25: Folyamatos díjakból képzett megtakarítás a hozamok nélkül | C25: Jóváírt adókedvezmények összege az adott biztosítási év végéig | D25: UNION Bónuszjóváírások összege az adott biztosítási év végéig | E25: Megtakarítás értéke 0% hozammal | F25: Megtakarítás értéke 7% hozammal | G25: Kumulált hozam az adott biztosítási év végéig
A26: 1 | B26: 272061.3395 | C26: 0 | E26: 263856.0342 | F26: 283360.735 | G26: =+F26-B26-C26-D26 -> 11299.39545
A27: 2 | B27: 529778.8698 | C27: 60000 | E27: 566521.4281 | F27: 624679.9314 | G27: =+F27-B27-C27-D27 -> 34901.06156
A28: 3 | B28: 772455.3788 | C28: 120000 | E28: 848279.3021 | F28: 964879.9794 | G28: 72424.6006
A29: 4 | B29: 1021410.641 | C29: 180000 | E29: 1130765.785 | F29: 1325676.165 | G29: 124265.5242
A30: 5 | B30: 1276298.875 | C30: 240000 | E30: 1413343.437 | F30: 1707999.197 | G30: 191700.3216
A31: 6 | B31: 1536908.758 | C31: 300000 | E31: 1695552.928 | F31: 2112956.526 | G31: 276047.7678
A32: 7 | B32: 1803066.045 | C32: 360000 | E32: 1977007.131 | F32: 2541745.144 | G32: 378679.099
A33: 8 | B33: 2074622.398 | C33: 420000 | E33: 2257374.817 | F33: 2995647.209 | G33: 501024.8103
A34: 9 | B34: 2351449.079 | C34: 480000 | E34: 2536370.319 | F34: 3476029.887 | G34: 644580.8088
A35: 10 | B35: 2633433.009 | C35: 540000 | D35: 300000 | E35: 3113149.312 | F35: 4285496.859 | G35: 812063.8498
A36: 11 | B36: 2954162.283 | C36: 600000 | D36: 300000 | E36: 3406539.368 | F36: 4887765.641 | G36: 1033603.358
A37: 12 | B37: 3278162.308 | C37: 660000 | D37: 300000 | E37: 3695378.29 | F37: 5523290.222 | G37: 1285127.914
A38: 13 | B38: 3605466.439 | C38: 720000 | D38: 300000 | E38: 3979754.708 | F38: 6193949.232 | G38: 1568482.792
A39: 14 | B39: 3936108.371 | C39: 780000 | D39: 300000 | E39: 4259755.53 | F39: 6901730.252 | G39: 1885621.88
A40: 15 | B40: 4270122.142 | C40: 840000 | D40: 450000 | E40: 4685167.474 | F40: 7799311.074 | G40: 2239188.932
A41: 16 | B41: 4607542.137 | C41: 900000 | D41: 450000 | E41: 4953135.099 | F41: 8594838.892 | G41: 2637296.755
A42: 17 | B42: 4948403.094 | C42: 960000 | D42: 450000 | E42: 5217061.364 | F42: 9434504.301 | G42: 3076101.208
A43: 18 | B43: 5292740.101 | C43: 1020000 | D43: 450000 | E43: 5477024.641 | F43: 10320815.43 | G43: 3558075.333
A44: 19 | B44: 5640588.608 | C44: 1080000 | D44: 450000 | E44: 5733101.782 | F44: 11256426.88 | G44: 4085838.271
A45: 20 | B45: 5991984.424 | C45: 1140000 | D45: 600000 | E45: 6135069.656 | F45: 12394723.25 | G45: 4662738.827

Sheet járadék (hidden)
C2: Belépési kor | D2: Szükséges éves díj | E2: Szükséges havidíj egy havi 50. 000 Ft-os, 10 éves fix járadékhoz | F2: Szükséges havidíj egy havi 50. 000 Ft-os, 10 éves fix járadékhoz
C3: 20 | D3: 78544.27414 | E3: =+D3/12 -> 6545.356178
C4: 21 | E4: =+(E8/E3)^(1/5)*E3 -> 6741.02906
C5: 22 | E5: =+(E8/E3)^(2/5)*E3 -> 6942.551565 | F5: =+AVERAGE(E3:E7) -> 6948.57711
C6: 23 | E6: =+(E8/E3)^(3/5)*E3 -> 7150.09857 | F6: =+AVERAGE(E4:E8) -> 7156.304247
C7: 24 | E7: =+(E8/E3)^(4/5)*E3 -> 7363.850175 | F7: 7374.858256
C8: 25 | D8: 91007.9024 | E8: =+D8/12 -> 7583.991867 | F8: 7604.714878
C9: 26 | E9: =+(E13/E8)^(1/5)*E8 -> 7833.799102 | F9: 7846.369088
C10: 27 | E10: =+(E13/E8)^(2/5)*E8 -> 8091.834676 | F10: 8100.335832
C11: 28 | E11: =+(E13/E8)^(3/5)*E8 -> 8358.36962 | F11: 8367.150793
C12: 29 | E12: =+(E13/E8)^(4/5)*E8 -> 8633.683893 | F12: 8649.979459
C13: 30 | D13: 107016.8001 | E13: 8918.066674 | F13: 8949.616556
C14: 31 | E14: =+(E18/E13)^(1/5)*E13 -> 9247.942431 | F14: 9266.892874
C15: 32 | E15: =+(E18/E13)^(2/5)*E13 -> 9590.02016 | F15: 9602.676819
C16: 33 | E16: =+(E18/E13)^(3/5)*E13 -> 9944.75121 | F16: 9957.876034
C17: 34 | E17: =+(E18/E13)^(4/5)*E13 -> 10312.60362 | F17: 10338.21559
C18: 35 | D18: 128328.753 | E18: 10694.06275 | F18: 10745.1367
C19: 36 | E19: =+(E23/E18)^(1/5)*E18 -> 11149.64021 | F19: 11180.15567
C20: 37 | E20: =+(E23/E18)^(2/5)*E18 -> 11624.62572 | F20: 11644.86761
C21: 38 | E21: =+(E23/E18)^(3/5)*E18 -> 12119.84607 | F21: 12140.95028
C22: 39 | E22: =+(E23/E18)^(4/5)*E18 -> 12636.16329 | F22: 12679.85331
C23: 40 | D23: 158093.7135 | E23: 13174.47613 | F23: 13264.50325
C24: 41 | E24: =+(E28/E23)^(1/5)*E23 -> 13844.15535 | F24: 13898.00737
C25: 42 | E25: =+(E28/E23)^(2/5)*E23 -> 14547.87542 | F25: 14583.6642
C26: 43 | E26: =+(E28/E23)^(3/5)*E23 -> 15287.36668 | F26: 15324.97466
C27: 44 | E27: =+(E28/E23)^(4/5)*E23 -> 16064.44744 | F27: 16165.9465
C28: 45 | D28: 202572.3411 | E28: 16881.02842 | F28: 17115.93397
C29: 46 | E29: =+(E33/E28)^(1/5)*E28 -> 18049.01454 | F29: 18185.06352
C30: 47 | E30: =+(E33/E28)^(2/5)*E28 -> 19297.81277 | F30: 19384.29358
C31: 48 | E31: =+(E33/E28)^(3/5)*E28 -> 20633.01444 | F31: 20725.4788
C32: 49 | E32: =+(E33/E28)^(4/5)*E28 -> 22060.59774 | F32: 22285.79188
C33: 50 | D33: 283043.454 | E33: 23586.9545 | F33: 24092.51815
C34: 51 | E34: =+(E38/E33)^(1/5)*E33 -> 25850.57994 | F34: 26175.99431
C35: 52 | E35: =+(E38/E33)^(2/5)*E33 -> 28331.44411 | F35: 28569.93127
C36: 53 | E36: =+(E38/E33)^(3/5)*E33 -> 31050.39528 | F36: 31311.7699
C37: 54 | E37: =+(E38/E33)^(4/5)*E33 -> 34030.28251 | F37: 35416.25616
C38: 55 | D38: 447553.7721 | E38: 37296.14767 | F38: 41281.75441
C39: 56 | E39: =+(E43/E38)^(1/5)*E38 -> 46373.01121 | F39: 49409.9844
C40: 57 | E40: =+(E43/E38)^(2/5)*E38 -> 57658.93539 | F40: 60431.78969
C41: 58 | E41: =+(E43/E38)^(3/5)*E38 -> 71691.54521 | F41: 75139.23651
C42: 59 | E42: =+(E43/E38)^(4/5)*E38 -> 89139.30895
C43: 60 | D43: 1330000.581 | E43: 110833.3818
